Workbook

Sheet SampleCalc
A1: Florida Power & Light Company
A2: Docket No. 20210015-EI
A3: Staff's Tenth Data Request
A4: Request No. 12
A5: Attachment 1 of 1
A6: Tab 1 of 5
B7: Monthly Service Payment
B8: Hypothetical Sample Calculation
B10: Year | F10: 2022 | G10: =F10+1 -> 2023 | H10: =G10+1 -> 2024 | I10: 2025 | J10: 2026 | K10: 2027 | L10: 2028 | M10: 2029 | N10: 2030 | O10: 2031
B11: Term | D11: 10 | F11: =MIN(1,$D11-SUM($E11:E11)) -> 1 | G11: =MIN(1,$D11-SUM($E11:F11)) -> 1 | H11: =MIN(1,$D11-SUM($E11:G11)) -> 1 | I11: =MIN(1,$D11-SUM($E11:H11)) -> 1 | J11: =MIN(1,$D11-SUM($E11:I11)) -> 1 | K11: =MIN(1,$D11-SUM($E11:J11)) -> 1 | L11: =MIN(1,$D11-SUM($E11:K11)) -> 1 | M11: =MIN(1,$D11-SUM($E11:L11)) -> 1 | N11: =MIN(1,$D11-SUM($E11:M11)) -> 1 | O11: =MIN(1,$D11-SUM($E11:N11)) -> 1
B13: Project Costs
B14: Capital Expenditure | F14: 1000000
B15: Operations and Maintenance | F15: 10000 | G15: 10000 | H15: 10000 | I15: 10000 | J15: 10000 | K15: 10000 | L15: 10000 | M15: 10000 | N15: 10000 | O15: 10000
B17: Discount Factor | D17: =Assumptions!$E$33 -> 0.07376237762 | F17: =RevReq!O12 -> 0.9313047475 | G17: =RevReq!P12 -> 0.8673285328 | H17: =RevReq!Q12 -> 0.8077471802 | I17: =RevReq!R12 -> 0.7522587838 | J17: =RevReq!S12 -> 0.7005821767 | K17: =RevReq!T12 -> 0.6524555072 | L17: =RevReq!U12 -> 0.6076349114 | M17: =RevReq!V12 -> 0.5658932778 | N17: =RevReq!W12 -> 0.5270190962 | O17: =RevReq!X12 -> 0.4908153863
B19: Annual Service Payment | D19: =-PMT($D$17,$D$11,D30) -> 169211.5374
B20: Monthly Service Payment | D20: =D19/12 -> 14100.96145
B23: Revenue Requirements | D23: CPVRR
B24: =RevReq!D48 -> Operating Expense | D24: =SUMPRODUCT(F24:O24,$F$17:$O$17) -> 69030.396 | F24: =RevReq!O48 -> 10000 | G24: =RevReq!P48 -> 10000 | H24: =RevReq!Q48 -> 10000 | I24: =RevReq!R48 -> 10000 | J24: =RevReq!S48 -> 10000 | K24: =RevReq!T48 -> 10000 | L24: =RevReq!U48 -> 10000 | M24: =RevReq!V48 -> 10000 | N24: =RevReq!W48 -> 10000 | O24: =RevReq!X48 -> 10000
B25: =RevReq!D49 -> Property Tax and Insurance | D25: =SUMPRODUCT(F25:O25,$F$17:$O$17) -> 75013.41465 | F25: =RevReq!O49 -> 17660 | G25: =RevReq!P49 -> 15894 | H25: =RevReq!Q49 -> 14128 | I25: =RevReq!R49 -> 12362 | J25: =RevReq!S49 -> 10596 | K25: =RevReq!T49 -> 8830 | L25: =RevReq!U49 -> 7064 | M25: =RevReq!V49 -> 5298 | N25: =RevReq!W49 -> 3532 | O25: =RevReq!X49 -> 3532
B26: =RevReq!D50 -> Depreciation | D26: 690303.96 | F26: =RevReq!O50 -> 100000 | G26: =RevReq!P50 -> 100000 | H26: =RevReq!Q50 -> 100000 | I26: =RevReq!R50 -> 100000 | J26: =RevReq!S50 -> 100000 | K26: =RevReq!T50 -> 100000 | L26: =RevReq!U50 -> 100000 | M26: =RevReq!V50 -> 100000 | N26: =RevReq!W50 -> 100000 | O26: =RevReq!X50 -> 100000
B27: =RevReq!D51 -> Interest Expense | D27: 47896.3857 | F27: =RevReq!O51 -> 13291.67888 | G27: =RevReq!P51 -> 11298.5953 | H27: =RevReq!Q51 -> 9319.887809 | I27: =RevReq!R51 -> 7709.208209 | J27: =RevReq!S51 -> 6236.539069 | K27: =RevReq!T51 -> 4867.377774 | L27: =RevReq!U51 -> 3705.232167 | M27: =RevReq!V51 -> 2646.594405 | N27: =RevReq!W51 -> 1587.956643 | O27: =RevReq!X51 -> 529.318881
B28: =RevReq!D52 -> Return on Equity | D28: 213386.2277 | F28: =RevReq!O52 -> 59216.60214 | G28: =RevReq!P52 -> 50337.08899 | H28: =RevReq!Q52 -> 41521.62366 | I28: =RevReq!R52 -> 34345.78276 | J28: =RevReq!S52 -> 27784.80101 | K28: =RevReq!T52 -> 21684.96363 | L28: =RevReq!U52 -> 16507.41498 | M28: =RevReq!V52 -> 11791.0107 | N28: =RevReq!W52 -> 7074.60642 | O28: =RevReq!X52 -> 2358.20214
B29: =RevReq!D53 -> Income Tax | D29: 72443.55958 | F29: =RevReq!O53 -> 20103.74096 | G29: =RevReq!P53 -> 17089.19055 | H29: =RevReq!Q53 -> 14096.38406 | I29: =RevReq!R53 -> 11660.22187 | J29: =RevReq!S53 -> 9432.801307 | K29: =RevReq!T53 -> 7361.936952 | L29: =RevReq!U53 -> 5604.18502 | M29: =RevReq!V53 -> 4002.9893 | N29: =RevReq!W53 -> 2401.79358 | O29: =RevReq!X53 -> 800.59786
B30: Total Costs | D30: 1168073.944 | F30: =SUM(F24:F29) -> 220272.022 | G30: 204618.8748 | H30: 189065.8955 | I30: 176077.2128 | J30: 164050.1414 | K30: 152744.2784 | L30: 142880.8322 | M30: 133738.5944 | N30: 124596.3566 | O30: 117220.1189
B32: Annual Service Payments | D32: 1168073.944 | F32: =$D$20*12 -> 169211.5374 | G32: =$D$20*12 -> 169211.5374 | H32: 169211.5374 | I32: 169211.5374 | J32: 169211.5374 | K32: 169211.5374 | L32: 169211.5374 | M32: 169211.5374 | N32: 169211.5374 | O32: 169211.5374
B35: Net Revenue Requirement | D35: =ROUND(SUMPRODUCT(F35:O35,$F$17:$O$17),5) -> 0 | F35: =F30-F32 -> 51060.48456 | G35: =G30-G32 -> 35407.33742 | H35: 19854.35811 | I35: 6865.675421 | J35: -5161.396035 | K35: -16467.25907 | L35: -26330.70525 | M35: -35472.94302 | N35: -44615.18078 | O35: -51991.41854

Sheet Assumptions
A1: Florida Power & Light Company
A2: Docket No. 20210015-EI
A3: Staff's Tenth Data Request
A4: Request No. 12
A5: Attachment 1 of 1
A6: Tab 2 of 5
A7: GENERAL ASSUMPTIONS
B9: PROJECT TITLE: | D9: Sample Calculation
H10: =Input!F9 -> $ dollars
G11: CPVRR: | H11: =RevReq!$K$42 -> 1168073.944 | I11: unfavorable / (favorable)
B13: DATES
B14: Model Start Year | D14: 2022
B15: Discount Date | D15: 2022-01-01
B16: Inflation Base Year | D16: 2022
A19: I) | B19: TAX RATES
B20: State Income Tax Rate | E20: 0.055
B21: Federal Income Tax Rate | E21: 0.21
B22: Blended Income Tax Rate | E22: =((1-E20)*E21)+E20 -> 0.25345
A24: II) | B24: COST OF CAPITAL
D27: ASSETS | E27: WTD COST | F27: UNWTD AFTER | G27: WTD AFTER | H27: WTD PRE
B28: SOURCE | C28: WEIGHT | D28: COST | E28: RATE | F28: TAX RATE | G28: TAX RATE | H28: TAX RATE
B29: DEBT | C29: =1-C30 -> 0.404 | D29: 0.0351 | E29: =C29*D29 -> 0.0141804 | F29: =D29*(1-$E$22) -> 0.026203905 | G29: =E29*(1-$E$22) -> 0.01058637762 | H29: =+E29 -> 0.0141804
B30: COMMON | C30: 0.596 | D30: 0.106 | E30: =C30*D30 -> 0.063176 | F30: =D30 -> 0.106 | G30: =E30 -> 0.063176 | H30: =+E30/(1-Tax_Rate) -> 0.08462393678
B31: TOTAL | C31: =SUM(C29:C30) -> 1 | G31: =SUM(G29:G30) -> 0.07376237762 | H31: =SUM(H29:H30) -> 0.09880433678
B33: DISCOUNT RATE ("WACC"): | E33: =G31 -> 0.07376237762
A37: III) | B37: PROPERTY TAXES | E37: 0.0173
B38: PROPERTY INSURANCE | E38: 0.00036
A41: III) | B41: AFUDC
C43: 2020 | D43: 2021 | E43: 2022 | F43: 2023 | G43: 2024
B44: Debt
B45: Equity
B46: Total
B47: Note: New AFUDC rules were approved by the PSC and effective Jan 26, 2021. Consult with Accounting to determine
B48: whether a project is eligible for AFUDC or not.
A51: IV) | B51: FEDERAL TAX INCENTIVES
C53: 2020 | D53: 2021 | E53: 2022 | F53: 2023 | G53: 2024 | H53: 2025
B54: ITC | C54: 0 | D54: 0 | E54: 0 | F54: 0 | G54: 0 | H54: 0
B55: Bonus | C55: 0 | D55: 0 | E55: 0 | F55: 0 | G55: 0 | H55: 0

Sheet Input
A1: Florida Power & Light Company
A2: Docket No. 20210015-EI
A3: Staff's Tenth Data Request
A4: Request No. 12
A5: Attachment 1 of 1
A6: Tab 3 of 5
D7: INPUTS | F7: CPVRR: | G7: =G66 -> 1168073.944
D8: Period | S8: 0 | T8: =S8+1 -> 1 | U8: =T8+1 -> 2 | V8: 3 | W8: 4 | X8: 5 | Y8: 6 | Z8: 7 | AA8: 8 | AB8: 9 | AC8: 10 | AD8: 11 | AE8: 12 | AF8: 13 | AG8: 14 | AH8: 15 | AI8: 16 | AJ8: 17 | AK8: =AJ8+1 -> 18 | AL8: 19 | AM8: 20 | AN8: 21 | AO8: 22 | AP8: 23 | AQ8: 24 | AR8: 25 | AS8: 26 | AT8: 27 | AU8: 28 | AV8: 29 | AW8: 30 | AX8: 31 | AY8: 32 | AZ8: 33 | BA8: =AZ8+1 -> 34 | BB8: 35 | BC8: 36 | BD8: 37 | BE8: 38 | BF8: 39 | BG8: 40 | BH8: 41 | BI8: 42 | BJ8: 43 | BK8: 44 | BL8: 45 | BM8: 46 | BN8: 47 | BO8: 48 | BP8: 49 | BQ8: =BP8+1 -> 50
D9: Year | E9: Data Entry: | F9: $ dollars | S9: =Assumptions!$D$14 -> 2022 | T9: =S9+1 -> 2023 | U9: 2024 | V9: 2025 | W9: 2026 | X9: 2027 | Y9: 2028 | Z9: 2029 | AA9: 2030 | AB9: 2031 | AC9: 2032 | AD9: 2033 | AE9: 2034 | AF9: 2035 | AG9: 2036 | AH9: 2037 | AI9: 2038 | AJ9: 2039 | AK9: 2040 | AL9: 2041 | AM9: 2042 | AN9: 2043 | AO9: 2044 | AP9: 2045 | AQ9: 2046 | AR9: 2047 | AS9: 2048 | AT9: 2049 | AU9: 2050 | AV9: 2051 | AW9: 2052 | AX9: 2053 | AY9: 2054 | AZ9: 2055 | BA9: 2056 | BB9: 2057 | BC9: 2058 | BD9: 2059 | BE9: 2060 | BF9: 2061 | BG9: 2062 | BH9: 2063 | BI9: 2064 | BJ9: 2065 | BK9: 2066 | BL9: 2067 | BM9: 2068 | BN9: 2069 | BO9: 2070 | BP9: 2071 | BQ9: =BP9+1 -> 2072
D11: Item Title | E11: Cash Flow Type | F11: Construction Start Date | G11: Commercial Operations Date (COD) | H11: Asset Type | I11: Base/ Clause | J11: Book Life | K11: Tax Life | L11: Inflation | M11: Bonus Depreciation | N11: Investment Tax Credit (Solar) | O11: Percent Subject to Property Tax | Q11: Sum | S11: Cash Flows
C12: =C11+1 -> 1 | D12: Capital Costs | E12: Capital | F12: 2021-01-01 | G12: 2022-01-01 | H12: EV Charging Equipment | I12: Base | J12: =INDEX(lookups!$D$12:$D$47,MATCH($H12,lookups!$C$12:$C$47,0),1) -> 10 | K12: =INDEX(lookups!$E$12:$E$47,MATCH($H12,lookups!$C$12:$C$47,0),1) -> 5 | L12: 0 | M12: FALSE | N12: =IF(AND(OR(H12="Solar",H12=lookups!$C$29),$E12<>"Land"),TRUE,FALSE) -> FALSE | O12: =IF(AND(H12="Solar",$E12<>"Land"),20%,1) -> 1 | Q12: =SUM(S12:BQ12) -> 1000000 | S12: =SampleCalc!F14 -> 1000000 | T12: =SampleCalc!G14 -> 0 | U12: =SampleCalc!H14 -> 0 | V12: =SampleCalc!I14 -> 0 | W12: =SampleCalc!J14 -> 0 | X12: =SampleCalc!K14 -> 0 | Y12: =SampleCalc!L14 -> 0 | Z12: =SampleCalc!M14 -> 0 | AA12: =SampleCalc!N14 -> 0 | AB12: =SampleCalc!O14 -> 0 | AC12: =SampleCalc!P14 -> 0 | AD12: =SampleCalc!Q14 -> 0 | AE12: =SampleCalc!R14 -> 0 | AF12: =SampleCalc!S14 -> 0 | AG12: =SampleCalc!T14 -> 0 | AH12: =SampleCalc!U14 -> 0 | AI12: =SampleCalc!V14 -> 0 | AJ12: =SampleCalc!W14 -> 0 | AK12: =SampleCalc!X14 -> 0 | AL12: =SampleCalc!Y14 -> 0 | AM12: =SampleCalc!Z14 -> 0 | AN12: =SampleCalc!AA14 -> 0 | AO12: =SampleCalc!AB14 -> 0 | AP12: =SampleCalc!AC14 -> 0 | AQ12: =SampleCalc!AD14 -> 0 | AR12: =SampleCalc!AE14 -> 0 | AS12: =SampleCalc!AF14 -> 0 | AT12: =SampleCalc!AG14 -> 0 | AU12: =SampleCalc!AH14 -> 0 | AV12: =SampleCalc!AI14 -> 0 | AW12: =SampleCalc!AJ14 -> 0 | AX12: =SampleCalc!AK14 -> 0 | AY12: =SampleCalc!AL14 -> 0 | AZ12: =SampleCalc!AM14 -> 0 | BA12: =SampleCalc!AN14 -> 0 | BB12: =SampleCalc!AO14 -> 0 | BC12: =SampleCalc!AP14 -> 0 | BD12: =SampleCalc!AQ14 -> 0 | BE12: =SampleCalc!AR14 -> 0 | BF12: =SampleCalc!AS14 -> 0 | BG12: =SampleCalc!AT14 -> 0 | BH12: =SampleCalc!AU14 -> 0 | BI12: =SampleCalc!AV14 -> 0 | BJ12: =SampleCalc!AW14 -> 0 | BK12: =SampleCalc!AX14 -> 0 | BL12: =SampleCalc!AY14 -> 0 | BM12: =SampleCalc!AZ14 -> 0 | BN12: =SampleCalc!BA14 -> 0 | BO12: =SampleCalc!BB14 -> 0 | BP12: =SampleCalc!BC14 -> 0 | BQ12: =SampleCalc!BD14 -> 0
C13: 2 | D13: O&M | E13: Operating Expense | F13: 2021-01-01 | G13: 2022-01-01 | H13: EV Charging Equipment | I13: Base | J13: =INDEX(lookups!$D$12:$D$47,MATCH($H13,lookups!$C$12:$C$47,0),1) -> 10 | K13: =INDEX(lookups!$E$12:$E$47,MATCH($H13,lookups!$C$12:$C$47,0),1) -> 5 | L13: 0 | M13: FALSE | N13: =IF(AND(OR(H13="Solar",H13=lookups!$C$29),$E13<>"Land"),TRUE,FALSE) -> FALSE | O13: 1 | Q13: =SUM(S13:BQ13) -> 100000 | S13: =SampleCalc!F15 -> 10000 | T13: =SampleCalc!G15 -> 10000 | U13: =SampleCalc!H15 -> 10000 | V13: =SampleCalc!I15 -> 10000 | W13: =SampleCalc!J15 -> 10000 | X13: =SampleCalc!K15 -> 10000 | Y13: =SampleCalc!L15 -> 10000 | Z13: =SampleCalc!M15 -> 10000 | AA13: =SampleCalc!N15 -> 10000 | AB13: =SampleCalc!O15 -> 10000 | AC13: =SampleCalc!P15 -> 0 | AD13: =SampleCalc!Q15 -> 0 | AE13: =SampleCalc!R15 -> 0 | AF13: =SampleCalc!S15 -> 0 | AG13: =SampleCalc!T15 -> 0 | AH13: =SampleCalc!U15 -> 0 | AI13: =SampleCalc!V15 -> 0 | AJ13: =SampleCalc!W15 -> 0 | AK13: =SampleCalc!X15 -> 0 | AL13: =SampleCalc!Y15 -> 0 | AM13: =SampleCalc!Z15 -> 0 | AN13: =SampleCalc!AA15 -> 0 | AO13: =SampleCalc!AB15 -> 0 | AP13: =SampleCalc!AC15 -> 0 | AQ13: =SampleCalc!AD15 -> 0 | AR13: =SampleCalc!AE15 -> 0 | AS13: =SampleCalc!AF15 -> 0 | AT13: =SampleCalc!AG15 -> 0 | AU13: =SampleCalc!AH15 -> 0 | AV13: =SampleCalc!AI15 -> 0 | AW13: =SampleCalc!AJ15 -> 0 | AX13: =SampleCalc!AK15 -> 0 | AY13: =SampleCalc!AL15 -> 0 | AZ13: =SampleCalc!AM15 -> 0 | BA13: =SampleCalc!AN15 -> 0 | BB13: =SampleCalc!AO15 -> 0 | BC13: =SampleCalc!AP15 -> 0 | BD13: =SampleCalc!AQ15 -> 0 | BE13: =SampleCalc!AR15 -> 0 | BF13: =SampleCalc!AS15 -> 0 | BG13: =SampleCalc!AT15 -> 0 | BH13: =SampleCalc!AU15 -> 0 | BI13: =SampleCalc!AV15 -> 0 | BJ13: =SampleCalc!AW15 -> 0 | BK13: =SampleCalc!AX15 -> 0 | BL13: =SampleCalc!AY15 -> 0 | BM13: =SampleCalc!AZ15 -> 0 | BN13: =SampleCalc!BA15 -> 0 | BO13: =SampleCalc!BB15 -> 0 | BP13: =SampleCalc!BC15 -> 0 | BQ13: =SampleCalc!BD15 -> 0
C14: 3 | D14: … | E14: Operating Expense | F14: 2021-01-01 | G14: 2022-01-01 | H14: EV Charging Equipment | I14: Base | J14: =INDEX(lookups!$D$12:$D$47,MATCH($H14,lookups!$C$12:$C$47,0),1) -> 10 | K14: =INDEX(lookups!$E$12:$E$47,MATCH($H14,lookups!$C$12:$C$47,0),1) -> 5 | L14: 0 | M14: FALSE | N14: =IF(AND(OR(H14="Solar",H14=lookups!$C$29),$E14<>"Land"),TRUE,FALSE) -> FALSE | O14: 1 | Q14: =SUM(S14:BQ14) -> 0 | S14: 0 | T14: 0 | U14: 0 | V14: 0 | W14: 0 | X14: 0 | Y14: 0 | Z14: 0 | AA14: 0 | AB14: 0 | AC14: 0 | AD14: 0 | AE14: 0 | AF14: 0 | AG14: 0 | AH14: 0 | AI14: 0 | AJ14: 0 | AK14: 0 | AL14: 0 | AM14: 0 | AN14: 0 | AO14: 0 | AP14: 0 | AQ14: 0 | AR14: 0 | AS14: 0 | AT14: 0 | AU14: 0 | AV14: 0 | AW14: 0 | AX14: 0 | AY14: 0 | AZ14: 0 | BA14: 0 | BB14: 0 | BC14: 0 | BD14: 0 | BE14: 0 | BF14: 0 | BG14: 0 | BH14: 0 | BI14: 0 | BJ14: 0 | BK14: 0 | BL14: 0 | BM14: 0 | BN14: 0 | BO14: 0 | BP14: 0 | BQ14: 0
C15: 4 | D15: … | E15: Operating Savings | F15: 2021-01-01 | G15: 2022-01-01 | H15: EV Charging Equipment | I15: Base | J15: =INDEX(lookups!$D$12:$D$47,MATCH($H15,lookups!$C$12:$C$47,0),1) -> 10 | K15: =INDEX(lookups!$E$12:$E$47,MATCH($H15,lookups!$C$12:$C$47,0),1) -> 5 | L15: 0 | M15: FALSE | N15: =IF(AND(OR(H15="Solar",H15=lookups!$C$29),$E15<>"Land"),TRUE,FALSE) -> FALSE | O15: =IF(AND(H15="Solar",$E15<>"Land"),20%,1) -> 1 | Q15: 0 | S15: 0 | T15: 0 | U15: 0 | V15: 0 | W15: 0 | X15: 0 | Y15: 0 | Z15: 0 | AA15: 0 | AB15: 0 | AC15: 0 | AD15: 0 | AE15: 0 | AF15: 0 | AG15: 0 | AH15: 0 | AI15: 0 | AJ15: 0 | AK15: 0 | AL15: 0 | AM15: 0 | AN15: 0 | AO15: 0 | AP15: 0 | AQ15: 0 | AR15: 0 | AS15: 0 | AT15: 0 | AU15: 0 | AV15: 0 | AW15: 0 | AX15: 0 | AY15: 0 | AZ15: 0 | BA15: 0 | BB15: 0 | BC15: 0 | BD15: 0 | BE15: 0 | BF15: 0 | BG15: 0 | BH15: 0 | BI15: 0 | BJ15: 0 | BK15: 0 | BL15: 0 | BM15: 0 | BN15: 0 | BO15: 0 | BP15: 0 | BQ15: 0
C16: 5 | D16: … | E16: Operating Expense | F16: 2021-01-01 | G16: 2022-01-01 | H16: EV Charging Equipment | I16: Base | J16: =INDEX(lookups!$D$12:$D$47,MATCH($H16,lookups!$C$12:$C$47,0),1) -> 10 | K16: =INDEX(lookups!$E$12:$E$47,MATCH($H16,lookups!$C$12:$C$47,0),1) -> 5 | L16: 0 | M16: FALSE | N16: =IF(AND(OR(H16="Solar",H16=lookups!$C$29),$E16<>"Land"),TRUE,FALSE) -> FALSE | O16: =IF(AND(H16="Solar",$E16<>"Land"),20%,1) -> 1 | Q16: 0 | S16: 0 | T16: 0 | U16: 0 | V16: 0 | W16: 0 | X16: 0 | Y16: 0 | Z16: 0 | AA16: 0 | AB16: 0 | AC16: 0 | AD16: 0 | AE16: 0 | AF16: 0 | AG16: 0 | AH16: 0 | AI16: 0 | AJ16: 0 | AK16: 0 | AL16: 0 | AM16: 0 | AN16: 0 | AO16: 0 | AP16: 0 | AQ16: 0 | AR16: 0 | AS16: 0 | AT16: 0 | AU16: 0 | AV16: 0 | AW16: 0 | AX16: 0 | AY16: 0 | AZ16: 0 | BA16: 0 | BB16: 0 | BC16: 0 | BD16: 0 | BE16: 0 | BF16: 0 | BG16: 0 | BH16: 0 | BI16: 0 | BJ16: 0 | BK16: 0 | BL16: 0 | BM16: 0 | BN16: 0 | BO16: 0 | BP16: 0 | BQ16: 0
C17: 6 | D17: … | E17: Operating Expense | F17: 2021-01-01 | G17: 2022-01-01 | H17: EV Charging Equipment | I17: Base | J17: =INDEX(lookups!$D$12:$D$47,MATCH($H17,lookups!$C$12:$C$47,0),1) -> 10 | K17: =INDEX(lookups!$E$12:$E$47,MATCH($H17,lookups!$C$12:$C$47,0),1) -> 5 | L17: 0 | M17: FALSE | N17: =IF(AND(OR(H17="Solar",H17=lookups!$C$29),$E17<>"Land"),TRUE,FALSE) -> FALSE | O17: 1 | Q17: 0 | S17: 0 | T17: 0 | U17: 0 | V17: 0 | W17: 0 | X17: 0 | Y17: 0 | Z17: 0 | AA17: 0 | AB17: 0 | AC17: 0 | AD17: 0 | AE17: 0 | AF17: 0 | AG17: 0 | AH17: 0 | AI17: 0 | AJ17: 0 | AK17: 0 | AL17: 0 | AM17: 0 | AN17: 0 | AO17: 0 | AP17: 0 | AQ17: 0 | AR17: 0 | AS17: 0 | AT17: 0 | AU17: 0 | AV17: 0 | AW17: 0 | AX17: 0 | AY17: 0 | AZ17: 0 | BA17: 0 | BB17: 0 | BC17: 0 | BD17: 0 | BE17: 0 | BF17: 0 | BG17: 0 | BH17: 0 | BI17: 0 | BJ17: 0 | BK17: 0 | BL17: 0 | BM17: 0 | BN17: 0 | BO17: 0 | BP17: 0 | BQ17: 0
C18: 7 | D18: … | E18: Operating Expense | F18: 2021-01-01 | G18: 2022-01-01 | H18: EV Charging Equipment | I18: Base | J18: =INDEX(lookups!$D$12:$D$47,MATCH($H18,lookups!$C$12:$C$47,0),1) -> 10 | K18: =INDEX(lookups!$E$12:$E$47,MATCH($H18,lookups!$C$12:$C$47,0),1) -> 5 | L18: 0 | M18: FALSE | N18: =IF(AND(OR(H18="Solar",H18=lookups!$C$29),$E18<>"Land"),TRUE,FALSE) -> FALSE | O18: 1 | Q18: 0 | S18: 0 | T18: 0 | U18: 0 | V18: 0 | W18: 0 | X18: 0 | Y18: 0 | Z18: 0 | AA18: 0 | AB18: 0 | AC18: 0 | AD18: 0 | AE18: 0 | AF18: 0 | AG18: 0 | AH18: 0 | AI18: 0 | AJ18: 0 | AK18: 0 | AL18: 0 | AM18: 0 | AN18: 0 | AO18: 0 | AP18: 0 | AQ18: 0 | AR18: 0 | AS18: 0 | AT18: 0 | AU18: 0 | AV18: 0 | AW18: 0 | AX18: 0 | AY18: 0 | AZ18: 0 | BA18: 0 | BB18: 0 | BC18: 0 | BD18: 0 | BE18: 0 | BF18: 0 | BG18: 0 | BH18: 0 | BI18: 0 | BJ18: 0 | BK18: 0 | BL18: 0 | BM18: 0 | BN18: 0 | BO18: 0 | BP18: 0 | BQ18: 0
C19: 8 | D19: … | E19: Operating Expense | F19: 2021-01-01 | G19: 2022-01-01 | H19: EV Charging Equipment | I19: Base | J19: =INDEX(lookups!$D$12:$D$47,MATCH($H19,lookups!$C$12:$C$47,0),1) -> 10 | K19: =INDEX(lookups!$E$12:$E$47,MATCH($H19,lookups!$C$12:$C$47,0),1) -> 5 | L19: 0 | M19: FALSE | N19: =IF(AND(OR(H19="Solar",H19=lookups!$C$29),$E19<>"Land"),TRUE,FALSE) -> FALSE | O19: 1 | Q19: 0 | S19: 0 | T19: 0 | U19: 0 | V19: 0 | W19: 0 | X19: 0 | Y19: 0 | Z19: 0 | AA19: 0 | AB19: 0 | AC19: 0 | AD19: 0 | AE19: 0 | AF19: 0 | AG19: 0 | AH19: 0 | AI19: 0 | AJ19: 0 | AK19: 0 | AL19: 0 | AM19: 0 | AN19: 0 | AO19: 0 | AP19: 0 | AQ19: 0 | AR19: 0 | AS19: 0 | AT19: 0 | AU19: 0 | AV19: 0 | AW19: 0 | AX19: 0 | AY19: 0 | AZ19: 0 | BA19: 0 | BB19: 0 | BC19: 0 | BD19: 0 | BE19: 0 | BF19: 0 | BG19: 0 | BH19: 0 | BI19: 0 | BJ19: 0 | BK19: 0 | BL19: 0 | BM19: 0 | BN19: 0 | BO19: 0 | BP19: 0 | BQ19: 0
C20: 9 | D20: … | E20: Operating Expense | F20: 2021-01-01 | G20: 2022-01-01 | H20: EV Charging Equipment | I20: Base | J20: =INDEX(lookups!$D$12:$D$47,MATCH($H20,lookups!$C$12:$C$47,0),1) -> 10 | K20: =INDEX(lookups!$E$12:$E$47,MATCH($H20,lookups!$C$12:$C$47,0),1) -> 5 | L20: 0 | M20: FALSE | N20: =IF(AND(OR(H20="Solar",H20=lookups!$C$29),$E20<>"Land"),TRUE,FALSE) -> FALSE | O20: 1 | Q20: 0 | S20: 0 | T20: 0 | U20: 0 | V20: 0 | W20: 0 | X20: 0 | Y20: 0 | Z20: 0 | AA20: 0 | AB20: 0 | AC20: 0 | AD20: 0 | AE20: 0 | AF20: 0 | AG20: 0 | AH20: 0 | AI20: 0 | AJ20: 0 | AK20: 0 | AL20: 0 | AM20: 0 | AN20: 0 | AO20: 0 | AP20: 0 | AQ20: 0 | AR20: 0 | AS20: 0 | AT20: 0 | AU20: 0 | AV20: 0 | AW20: 0 | AX20: 0 | AY20: 0 | AZ20: 0 | BA20: 0 | BB20: 0 | BC20: 0 | BD20: 0 | BE20: 0 | BF20: 0 | BG20: 0 | BH20: 0 | BI20: 0 | BJ20: 0 | BK20: 0 | BL20: 0 | BM20: 0 | BN20: 0 | BO20: 0 | BP20: 0 | BQ20: 0
C21: 10 | D21: … | E21: Operating Expense | F21: 2021-01-01 | G21: 2022-01-01 | H21: EV Charging Equipment | I21: Base | J21: =INDEX(lookups!$D$12:$D$47,MATCH($H21,lookups!$C$12:$C$47,0),1) -> 10 | K21: =INDEX(lookups!$E$12:$E$47,MATCH($H21,lookups!$C$12:$C$47,0),1) -> 5 | L21: 0 | M21: FALSE | N21: =IF(AND(OR(H21="Solar",H21=lookups!$C$29),$E21<>"Land"),TRUE,FALSE) -> FALSE | O21: 1 | Q21: 0 | S21: 0 | T21: 0 | U21: 0 | V21: 0 | W21: 0 | X21: 0 | Y21: 0 | Z21: 0 | AA21: 0 | AB21: 0 | AC21: 0 | AD21: 0 | AE21: 0 | AF21: 0 | AG21: 0 | AH21: 0 | AI21: 0 | AJ21: 0 | AK21: 0 | AL21: 0 | AM21: 0 | AN21: 0 | AO21: 0 | AP21: 0 | AQ21: 0 | AR21: 0 | AS21: 0 | AT21: 0 | AU21: 0 | AV21: 0 | AW21: 0 | AX21: 0 | AY21: 0 | AZ21: 0 | BA21: 0 | BB21: 0 | BC21: 0 | BD21: 0 | BE21: 0 | BF21: 0 | BG21: 0 | BH21: 0 | BI21: 0 | BJ21: 0 | BK21: 0 | BL21: 0 | BM21: 0 | BN21: 0 | BO21: 0 | BP21: 0 | BQ21: 0
C22: 11 | D22: … | E22: Operating Expense | F22: 2021-01-01 | G22: 2022-01-01 | H22: EV Charging Equipment | I22: Base | J22: =INDEX(lookups!$D$12:$D$47,MATCH($H22,lookups!$C$12:$C$47,0),1) -> 10 | K22: =INDEX(lookups!$E$12:$E$47,MATCH($H22,lookups!$C$12:$C$47,0),1) -> 5 | L22: 0 | M22: FALSE | N22: =IF(AND(OR(H22="Solar",H22=lookups!$C$29),$E22<>"Land"),TRUE,FALSE) -> FALSE | O22: 1 | Q22: 0 | S22: 0 | T22: 0 | U22: 0 | V22: 0 | W22: 0 | X22: 0 | Y22: 0 | Z22: 0 | AA22: 0 | AB22: 0 | AC22: 0 | AD22: 0 | AE22: 0 | AF22: 0 | AG22: 0 | AH22: 0 | AI22: 0 | AJ22: 0 | AK22: 0 | AL22: 0 | AM22: 0 | AN22: 0 | AO22: 0 | AP22: 0 | AQ22: 0 | AR22: 0 | AS22: 0 | AT22: 0 | AU22: 0 | AV22: 0 | AW22: 0 | AX22: 0 | AY22: 0 | AZ22: 0 | BA22: 0 | BB22: 0 | BC22: 0 | BD22: 0 | BE22: 0 | BF22: 0 | BG22: 0 | BH22: 0 | BI22: 0 | BJ22: 0 | BK22: 0 | BL22: 0 | BM22: 0 | BN22: 0 | BO22: 0 | BP22: 0 | BQ22: 0
C23: 12 | D23: … | E23: Operating Expense | F23: 2021-01-01 | G23: 2022-01-01 | H23: EV Charging Equipment | I23: Base | J23: =INDEX(lookups!$D$12:$D$47,MATCH($H23,lookups!$C$12:$C$47,0),1) -> 10 | K23: =INDEX(lookups!$E$12:$E$47,MATCH($H23,lookups!$C$12:$C$47,0),1) -> 5 | L23: 0 | M23: FALSE | N23: =IF(AND(OR(H23="Solar",H23=lookups!$C$29),$E23<>"Land"),TRUE,FALSE) -> FALSE | O23: 1 | Q23: 0 | S23: 0 | T23: 0 | U23: 0 | V23: 0 | W23: 0 | X23: 0 | Y23: 0 | Z23: 0 | AA23: 0 | AB23: 0 | AC23: 0 | AD23: 0 | AE23: 0 | AF23: 0 | AG23: 0 | AH23: 0 | AI23: 0 | AJ23: 0 | AK23: 0 | AL23: 0 | AM23: 0 | AN23: 0 | AO23: 0 | AP23: 0 | AQ23: 0 | AR23: 0 | AS23: 0 | AT23: 0 | AU23: 0 | AV23: 0 | AW23: 0 | AX23: 0 | AY23: 0 | AZ23: 0 | BA23: 0 | BB23: 0 | BC23: 0 | BD23: 0 | BE23: 0 | BF23: 0 | BG23: 0 | BH23: 0 | BI23: 0 | BJ23: 0 | BK23: 0 | BL23: 0 | BM23: 0 | BN23: 0 | BO23: 0 | BP23: 0 | BQ23: 0
C24: 13 | D24: … | E24: Operating Expense | F24: 2021-01-01 | G24: 2022-01-01 | H24: EV Charging Equipment | I24: Base | J24: =INDEX(lookups!$D$12:$D$47,MATCH($H24,lookups!$C$12:$C$47,0),1) -> 10 | K24: =INDEX(lookups!$E$12:$E$47,MATCH($H24,lookups!$C$12:$C$47,0),1) -> 5 | L24: 0 | M24: FALSE | N24: =IF(AND(OR(H24="Solar",H24=lookups!$C$29),$E24<>"Land"),TRUE,FALSE) -> FALSE | O24: 1 | Q24: 0 | S24: 0 | T24: 0 | U24: 0 | V24: 0 | W24: 0 | X24: 0 | Y24: 0 | Z24: 0 | AA24: 0 | AB24: 0 | AC24: 0 | AD24: 0 | AE24: 0 | AF24: 0 | AG24: 0 | AH24: 0 | AI24: 0 | AJ24: 0 | AK24: 0 | AL24: 0 | AM24: 0 | AN24: 0 | AO24: 0 | AP24: 0 | AQ24: 0 | AR24: 0 | AS24: 0 | AT24: 0 | AU24: 0 | AV24: 0 | AW24: 0 | AX24: 0 | AY24: 0 | AZ24: 0 | BA24: 0 | BB24: 0 | BC24: 0 | BD24: 0 | BE24: 0 | BF24: 0 | BG24: 0 | BH24: 0 | BI24: 0 | BJ24: 0 | BK24: 0 | BL24: 0 | BM24: 0 | BN24: 0 | BO24: 0 | BP24: 0 | BQ24: 0
C25: 14 | D25: … | E25: Operating Expense | F25: 2021-01-01 | G25: 2022-01-01 | H25: EV Charging Equipment | I25: Base | J25: =INDEX(lookups!$D$12:$D$47,MATCH($H25,lookups!$C$12:$C$47,0),1) -> 10 | K25: =INDEX(lookups!$E$12:$E$47,MATCH($H25,lookups!$C$12:$C$47,0),1) -> 5 | L25: 0 | M25: FALSE | N25: =IF(AND(OR(H25="Solar",H25=lookups!$C$29),$E25<>"Land"),TRUE,FALSE) -> FALSE | O25: 1 | Q25: 0 | S25: 0 | T25: 0 | U25: 0 | V25: 0 | W25: 0 | X25: 0 | Y25: 0 | Z25: 0 | AA25: 0 | AB25: 0 | AC25: 0 | AD25: 0 | AE25: 0 | AF25: 0 | AG25: 0 | AH25: 0 | AI25: 0 | AJ25: 0 | AK25: 0 | AL25: 0 | AM25: 0 | AN25: 0 | AO25: 0 | AP25: 0 | AQ25: 0 | AR25: 0 | AS25: 0 | AT25: 0 | AU25: 0 | AV25: 0 | AW25: 0 | AX25: 0 | AY25: 0 | AZ25: 0 | BA25: 0 | BB25: 0 | BC25: 0 | BD25: 0 | BE25: 0 | BF25: 0 | BG25: 0 | BH25: 0 | BI25: 0 | BJ25: 0 | BK25: 0 | BL25: 0 | BM25: 0 | BN25: 0 | BO25: 0 | BP25: 0 | BQ25: 0
C26: 15 | D26: … | E26: Operating Expense | F26: 2021-01-01 | G26: 2022-01-01 | H26: EV Charging Equipment | I26: Base | J26: =INDEX(lookups!$D$12:$D$47,MATCH($H26,lookups!$C$12:$C$47,0),1) -> 10 | K26: =INDEX(lookups!$E$12:$E$47,MATCH($H26,lookups!$C$12:$C$47,0),1) -> 5 | L26: 0 | M26: FALSE | N26: =IF(AND(OR(H26="Solar",H26=lookups!$C$29),$E26<>"Land"),TRUE,FALSE) -> FALSE | O26: 1 | Q26: 0 | S26: 0 | T26: 0 | U26: 0 | V26: 0 | W26: 0 | X26: 0 | Y26: 0 | Z26: 0 | AA26: 0 | AB26: 0 | AC26: 0 | AD26: 0 | AE26: 0 | AF26: 0 | AG26: 0 | AH26: 0 | AI26: 0 | AJ26: 0 | AK26: 0 | AL26: 0 | AM26: 0 | AN26: 0 | AO26: 0 | AP26: 0 | AQ26: 0 | AR26: 0 | AS26: 0 | AT26: 0 | AU26: 0 | AV26: 0 | AW26: 0 | AX26: 0 | AY26: 0 | AZ26: 0 | BA26: 0 | BB26: 0 | BC26: 0 | BD26: 0 | BE26: 0 | BF26: 0 | BG26: 0 | BH26: 0 | BI26: 0 | BJ26: 0 | BK26: 0 | BL26: 0 | BM26: 0 | BN26: 0 | BO26: 0 | BP26: 0 | BQ26: 0
C27: 16 | D27: … | E27: Operating Expense | F27: 2021-01-01 | G27: 2022-01-01 | H27: EV Charging Equipment | I27: Base | J27: =INDEX(lookups!$D$12:$D$47,MATCH($H27,lookups!$C$12:$C$47,0),1) -> 10 | K27: =INDEX(lookups!$E$12:$E$47,MATCH($H27,lookups!$C$12:$C$47,0),1) -> 5 | L27: 0 | M27: FALSE | N27: =IF(AND(OR(H27="Solar",H27=lookups!$C$29),$E27<>"Land"),TRUE,FALSE) -> FALSE | O27: 1 | Q27: 0 | S27: 0 | T27: 0 | U27: 0 | V27: 0 | W27: 0 | X27: 0 | Y27: 0 | Z27: 0 | AA27: 0 | AB27: 0 | AC27: 0 | AD27: 0 | AE27: 0 | AF27: 0 | AG27: 0 | AH27: 0 | AI27: 0 | AJ27: 0 | AK27: 0 | AL27: 0 | AM27: 0 | AN27: 0 | AO27: 0 | AP27: 0 | AQ27: 0 | AR27: 0 | AS27: 0 | AT27: 0 | AU27: 0 | AV27: 0 | AW27: 0 | AX27: 0 | AY27: 0 | AZ27: 0 | BA27: 0 | BB27: 0 | BC27: 0 | BD27: 0 | BE27: 0 | BF27: 0 | BG27: 0 | BH27: 0 | BI27: 0 | BJ27: 0 | BK27: 0 | BL27: 0 | BM27: 0 | BN27: 0 | BO27: 0 | BP27: 0 | BQ27: 0
C28: 17 | D28: … | E28: Operating Expense | F28: 2021-01-01 | G28: 2022-01-01 | H28: EV Charging Equipment | I28: Base | J28: =INDEX(lookups!$D$12:$D$47,MATCH($H28,lookups!$C$12:$C$47,0),1) -> 10 | K28: =INDEX(lookups!$E$12:$E$47,MATCH($H28,lookups!$C$12:$C$47,0),1) -> 5 | L28: 0 | M28: FALSE | N28: =IF(AND(OR(H28="Solar",H28=lookups!$C$29),$E28<>"Land"),TRUE,FALSE) -> FALSE | O28: 1 | Q28: 0 | S28: 0 | T28: 0 | U28: 0 | V28: 0 | W28: 0 | X28: 0 | Y28: 0 | Z28: 0 | AA28: 0 | AB28: 0 | AC28: 0 | AD28: 0 | AE28: 0 | AF28: 0 | AG28: 0 | AH28: 0 | AI28: 0 | AJ28: 0 | AK28: 0 | AL28: 0 | AM28: 0 | AN28: 0 | AO28: 0 | AP28: 0 | AQ28: 0 | AR28: 0 | AS28: 0 | AT28: 0 | AU28: 0 | AV28: 0 | AW28: 0 | AX28: 0 | AY28: 0 | AZ28: 0 | BA28: 0 | BB28: 0 | BC28: 0 | BD28: 0 | BE28: 0 | BF28: 0 | BG28: 0 | BH28: 0 | BI28: 0 | BJ28: 0 | BK28: 0 | BL28: 0 | BM28: 0 | BN28: 0 | BO28: 0 | BP28: 0 | BQ28: 0
C29: 18 | D29: … | E29: Operating Expense | F29: 2021-01-01 | G29: 2022-01-01 | H29: EV Charging Equipment | I29: Base | J29: =INDEX(lookups!$D$12:$D$47,MATCH($H29,lookups!$C$12:$C$47,0),1) -> 10 | K29: =INDEX(lookups!$E$12:$E$47,MATCH($H29,lookups!$C$12:$C$47,0),1) -> 5 | L29: 0 | M29: FALSE | N29: =IF(AND(OR(H29="Solar",H29=lookups!$C$29),$E29<>"Land"),TRUE,FALSE) -> FALSE | O29: 1 | Q29: 0 | S29: 0 | T29: 0 | U29: 0 | V29: 0 | W29: 0 | X29: 0 | Y29: 0 | Z29: 0 | AA29: 0 | AB29: 0 | AC29: 0 | AD29: 0 | AE29: 0 | AF29: 0 | AG29: 0 | AH29: 0 | AI29: 0 | AJ29: 0 | AK29: 0 | AL29: 0 | AM29: 0 | AN29: 0 | AO29: 0 | AP29: 0 | AQ29: 0 | AR29: 0 | AS29: 0 | AT29: 0 | AU29: 0 | AV29: 0 | AW29: 0 | AX29: 0 | AY29: 0 | AZ29: 0 | BA29: 0 | BB29: 0 | BC29: 0 | BD29: 0 | BE29: 0 | BF29: 0 | BG29: 0 | BH29: 0 | BI29: 0 | BJ29: 0 | BK29: 0 | BL29: 0 | BM29: 0 | BN29: 0 | BO29: 0 | BP29: 0 | BQ29: 0
C30: 19 | D30: … | E30: Operating Expense | F30: 2021-01-01 | G30: 2022-01-01 | H30: EV Charging Equipment | I30: Base | J30: =INDEX(lookups!$D$12:$D$47,MATCH($H30,lookups!$C$12:$C$47,0),1) -> 10 | K30: =INDEX(lookups!$E$12:$E$47,MATCH($H30,lookups!$C$12:$C$47,0),1) -> 5 | L30: 0 | M30: FALSE | N30: =IF(AND(OR(H30="Solar",H30=lookups!$C$29),$E30<>"Land"),TRUE,FALSE) -> FALSE | O30: 1 | Q30: 0 | S30: 0 | T30: 0 | U30: 0 | V30: 0 | W30: 0 | X30: 0 | Y30: 0 | Z30: 0 | AA30: 0 | AB30: 0 | AC30: 0 | AD30: 0 | AE30: 0 | AF30: 0 | AG30: 0 | AH30: 0 | AI30: 0 | AJ30: 0 | AK30: 0 | AL30: 0 | AM30: 0 | AN30: 0 | AO30: 0 | AP30: 0 | AQ30: 0 | AR30: 0 | AS30: 0 | AT30: 0 | AU30: 0 | AV30: 0 | AW30: 0 | AX30: 0 | AY30: 0 | AZ30: 0 | BA30: 0 | BB30: 0 | BC30: 0 | BD30: 0 | BE30: 0 | BF30: 0 | BG30: 0 | BH30: 0 | BI30: 0 | BJ30: 0 | BK30: 0 | BL30: 0 | BM30: 0 | BN30: 0 | BO30: 0 | BP30: 0 | BQ30: 0
C31: 20 | D31: … | E31: Operating Expense | F31: 2021-01-01 | G31: 2022-01-01 | H31: EV Charging Equipment | I31: Base | J31: =INDEX(lookups!$D$12:$D$47,MATCH($H31,lookups!$C$12:$C$47,0),1) -> 10 | K31: =INDEX(lookups!$E$12:$E$47,MATCH($H31,lookups!$C$12:$C$47,0),1) -> 5 | L31: 0 | M31: FALSE | N31: =IF(AND(OR(H31="Solar",H31=lookups!$C$29),$E31<>"Land"),TRUE,FALSE) -> FALSE | O31: 1 | Q31: 0 | S31: 0 | T31: 0 | U31: 0 | V31: 0 | W31: 0 | X31: 0 | Y31: 0 | Z31: 0 | AA31: 0 | AB31: 0 | AC31: 0 | AD31: 0 | AE31: 0 | AF31: 0 | AG31: 0 | AH31: 0 | AI31: 0 | AJ31: 0 | AK31: 0 | AL31: 0 | AM31: 0 | AN31: 0 | AO31: 0 | AP31: 0 | AQ31: 0 | AR31: 0 | AS31: 0 | AT31: 0 | AU31: 0 | AV31: 0 | AW31: 0 | AX31: 0 | AY31: 0 | AZ31: 0 | BA31: 0 | BB31: 0 | BC31: 0 | BD31: 0 | BE31: 0 | BF31: 0 | BG31: 0 | BH31: 0 | BI31: 0 | BJ31: 0 | BK31: 0 | BL31: 0 | BM31: 0 | BN31: 0 | BO31: 0 | BP31: 0 | BQ31: 0
C32: 21 | D32: … | E32: Operating Expense | F32: 2021-01-01 | G32: 2022-01-01 | H32: EV Charging Equipment | I32: Base | J32: =INDEX(lookups!$D$12:$D$47,MATCH($H32,lookups!$C$12:$C$47,0),1) -> 10 | K32: =INDEX(lookups!$E$12:$E$47,MATCH($H32,lookups!$C$12:$C$47,0),1) -> 5 | L32: 0 | M32: FALSE | N32: =IF(AND(OR(H32="Solar",H32=lookups!$C$29),$E32<>"Land"),TRUE,FALSE) -> FALSE | O32: 1 | Q32: 0 | S32: 0 | T32: 0 | U32: 0 | V32: 0 | W32: 0 | X32: 0 | Y32: 0 | Z32: 0 | AA32: 0 | AB32: 0 | AC32: 0 | AD32: 0 | AE32: 0 | AF32: 0 | AG32: 0 | AH32: 0 | AI32: 0 | AJ32: 0 | AK32: 0 | AL32: 0 | AM32: 0 | AN32: 0 | AO32: 0 | AP32: 0 | AQ32: 0 | AR32: 0 | AS32: 0 | AT32: 0 | AU32: 0 | AV32: 0 | AW32: 0 | AX32: 0 | AY32: 0 | AZ32: 0 | BA32: 0 | BB32: 0 | BC32: 0 | BD32: 0 | BE32: 0 | BF32: 0 | BG32: 0 | BH32: 0 | BI32: 0 | BJ32: 0 | BK32: 0 | BL32: 0 | BM32: 0 | BN32: 0 | BO32: 0 | BP32: 0 | BQ32: 0
C33: 22 | D33: … | E33: Operating Expense | F33: 2021-01-01 | G33: 2022-01-01 | H33: EV Charging Equipment | I33: Base | J33: =INDEX(lookups!$D$12:$D$47,MATCH($H33,lookups!$C$12:$C$47,0),1) -> 10 | K33: =INDEX(lookups!$E$12:$E$47,MATCH($H33,lookups!$C$12:$C$47,0),1) -> 5 | L33: 0 | M33: FALSE | N33: =IF(AND(OR(H33="Solar",H33=lookups!$C$29),$E33<>"Land"),TRUE,FALSE) -> FALSE | O33: 1 | Q33: 0 | S33: 0 | T33: 0 | U33: 0 | V33: 0 | W33: 0 | X33: 0 | Y33: 0 | Z33: 0 | AA33: 0 | AB33: 0 | AC33: 0 | AD33: 0 | AE33: 0 | AF33: 0 | AG33: 0 | AH33: 0 | AI33: 0 | AJ33: 0 | AK33: 0 | AL33: 0 | AM33: 0 | AN33: 0 | AO33: 0 | AP33: 0 | AQ33: 0 | AR33: 0 | AS33: 0 | AT33: 0 | AU33: 0 | AV33: 0 | AW33: 0 | AX33: 0 | AY33: 0 | AZ33: 0 | BA33: 0 | BB33: 0 | BC33: 0 | BD33: 0 | BE33: 0 | BF33: 0 | BG33: 0 | BH33: 0 | BI33: 0 | BJ33: 0 | BK33: 0 | BL33: 0 | BM33: 0 | BN33: 0 | BO33: 0 | BP33: 0 | BQ33: 0
C34: 23 | D34: … | E34: Operating Expense | F34: 2021-01-01 | G34: 2022-01-01 | H34: EV Charging Equipment | I34: Base | J34: =INDEX(lookups!$D$12:$D$47,MATCH($H34,lookups!$C$12:$C$47,0),1) -> 10 | K34: =INDEX(lookups!$E$12:$E$47,MATCH($H34,lookups!$C$12:$C$47,0),1) -> 5 | L34: 0 | M34: FALSE | N34: =IF(AND(OR(H34="Solar",H34=lookups!$C$29),$E34<>"Land"),TRUE,FALSE) -> FALSE | O34: 1 | Q34: 0 | S34: 0 | T34: 0 | U34: 0 | V34: 0 | W34: 0 | X34: 0 | Y34: 0 | Z34: 0 | AA34: 0 | AB34: 0 | AC34: 0 | AD34: 0 | AE34: 0 | AF34: 0 | AG34: 0 | AH34: 0 | AI34: 0 | AJ34: 0 | AK34: 0 | AL34: 0 | AM34: 0 | AN34: 0 | AO34: 0 | AP34: 0 | AQ34: 0 | AR34: 0 | AS34: 0 | AT34: 0 | AU34: 0 | AV34: 0 | AW34: 0 | AX34: 0 | AY34: 0 | AZ34: 0 | BA34: 0 | BB34: 0 | BC34: 0 | BD34: 0 | BE34: 0 | BF34: 0 | BG34: 0 | BH34: 0 | BI34: 0 | BJ34: 0 | BK34: 0 | BL34: 0 | BM34: 0 | BN34: 0 | BO34: 0 | BP34: 0 | BQ34: 0
C35: 24 | D35: … | E35: Operating Expense | F35: 2021-01-01 | G35: 2022-01-01 | H35: EV Charging Equipment | I35: Base | J35: =INDEX(lookups!$D$12:$D$47,MATCH($H35,lookups!$C$12:$C$47,0),1) -> 10 | K35: =INDEX(lookups!$E$12:$E$47,MATCH($H35,lookups!$C$12:$C$47,0),1) -> 5 | L35: 0 | M35: FALSE | N35: =IF(AND(OR(H35="Solar",H35=lookups!$C$29),$E35<>"Land"),TRUE,FALSE) -> FALSE | O35: 1 | Q35: 0 | S35: 0 | T35: 0 | U35: 0 | V35: 0 | W35: 0 | X35: 0 | Y35: 0 | Z35: 0 | AA35: 0 | AB35: 0 | AC35: 0 | AD35: 0 | AE35: 0 | AF35: 0 | AG35: 0 | AH35: 0 | AI35: 0 | AJ35: 0 | AK35: 0 | AL35: 0 | AM35: 0 | AN35: 0 | AO35: 0 | AP35: 0 | AQ35: 0 | AR35: 0 | AS35: 0 | AT35: 0 | AU35: 0 | AV35: 0 | AW35: 0 | AX35: 0 | AY35: 0 | AZ35: 0 | BA35: 0 | BB35: 0 | BC35: 0 | BD35: 0 | BE35: 0 | BF35: 0 | BG35: 0 | BH35: 0 | BI35: 0 | BJ35: 0 | BK35: 0 | BL35: 0 | BM35: 0 | BN35: 0 | BO35: 0 | BP35: 0 | BQ35: 0
C36: 25 | D36: … | E36: Operating Expense | F36: 2021-01-01 | G36: 2022-01-01 | H36: EV Charging Equipment | I36: Base | J36: =INDEX(lookups!$D$12:$D$47,MATCH($H36,lookups!$C$12:$C$47,0),1) -> 10 | K36: =INDEX(lookups!$E$12:$E$47,MATCH($H36,lookups!$C$12:$C$47,0),1) -> 5 | L36: 0 | M36: FALSE | N36: =IF(AND(OR(H36="Solar",H36=lookups!$C$29),$E36<>"Land"),TRUE,FALSE) -> FALSE | O36: 1 | Q36: 0 | S36: 0 | T36: 0 | U36: 0 | V36: 0 | W36: 0 | X36: 0 | Y36: 0 | Z36: 0 | AA36: 0 | AB36: 0 | AC36: 0 | AD36: 0 | AE36: 0 | AF36: 0 | AG36: 0 | AH36: 0 | AI36: 0 | AJ36: 0 | AK36: 0 | AL36: 0 | AM36: 0 | AN36: 0 | AO36: 0 | AP36: 0 | AQ36: 0 | AR36: 0 | AS36: 0 | AT36: 0 | AU36: 0 | AV36: 0 | AW36: 0 | AX36: 0 | AY36: 0 | AZ36: 0 | BA36: 0 | BB36: 0 | BC36: 0 | BD36: 0 | BE36: 0 | BF36: 0 | BG36: 0 | BH36: 0 | BI36: 0 | BJ36: 0 | BK36: 0 | BL36: 0 | BM36: 0 | BN36: 0 | BO36: 0 | BP36: 0 | BQ36: 0
D37: ="Total "&D11 -> Total Item Title | N37: Solar Exemption Expires | O37: =2018+20 -> 2038 | Q37: 1100000 | S37: =SUM(S12:S36) -> 1010000 | T37: =SUM(T12:T36) -> 10000 | U37: =SUM(U12:U36) -> 10000 | V37: 10000 | W37: 10000 | X37: 10000 | Y37: 10000 | Z37: 10000 | AA37: 10000 | AB37: 10000 | AC37: 0 | AD37: 0 | AE37: 0 | AF37: 0 | AG37: 0 | AH37: 0 | AI37: 0 | AJ37: 0 | AK37: 0 | AL37: 0 | AM37: 0 | AN37: 0 | AO37: 0 | AP37: 0 | AQ37: 0 | AR37: 0 | AS37: 0 | AT37: 0 | AU37: 0 | AV37: 0 | AW37: 0 | AX37: 0 | AY37: 0 | AZ37: 0 | BA37: 0 | BB37: 0 | BC37: 0 | BD37: 0 | BE37: 0 | BF37: 0 | BG37: 0 | BH37: 0 | BI37: 0 | BJ37: 0 | BK37: 0 | BL37: 0 | BM37: 0 | BN37: 0 | BO37: 0 | BP37: 0 | BQ37: 0
D40: Item Title | E40: Cash Flow Type | G40: CPVRR | S40: Revenue Requirement
C41: =C40+1 -> 1 | D41: =D12 -> Capital Costs | E41: =E12 -> Capital | G41: =RevReq!K17 -> 1099043.548 | S41: =RevReq!O17 -> 210272.022 | T41: =RevReq!P17 -> 194618.8748 | U41: =RevReq!Q17 -> 179065.8955 | V41: =RevReq!R17 -> 166077.2128 | W41: =RevReq!S17 -> 154050.1414 | X41: =RevReq!T17 -> 142744.2784 | Y41: =RevReq!U17 -> 132880.8322 | Z41: =RevReq!V17 -> 123738.5944 | AA41: =RevReq!W17 -> 114596.3566 | AB41: =RevReq!X17 -> 107220.1189 | AC41: =RevReq!Y17 -> 1.040520833e-10 | AD41: =RevReq!Z17 -> -1.159770737e-11 | AE41: =RevReq!AA17 -> -1.159770737e-11 | AF41: =RevReq!AB17 -> -1.159770737e-11 | AG41: =RevReq!AC17 -> -1.159770737e-11 | AH41: =RevReq!AD17 -> -1.159770737e-11 | AI41: =RevReq!AE17 -> -1.159770737e-11 | AJ41: =RevReq!AF17 -> -1.159770737e-11 | AK41: =RevReq!AG17 -> -1.159770737e-11 | AL41: =RevReq!AH17 -> -1.159770737e-11 | AM41: =RevReq!AI17 -> -1.159770737e-11 | AN41: =RevReq!AJ17 -> -1.159770737e-11 | AO41: =RevReq!AK17 -> -1.159770737e-11 | AP41: =RevReq!AL17 -> -1.159770737e-11 | AQ41: =RevReq!AM17 -> -1.159770737e-11 | AR41: =RevReq!AN17 -> -1.159770737e-11 | AS41: =RevReq!AO17 -> -1.159770737e-11 | AT41: =RevReq!AP17 -> -1.159770737e-11 | AU41: =RevReq!AQ17 -> -1.159770737e-11 | AV41: =RevReq!AR17 -> -1.159770737e-11 | AW41: =RevReq!AS17 -> -1.159770737e-11 | AX41: =RevReq!AT17 -> -1.159770737e-11 | AY41: =RevReq!AU17 -> -1.159770737e-11 | AZ41: =RevReq!AV17 -> -1.159770737e-11 | BA41: =RevReq!AW17 -> -1.159770737e-11 | BB41: =RevReq!AX17 -> -1.159770737e-11 | BC41: =RevReq!AY17 -> -1.159770737e-11 | BD41: =RevReq!AZ17 -> -1.159770737e-11 | BE41: =RevReq!BA17 -> -1.159770737e-11 | BF41: =RevReq!BB17 -> -1.159770737e-11 | BG41: =RevReq!BC17 -> -1.159770737e-11 | BH41: =RevReq!BD17 -> -1.159770737e-11 | BI41: =RevReq!BE17 -> -1.159770737e-11 | BJ41: =RevReq!BF17 -> -1.159770737e-11 | BK41: =RevReq!BG17 -> -1.159770737e-11 | BL41: =RevReq!BH17 -> -1.159770737e-11 | BM41: =RevReq!BI17 -> -1.159770737e-11 | BN41: =RevReq!BJ17 -> -1.159770737e-11 | BO41: =RevReq!BK17 -> -1.159770737e-11 | BP41: =RevReq!BL17 -> -1.159770737e-11 | BQ41: =RevReq!BM17 -> -1.159770737e-11
C42: =C41+1 -> 2 | D42: =D13 -> O&M | E42: Operating Expense | G42: =RevReq!K18 -> 69030.396 | S42: =RevReq!O18 -> 10000 | T42: =RevReq!P18 -> 10000 | U42: =RevReq!Q18 -> 10000 | V42: =RevReq!R18 -> 10000 | W42: =RevReq!S18 -> 10000 | X42: =RevReq!T18 -> 10000 | Y42: =RevReq!U18 -> 10000 | Z42: =RevReq!V18 -> 10000 | AA42: =RevReq!W18 -> 10000 | AB42: =RevReq!X18 -> 10000 | AC42: =RevReq!Y18 -> 0 | AD42: =RevReq!Z18 -> 0 | AE42: =RevReq!AA18 -> 0 | AF42: =RevReq!AB18 -> 0 | AG42: =RevReq!AC18 -> 0 | AH42: =RevReq!AD18 -> 0 | AI42: =RevReq!AE18 -> 0 | AJ42: =RevReq!AF18 -> 0 | AK42: =RevReq!AG18 -> 0 | AL42: =RevReq!AH18 -> 0 | AM42: =RevReq!AI18 -> 0 | AN42: =RevReq!AJ18 -> 0 | AO42: =RevReq!AK18 -> 0 | AP42: =RevReq!AL18 -> 0 | AQ42: =RevReq!AM18 -> 0 | AR42: =RevReq!AN18 -> 0 | AS42: =RevReq!AO18 -> 0 | AT42: =RevReq!AP18 -> 0 | AU42: =RevReq!AQ18 -> 0 | AV42: =RevReq!AR18 -> 0 | AW42: =RevReq!AS18 -> 0 | AX42: =RevReq!AT18 -> 0 | AY42: =RevReq!AU18 -> 0 | AZ42: =RevReq!AV18 -> 0 | BA42: =RevReq!AW18 -> 0 | BB42: =RevReq!AX18 -> 0 | BC42: =RevReq!AY18 -> 0 | BD42: =RevReq!AZ18 -> 0 | BE42: =RevReq!BA18 -> 0 | BF42: =RevReq!BB18 -> 0 | BG42: =RevReq!BC18 -> 0 | BH42: =RevReq!BD18 -> 0 | BI42: =RevReq!BE18 -> 0 | BJ42: =RevReq!BF18 -> 0 | BK42: =RevReq!BG18 -> 0 | BL42: =RevReq!BH18 -> 0 | BM42: =RevReq!BI18 -> 0 | BN42: =RevReq!BJ18 -> 0 | BO42: =RevReq!BK18 -> 0 | BP42: =RevReq!BL18 -> 0 | BQ42: =RevReq!BM18 -> 0
C43: 3 | D43: … | E43: Operating Expense | G43: =RevReq!K19 -> 0 | S43: =RevReq!O19 -> 0 | T43: =RevReq!P19 -> 0 | U43: =RevReq!Q19 -> 0 | V43: =RevReq!R19 -> 0 | W43: =RevReq!S19 -> 0 | X43: =RevReq!T19 -> 0 | Y43: =RevReq!U19 -> 0 | Z43: =RevReq!V19 -> 0 | AA43: =RevReq!W19 -> 0 | AB43: =RevReq!X19 -> 0 | AC43: =RevReq!Y19 -> 0 | AD43: =RevReq!Z19 -> 0 | AE43: =RevReq!AA19 -> 0 | AF43: =RevReq!AB19 -> 0 | AG43: =RevReq!AC19 -> 0 | AH43: =RevReq!AD19 -> 0 | AI43: =RevReq!AE19 -> 0 | AJ43: =RevReq!AF19 -> 0 | AK43: =RevReq!AG19 -> 0 | AL43: =RevReq!AH19 -> 0 | AM43: =RevReq!AI19 -> 0 | AN43: =RevReq!AJ19 -> 0 | AO43: =RevReq!AK19 -> 0 | AP43: =RevReq!AL19 -> 0 | AQ43: =RevReq!AM19 -> 0 | AR43: =RevReq!AN19 -> 0 | AS43: =RevReq!AO19 -> 0 | AT43: =RevReq!AP19 -> 0 | AU43: =RevReq!AQ19 -> 0 | AV43: =RevReq!AR19 -> 0 | AW43: =RevReq!AS19 -> 0 | AX43: =RevReq!AT19 -> 0 | AY43: =RevReq!AU19 -> 0 | AZ43: =RevReq!AV19 -> 0 | BA43: =RevReq!AW19 -> 0 | BB43: =RevReq!AX19 -> 0 | BC43: =RevReq!AY19 -> 0 | BD43: =RevReq!AZ19 -> 0 | BE43: =RevReq!BA19 -> 0 | BF43: =RevReq!BB19 -> 0 | BG43: =RevReq!BC19 -> 0 | BH43: =RevReq!BD19 -> 0 | BI43: =RevReq!BE19 -> 0 | BJ43: =RevReq!BF19 -> 0 | BK43: =RevReq!BG19 -> 0 | BL43: =RevReq!BH19 -> 0 | BM43: =RevReq!BI19 -> 0 | BN43: =RevReq!BJ19 -> 0 | BO43: =RevReq!BK19 -> 0 | BP43: =RevReq!BL19 -> 0 | BQ43: =RevReq!BM19 -> 0
C44: 4 | D44: … | E44: Operating Savings | G44: =RevReq!K20 -> 0 | S44: =RevReq!O20 -> 0 | T44: =RevReq!P20 -> 0 | U44: =RevReq!Q20 -> 0 | V44: =RevReq!R20 -> 0 | W44: =RevReq!S20 -> 0 | X44: =RevReq!T20 -> 0 | Y44: =RevReq!U20 -> 0 | Z44: =RevReq!V20 -> 0 | AA44: =RevReq!W20 -> 0 | AB44: =RevReq!X20 -> 0 | AC44: =RevReq!Y20 -> 0 | AD44: =RevReq!Z20 -> 0 | AE44: =RevReq!AA20 -> 0 | AF44: =RevReq!AB20 -> 0 | AG44: =RevReq!AC20 -> 0 | AH44: =RevReq!AD20 -> 0 | AI44: =RevReq!AE20 -> 0 | AJ44: =RevReq!AF20 -> 0 | AK44: =RevReq!AG20 -> 0 | AL44: =RevReq!AH20 -> 0 | AM44: =RevReq!AI20 -> 0 | AN44: =RevReq!AJ20 -> 0 | AO44: =RevReq!AK20 -> 0 | AP44: =RevReq!AL20 -> 0 | AQ44: =RevReq!AM20 -> 0 | AR44: =RevReq!AN20 -> 0 | AS44: =RevReq!AO20 -> 0 | AT44: =RevReq!AP20 -> 0 | AU44: =RevReq!AQ20 -> 0 | AV44: =RevReq!AR20 -> 0 | AW44: =RevReq!AS20 -> 0 | AX44: =RevReq!AT20 -> 0 | AY44: =RevReq!AU20 -> 0 | AZ44: =RevReq!AV20 -> 0 | BA44: =RevReq!AW20 -> 0 | BB44: =RevReq!AX20 -> 0 | BC44: =RevReq!AY20 -> 0 | BD44: =RevReq!AZ20 -> 0 | BE44: =RevReq!BA20 -> 0 | BF44: =RevReq!BB20 -> 0 | BG44: =RevReq!BC20 -> 0 | BH44: =RevReq!BD20 -> 0 | BI44: =RevReq!BE20 -> 0 | BJ44: =RevReq!BF20 -> 0 | BK44: =RevReq!BG20 -> 0 | BL44: =RevReq!BH20 -> 0 | BM44: =RevReq!BI20 -> 0 | BN44: =RevReq!BJ20 -> 0 | BO44: =RevReq!BK20 -> 0 | BP44: =RevReq!BL20 -> 0 | BQ44: =RevReq!BM20 -> 0
C45: 5 | D45: … | E45: Operating Expense | G45: =RevReq!K21 -> 0 | S45: =RevReq!O21 -> 0 | T45: =RevReq!P21 -> 0 | U45: =RevReq!Q21 -> 0 | V45: =RevReq!R21 -> 0 | W45: =RevReq!S21 -> 0 | X45: =RevReq!T21 -> 0 | Y45: =RevReq!U21 -> 0 | Z45: =RevReq!V21 -> 0 | AA45: =RevReq!W21 -> 0 | AB45: =RevReq!X21 -> 0 | AC45: =RevReq!Y21 -> 0 | AD45: =RevReq!Z21 -> 0 | AE45: =RevReq!AA21 -> 0 | AF45: =RevReq!AB21 -> 0 | AG45: =RevReq!AC21 -> 0 | AH45: =RevReq!AD21 -> 0 | AI45: =RevReq!AE21 -> 0 | AJ45: =RevReq!AF21 -> 0 | AK45: =RevReq!AG21 -> 0 | AL45: =RevReq!AH21 -> 0 | AM45: =RevReq!AI21 -> 0 | AN45: =RevReq!AJ21 -> 0 | AO45: =RevReq!AK21 -> 0 | AP45: =RevReq!AL21 -> 0 | AQ45: =RevReq!AM21 -> 0 | AR45: =RevReq!AN21 -> 0 | AS45: =RevReq!AO21 -> 0 | AT45: =RevReq!AP21 -> 0 | AU45: =RevReq!AQ21 -> 0 | AV45: =RevReq!AR21 -> 0 | AW45: =RevReq!AS21 -> 0 | AX45: =RevReq!AT21 -> 0 | AY45: =RevReq!AU21 -> 0 | AZ45: =RevReq!AV21 -> 0 | BA45: =RevReq!AW21 -> 0 | BB45: =RevReq!AX21 -> 0 | BC45: =RevReq!AY21 -> 0 | BD45: =RevReq!AZ21 -> 0 | BE45: =RevReq!BA21 -> 0 | BF45: =RevReq!BB21 -> 0 | BG45: =RevReq!BC21 -> 0 | BH45: =RevReq!BD21 -> 0 | BI45: =RevReq!BE21 -> 0 | BJ45: =RevReq!BF21 -> 0 | BK45: =RevReq!BG21 -> 0 | BL45: =RevReq!BH21 -> 0 | BM45: =RevReq!BI21 -> 0 | BN45: =RevReq!BJ21 -> 0 | BO45: =RevReq!BK21 -> 0 | BP45: =RevReq!BL21 -> 0 | BQ45: =RevReq!BM21 -> 0
C46: 6 | D46: … | E46: Operating Expense | G46: =RevReq!K22 -> 0 | S46: =RevReq!O22 -> 0 | T46: =RevReq!P22 -> 0 | U46: =RevReq!Q22 -> 0 | V46: =RevReq!R22 -> 0 | W46: =RevReq!S22 -> 0 | X46: =RevReq!T22 -> 0 | Y46: =RevReq!U22 -> 0 | Z46: =RevReq!V22 -> 0 | AA46: =RevReq!W22 -> 0 | AB46: =RevReq!X22 -> 0 | AC46: =RevReq!Y22 -> 0 | AD46: =RevReq!Z22 -> 0 | AE46: =RevReq!AA22 -> 0 | AF46: =RevReq!AB22 -> 0 | AG46: =RevReq!AC22 -> 0 | AH46: =RevReq!AD22 -> 0 | AI46: =RevReq!AE22 -> 0 | AJ46: =RevReq!AF22 -> 0 | AK46: =RevReq!AG22 -> 0 | AL46: =RevReq!AH22 -> 0 | AM46: =RevReq!AI22 -> 0 | AN46: =RevReq!AJ22 -> 0 | AO46: =RevReq!AK22 -> 0 | AP46: =RevReq!AL22 -> 0 | AQ46: =RevReq!AM22 -> 0 | AR46: =RevReq!AN22 -> 0 | AS46: =RevReq!AO22 -> 0 | AT46: =RevReq!AP22 -> 0 | AU46: =RevReq!AQ22 -> 0 | AV46: =RevReq!AR22 -> 0 | AW46: =RevReq!AS22 -> 0 | AX46: =RevReq!AT22 -> 0 | AY46: =RevReq!AU22 -> 0 | AZ46: =RevReq!AV22 -> 0 | BA46: =RevReq!AW22 -> 0 | BB46: =RevReq!AX22 -> 0 | BC46: =RevReq!AY22 -> 0 | BD46: =RevReq!AZ22 -> 0 | BE46: =RevReq!BA22 -> 0 | BF46: =RevReq!BB22 -> 0 | BG46: =RevReq!BC22 -> 0 | BH46: =RevReq!BD22 -> 0 | BI46: =RevReq!BE22 -> 0 | BJ46: =RevReq!BF22 -> 0 | BK46: =RevReq!BG22 -> 0 | BL46: =RevReq!BH22 -> 0 | BM46: =RevReq!BI22 -> 0 | BN46: =RevReq!BJ22 -> 0 | BO46: =RevReq!BK22 -> 0 | BP46: =RevReq!BL22 -> 0 | BQ46: =RevReq!BM22 -> 0
C47: 7 | D47: … | E47: Operating Expense | G47: =RevReq!K23 -> 0 | S47: =RevReq!O23 -> 0 | T47: =RevReq!P23 -> 0 | U47: =RevReq!Q23 -> 0 | V47: =RevReq!R23 -> 0 | W47: =RevReq!S23 -> 0 | X47: =RevReq!T23 -> 0 | Y47: =RevReq!U23 -> 0 | Z47: =RevReq!V23 -> 0 | AA47: =RevReq!W23 -> 0 | AB47: =RevReq!X23 -> 0 | AC47: =RevReq!Y23 -> 0 | AD47: =RevReq!Z23 -> 0 | AE47: =RevReq!AA23 -> 0 | AF47: =RevReq!AB23 -> 0 | AG47: =RevReq!AC23 -> 0 | AH47: =RevReq!AD23 -> 0 | AI47: =RevReq!AE23 -> 0 | AJ47: =RevReq!AF23 -> 0 | AK47: =RevReq!AG23 -> 0 | AL47: =RevReq!AH23 -> 0 | AM47: =RevReq!AI23 -> 0 | AN47: =RevReq!AJ23 -> 0 | AO47: =RevReq!AK23 -> 0 | AP47: =RevReq!AL23 -> 0 | AQ47: =RevReq!AM23 -> 0 | AR47: =RevReq!AN23 -> 0 | AS47: =RevReq!AO23 -> 0 | AT47: =RevReq!AP23 -> 0 | AU47: =RevReq!AQ23 -> 0 | AV47: =RevReq!AR23 -> 0 | AW47: =RevReq!AS23 -> 0 | AX47: =RevReq!AT23 -> 0 | AY47: =RevReq!AU23 -> 0 | AZ47: =RevReq!AV23 -> 0 | BA47: =RevReq!AW23 -> 0 | BB47: =RevReq!AX23 -> 0 | BC47: =RevReq!AY23 -> 0 | BD47: =RevReq!AZ23 -> 0 | BE47: =RevReq!BA23 -> 0 | BF47: =RevReq!BB23 -> 0 | BG47: =RevReq!BC23 -> 0 | BH47: =RevReq!BD23 -> 0 | BI47: =RevReq!BE23 -> 0 | BJ47: =RevReq!BF23 -> 0 | BK47: =RevReq!BG23 -> 0 | BL47: =RevReq!BH23 -> 0 | BM47: =RevReq!BI23 -> 0 | BN47: =RevReq!BJ23 -> 0 | BO47: =RevReq!BK23 -> 0 | BP47: =RevReq!BL23 -> 0 | BQ47: =RevReq!BM23 -> 0
C48: 8 | D48: … | E48: Operating Expense | G48: =RevReq!K24 -> 0 | S48: =RevReq!O24 -> 0 | T48: =RevReq!P24 -> 0 | U48: =RevReq!Q24 -> 0 | V48: =RevReq!R24 -> 0 | W48: =RevReq!S24 -> 0 | X48: =RevReq!T24 -> 0 | Y48: =RevReq!U24 -> 0 | Z48: =RevReq!V24 -> 0 | AA48: =RevReq!W24 -> 0 | AB48: =RevReq!X24 -> 0 | AC48: =RevReq!Y24 -> 0 | AD48: =RevReq!Z24 -> 0 | AE48: =RevReq!AA24 -> 0 | AF48: =RevReq!AB24 -> 0 | AG48: =RevReq!AC24 -> 0 | AH48: =RevReq!AD24 -> 0 | AI48: =RevReq!AE24 -> 0 | AJ48: =RevReq!AF24 -> 0 | AK48: =RevReq!AG24 -> 0 | AL48: =RevReq!AH24 -> 0 | AM48: =RevReq!AI24 -> 0 | AN48: =RevReq!AJ24 -> 0 | AO48: =RevReq!AK24 -> 0 | AP48: =RevReq!AL24 -> 0 | AQ48: =RevReq!AM24 -> 0 | AR48: =RevReq!AN24 -> 0 | AS48: =RevReq!AO24 -> 0 | AT48: =RevReq!AP24 -> 0 | AU48: =RevReq!AQ24 -> 0 | AV48: =RevReq!AR24 -> 0 | AW48: =RevReq!AS24 -> 0 | AX48: =RevReq!AT24 -> 0 | AY48: =RevReq!AU24 -> 0 | AZ48: =RevReq!AV24 -> 0 | BA48: =RevReq!AW24 -> 0 | BB48: =RevReq!AX24 -> 0 | BC48: =RevReq!AY24 -> 0 | BD48: =RevReq!AZ24 -> 0 | BE48: =RevReq!BA24 -> 0 | BF48: =RevReq!BB24 -> 0 | BG48: =RevReq!BC24 -> 0 | BH48: =RevReq!BD24 -> 0 | BI48: =RevReq!BE24 -> 0 | BJ48: =RevReq!BF24 -> 0 | BK48: =RevReq!BG24 -> 0 | BL48: =RevReq!BH24 -> 0 | BM48: =RevReq!BI24 -> 0 | BN48: =RevReq!BJ24 -> 0 | BO48: =RevReq!BK24 -> 0 | BP48: =RevReq!BL24 -> 0 | BQ48: =RevReq!BM24 -> 0
C49: 9 | D49: … | E49: Operating Expense | G49: =RevReq!K25 -> 0 | S49: =RevReq!O25 -> 0 | T49: =RevReq!P25 -> 0 | U49: =RevReq!Q25 -> 0 | V49: =RevReq!R25 -> 0 | W49: =RevReq!S25 -> 0 | X49: =RevReq!T25 -> 0 | Y49: =RevReq!U25 -> 0 | Z49: =RevReq!V25 -> 0 | AA49: =RevReq!W25 -> 0 | AB49: =RevReq!X25 -> 0 | AC49: =RevReq!Y25 -> 0 | AD49: =RevReq!Z25 -> 0 | AE49: =RevReq!AA25 -> 0 | AF49: =RevReq!AB25 -> 0 | AG49: =RevReq!AC25 -> 0 | AH49: =RevReq!AD25 -> 0 | AI49: =RevReq!AE25 -> 0 | AJ49: =RevReq!AF25 -> 0 | AK49: =RevReq!AG25 -> 0 | AL49: =RevReq!AH25 -> 0 | AM49: =RevReq!AI25 -> 0 | AN49: =RevReq!AJ25 -> 0 | AO49: =RevReq!AK25 -> 0 | AP49: =RevReq!AL25 -> 0 | AQ49: =RevReq!AM25 -> 0 | AR49: =RevReq!AN25 -> 0 | AS49: =RevReq!AO25 -> 0 | AT49: =RevReq!AP25 -> 0 | AU49: =RevReq!AQ25 -> 0 | AV49: =RevReq!AR25 -> 0 | AW49: =RevReq!AS25 -> 0 | AX49: =RevReq!AT25 -> 0 | AY49: =RevReq!AU25 -> 0 | AZ49: =RevReq!AV25 -> 0 | BA49: =RevReq!AW25 -> 0 | BB49: =RevReq!AX25 -> 0 | BC49: =RevReq!AY25 -> 0 | BD49: =RevReq!AZ25 -> 0 | BE49: =RevReq!BA25 -> 0 | BF49: =RevReq!BB25 -> 0 | BG49: =RevReq!BC25 -> 0 | BH49: =RevReq!BD25 -> 0 | BI49: =RevReq!BE25 -> 0 | BJ49: =RevReq!BF25 -> 0 | BK49: =RevReq!BG25 -> 0 | BL49: =RevReq!BH25 -> 0 | BM49: =RevReq!BI25 -> 0 | BN49: =RevReq!BJ25 -> 0 | BO49: =RevReq!BK25 -> 0 | BP49: =RevReq!BL25 -> 0 | BQ49: =RevReq!BM25 -> 0
C50: 10 | D50: … | E50: Operating Expense | G50: =RevReq!K26 -> 0 | S50: =RevReq!O26 -> 0 | T50: =RevReq!P26 -> 0 | U50: =RevReq!Q26 -> 0 | V50: =RevReq!R26 -> 0 | W50: =RevReq!S26 -> 0 | X50: =RevReq!T26 -> 0 | Y50: =RevReq!U26 -> 0 | Z50: =RevReq!V26 -> 0 | AA50: =RevReq!W26 -> 0 | AB50: =RevReq!X26 -> 0 | AC50: =RevReq!Y26 -> 0 | AD50: =RevReq!Z26 -> 0 | AE50: =RevReq!AA26 -> 0 | AF50: =RevReq!AB26 -> 0 | AG50: =RevReq!AC26 -> 0 | AH50: =RevReq!AD26 -> 0 | AI50: =RevReq!AE26 -> 0 | AJ50: =RevReq!AF26 -> 0 | AK50: =RevReq!AG26 -> 0 | AL50: =RevReq!AH26 -> 0 | AM50: =RevReq!AI26 -> 0 | AN50: =RevReq!AJ26 -> 0 | AO50: =RevReq!AK26 -> 0 | AP50: =RevReq!AL26 -> 0 | AQ50: =RevReq!AM26 -> 0 | AR50: =RevReq!AN26 -> 0 | AS50: =RevReq!AO26 -> 0 | AT50: =RevReq!AP26 -> 0 | AU50: =RevReq!AQ26 -> 0 | AV50: =RevReq!AR26 -> 0 | AW50: =RevReq!AS26 -> 0 | AX50: =RevReq!AT26 -> 0 | AY50: =RevReq!AU26 -> 0 | AZ50: =RevReq!AV26 -> 0 | BA50: =RevReq!AW26 -> 0 | BB50: =RevReq!AX26 -> 0 | BC50: =RevReq!AY26 -> 0 | BD50: =RevReq!AZ26 -> 0 | BE50: =RevReq!BA26 -> 0 | BF50: =RevReq!BB26 -> 0 | BG50: =RevReq!BC26 -> 0 | BH50: =RevReq!BD26 -> 0 | BI50: =RevReq!BE26 -> 0 | BJ50: =RevReq!BF26 -> 0 | BK50: =RevReq!BG26 -> 0 | BL50: =RevReq!BH26 -> 0 | BM50: =RevReq!BI26 -> 0 | BN50: =RevReq!BJ26 -> 0 | BO50: =RevReq!BK26 -> 0 | BP50: =RevReq!BL26 -> 0 | BQ50: =RevReq!BM26 -> 0
C51: 11 | D51: … | E51: Operating Expense | G51: =RevReq!K27 -> 0 | S51: =RevReq!O27 -> 0 | T51: =RevReq!P27 -> 0 | U51: =RevReq!Q27 -> 0 | V51: =RevReq!R27 -> 0 | W51: =RevReq!S27 -> 0 | X51: =RevReq!T27 -> 0 | Y51: =RevReq!U27 -> 0 | Z51: =RevReq!V27 -> 0 | AA51: =RevReq!W27 -> 0 | AB51: =RevReq!X27 -> 0 | AC51: =RevReq!Y27 -> 0 | AD51: =RevReq!Z27 -> 0 | AE51: =RevReq!AA27 -> 0 | AF51: =RevReq!AB27 -> 0 | AG51: =RevReq!AC27 -> 0 | AH51: =RevReq!AD27 -> 0 | AI51: =RevReq!AE27 -> 0 | AJ51: =RevReq!AF27 -> 0 | AK51: =RevReq!AG27 -> 0 | AL51: =RevReq!AH27 -> 0 | AM51: =RevReq!AI27 -> 0 | AN51: =RevReq!AJ27 -> 0 | AO51: =RevReq!AK27 -> 0 | AP51: =RevReq!AL27 -> 0 | AQ51: =RevReq!AM27 -> 0 | AR51: =RevReq!AN27 -> 0 | AS51: =RevReq!AO27 -> 0 | AT51: =RevReq!AP27 -> 0 | AU51: =RevReq!AQ27 -> 0 | AV51: =RevReq!AR27 -> 0 | AW51: =RevReq!AS27 -> 0 | AX51: =RevReq!AT27 -> 0 | AY51: =RevReq!AU27 -> 0 | AZ51: =RevReq!AV27 -> 0 | BA51: =RevReq!AW27 -> 0 | BB51: =RevReq!AX27 -> 0 | BC51: =RevReq!AY27 -> 0 | BD51: =RevReq!AZ27 -> 0 | BE51: =RevReq!BA27 -> 0 | BF51: =RevReq!BB27 -> 0 | BG51: =RevReq!BC27 -> 0 | BH51: =RevReq!BD27 -> 0 | BI51: =RevReq!BE27 -> 0 | BJ51: =RevReq!BF27 -> 0 | BK51: =RevReq!BG27 -> 0 | BL51: =RevReq!BH27 -> 0 | BM51: =RevReq!BI27 -> 0 | BN51: =RevReq!BJ27 -> 0 | BO51: =RevReq!BK27 -> 0 | BP51: =RevReq!BL27 -> 0 | BQ51: =RevReq!BM27 -> 0
C52: 12 | D52: … | E52: Operating Expense | G52: =RevReq!K28 -> 0 | S52: =RevReq!O28 -> 0 | T52: =RevReq!P28 -> 0 | U52: =RevReq!Q28 -> 0 | V52: =RevReq!R28 -> 0 | W52: =RevReq!S28 -> 0 | X52: =RevReq!T28 -> 0 | Y52: =RevReq!U28 -> 0 | Z52: =RevReq!V28 -> 0 | AA52: =RevReq!W28 -> 0 | AB52: =RevReq!X28 -> 0 | AC52: =RevReq!Y28 -> 0 | AD52: =RevReq!Z28 -> 0 | AE52: =RevReq!AA28 -> 0 | AF52: =RevReq!AB28 -> 0 | AG52: =RevReq!AC28 -> 0 | AH52: =RevReq!AD28 -> 0 | AI52: =RevReq!AE28 -> 0 | AJ52: =RevReq!AF28 -> 0 | AK52: =RevReq!AG28 -> 0 | AL52: =RevReq!AH28 -> 0 | AM52: =RevReq!AI28 -> 0 | AN52: =RevReq!AJ28 -> 0 | AO52: =RevReq!AK28 -> 0 | AP52: =RevReq!AL28 -> 0 | AQ52: =RevReq!AM28 -> 0 | AR52: =RevReq!AN28 -> 0 | AS52: =RevReq!AO28 -> 0 | AT52: =RevReq!AP28 -> 0 | AU52: =RevReq!AQ28 -> 0 | AV52: =RevReq!AR28 -> 0 | AW52: =RevReq!AS28 -> 0 | AX52: =RevReq!AT28 -> 0 | AY52: =RevReq!AU28 -> 0 | AZ52: =RevReq!AV28 -> 0 | BA52: =RevReq!AW28 -> 0 | BB52: =RevReq!AX28 -> 0 | BC52: =RevReq!AY28 -> 0 | BD52: =RevReq!AZ28 -> 0 | BE52: =RevReq!BA28 -> 0 | BF52: =RevReq!BB28 -> 0 | BG52: =RevReq!BC28 -> 0 | BH52: =RevReq!BD28 -> 0 | BI52: =RevReq!BE28 -> 0 | BJ52: =RevReq!BF28 -> 0 | BK52: =RevReq!BG28 -> 0 | BL52: =RevReq!BH28 -> 0 | BM52: =RevReq!BI28 -> 0 | BN52: =RevReq!BJ28 -> 0 | BO52: =RevReq!BK28 -> 0 | BP52: =RevReq!BL28 -> 0 | BQ52: =RevReq!BM28 -> 0
C53: 13 | D53: … | E53: Operating Expense | G53: =RevReq!K29 -> 0 | S53: =RevReq!O29 -> 0 | T53: =RevReq!P29 -> 0 | U53: =RevReq!Q29 -> 0 | V53: =RevReq!R29 -> 0 | W53: =RevReq!S29 -> 0 | X53: =RevReq!T29 -> 0 | Y53: =RevReq!U29 -> 0 | Z53: =RevReq!V29 -> 0 | AA53: =RevReq!W29 -> 0 | AB53: =RevReq!X29 -> 0 | AC53: =RevReq!Y29 -> 0 | AD53: =RevReq!Z29 -> 0 | AE53: =RevReq!AA29 -> 0 | AF53: =RevReq!AB29 -> 0 | AG53: =RevReq!AC29 -> 0 | AH53: =RevReq!AD29 -> 0 | AI53: =RevReq!AE29 -> 0 | AJ53: =RevReq!AF29 -> 0 | AK53: =RevReq!AG29 -> 0 | AL53: =RevReq!AH29 -> 0 | AM53: =RevReq!AI29 -> 0 | AN53: =RevReq!AJ29 -> 0 | AO53: =RevReq!AK29 -> 0 | AP53: =RevReq!AL29 -> 0 | AQ53: =RevReq!AM29 -> 0 | AR53: =RevReq!AN29 -> 0 | AS53: =RevReq!AO29 -> 0 | AT53: =RevReq!AP29 -> 0 | AU53: =RevReq!AQ29 -> 0 | AV53: =RevReq!AR29 -> 0 | AW53: =RevReq!AS29 -> 0 | AX53: =RevReq!AT29 -> 0 | AY53: =RevReq!AU29 -> 0 | AZ53: =RevReq!AV29 -> 0 | BA53: =RevReq!AW29 -> 0 | BB53: =RevReq!AX29 -> 0 | BC53: =RevReq!AY29 -> 0 | BD53: =RevReq!AZ29 -> 0 | BE53: =RevReq!BA29 -> 0 | BF53: =RevReq!BB29 -> 0 | BG53: =RevReq!BC29 -> 0 | BH53: =RevReq!BD29 -> 0 | BI53: =RevReq!BE29 -> 0 | BJ53: =RevReq!BF29 -> 0 | BK53: =RevReq!BG29 -> 0 | BL53: =RevReq!BH29 -> 0 | BM53: =RevReq!BI29 -> 0 | BN53: =RevReq!BJ29 -> 0 | BO53: =RevReq!BK29 -> 0 | BP53: =RevReq!BL29 -> 0 | BQ53: =RevReq!BM29 -> 0
C54: 14 | D54: … | E54: Operating Expense | G54: =RevReq!K30 -> 0 | S54: =RevReq!O30 -> 0 | T54: =RevReq!P30 -> 0 | U54: =RevReq!Q30 -> 0 | V54: =RevReq!R30 -> 0 | W54: =RevReq!S30 -> 0 | X54: =RevReq!T30 -> 0 | Y54: =RevReq!U30 -> 0 | Z54: =RevReq!V30 -> 0 | AA54: =RevReq!W30 -> 0 | AB54: =RevReq!X30 -> 0 | AC54: =RevReq!Y30 -> 0 | AD54: =RevReq!Z30 -> 0 | AE54: =RevReq!AA30 -> 0 | AF54: =RevReq!AB30 -> 0 | AG54: =RevReq!AC30 -> 0 | AH54: =RevReq!AD30 -> 0 | AI54: =RevReq!AE30 -> 0 | AJ54: =RevReq!AF30 -> 0 | AK54: =RevReq!AG30 -> 0 | AL54: =RevReq!AH30 -> 0 | AM54: =RevReq!AI30 -> 0 | AN54: =RevReq!AJ30 -> 0 | AO54: =RevReq!AK30 -> 0 | AP54: =RevReq!AL30 -> 0 | AQ54: =RevReq!AM30 -> 0 | AR54: =RevReq!AN30 -> 0 | AS54: =RevReq!AO30 -> 0 | AT54: =RevReq!AP30 -> 0 | AU54: =RevReq!AQ30 -> 0 | AV54: =RevReq!AR30 -> 0 | AW54: =RevReq!AS30 -> 0 | AX54: =RevReq!AT30 -> 0 | AY54: =RevReq!AU30 -> 0 | AZ54: =RevReq!AV30 -> 0 | BA54: =RevReq!AW30 -> 0 | BB54: =RevReq!AX30 -> 0 | BC54: =RevReq!AY30 -> 0 | BD54: =RevReq!AZ30 -> 0 | BE54: =RevReq!BA30 -> 0 | BF54: =RevReq!BB30 -> 0 | BG54: =RevReq!BC30 -> 0 | BH54: =RevReq!BD30 -> 0 | BI54: =RevReq!BE30 -> 0 | BJ54: =RevReq!BF30 -> 0 | BK54: =RevReq!BG30 -> 0 | BL54: =RevReq!BH30 -> 0 | BM54: =RevReq!BI30 -> 0 | BN54: =RevReq!BJ30 -> 0 | BO54: =RevReq!BK30 -> 0 | BP54: =RevReq!BL30 -> 0 | BQ54: =RevReq!BM30 -> 0
C55: 15 | D55: … | E55: Operating Expense | G55: =RevReq!K31 -> 0 | S55: =RevReq!O31 -> 0 | T55: =RevReq!P31 -> 0 | U55: =RevReq!Q31 -> 0 | V55: =RevReq!R31 -> 0 | W55: =RevReq!S31 -> 0 | X55: =RevReq!T31 -> 0 | Y55: =RevReq!U31 -> 0 | Z55: =RevReq!V31 -> 0 | AA55: =RevReq!W31 -> 0 | AB55: =RevReq!X31 -> 0 | AC55: =RevReq!Y31 -> 0 | AD55: =RevReq!Z31 -> 0 | AE55: =RevReq!AA31 -> 0 | AF55: =RevReq!AB31 -> 0 | AG55: =RevReq!AC31 -> 0 | AH55: =RevReq!AD31 -> 0 | AI55: =RevReq!AE31 -> 0 | AJ55: =RevReq!AF31 -> 0 | AK55: =RevReq!AG31 -> 0 | AL55: =RevReq!AH31 -> 0 | AM55: =RevReq!AI31 -> 0 | AN55: =RevReq!AJ31 -> 0 | AO55: =RevReq!AK31 -> 0 | AP55: =RevReq!AL31 -> 0 | AQ55: =RevReq!AM31 -> 0 | AR55: =RevReq!AN31 -> 0 | AS55: =RevReq!AO31 -> 0 | AT55: =RevReq!AP31 -> 0 | AU55: =RevReq!AQ31 -> 0 | AV55: =RevReq!AR31 -> 0 | AW55: =RevReq!AS31 -> 0 | AX55: =RevReq!AT31 -> 0 | AY55: =RevReq!AU31 -> 0 | AZ55: =RevReq!AV31 -> 0 | BA55: =RevReq!AW31 -> 0 | BB55: =RevReq!AX31 -> 0 | BC55: =RevReq!AY31 -> 0 | BD55: =RevReq!AZ31 -> 0 | BE55: =RevReq!BA31 -> 0 | BF55: =RevReq!BB31 -> 0 | BG55: =RevReq!BC31 -> 0 | BH55: =RevReq!BD31 -> 0 | BI55: =RevReq!BE31 -> 0 | BJ55: =RevReq!BF31 -> 0 | BK55: =RevReq!BG31 -> 0 | BL55: =RevReq!BH31 -> 0 | BM55: =RevReq!BI31 -> 0 | BN55: =RevReq!BJ31 -> 0 | BO55: =RevReq!BK31 -> 0 | BP55: =RevReq!BL31 -> 0 | BQ55: =RevReq!BM31 -> 0
C56: 16 | D56: … | E56: Operating Expense | G56: =RevReq!K32 -> 0 | S56: =RevReq!O32 -> 0 | T56: =RevReq!P32 -> 0 | U56: =RevReq!Q32 -> 0 | V56: =RevReq!R32 -> 0 | W56: =RevReq!S32 -> 0 | X56: =RevReq!T32 -> 0 | Y56: =RevReq!U32 -> 0 | Z56: =RevReq!V32 -> 0 | AA56: =RevReq!W32 -> 0 | AB56: =RevReq!X32 -> 0 | AC56: =RevReq!Y32 -> 0 | AD56: =RevReq!Z32 -> 0 | AE56: =RevReq!AA32 -> 0 | AF56: =RevReq!AB32 -> 0 | AG56: =RevReq!AC32 -> 0 | AH56: =RevReq!AD32 -> 0 | AI56: =RevReq!AE32 -> 0 | AJ56: =RevReq!AF32 -> 0 | AK56: =RevReq!AG32 -> 0 | AL56: =RevReq!AH32 -> 0 | AM56: =RevReq!AI32 -> 0 | AN56: =RevReq!AJ32 -> 0 | AO56: =RevReq!AK32 -> 0 | AP56: =RevReq!AL32 -> 0 | AQ56: =RevReq!AM32 -> 0 | AR56: =RevReq!AN32 -> 0 | AS56: =RevReq!AO32 -> 0 | AT56: =RevReq!AP32 -> 0 | AU56: =RevReq!AQ32 -> 0 | AV56: =RevReq!AR32 -> 0 | AW56: =RevReq!AS32 -> 0 | AX56: =RevReq!AT32 -> 0 | AY56: =RevReq!AU32 -> 0 | AZ56: =RevReq!AV32 -> 0 | BA56: =RevReq!AW32 -> 0 | BB56: =RevReq!AX32 -> 0 | BC56: =RevReq!AY32 -> 0 | BD56: =RevReq!AZ32 -> 0 | BE56: =RevReq!BA32 -> 0 | BF56: =RevReq!BB32 -> 0 | BG56: =RevReq!BC32 -> 0 | BH56: =RevReq!BD32 -> 0 | BI56: =RevReq!BE32 -> 0 | BJ56: =RevReq!BF32 -> 0 | BK56: =RevReq!BG32 -> 0 | BL56: =RevReq!BH32 -> 0 | BM56: =RevReq!BI32 -> 0 | BN56: =RevReq!BJ32 -> 0 | BO56: =RevReq!BK32 -> 0 | BP56: =RevReq!BL32 -> 0 | BQ56: =RevReq!BM32 -> 0
C57: 17 | D57: … | E57: Operating Expense | G57: =RevReq!K33 -> 0 | S57: =RevReq!O33 -> 0 | T57: =RevReq!P33 -> 0 | U57: =RevReq!Q33 -> 0 | V57: =RevReq!R33 -> 0 | W57: =RevReq!S33 -> 0 | X57: =RevReq!T33 -> 0 | Y57: =RevReq!U33 -> 0 | Z57: =RevReq!V33 -> 0 | AA57: =RevReq!W33 -> 0 | AB57: =RevReq!X33 -> 0 | AC57: =RevReq!Y33 -> 0 | AD57: =RevReq!Z33 -> 0 | AE57: =RevReq!AA33 -> 0 | AF57: =RevReq!AB33 -> 0 | AG57: =RevReq!AC33 -> 0 | AH57: =RevReq!AD33 -> 0 | AI57: =RevReq!AE33 -> 0 | AJ57: =RevReq!AF33 -> 0 | AK57: =RevReq!AG33 -> 0 | AL57: =RevReq!AH33 -> 0 | AM57: =RevReq!AI33 -> 0 | AN57: =RevReq!AJ33 -> 0 | AO57: =RevReq!AK33 -> 0 | AP57: =RevReq!AL33 -> 0 | AQ57: =RevReq!AM33 -> 0 | AR57: =RevReq!AN33 -> 0 | AS57: =RevReq!AO33 -> 0 | AT57: =RevReq!AP33 -> 0 | AU57: =RevReq!AQ33 -> 0 | AV57: =RevReq!AR33 -> 0 | AW57: =RevReq!AS33 -> 0 | AX57: =RevReq!AT33 -> 0 | AY57: =RevReq!AU33 -> 0 | AZ57: =RevReq!AV33 -> 0 | BA57: =RevReq!AW33 -> 0 | BB57: =RevReq!AX33 -> 0 | BC57: =RevReq!AY33 -> 0 | BD57: =RevReq!AZ33 -> 0 | BE57: =RevReq!BA33 -> 0 | BF57: =RevReq!BB33 -> 0 | BG57: =RevReq!BC33 -> 0 | BH57: =RevReq!BD33 -> 0 | BI57: =RevReq!BE33 -> 0 | BJ57: =RevReq!BF33 -> 0 | BK57: =RevReq!BG33 -> 0 | BL57: =RevReq!BH33 -> 0 | BM57: =RevReq!BI33 -> 0 | BN57: =RevReq!BJ33 -> 0 | BO57: =RevReq!BK33 -> 0 | BP57: =RevReq!BL33 -> 0 | BQ57: =RevReq!BM33 -> 0
C58: 18 | D58: … | E58: Operating Expense | G58: =RevReq!K34 -> 0 | S58: =RevReq!O34 -> 0 | T58: =RevReq!P34 -> 0 | U58: =RevReq!Q34 -> 0 | V58: =RevReq!R34 -> 0 | W58: =RevReq!S34 -> 0 | X58: =RevReq!T34 -> 0 | Y58: =RevReq!U34 -> 0 | Z58: =RevReq!V34 -> 0 | AA58: =RevReq!W34 -> 0 | AB58: =RevReq!X34 -> 0 | AC58: =RevReq!Y34 -> 0 | AD58: =RevReq!Z34 -> 0 | AE58: =RevReq!AA34 -> 0 | AF58: =RevReq!AB34 -> 0 | AG58: =RevReq!AC34 -> 0 | AH58: =RevReq!AD34 -> 0 | AI58: =RevReq!AE34 -> 0 | AJ58: =RevReq!AF34 -> 0 | AK58: =RevReq!AG34 -> 0 | AL58: =RevReq!AH34 -> 0 | AM58: =RevReq!AI34 -> 0 | AN58: =RevReq!AJ34 -> 0 | AO58: =RevReq!AK34 -> 0 | AP58: =RevReq!AL34 -> 0 | AQ58: =RevReq!AM34 -> 0 | AR58: =RevReq!AN34 -> 0 | AS58: =RevReq!AO34 -> 0 | AT58: =RevReq!AP34 -> 0 | AU58: =RevReq!AQ34 -> 0 | AV58: =RevReq!AR34 -> 0 | AW58: =RevReq!AS34 -> 0 | AX58: =RevReq!AT34 -> 0 | AY58: =RevReq!AU34 -> 0 | AZ58: =RevReq!AV34 -> 0 | BA58: =RevReq!AW34 -> 0 | BB58: =RevReq!AX34 -> 0 | BC58: =RevReq!AY34 -> 0 | BD58: =RevReq!AZ34 -> 0 | BE58: =RevReq!BA34 -> 0 | BF58: =RevReq!BB34 -> 0 | BG58: =RevReq!BC34 -> 0 | BH58: =RevReq!BD34 -> 0 | BI58: =RevReq!BE34 -> 0 | BJ58: =RevReq!BF34 -> 0 | BK58: =RevReq!BG34 -> 0 | BL58: =RevReq!BH34 -> 0 | BM58: =RevReq!BI34 -> 0 | BN58: =RevReq!BJ34 -> 0 | BO58: =RevReq!BK34 -> 0 | BP58: =RevReq!BL34 -> 0 | BQ58: =RevReq!BM34 -> 0
C59: 19 | D59: … | E59: Operating Expense | G59: =RevReq!K35 -> 0 | S59: =RevReq!O35 -> 0 | T59: =RevReq!P35 -> 0 | U59: =RevReq!Q35 -> 0 | V59: =RevReq!R35 -> 0 | W59: =RevReq!S35 -> 0 | X59: =RevReq!T35 -> 0 | Y59: =RevReq!U35 -> 0 | Z59: =RevReq!V35 -> 0 | AA59: =RevReq!W35 -> 0 | AB59: =RevReq!X35 -> 0 | AC59: =RevReq!Y35 -> 0 | AD59: =RevReq!Z35 -> 0 | AE59: =RevReq!AA35 -> 0 | AF59: =RevReq!AB35 -> 0 | AG59: =RevReq!AC35 -> 0 | AH59: =RevReq!AD35 -> 0 | AI59: =RevReq!AE35 -> 0 | AJ59: =RevReq!AF35 -> 0 | AK59: =RevReq!AG35 -> 0 | AL59: =RevReq!AH35 -> 0 | AM59: =RevReq!AI35 -> 0 | AN59: =RevReq!AJ35 -> 0 | AO59: =RevReq!AK35 -> 0 | AP59: =RevReq!AL35 -> 0 | AQ59: =RevReq!AM35 -> 0 | AR59: =RevReq!AN35 -> 0 | AS59: =RevReq!AO35 -> 0 | AT59: =RevReq!AP35 -> 0 | AU59: =RevReq!AQ35 -> 0 | AV59: =RevReq!AR35 -> 0 | AW59: =RevReq!AS35 -> 0 | AX59: =RevReq!AT35 -> 0 | AY59: =RevReq!AU35 -> 0 | AZ59: =RevReq!AV35 -> 0 | BA59: =RevReq!AW35 -> 0 | BB59: =RevReq!AX35 -> 0 | BC59: =RevReq!AY35 -> 0 | BD59: =RevReq!AZ35 -> 0 | BE59: =RevReq!BA35 -> 0 | BF59: =RevReq!BB35 -> 0 | BG59: =RevReq!BC35 -> 0 | BH59: =RevReq!BD35 -> 0 | BI59: =RevReq!BE35 -> 0 | BJ59: =RevReq!BF35 -> 0 | BK59: =RevReq!BG35 -> 0 | BL59: =RevReq!BH35 -> 0 | BM59: =RevReq!BI35 -> 0 | BN59: =RevReq!BJ35 -> 0 | BO59: =RevReq!BK35 -> 0 | BP59: =RevReq!BL35 -> 0 | BQ59: =RevReq!BM35 -> 0
C60: 20 | D60: … | E60: Operating Expense | G60: =RevReq!K36 -> 0 | S60: =RevReq!O36 -> 0 | T60: =RevReq!P36 -> 0 | U60: =RevReq!Q36 -> 0 | V60: =RevReq!R36 -> 0 | W60: =RevReq!S36 -> 0 | X60: =RevReq!T36 -> 0 | Y60: =RevReq!U36 -> 0 | Z60: =RevReq!V36 -> 0 | AA60: =RevReq!W36 -> 0 | AB60: =RevReq!X36 -> 0 | AC60: =RevReq!Y36 -> 0 | AD60: =RevReq!Z36 -> 0 | AE60: =RevReq!AA36 -> 0 | AF60: =RevReq!AB36 -> 0 | AG60: =RevReq!AC36 -> 0 | AH60: =RevReq!AD36 -> 0 | AI60: =RevReq!AE36 -> 0 | AJ60: =RevReq!AF36 -> 0 | AK60: =RevReq!AG36 -> 0 | AL60: =RevReq!AH36 -> 0 | AM60: =RevReq!AI36 -> 0 | AN60: =RevReq!AJ36 -> 0 | AO60: =RevReq!AK36 -> 0 | AP60: =RevReq!AL36 -> 0 | AQ60: =RevReq!AM36 -> 0 | AR60: =RevReq!AN36 -> 0 | AS60: =RevReq!AO36 -> 0 | AT60: =RevReq!AP36 -> 0 | AU60: =RevReq!AQ36 -> 0 | AV60: =RevReq!AR36 -> 0 | AW60: =RevReq!AS36 -> 0 | AX60: =RevReq!AT36 -> 0 | AY60: =RevReq!AU36 -> 0 | AZ60: =RevReq!AV36 -> 0 | BA60: =RevReq!AW36 -> 0 | BB60: =RevReq!AX36 -> 0 | BC60: =RevReq!AY36 -> 0 | BD60: =RevReq!AZ36 -> 0 | BE60: =RevReq!BA36 -> 0 | BF60: =RevReq!BB36 -> 0 | BG60: =RevReq!BC36 -> 0 | BH60: =RevReq!BD36 -> 0 | BI60: =RevReq!BE36 -> 0 | BJ60: =RevReq!BF36 -> 0 | BK60: =RevReq!BG36 -> 0 | BL60: =RevReq!BH36 -> 0 | BM60: =RevReq!BI36 -> 0 | BN60: =RevReq!BJ36 -> 0 | BO60: =RevReq!BK36 -> 0 | BP60: =RevReq!BL36 -> 0 | BQ60: =RevReq!BM36 -> 0
C61: 21 | D61: … | E61: Operating Expense | G61: =RevReq!K37 -> 0 | S61: =RevReq!O37 -> 0 | T61: =RevReq!P37 -> 0 | U61: =RevReq!Q37 -> 0 | V61: =RevReq!R37 -> 0 | W61: =RevReq!S37 -> 0 | X61: =RevReq!T37 -> 0 | Y61: =RevReq!U37 -> 0 | Z61: =RevReq!V37 -> 0 | AA61: =RevReq!W37 -> 0 | AB61: =RevReq!X37 -> 0 | AC61: =RevReq!Y37 -> 0 | AD61: =RevReq!Z37 -> 0 | AE61: =RevReq!AA37 -> 0 | AF61: =RevReq!AB37 -> 0 | AG61: =RevReq!AC37 -> 0 | AH61: =RevReq!AD37 -> 0 | AI61: =RevReq!AE37 -> 0 | AJ61: =RevReq!AF37 -> 0 | AK61: =RevReq!AG37 -> 0 | AL61: =RevReq!AH37 -> 0 | AM61: =RevReq!AI37 -> 0 | AN61: =RevReq!AJ37 -> 0 | AO61: =RevReq!AK37 -> 0 | AP61: =RevReq!AL37 -> 0 | AQ61: =RevReq!AM37 -> 0 | AR61: =RevReq!AN37 -> 0 | AS61: =RevReq!AO37 -> 0 | AT61: =RevReq!AP37 -> 0 | AU61: =RevReq!AQ37 -> 0 | AV61: =RevReq!AR37 -> 0 | AW61: =RevReq!AS37 -> 0 | AX61: =RevReq!AT37 -> 0 | AY61: =RevReq!AU37 -> 0 | AZ61: =RevReq!AV37 -> 0 | BA61: =RevReq!AW37 -> 0 | BB61: =RevReq!AX37 -> 0 | BC61: =RevReq!AY37 -> 0 | BD61: =RevReq!AZ37 -> 0 | BE61: =RevReq!BA37 -> 0 | BF61: =RevReq!BB37 -> 0 | BG61: =RevReq!BC37 -> 0 | BH61: =RevReq!BD37 -> 0 | BI61: =RevReq!BE37 -> 0 | BJ61: =RevReq!BF37 -> 0 | BK61: =RevReq!BG37 -> 0 | BL61: =RevReq!BH37 -> 0 | BM61: =RevReq!BI37 -> 0 | BN61: =RevReq!BJ37 -> 0 | BO61: =RevReq!BK37 -> 0 | BP61: =RevReq!BL37 -> 0 | BQ61: =RevReq!BM37 -> 0
C62: 22 | D62: … | E62: Operating Expense | G62: =RevReq!K38 -> 0 | S62: =RevReq!O38 -> 0 | T62: =RevReq!P38 -> 0 | U62: =RevReq!Q38 -> 0 | V62: =RevReq!R38 -> 0 | W62: =RevReq!S38 -> 0 | X62: =RevReq!T38 -> 0 | Y62: =RevReq!U38 -> 0 | Z62: =RevReq!V38 -> 0 | AA62: =RevReq!W38 -> 0 | AB62: =RevReq!X38 -> 0 | AC62: =RevReq!Y38 -> 0 | AD62: =RevReq!Z38 -> 0 | AE62: =RevReq!AA38 -> 0 | AF62: =RevReq!AB38 -> 0 | AG62: =RevReq!AC38 -> 0 | AH62: =RevReq!AD38 -> 0 | AI62: =RevReq!AE38 -> 0 | AJ62: =RevReq!AF38 -> 0 | AK62: =RevReq!AG38 -> 0 | AL62: =RevReq!AH38 -> 0 | AM62: =RevReq!AI38 -> 0 | AN62: =RevReq!AJ38 -> 0 | AO62: =RevReq!AK38 -> 0 | AP62: =RevReq!AL38 -> 0 | AQ62: =RevReq!AM38 -> 0 | AR62: =RevReq!AN38 -> 0 | AS62: =RevReq!AO38 -> 0 | AT62: =RevReq!AP38 -> 0 | AU62: =RevReq!AQ38 -> 0 | AV62: =RevReq!AR38 -> 0 | AW62: =RevReq!AS38 -> 0 | AX62: =RevReq!AT38 -> 0 | AY62: =RevReq!AU38 -> 0 | AZ62: =RevReq!AV38 -> 0 | BA62: =RevReq!AW38 -> 0 | BB62: =RevReq!AX38 -> 0 | BC62: =RevReq!AY38 -> 0 | BD62: =RevReq!AZ38 -> 0 | BE62: =RevReq!BA38 -> 0 | BF62: =RevReq!BB38 -> 0 | BG62: =RevReq!BC38 -> 0 | BH62: =RevReq!BD38 -> 0 | BI62: =RevReq!BE38 -> 0 | BJ62: =RevReq!BF38 -> 0 | BK62: =RevReq!BG38 -> 0 | BL62: =RevReq!BH38 -> 0 | BM62: =RevReq!BI38 -> 0 | BN62: =RevReq!BJ38 -> 0 | BO62: =RevReq!BK38 -> 0 | BP62: =RevReq!BL38 -> 0 | BQ62: =RevReq!BM38 -> 0
C63: 23 | D63: … | E63: Operating Expense | G63: =RevReq!K39 -> 0 | S63: =RevReq!O39 -> 0 | T63: =RevReq!P39 -> 0 | U63: =RevReq!Q39 -> 0 | V63: =RevReq!R39 -> 0 | W63: =RevReq!S39 -> 0 | X63: =RevReq!T39 -> 0 | Y63: =RevReq!U39 -> 0 | Z63: =RevReq!V39 -> 0 | AA63: =RevReq!W39 -> 0 | AB63: =RevReq!X39 -> 0 | AC63: =RevReq!Y39 -> 0 | AD63: =RevReq!Z39 -> 0 | AE63: =RevReq!AA39 -> 0 | AF63: =RevReq!AB39 -> 0 | AG63: =RevReq!AC39 -> 0 | AH63: =RevReq!AD39 -> 0 | AI63: =RevReq!AE39 -> 0 | AJ63: =RevReq!AF39 -> 0 | AK63: =RevReq!AG39 -> 0 | AL63: =RevReq!AH39 -> 0 | AM63: =RevReq!AI39 -> 0 | AN63: =RevReq!AJ39 -> 0 | AO63: =RevReq!AK39 -> 0 | AP63: =RevReq!AL39 -> 0 | AQ63: =RevReq!AM39 -> 0 | AR63: =RevReq!AN39 -> 0 | AS63: =RevReq!AO39 -> 0 | AT63: =RevReq!AP39 -> 0 | AU63: =RevReq!AQ39 -> 0 | AV63: =RevReq!AR39 -> 0 | AW63: =RevReq!AS39 -> 0 | AX63: =RevReq!AT39 -> 0 | AY63: =RevReq!AU39 -> 0 | AZ63: =RevReq!AV39 -> 0 | BA63: =RevReq!AW39 -> 0 | BB63: =RevReq!AX39 -> 0 | BC63: =RevReq!AY39 -> 0 | BD63: =RevReq!AZ39 -> 0 | BE63: =RevReq!BA39 -> 0 | BF63: =RevReq!BB39 -> 0 | BG63: =RevReq!BC39 -> 0 | BH63: =RevReq!BD39 -> 0 | BI63: =RevReq!BE39 -> 0 | BJ63: =RevReq!BF39 -> 0 | BK63: =RevReq!BG39 -> 0 | BL63: =RevReq!BH39 -> 0 | BM63: =RevReq!BI39 -> 0 | BN63: =RevReq!BJ39 -> 0 | BO63: =RevReq!BK39 -> 0 | BP63: =RevReq!BL39 -> 0 | BQ63: =RevReq!BM39 -> 0
C64: 24 | D64: … | E64: Operating Expense | G64: =RevReq!K40 -> 0 | S64: =RevReq!O40 -> 0 | T64: =RevReq!P40 -> 0 | U64: =RevReq!Q40 -> 0 | V64: =RevReq!R40 -> 0 | W64: =RevReq!S40 -> 0 | X64: =RevReq!T40 -> 0 | Y64: =RevReq!U40 -> 0 | Z64: =RevReq!V40 -> 0 | AA64: =RevReq!W40 -> 0 | AB64: =RevReq!X40 -> 0 | AC64: =RevReq!Y40 -> 0 | AD64: =RevReq!Z40 -> 0 | AE64: =RevReq!AA40 -> 0 | AF64: =RevReq!AB40 -> 0 | AG64: =RevReq!AC40 -> 0 | AH64: =RevReq!AD40 -> 0 | AI64: =RevReq!AE40 -> 0 | AJ64: =RevReq!AF40 -> 0 | AK64: =RevReq!AG40 -> 0 | AL64: =RevReq!AH40 -> 0 | AM64: =RevReq!AI40 -> 0 | AN64: =RevReq!AJ40 -> 0 | AO64: =RevReq!AK40 -> 0 | AP64: =RevReq!AL40 -> 0 | AQ64: =RevReq!AM40 -> 0 | AR64: =RevReq!AN40 -> 0 | AS64: =RevReq!AO40 -> 0 | AT64: =RevReq!AP40 -> 0 | AU64: =RevReq!AQ40 -> 0 | AV64: =RevReq!AR40 -> 0 | AW64: =RevReq!AS40 -> 0 | AX64: =RevReq!AT40 -> 0 | AY64: =RevReq!AU40 -> 0 | AZ64: =RevReq!AV40 -> 0 | BA64: =RevReq!AW40 -> 0 | BB64: =RevReq!AX40 -> 0 | BC64: =RevReq!AY40 -> 0 | BD64: =RevReq!AZ40 -> 0 | BE64: =RevReq!BA40 -> 0 | BF64: =RevReq!BB40 -> 0 | BG64: =RevReq!BC40 -> 0 | BH64: =RevReq!BD40 -> 0 | BI64: =RevReq!BE40 -> 0 | BJ64: =RevReq!BF40 -> 0 | BK64: =RevReq!BG40 -> 0 | BL64: =RevReq!BH40 -> 0 | BM64: =RevReq!BI40 -> 0 | BN64: =RevReq!BJ40 -> 0 | BO64: =RevReq!BK40 -> 0 | BP64: =RevReq!BL40 -> 0 | BQ64: =RevReq!BM40 -> 0
C65: 25 | D65: … | E65: Operating Expense | G65: =RevReq!K41 -> 0 | S65: =RevReq!O41 -> 0 | T65: =RevReq!P41 -> 0 | U65: =RevReq!Q41 -> 0 | V65: =RevReq!R41 -> 0 | W65: =RevReq!S41 -> 0 | X65: =RevReq!T41 -> 0 | Y65: =RevReq!U41 -> 0 | Z65: =RevReq!V41 -> 0 | AA65: =RevReq!W41 -> 0 | AB65: =RevReq!X41 -> 0 | AC65: =RevReq!Y41 -> 0 | AD65: =RevReq!Z41 -> 0 | AE65: =RevReq!AA41 -> 0 | AF65: =RevReq!AB41 -> 0 | AG65: =RevReq!AC41 -> 0 | AH65: =RevReq!AD41 -> 0 | AI65: =RevReq!AE41 -> 0 | AJ65: =RevReq!AF41 -> 0 | AK65: =RevReq!AG41 -> 0 | AL65: =RevReq!AH41 -> 0 | AM65: =RevReq!AI41 -> 0 | AN65: =RevReq!AJ41 -> 0 | AO65: =RevReq!AK41 -> 0 | AP65: =RevReq!AL41 -> 0 | AQ65: =RevReq!AM41 -> 0 | AR65: =RevReq!AN41 -> 0 | AS65: =RevReq!AO41 -> 0 | AT65: =RevReq!AP41 -> 0 | AU65: =RevReq!AQ41 -> 0 | AV65: =RevReq!AR41 -> 0 | AW65: =RevReq!AS41 -> 0 | AX65: =RevReq!AT41 -> 0 | AY65: =RevReq!AU41 -> 0 | AZ65: =RevReq!AV41 -> 0 | BA65: =RevReq!AW41 -> 0 | BB65: =RevReq!AX41 -> 0 | BC65: =RevReq!AY41 -> 0 | BD65: =RevReq!AZ41 -> 0 | BE65: =RevReq!BA41 -> 0 | BF65: =RevReq!BB41 -> 0 | BG65: =RevReq!BC41 -> 0 | BH65: =RevReq!BD41 -> 0 | BI65: =RevReq!BE41 -> 0 | BJ65: =RevReq!BF41 -> 0 | BK65: =RevReq!BG41 -> 0 | BL65: =RevReq!BH41 -> 0 | BM65: =RevReq!BI41 -> 0 | BN65: =RevReq!BJ41 -> 0 | BO65: =RevReq!BK41 -> 0 | BP65: =RevReq!BL41 -> 0 | BQ65: =RevReq!BM41 -> 0
D66: Total | G66: =SUM(G41:G65) -> 1168073.944 | S66: =SUM(S41:S65) -> 220272.022 | T66: 204618.8748 | U66: 189065.8955 | V66: 176077.2128 | W66: 164050.1414 | X66: 152744.2784 | Y66: 142880.8322 | Z66: 133738.5944 | AA66: 124596.3566 | AB66: 117220.1189 | AC66: 1.040520833e-10 | AD66: -1.159770737e-11 | AE66: -1.159770737e-11 | AF66: -1.159770737e-11 | AG66: -1.159770737e-11 | AH66: -1.159770737e-11 | AI66: -1.159770737e-11 | AJ66: -1.159770737e-11 | AK66: -1.159770737e-11 | AL66: -1.159770737e-11 | AM66: -1.159770737e-11 | AN66: -1.159770737e-11 | AO66: -1.159770737e-11 | AP66: -1.159770737e-11 | AQ66: -1.159770737e-11 | AR66: -1.159770737e-11 | AS66: -1.159770737e-11 | AT66: -1.159770737e-11 | AU66: -1.159770737e-11 | AV66: -1.159770737e-11 | AW66: -1.159770737e-11 | AX66: -1.159770737e-11 | AY66: =SUM(AY41:AY65) -> -1.159770737e-11 | AZ66: -1.159770737e-11 | BA66: -1.159770737e-11 | BB66: -1.159770737e-11 | BC66: -1.159770737e-11 | BD66: -1.159770737e-11 | BE66: -1.159770737e-11 | BF66: -1.159770737e-11 | BG66: -1.159770737e-11 | BH66: -1.159770737e-11 | BI66: -1.159770737e-11 | BJ66: -1.159770737e-11 | BK66: -1.159770737e-11 | BL66: -1.159770737e-11 | BM66: -1.159770737e-11 | BN66: -1.159770737e-11 | BO66: -1.159770737e-11 | BP66: -1.159770737e-11 | BQ66: -1.159770737e-11
D73: WORK SPACE

Sheet RevReq
A1: Florida Power & Light Company
A2: Docket No. 20210015-EI
A3: Staff's Tenth Data Request
A4: Request No. 12
A5: Attachment 1 of 1
A6: Tab 4 of 5
D8: REVENUE REQUIREMENT | E8: =Input!$F$9 -> $ dollars | K8: =K42 -> 1168073.944
D9: Period | E9: Type | H9: Input | I9: Input | K9: PV | L9: SUM | O9: 1 | P9: =O9+1 -> 2 | Q9: =P9+1 -> 3 | R9: 4 | S9: 5 | T9: 6 | U9: 7 | V9: 8 | W9: 9 | X9: 10 | Y9: 11 | Z9: 12 | AA9: 13 | AB9: 14 | AC9: 15 | AD9: 16 | AE9: 17 | AF9: 18 | AG9: =AF9+1 -> 19 | AH9: 20 | AI9: 21 | AJ9: 22 | AK9: 23 | AL9: 24 | AM9: 25 | AN9: 26 | AO9: 27 | AP9: 28 | AQ9: 29 | AR9: 30 | AS9: 31 | AT9: 32 | AU9: 33 | AV9: 34 | AW9: =AV9+1 -> 35 | AX9: 36 | AY9: 37 | AZ9: 38 | BA9: 39 | BB9: 40 | BC9: 41 | BD9: 42 | BE9: 43 | BF9: 44 | BG9: 45 | BH9: 46 | BI9: 47 | BJ9: 48 | BK9: 49 | BL9: 50 | BM9: =BL9+1 -> 51
D10: Year | O10: =Input!S9 -> 2022 | P10: =O10+1 -> 2023 | Q10: 2024 | R10: 2025 | S10: 2026 | T10: 2027 | U10: 2028 | V10: 2029 | W10: 2030 | X10: 2031 | Y10: 2032 | Z10: 2033 | AA10: 2034 | AB10: 2035 | AC10: 2036 | AD10: 2037 | AE10: 2038 | AF10: 2039 | AG10: 2040 | AH10: 2041 | AI10: 2042 | AJ10: 2043 | AK10: 2044 | AL10: 2045 | AM10: 2046 | AN10: 2047 | AO10: 2048 | AP10: 2049 | AQ10: 2050 | AR10: 2051 | AS10: 2052 | AT10: 2053 | AU10: 2054 | AV10: 2055 | AW10: 2056 | AX10: 2057 | AY10: 2058 | AZ10: 2059 | BA10: 2060 | BB10: 2061 | BC10: 2062 | BD10: 2063 | BE10: 2064 | BF10: 2065 | BG10: 2066 | BH10: 2067 | BI10: 2068 | BJ10: 2069 | BK10: 2070 | BL10: 2071 | BM10: =BL10+1 -> 2072
D11: Discount Date | H11: =Assumptions!$D$15 -> 2022-01-01 | O11: =DATE(O$10,12,31) -> 2022-12-31 | P11: =DATE(P$10,12,31) -> 2023-12-31 | Q11: 2024-12-31 | R11: 2025-12-31 | S11: 2026-12-31 | T11: 2027-12-31 | U11: 2028-12-31 | V11: 2029-12-31 | W11: 2030-12-31 | X11: 2031-12-31 | Y11: 2032-12-31 | Z11: 2033-12-31 | AA11: 2034-12-31 | AB11: 2035-12-31 | AC11: 2036-12-31 | AD11: 2037-12-31 | AE11: 2038-12-31 | AF11: 2039-12-31 | AG11: 2040-12-31 | AH11: 2041-12-31 | AI11: 2042-12-31 | AJ11: 2043-12-31 | AK11: 2044-12-31 | AL11: 2045-12-31 | AM11: 2046-12-31 | AN11: 2047-12-31 | AO11: 2048-12-31 | AP11: 2049-12-31 | AQ11: 2050-12-31 | AR11: 2051-12-31 | AS11: 2052-12-31 | AT11: 2053-12-31 | AU11: 2054-12-31 | AV11: 2055-12-31 | AW11: 2056-12-31 | AX11: 2057-12-31 | AY11: 2058-12-31 | AZ11: 2059-12-31 | BA11: 2060-12-31 | BB11: 2061-12-31 | BC11: 2062-12-31 | BD11: 2063-12-31 | BE11: 2064-12-31 | BF11: 2065-12-31 | BG11: 2066-12-31 | BH11: 2067-12-31 | BI11: 2068-12-31 | BJ11: 2069-12-31 | BK11: 2070-12-31 | BL11: 2071-12-31 | BM11: 2072-12-31
D12: Discount Factor | F12: code | H12: =Assumptions!$E$33 -> 0.07376237762 | O12: =(1+$H12)^-O9 -> 0.9313047475 | P12: =(1+$H12)^-P9 -> 0.8673285328 | Q12: 0.8077471802 | R12: 0.7522587838 | S12: 0.7005821767 | T12: 0.6524555072 | U12: 0.6076349114 | V12: 0.5658932778 | W12: 0.5270190962 | X12: 0.4908153863 | Y12: 0.4570986994 | Z12: 0.4256981889 | AA12: 0.3964547443 | AB12: 0.3692201856 | AC12: 0.3438565117 | AD12: 0.3202352018 | AE12: 0.2982365638 | AF12: 0.2777491277 | AG12: 0.2586690813 | AH12: 0.2408997434 | AI12: 0.2243510747 | AJ12: 0.208939221 | AK12: 0.1945860885 | AL12: 0.181218948 | AM12: 0.1687700666 | AN12: 0.1571763643 | AO12: 0.1463790943 | AP12: 0.1363235454 | AQ12: 0.1269587651 | AR12: 0.1182373006 | AS12: 0.1101149594 | AT12: 0.1025505845 | AU12: 0.09550584619 | AV12: 0.08894504797 | AW12: 0.08283494545 | AX12: 0.07714457796 | AY12: 0.0718451117 | AZ12: 0.06690969361 | BA12: 0.06231331532 | BB12: 0.05803268639 | BC12: 0.05404611635 | BD12: 0.05033340474 | BE12: 0.04687573879 | BF12: 0.04365559808 | BG12: 0.04065666575 | BH12: 0.03786374583 | BI12: 0.03526268625 | BJ12: 0.03284030712 | BK12: 0.03058433393 | BL12: 0.02848333539 | BM12: 0.02652666547
D14: REVENUE REQUIREMENT - UNFAVORABLE/(FAVORABLE)
D16: Revenue Requirement - unfavorable/(favorable) | K16: CPVRR | L16: SUM
C17: =C16+1 -> 1 | D17: =INDEX(D$64:D$88,$C17,1) -> Capital Costs | E17: Capital | F17: =MATCH(E17,lookups!$C$97:$C$102,0) -> 4 | H17: =Input!I12 -> Base | K17: =SUMPRODUCT(O17:BM17,$O$12:$BM$12) -> 1099043.548 | L17: =SUM(O17:BM17) -> 1525264.327 | O17: =O152+O241+O534+O1324+O921+O1175 -> 210272.022 | P17: 194618.8748 | Q17: 179065.8955 | R17: 166077.2128 | S17: 154050.1414 | T17: 142744.2784 | U17: 132880.8322 | V17: 123738.5944 | W17: 114596.3566 | X17: 107220.1189 | Y17: 1.040520833e-10 | Z17: -1.159770737e-11 | AA17: -1.159770737e-11 | AB17: -1.159770737e-11 | AC17: -1.159770737e-11 | AD17: -1.159770737e-11 | AE17: -1.159770737e-11 | AF17: -1.159770737e-11 | AG17: -1.159770737e-11 | AH17: -1.159770737e-11 | AI17: -1.159770737e-11 | AJ17: -1.159770737e-11 | AK17: -1.159770737e-11 | AL17: -1.159770737e-11 | AM17: -1.159770737e-11 | AN17: -1.159770737e-11 | AO17: -1.159770737e-11 | AP17: -1.159770737e-11 | AQ17: -1.159770737e-11 | AR17: -1.159770737e-11 | AS17: -1.159770737e-11 | AT17: -1.159770737e-11 | AU17: =AU152+AU241+AU534+AU1324+AU921+AU1175 -> -1.159770737e-11 | AV17: -1.159770737e-11 | AW17: -1.159770737e-11 | AX17: -1.159770737e-11 | AY17: -1.159770737e-11 | AZ17: -1.159770737e-11 | BA17: -1.159770737e-11 | BB17: -1.159770737e-11 | BC17: -1.159770737e-11 | BD17: -1.159770737e-11 | BE17: -1.159770737e-11 | BF17: -1.159770737e-11 | BG17: -1.159770737e-11 | BH17: -1.159770737e-11 | BI17: -1.159770737e-11 | BJ17: -1.159770737e-11 | BK17: -1.159770737e-11 | BL17: -1.159770737e-11 | BM17: -1.159770737e-11
C18: =C17+1 -> 2 | D18: O&M | E18: Operating Expense | F18: =MATCH(E18,lookups!$C$97:$C$102,0) -> 2 | H18: =Input!I13 -> Base | K18: =SUMPRODUCT(O18:BM18,$O$12:$BM$12) -> 69030.396 | L18: =SUM(O18:BM18) -> 100000 | O18: =O153+O242+O535+O1325+O922+O1176 -> 10000 | P18: 10000 | Q18: 10000 | R18: 10000 | S18: 10000 | T18: 10000 | U18: 10000 | V18: 10000 | W18: 10000 | X18: 10000 | Y18: 0 | Z18: 0 | AA18: 0 | AB18: 0 | AC18: 0 | AD18: 0 | AE18: 0 | AF18: 0 | AG18: 0 | AH18: 0 | AI18: 0 | AJ18: 0 | AK18: 0 | AL18: 0 | AM18: 0 | AN18: 0 | AO18: 0 | AP18: 0 | AQ18: 0 | AR18: 0 | AS18: 0 | AT18: 0 | AU18: =AU153+AU242+AU535+AU1325+AU922+AU1176 -> 0 | AV18: 0 | AW18: 0 | AX18: 0 | AY18: 0 | AZ18: 0 | BA18: 0 | BB18: 0 | BC18: 0 | BD18: 0 | BE18: 0 | BF18: 0 | BG18: 0 | BH18: 0 | BI18: 0 | BJ18: 0 | BK18: 0 | BL18: 0 | BM18: 0
C19: 3 | D19: … | E19: Operating Expense | F19: =MATCH(E19,lookups!$C$97:$C$102,0) -> 2 | H19: =Input!I14 -> Base | K19: 0 | L19: 0 | O19: =O154+O243+O536+O1326+O923+O1177 -> 0 | P19: 0 | Q19: 0 | R19: 0 | S19: 0 | T19: 0 | U19: 0 | V19: 0 | W19: 0 | X19: 0 | Y19: 0 | Z19: 0 | AA19: 0 | AB19: 0 | AC19: 0 | AD19: 0 | AE19: 0 | AF19: 0 | AG19: 0 | AH19: 0 | AI19: 0 | AJ19: 0 | AK19: 0 | AL19: 0 | AM19: 0 | AN19: 0 | AO19: 0 | AP19: 0 | AQ19: 0 | AR19: 0 | AS19: 0 | AT19: 0 | AU19: =AU154+AU243+AU536+AU1326+AU923+AU1177 -> 0 | AV19: 0 | AW19: 0 | AX19: 0 | AY19: 0 | AZ19: 0 | BA19: 0 | BB19: 0 | BC19: 0 | BD19: 0 | BE19: 0 | BF19: 0 | BG19: 0 | BH19: 0 | BI19: 0 | BJ19: 0 | BK19: 0 | BL19: 0 | BM19: 0
C20: 4 | D20: … | E20: Operating Savings | F20: =MATCH(E20,lookups!$C$97:$C$102,0) -> 1 | H20: =Input!I15 -> Base | K20: 0 | L20: 0 | O20: =O155+O244+O537+O1327+O924+O1178 -> 0 | P20: 0 | Q20: 0 | R20: 0 | S20: 0 | T20: 0 | U20: 0 | V20: 0 | W20: 0 | X20: 0 | Y20: 0 | Z20: 0 | AA20: 0 | AB20: 0 | AC20: 0 | AD20: 0 | AE20: 0 | AF20: 0 | AG20: 0 | AH20: 0 | AI20: 0 | AJ20: 0 | AK20: 0 | AL20: 0 | AM20: 0 | AN20: 0 | AO20: 0 | AP20: 0 | AQ20: 0 | AR20: 0 | AS20: 0 | AT20: 0 | AU20: =AU155+AU244+AU537+AU1327+AU924+AU1178 -> 0 | AV20: 0 | AW20: 0 | AX20: 0 | AY20: 0 | AZ20: 0 | BA20: 0 | BB20: 0 | BC20: 0 | BD20: 0 | BE20: 0 | BF20: 0 | BG20: 0 | BH20: 0 | BI20: 0 | BJ20: 0 | BK20: 0 | BL20: 0 | BM20: 0
C21: 5 | D21: … | E21: Operating Expense | F21: =MATCH(E21,lookups!$C$97:$C$102,0) -> 2 | H21: =Input!I16 -> Base | K21: 0 | L21: 0 | O21: =O156+O245+O538+O1328+O925+O1179 -> 0 | P21: 0 | Q21: 0 | R21: 0 | S21: 0 | T21: 0 | U21: 0 | V21: 0 | W21: 0 | X21: 0 | Y21: 0 | Z21: 0 | AA21: 0 | AB21: 0 | AC21: 0 | AD21: 0 | AE21: 0 | AF21: 0 | AG21: 0 | AH21: 0 | AI21: 0 | AJ21: 0 | AK21: 0 | AL21: 0 | AM21: 0 | AN21: 0 | AO21: 0 | AP21: 0 | AQ21: 0 | AR21: 0 | AS21: 0 | AT21: 0 | AU21: =AU156+AU245+AU538+AU1328+AU925+AU1179 -> 0 | AV21: 0 | AW21: 0 | AX21: 0 | AY21: 0 | AZ21: 0 | BA21: 0 | BB21: 0 | BC21: 0 | BD21: 0 | BE21: 0 | BF21: 0 | BG21: 0 | BH21: 0 | BI21: 0 | BJ21: 0 | BK21: 0 | BL21: 0 | BM21: 0
C22: 6 | D22: … | E22: Operating Expense | F22: =MATCH(E22,lookups!$C$97:$C$102,0) -> 2 | H22: =Input!I17 -> Base | K22: 0 | L22: 0 | O22: =O157+O246+O539+O1329+O926+O1180 -> 0 | P22: 0 | Q22: 0 | R22: 0 | S22: 0 | T22: 0 | U22: 0 | V22: 0 | W22: 0 | X22: 0 | Y22: 0 | Z22: 0 | AA22: 0 | AB22: 0 | AC22: 0 | AD22: 0 | AE22: 0 | AF22: 0 | AG22: 0 | AH22: 0 | AI22: 0 | AJ22: 0 | AK22: 0 | AL22: 0 | AM22: 0 | AN22: 0 | AO22: 0 | AP22: 0 | AQ22: 0 | AR22: 0 | AS22: 0 | AT22: 0 | AU22: =AU157+AU246+AU539+AU1329+AU926+AU1180 -> 0 | AV22: 0 | AW22: 0 | AX22: 0 | AY22: 0 | AZ22: 0 | BA22: 0 | BB22: 0 | BC22: 0 | BD22: 0 | BE22: 0 | BF22: 0 | BG22: 0 | BH22: 0 | BI22: 0 | BJ22: 0 | BK22: 0 | BL22: 0 | BM22: 0
C23: 7 | D23: … | E23: Operating Expense | F23: =MATCH(E23,lookups!$C$97:$C$102,0) -> 2 | H23: =Input!I18 -> Base | K23: 0 | L23: 0 | O23: =O158+O247+O540+O1330+O927+O1181 -> 0 | P23: 0 | Q23: 0 | R23: 0 | S23: 0 | T23: 0 | U23: 0 | V23: 0 | W23: 0 | X23: 0 | Y23: 0 | Z23: 0 | AA23: 0 | AB23: 0 | AC23: 0 | AD23: 0 | AE23: 0 | AF23: 0 | AG23: 0 | AH23: 0 | AI23: 0 | AJ23: 0 | AK23: 0 | AL23: 0 | AM23: 0 | AN23: 0 | AO23: 0 | AP23: 0 | AQ23: 0 | AR23: 0 | AS23: 0 | AT23: 0 | AU23: =AU158+AU247+AU540+AU1330+AU927+AU1181 -> 0 | AV23: 0 | AW23: 0 | AX23: 0 | AY23: 0 | AZ23: 0 | BA23: 0 | BB23: 0 | BC23: 0 | BD23: 0 | BE23: 0 | BF23: 0 | BG23: 0 | BH23: 0 | BI23: 0 | BJ23: 0 | BK23: 0 | BL23: 0 | BM23: 0
C24: 8 | D24: … | E24: Operating Expense | F24: =MATCH(E24,lookups!$C$97:$C$102,0) -> 2 | H24: =Input!I19 -> Base | K24: 0 | L24: 0 | O24: =O159+O248+O541+O1331+O928+O1182 -> 0 | P24: 0 | Q24: 0 | R24: 0 | S24: 0 | T24: 0 | U24: 0 | V24: 0 | W24: 0 | X24: 0 | Y24: 0 | Z24: 0 | AA24: 0 | AB24: 0 | AC24: 0 | AD24: 0 | AE24: 0 | AF24: 0 | AG24: 0 | AH24: 0 | AI24: 0 | AJ24: 0 | AK24: 0 | AL24: 0 | AM24: 0 | AN24: 0 | AO24: 0 | AP24: 0 | AQ24: 0 | AR24: 0 | AS24: 0 | AT24: 0 | AU24: =AU159+AU248+AU541+AU1331+AU928+AU1182 -> 0 | AV24: 0 | AW24: 0 | AX24: 0 | AY24: 0 | AZ24: 0 | BA24: 0 | BB24: 0 | BC24: 0 | BD24: 0 | BE24: 0 | BF24: 0 | BG24: 0 | BH24: 0 | BI24: 0 | BJ24: 0 | BK24: 0 | BL24: 0 | BM24: 0
C25: 9 | D25: … | E25: Operating Expense | F25: =MATCH(E25,lookups!$C$97:$C$102,0) -> 2 | H25: =Input!I20 -> Base | K25: 0 | L25: 0 | O25: =O160+O249+O542+O1332+O929+O1183 -> 0 | P25: 0 | Q25: 0 | R25: 0 | S25: 0 | T25: 0 | U25: 0 | V25: 0 | W25: 0 | X25: 0 | Y25: 0 | Z25: 0 | AA25: 0 | AB25: 0 | AC25: 0 | AD25: 0 | AE25: 0 | AF25: 0 | AG25: 0 | AH25: 0 | AI25: 0 | AJ25: 0 | AK25: 0 | AL25: 0 | AM25: 0 | AN25: 0 | AO25: 0 | AP25: 0 | AQ25: 0 | AR25: 0 | AS25: 0 | AT25: 0 | AU25: =AU160+AU249+AU542+AU1332+AU929+AU1183 -> 0 | AV25: 0 | AW25: 0 | AX25: 0 | AY25: 0 | AZ25: 0 | BA25: 0 | BB25: 0 | BC25: 0 | BD25: 0 | BE25: 0 | BF25: 0 | BG25: 0 | BH25: 0 | BI25: 0 | BJ25: 0 | BK25: 0 | BL25: 0 | BM25: 0
C26: 10 | D26: … | E26: Operating Expense | F26: =MATCH(E26,lookups!$C$97:$C$102,0) -> 2 | H26: =Input!I21 -> Base | K26: 0 | L26: 0 | O26: =O161+O250+O543+O1333+O930+O1184 -> 0 | P26: 0 | Q26: 0 | R26: 0 | S26: 0 | T26: 0 | U26: 0 | V26: 0 | W26: 0 | X26: 0 | Y26: 0 | Z26: 0 | AA26: 0 | AB26: 0 | AC26: 0 | AD26: 0 | AE26: 0 | AF26: 0 | AG26: 0 | AH26: 0 | AI26: 0 | AJ26: 0 | AK26: 0 | AL26: 0 | AM26: 0 | AN26: 0 | AO26: 0 | AP26: 0 | AQ26: 0 | AR26: 0 | AS26: 0 | AT26: 0 | AU26: =AU161+AU250+AU543+AU1333+AU930+AU1184 -> 0 | AV26: 0 | AW26: 0 | AX26: 0 | AY26: 0 | AZ26: 0 | BA26: 0 | BB26: 0 | BC26: 0 | BD26: 0 | BE26: 0 | BF26: 0 | BG26: 0 | BH26: 0 | BI26: 0 | BJ26: 0 | BK26: 0 | BL26: 0 | BM26: 0
C27: 11 | D27: … | E27: Operating Expense | F27: =MATCH(E27,lookups!$C$97:$C$102,0) -> 2 | H27: =Input!I22 -> Base | K27: 0 | L27: 0 | O27: =O162+O251+O544+O1334+O931+O1185 -> 0 | P27: 0 | Q27: 0 | R27: 0 | S27: 0 | T27: 0 | U27: 0 | V27: 0 | W27: 0 | X27: 0 | Y27: 0 | Z27: 0 | AA27: 0 | AB27: 0 | AC27: 0 | AD27: 0 | AE27: 0 | AF27: 0 | AG27: 0 | AH27: 0 | AI27: 0 | AJ27: 0 | AK27: 0 | AL27: 0 | AM27: 0 | AN27: 0 | AO27: 0 | AP27: 0 | AQ27: 0 | AR27: 0 | AS27: 0 | AT27: 0 | AU27: =AU162+AU251+AU544+AU1334+AU931+AU1185 -> 0 | AV27: 0 | AW27: 0 | AX27: 0 | AY27: 0 | AZ27: 0 | BA27: 0 | BB27: 0 | BC27: 0 | BD27: 0 | BE27: 0 | BF27: 0 | BG27: 0 | BH27: 0 | BI27: 0 | BJ27: 0 | BK27: 0 | BL27: 0 | BM27: 0
C28: 12 | D28: … | E28: Operating Expense | F28: =MATCH(E28,lookups!$C$97:$C$102,0) -> 2 | H28: =Input!I23 -> Base | K28: 0 | L28: 0 | O28: =O163+O252+O545+O1335+O932+O1186 -> 0 | P28: 0 | Q28: 0 | R28: 0 | S28: 0 | T28: 0 | U28: 0 | V28: 0 | W28: 0 | X28: 0 | Y28: 0 | Z28: 0 | AA28: 0 | AB28: 0 | AC28: 0 | AD28: 0 | AE28: 0 | AF28: 0 | AG28: 0 | AH28: 0 | AI28: 0 | AJ28: 0 | AK28: 0 | AL28: 0 | AM28: 0 | AN28: 0 | AO28: 0 | AP28: 0 | AQ28: 0 | AR28: 0 | AS28: 0 | AT28: 0 | AU28: =AU163+AU252+AU545+AU1335+AU932+AU1186 -> 0 | AV28: 0 | AW28: 0 | AX28: 0 | AY28: 0 | AZ28: 0 | BA28: 0 | BB28: 0 | BC28: 0 | BD28: 0 | BE28: 0 | BF28: 0 | BG28: 0 | BH28: 0 | BI28: 0 | BJ28: 0 | BK28: 0 | BL28: 0 | BM28: 0
C29: 13 | D29: … | E29: Operating Expense | F29: =MATCH(E29,lookups!$C$97:$C$102,0) -> 2 | H29: =Input!I24 -> Base | K29: 0 | L29: 0 | O29: =O164+O253+O546+O1336+O933+O1187 -> 0 | P29: 0 | Q29: 0 | R29: 0 | S29: 0 | T29: 0 | U29: 0 | V29: 0 | W29: 0 | X29: 0 | Y29: 0 | Z29: 0 | AA29: 0 | AB29: 0 | AC29: 0 | AD29: 0 | AE29: 0 | AF29: 0 | AG29: 0 | AH29: 0 | AI29: 0 | AJ29: 0 | AK29: 0 | AL29: 0 | AM29: 0 | AN29: 0 | AO29: 0 | AP29: 0 | AQ29: 0 | AR29: 0 | AS29: 0 | AT29: 0 | AU29: =AU164+AU253+AU546+AU1336+AU933+AU1187 -> 0 | AV29: 0 | AW29: 0 | AX29: 0 | AY29: 0 | AZ29: 0 | BA29: 0 | BB29: 0 | BC29: 0 | BD29: 0 | BE29: 0 | BF29: 0 | BG29: 0 | BH29: 0 | BI29: 0 | BJ29: 0 | BK29: 0 | BL29: 0 | BM29: 0
C30: 14 | D30: … | E30: Operating Expense | F30: =MATCH(E30,lookups!$C$97:$C$102,0) -> 2 | H30: =Input!I25 -> Base | K30: 0 | L30: 0 | O30: =O165+O254+O547+O1337+O934+O1188 -> 0 | P30: 0 | Q30: 0 | R30: 0 | S30: 0 | T30: 0 | U30: 0 | V30: 0 | W30: 0 | X30: 0 | Y30: 0 | Z30: 0 | AA30: 0 | AB30: 0 | AC30: 0 | AD30: 0 | AE30: 0 | AF30: 0 | AG30: 0 | AH30: 0 | AI30: 0 | AJ30: 0 | AK30: 0 | AL30: 0 | AM30: 0 | AN30: 0 | AO30: 0 | AP30: 0 | AQ30: 0 | AR30: 0 | AS30: 0 | AT30: 0 | AU30: =AU165+AU254+AU547+AU1337+AU934+AU1188 -> 0 | AV30: 0 | AW30: 0 | AX30: 0 | AY30: 0 | AZ30: 0 | BA30: 0 | BB30: 0 | BC30: 0 | BD30: 0 | BE30: 0 | BF30: 0 | BG30: 0 | BH30: 0 | BI30: 0 | BJ30: 0 | BK30: 0 | BL30: 0 | BM30: 0
C31: 15 | D31: … | E31: Operating Expense | F31: =MATCH(E31,lookups!$C$97:$C$102,0) -> 2 | H31: =Input!I26 -> Base | K31: 0 | L31: 0 | O31: =O166+O255+O548+O1338+O935+O1189 -> 0 | P31: 0 | Q31: 0 | R31: 0 | S31: 0 | T31: 0 | U31: 0 | V31: 0 | W31: 0 | X31: 0 | Y31: 0 | Z31: 0 | AA31: 0 | AB31: 0 | AC31: 0 | AD31: 0 | AE31: 0 | AF31: 0 | AG31: 0 | AH31: 0 | AI31: 0 | AJ31: 0 | AK31: 0 | AL31: 0 | AM31: 0 | AN31: 0 | AO31: 0 | AP31: 0 | AQ31: 0 | AR31: 0 | AS31: 0 | AT31: 0 | AU31: =AU166+AU255+AU548+AU1338+AU935+AU1189 -> 0 | AV31: 0 | AW31: 0 | AX31: 0 | AY31: 0 | AZ31: 0 | BA31: 0 | BB31: 0 | BC31: 0 | BD31: 0 | BE31: 0 | BF31: 0 | BG31: 0 | BH31: 0 | BI31: 0 | BJ31: 0 | BK31: 0 | BL31: 0 | BM31: 0
C32: 16 | D32: … | E32: Operating Expense | F32: =MATCH(E32,lookups!$C$97:$C$102,0) -> 2 | H32: =Input!I27 -> Base | K32: 0 | L32: 0 | O32: =O167+O256+O549+O1339+O936+O1190 -> 0 | P32: 0 | Q32: 0 | R32: 0 | S32: 0 | T32: 0 | U32: 0 | V32: 0 | W32: 0 | X32: 0 | Y32: 0 | Z32: 0 | AA32: 0 | AB32: 0 | AC32: 0 | AD32: 0 | AE32: 0 | AF32: 0 | AG32: 0 | AH32: 0 | AI32: 0 | AJ32: 0 | AK32: 0 | AL32: 0 | AM32: 0 | AN32: 0 | AO32: 0 | AP32: 0 | AQ32: 0 | AR32: 0 | AS32: 0 | AT32: 0 | AU32: =AU167+AU256+AU549+AU1339+AU936+AU1190 -> 0 | AV32: 0 | AW32: 0 | AX32: 0 | AY32: 0 | AZ32: 0 | BA32: 0 | BB32: 0 | BC32: 0 | BD32: 0 | BE32: 0 | BF32: 0 | BG32: 0 | BH32: 0 | BI32: 0 | BJ32: 0 | BK32: 0 | BL32: 0 | BM32: 0
C33: 17 | D33: … | E33: Operating Expense | F33: =MATCH(E33,lookups!$C$97:$C$102,0) -> 2 | H33: =Input!I28 -> Base | K33: 0 | L33: 0 | O33: =O168+O257+O550+O1340+O937+O1191 -> 0 | P33: 0 | Q33: 0 | R33: 0 | S33: 0 | T33: 0 | U33: 0 | V33: 0 | W33: 0 | X33: 0 | Y33: 0 | Z33: 0 | AA33: 0 | AB33: 0 | AC33: 0 | AD33: 0 | AE33: 0 | AF33: 0 | AG33: 0 | AH33: 0 | AI33: 0 | AJ33: 0 | AK33: 0 | AL33: 0 | AM33: 0 | AN33: 0 | AO33: 0 | AP33: 0 | AQ33: 0 | AR33: 0 | AS33: 0 | AT33: 0 | AU33: =AU168+AU257+AU550+AU1340+AU937+AU1191 -> 0 | AV33: 0 | AW33: 0 | AX33: 0 | AY33: 0 | AZ33: 0 | BA33: 0 | BB33: 0 | BC33: 0 | BD33: 0 | BE33: 0 | BF33: 0 | BG33: 0 | BH33: 0 | BI33: 0 | BJ33: 0 | BK33: 0 | BL33: 0 | BM33: 0
C34: 18 | D34: … | E34: Operating Expense | F34: =MATCH(E34,lookups!$C$97:$C$102,0) -> 2 | H34: =Input!I29 -> Base | K34: 0 | L34: 0 | O34: =O169+O258+O551+O1341+O938+O1192 -> 0 | P34: 0 | Q34: 0 | R34: 0 | S34: 0 | T34: 0 | U34: 0 | V34: 0 | W34: 0 | X34: 0 | Y34: 0 | Z34: 0 | AA34: 0 | AB34: 0 | AC34: 0 | AD34: 0 | AE34: 0 | AF34: 0 | AG34: 0 | AH34: 0 | AI34: 0 | AJ34: 0 | AK34: 0 | AL34: 0 | AM34: 0 | AN34: 0 | AO34: 0 | AP34: 0 | AQ34: 0 | AR34: 0 | AS34: 0 | AT34: 0 | AU34: =AU169+AU258+AU551+AU1341+AU938+AU1192 -> 0 | AV34: 0 | AW34: 0 | AX34: 0 | AY34: 0 | AZ34: 0 | BA34: 0 | BB34: 0 | BC34: 0 | BD34: 0 | BE34: 0 | BF34: 0 | BG34: 0 | BH34: 0 | BI34: 0 | BJ34: 0 | BK34: 0 | BL34: 0 | BM34: 0
C35: 19 | D35: … | E35: Operating Expense | F35: =MATCH(E35,lookups!$C$97:$C$102,0) -> 2 | H35: =Input!I30 -> Base | K35: 0 | L35: 0 | O35: =O170+O259+O552+O1342+O939+O1193 -> 0 | P35: 0 | Q35: 0 | R35: 0 | S35: 0 | T35: 0 | U35: 0 | V35: 0 | W35: 0 | X35: 0 | Y35: 0 | Z35: 0 | AA35: 0 | AB35: 0 | AC35: 0 | AD35: 0 | AE35: 0 | AF35: 0 | AG35: 0 | AH35: 0 | AI35: 0 | AJ35: 0 | AK35: 0 | AL35: 0 | AM35: 0 | AN35: 0 | AO35: 0 | AP35: 0 | AQ35: 0 | AR35: 0 | AS35: 0 | AT35: 0 | AU35: =AU170+AU259+AU552+AU1342+AU939+AU1193 -> 0 | AV35: 0 | AW35: 0 | AX35: 0 | AY35: 0 | AZ35: 0 | BA35: 0 | BB35: 0 | BC35: 0 | BD35: 0 | BE35: 0 | BF35: 0 | BG35: 0 | BH35: 0 | BI35: 0 | BJ35: 0 | BK35: 0 | BL35: 0 | BM35: 0
C36: 20 | D36: … | E36: Operating Expense | F36: =MATCH(E36,lookups!$C$97:$C$102,0) -> 2 | H36: =Input!I31 -> Base | K36: 0 | L36: 0 | O36: =O171+O260+O553+O1343+O940+O1194 -> 0 | P36: 0 | Q36: 0 | R36: 0 | S36: 0 | T36: 0 | U36: 0 | V36: 0 | W36: 0 | X36: 0 | Y36: 0 | Z36: 0 | AA36: 0 | AB36: 0 | AC36: 0 | AD36: 0 | AE36: 0 | AF36: 0 | AG36: 0 | AH36: 0 | AI36: 0 | AJ36: 0 | AK36: 0 | AL36: 0 | AM36: 0 | AN36: 0 | AO36: 0 | AP36: 0 | AQ36: 0 | AR36: 0 | AS36: 0 | AT36: 0 | AU36: =AU171+AU260+AU553+AU1343+AU940+AU1194 -> 0 | AV36: 0 | AW36: 0 | AX36: 0 | AY36: 0 | AZ36: 0 | BA36: 0 | BB36: 0 | BC36: 0 | BD36: 0 | BE36: 0 | BF36: 0 | BG36: 0 | BH36: 0 | BI36: 0 | BJ36: 0 | BK36: 0 | BL36: 0 | BM36: 0
C37: 21 | D37: … | E37: Operating Expense | F37: =MATCH(E37,lookups!$C$97:$C$102,0) -> 2 | H37: =Input!I32 -> Base | K37: 0 | L37: 0 | O37: =O172+O261+O554+O1344+O941+O1195 -> 0 | P37: 0 | Q37: 0 | R37: 0 | S37: 0 | T37: 0 | U37: 0 | V37: 0 | W37: 0 | X37: 0 | Y37: 0 | Z37: 0 | AA37: 0 | AB37: 0 | AC37: 0 | AD37: 0 | AE37: 0 | AF37: 0 | AG37: 0 | AH37: 0 | AI37: 0 | AJ37: 0 | AK37: 0 | AL37: 0 | AM37: 0 | AN37: 0 | AO37: 0 | AP37: 0 | AQ37: 0 | AR37: 0 | AS37: 0 | AT37: 0 | AU37: =AU172+AU261+AU554+AU1344+AU941+AU1195 -> 0 | AV37: 0 | AW37: 0 | AX37: 0 | AY37: 0 | AZ37: 0 | BA37: 0 | BB37: 0 | BC37: 0 | BD37: 0 | BE37: 0 | BF37: 0 | BG37: 0 | BH37: 0 | BI37: 0 | BJ37: 0 | BK37: 0 | BL37: 0 | BM37: 0
C38: 22 | D38: … | E38: Operating Expense | F38: =MATCH(E38,lookups!$C$97:$C$102,0) -> 2 | H38: =Input!I33 -> Base | K38: 0 | L38: 0 | O38: =O173+O262+O555+O1345+O942+O1196 -> 0 | P38: 0 | Q38: 0 | R38: 0 | S38: 0 | T38: 0 | U38: 0 | V38: 0 | W38: 0 | X38: 0 | Y38: 0 | Z38: 0 | AA38: 0 | AB38: 0 | AC38: 0 | AD38: 0 | AE38: 0 | AF38: 0 | AG38: 0 | AH38: 0 | AI38: 0 | AJ38: 0 | AK38: 0 | AL38: 0 | AM38: 0 | AN38: 0 | AO38: 0 | AP38: 0 | AQ38: 0 | AR38: 0 | AS38: 0 | AT38: 0 | AU38: =AU173+AU262+AU555+AU1345+AU942+AU1196 -> 0 | AV38: 0 | AW38: 0 | AX38: 0 | AY38: 0 | AZ38: 0 | BA38: 0 | BB38: 0 | BC38: 0 | BD38: 0 | BE38: 0 | BF38: 0 | BG38: 0 | BH38: 0 | BI38: 0 | BJ38: 0 | BK38: 0 | BL38: 0 | BM38: 0
C39: 23 | D39: … | E39: Operating Expense | F39: =MATCH(E39,lookups!$C$97:$C$102,0) -> 2 | H39: =Input!I34 -> Base | K39: 0 | L39: 0 | O39: =O174+O263+O556+O1346+O943+O1197 -> 0 | P39: 0 | Q39: 0 | R39: 0 | S39: 0 | T39: 0 | U39: 0 | V39: 0 | W39: 0 | X39: 0 | Y39: 0 | Z39: 0 | AA39: 0 | AB39: 0 | AC39: 0 | AD39: 0 | AE39: 0 | AF39: 0 | AG39: 0 | AH39: 0 | AI39: 0 | AJ39: 0 | AK39: 0 | AL39: 0 | AM39: 0 | AN39: 0 | AO39: 0 | AP39: 0 | AQ39: 0 | AR39: 0 | AS39: 0 | AT39: 0 | AU39: =AU174+AU263+AU556+AU1346+AU943+AU1197 -> 0 | AV39: 0 | AW39: 0 | AX39: 0 | AY39: 0 | AZ39: 0 | BA39: 0 | BB39: 0 | BC39: 0 | BD39: 0 | BE39: 0 | BF39: 0 | BG39: 0 | BH39: 0 | BI39: 0 | BJ39: 0 | BK39: 0 | BL39: 0 | BM39: 0
C40: 24 | D40: … | E40: Operating Expense | F40: =MATCH(E40,lookups!$C$97:$C$102,0) -> 2 | H40: =Input!I35 -> Base | K40: 0 | L40: 0 | O40: =O175+O264+O557+O1347+O944+O1198 -> 0 | P40: 0 | Q40: 0 | R40: 0 | S40: 0 | T40: 0 | U40: 0 | V40: 0 | W40: 0 | X40: 0 | Y40: 0 | Z40: 0 | AA40: 0 | AB40: 0 | AC40: 0 | AD40: 0 | AE40: 0 | AF40: 0 | AG40: 0 | AH40: 0 | AI40: 0 | AJ40: 0 | AK40: 0 | AL40: 0 | AM40: 0 | AN40: 0 | AO40: 0 | AP40: 0 | AQ40: 0 | AR40: 0 | AS40: 0 | AT40: 0 | AU40: =AU175+AU264+AU557+AU1347+AU944+AU1198 -> 0 | AV40: 0 | AW40: 0 | AX40: 0 | AY40: 0 | AZ40: 0 | BA40: 0 | BB40: 0 | BC40: 0 | BD40: 0 | BE40: 0 | BF40: 0 | BG40: 0 | BH40: 0 | BI40: 0 | BJ40: 0 | BK40: 0 | BL40: 0 | BM40: 0
C41: 25 | D41: … | E41: Operating Expense | F41: =MATCH(E41,lookups!$C$97:$C$102,0) -> 2 | H41: =Input!I36 -> Base | K41: 0 | L41: 0 | O41: =O176+O265+O558+O1348+O945+O1199 -> 0 | P41: 0 | Q41: 0 | R41: 0 | S41: 0 | T41: 0 | U41: 0 | V41: 0 | W41: 0 | X41: 0 | Y41: 0 | Z41: 0 | AA41: 0 | AB41: 0 | AC41: 0 | AD41: 0 | AE41: 0 | AF41: 0 | AG41: 0 | AH41: 0 | AI41: 0 | AJ41: 0 | AK41: 0 | AL41: 0 | AM41: 0 | AN41: 0 | AO41: 0 | AP41: 0 | AQ41: 0 | AR41: 0 | AS41: 0 | AT41: 0 | AU41: =AU176+AU265+AU558+AU1348+AU945+AU1199 -> 0 | AV41: 0 | AW41: 0 | AX41: 0 | AY41: 0 | AZ41: 0 | BA41: 0 | BB41: 0 | BC41: 0 | BD41: 0 | BE41: 0 | BF41: 0 | BG41: 0 | BH41: 0 | BI41: 0 | BJ41: 0 | BK41: 0 | BL41: 0 | BM41: 0
D42: ="Total "&D16 -> Total Revenue Requirement - unfavorable/(favorable) | K42: 1168073.944 | L42: 1625264.327 | O42: =SUM(O17:O41) -> 220272.022 | P42: 204618.8748 | Q42: 189065.8955 | R42: 176077.2128 | S42: 164050.1414 | T42: 152744.2784 | U42: 142880.8322 | V42: 133738.5944 | W42: 124596.3566 | X42: 117220.1189 | Y42: 1.040520833e-10 | Z42: -1.159770737e-11 | AA42: -1.159770737e-11 | AB42: -1.159770737e-11 | AC42: -1.159770737e-11 | AD42: -1.159770737e-11 | AE42: -1.159770737e-11 | AF42: -1.159770737e-11 | AG42: -1.159770737e-11 | AH42: -1.159770737e-11 | AI42: -1.159770737e-11 | AJ42: -1.159770737e-11 | AK42: -1.159770737e-11 | AL42: -1.159770737e-11 | AM42: -1.159770737e-11 | AN42: -1.159770737e-11 | AO42: -1.159770737e-11 | AP42: -1.159770737e-11 | AQ42: -1.159770737e-11 | AR42: -1.159770737e-11 | AS42: -1.159770737e-11 | AT42: -1.159770737e-11 | AU42: =SUM(AU17:AU41) -> -1.159770737e-11 | AV42: -1.159770737e-11 | AW42: -1.159770737e-11 | AX42: -1.159770737e-11 | AY42: -1.159770737e-11 | AZ42: -1.159770737e-11 | BA42: -1.159770737e-11 | BB42: -1.159770737e-11 | BC42: -1.159770737e-11 | BD42: -1.159770737e-11 | BE42: -1.159770737e-11 | BF42: -1.159770737e-11 | BG42: -1.159770737e-11 | BH42: -1.159770737e-11 | BI42: -1.159770737e-11 | BJ42: -1.159770737e-11 | BK42: -1.159770737e-11 | BL42: -1.159770737e-11 | BM42: -1.159770737e-11
D46: Revenue Requirement - unfavorable/(favorable) | K46: CPVRR | L46: SUM
D47: Operating Savings | F47: =MATCH(D47,lookups!$C$97:$C$102,0) -> 1 | K47: =SUMPRODUCT(O47:BM47,$O$12:$BM$12) -> 0 | L47: =SUM(O47:BM47) -> 0 | O47: =SUMIF($F$152:$F$176,$F47,O$152:O$176) -> 0 | P47: 0 | Q47: 0 | R47: 0 | S47: 0 | T47: 0 | U47: 0 | V47: 0 | W47: 0 | X47: 0 | Y47: =SUMIF($F$152:$F$176,$F47,Y$152:Y$176) -> 0 | Z47: 0 | AA47: 0 | AB47: 0 | AC47: 0 | AD47: 0 | AE47: 0 | AF47: 0 | AG47: 0 | AH47: 0 | AI47: =SUMIF($F$152:$F$176,$F47,AI$152:AI$176) -> 0 | AJ47: 0 | AK47: 0 | AL47: 0 | AM47: 0 | AN47: 0 | AO47: 0 | AP47: 0 | AQ47: 0 | AR47: 0 | AS47: =SUMIF($F$152:$F$176,$F47,AS$152:AS$176) -> 0 | AT47: 0 | AU47: 0 | AV47: 0 | AW47: 0 | AX47: 0 | AY47: 0 | AZ47: 0 | BA47: 0 | BB47: 0 | BC47: =SUMIF($F$152:$F$176,$F47,BC$152:BC$176) -> 0 | BD47: 0 | BE47: 0 | BF47: 0 | BG47: 0 | BH47: 0 | BI47: 0 | BJ47: 0 | BK47: 0 | BL47: 0 | BM47: 0
D48: Operating Expense | F48: =MATCH(D48,lookups!$C$97:$C$102,0) -> 2 | K48: 69030.396 | L48: 100000 | O48: 10000 | P48: 10000 | Q48: 10000 | R48: 10000 | S48: 10000 | T48: 10000 | U48: 10000 | V48: 10000 | W48: 10000 | X48: 10000 | Y48: 0 | Z48: 0 | AA48: 0 | AB48: 0 | AC48: 0 | AD48: 0 | AE48: 0 | AF48: 0 | AG48: 0 | AH48: 0 | AI48: 0 | AJ48: 0 | AK48: 0 | AL48: 0 | AM48: 0 | AN48: 0 | AO48: 0 | AP48: 0 | AQ48: 0 | AR48: 0 | AS48: 0 | AT48: 0 | AU48: 0 | AV48: 0 | AW48: 0 | AX48: 0 | AY48: 0 | AZ48: 0 | BA48: 0 | BB48: 0 | BC48: 0 | BD48: 0 | BE48: 0 | BF48: 0 | BG48: 0 | BH48: 0 | BI48: 0 | BJ48: 0 | BK48: 0 | BL48: 0 | BM48: 0
D49: Property Tax and Insurance | K49: 75013.41465 | L49: 98896 | O49: =O946 -> 17660 | P49: =P946 -> 15894 | Q49: 14128 | R49: 12362 | S49: 10596 | T49: 8830 | U49: 7064 | V49: 5298 | W49: 3532 | X49: 3532 | Y49: 0 | Z49: 0 | AA49: 0 | AB49: 0 | AC49: 0 | AD49: 0 | AE49: 0 | AF49: 0 | AG49: 0 | AH49: 0 | AI49: 0 | AJ49: 0 | AK49: 0 | AL49: 0 | AM49: 0 | AN49: 0 | AO49: 0 | AP49: 0 | AQ49: 0 | AR49: 0 | AS49: 0 | AT49: =AT946 -> 0 | AU49: 0 | AV49: 0 | AW49: 0 | AX49: 0 | AY49: 0 | AZ49: 0 | BA49: 0 | BB49: 0 | BC49: 0 | BD49: 0 | BE49: 0 | BF49: 0 | BG49: 0 | BH49: 0 | BI49: 0 | BJ49: 0 | BK49: 0 | BL49: 0 | BM49: 0
D50: Depreciation | K50: 690303.96 | L50: 1000000 | O50: =O266 -> 100000 | P50: =P266 -> 100000 | Q50: 100000 | R50: 100000 | S50: 100000 | T50: 100000 | U50: 100000 | V50: 100000 | W50: 100000 | X50: 100000 | Y50: 1.110223025e-10 | Z50: 0 | AA50: 0 | AB50: 0 | AC50: 0 | AD50: 0 | AE50: 0 | AF50: 0 | AG50: 0 | AH50: 0 | AI50: 0 | AJ50: 0 | AK50: 0 | AL50: 0 | AM50: 0 | AN50: 0 | AO50: 0 | AP50: 0 | AQ50: 0 | AR50: 0 | AS50: 0 | AT50: 0 | AU50: 0 | AV50: 0 | AW50: 0 | AX50: 0 | AY50: 0 | AZ50: 0 | BA50: 0 | BB50: 0 | BC50: 0 | BD50: 0 | BE50: 0 | BF50: 0 | BG50: 0 | BH50: 0 | BI50: 0 | BJ50: 0 | BK50: 0 | BL50: 0 | BM50: 0
D51: Interest Expense | K51: 47896.3857 | L51: 61192.38914 | O51: =O472 -> 13291.67888 | P51: =P472 -> 11298.5953 | Q51: =Q472 -> 9319.887809 | R51: 7709.208209 | S51: 6236.539069 | T51: 4867.377774 | U51: 3705.232167 | V51: 2646.594405 | W51: 1587.956643 | X51: 529.318881 | Y51: -1.000365966e-12 | Z51: -1.664503147e-12 | AA51: -1.664503147e-12 | AB51: -1.664503147e-12 | AC51: -1.664503147e-12 | AD51: -1.664503147e-12 | AE51: -1.664503147e-12 | AF51: -1.664503147e-12 | AG51: -1.664503147e-12 | AH51: -1.664503147e-12 | AI51: -1.664503147e-12 | AJ51: -1.664503147e-12 | AK51: -1.664503147e-12 | AL51: -1.664503147e-12 | AM51: -1.664503147e-12 | AN51: -1.664503147e-12 | AO51: -1.664503147e-12 | AP51: -1.664503147e-12 | AQ51: -1.664503147e-12 | AR51: -1.664503147e-12 | AS51: -1.664503147e-12 | AT51: -1.664503147e-12 | AU51: -1.664503147e-12 | AV51: -1.664503147e-12 | AW51: -1.664503147e-12 | AX51: -1.664503147e-12 | AY51: -1.664503147e-12 | AZ51: -1.664503147e-12 | BA51: -1.664503147e-12 | BB51: -1.664503147e-12 | BC51: -1.664503147e-12 | BD51: -1.664503147e-12 | BE51: -1.664503147e-12 | BF51: -1.664503147e-12 | BG51: -1.664503147e-12 | BH51: -1.664503147e-12 | BI51: -1.664503147e-12 | BJ51: -1.664503147e-12 | BK51: -1.664503147e-12 | BL51: -1.664503147e-12 | BM51: -1.664503147e-12
D52: Return on Equity | K52: 213386.2277 | L52: 272622.0964 | O52: =O501 -> 59216.60214 | P52: =P501 -> 50337.08899 | Q52: 41521.62366 | R52: 34345.78276 | S52: 27784.80101 | T52: 21684.96363 | U52: 16507.41498 | V52: 11791.0107 | W52: 7074.60642 | X52: 2358.20214 | Y52: -4.456793905e-12 | Z52: -7.415633609e-12 | AA52: -7.415633609e-12 | AB52: -7.415633609e-12 | AC52: -7.415633609e-12 | AD52: -7.415633609e-12 | AE52: -7.415633609e-12 | AF52: -7.415633609e-12 | AG52: -7.415633609e-12 | AH52: -7.415633609e-12 | AI52: -7.415633609e-12 | AJ52: -7.415633609e-12 | AK52: -7.415633609e-12 | AL52: -7.415633609e-12 | AM52: -7.415633609e-12 | AN52: -7.415633609e-12 | AO52: -7.415633609e-12 | AP52: -7.415633609e-12 | AQ52: -7.415633609e-12 | AR52: -7.415633609e-12 | AS52: -7.415633609e-12 | AT52: -7.415633609e-12 | AU52: -7.415633609e-12 | AV52: -7.415633609e-12 | AW52: -7.415633609e-12 | AX52: -7.415633609e-12 | AY52: -7.415633609e-12 | AZ52: -7.415633609e-12 | BA52: -7.415633609e-12 | BB52: -7.415633609e-12 | BC52: -7.415633609e-12 | BD52: -7.415633609e-12 | BE52: -7.415633609e-12 | BF52: -7.415633609e-12 | BG52: -7.415633609e-12 | BH52: -7.415633609e-12 | BI52: -7.415633609e-12 | BJ52: -7.415633609e-12 | BK52: -7.415633609e-12 | BL52: -7.415633609e-12 | BM52: -7.415633609e-12
D53: Income Tax | K53: 72443.55958 | L53: 92553.84146 | O53: =O530 -> 20103.74096 | P53: =P530 -> 17089.19055 | Q53: 14096.38406 | R53: 11660.22187 | S53: 9432.801307 | T53: 7361.936952 | U53: 5604.18502 | V53: 4002.9893 | W53: 2401.79358 | X53: 800.59786 | Y53: -1.513059293e-12 | Z53: -2.517570609e-12 | AA53: -2.517570609e-12 | AB53: -2.517570609e-12 | AC53: -2.517570609e-12 | AD53: -2.517570609e-12 | AE53: -2.517570609e-12 | AF53: -2.517570609e-12 | AG53: -2.517570609e-12 | AH53: -2.517570609e-12 | AI53: -2.517570609e-12 | AJ53: -2.517570609e-12 | AK53: -2.517570609e-12 | AL53: -2.517570609e-12 | AM53: -2.517570609e-12 | AN53: -2.517570609e-12 | AO53: -2.517570609e-12 | AP53: -2.517570609e-12 | AQ53: -2.517570609e-12 | AR53: -2.517570609e-12 | AS53: -2.517570609e-12 | AT53: -2.517570609e-12 | AU53: -2.517570609e-12 | AV53: -2.517570609e-12 | AW53: -2.517570609e-12 | AX53: -2.517570609e-12 | AY53: -2.517570609e-12 | AZ53: -2.517570609e-12 | BA53: -2.517570609e-12 | BB53: -2.517570609e-12 | BC53: -2.517570609e-12 | BD53: -2.517570609e-12 | BE53: -2.517570609e-12 | BF53: -2.517570609e-12 | BG53: -2.517570609e-12 | BH53: -2.517570609e-12 | BI53: -2.517570609e-12 | BJ53: -2.517570609e-12 | BK53: -2.517570609e-12 | BL53: -2.517570609e-12 | BM53: -2.517570609e-12
D54: AFUDC Perm Tax Difference | K54: 0 | L54: 0 | O54: =O1200 -> 0 | P54: =P1200 -> 0 | Q54: 0 | R54: 0 | S54: 0 | T54: 0 | U54: 0 | V54: 0 | W54: 0 | X54: 0 | Y54: 0 | Z54: 0 | AA54: 0 | AB54: 0 | AC54: 0 | AD54: 0 | AE54: 0 | AF54: 0 | AG54: 0 | AH54: 0 | AI54: 0 | AJ54: 0 | AK54: 0 | AL54: 0 | AM54: 0 | AN54: 0 | AO54: 0 | AP54: 0 | AQ54: 0 | AR54: 0 | AS54: 0 | AT54: 0 | AU54: 0 | AV54: 0 | AW54: 0 | AX54: 0 | AY54: 0 | AZ54: 0 | BA54: 0 | BB54: 0 | BC54: 0 | BD54: 0 | BE54: 0 | BF54: 0 | BG54: 0 | BH54: 0 | BI54: 0 | BJ54: 0 | BK54: 0 | BL54: 0 | BM54: 0
D55: ITC Normalization | K55: 0 | L55: 0 | O55: =O1349 -> 0 | P55: =P1349 -> 0 | Q55: 0 | R55: 0 | S55: 0 | T55: 0 | U55: 0 | V55: 0 | W55: 0 | X55: 0 | Y55: 0 | Z55: 0 | AA55: 0 | AB55: 0 | AC55: 0 | AD55: 0 | AE55: 0 | AF55: 0 | AG55: 0 | AH55: 0 | AI55: 0 | AJ55: 0 | AK55: 0 | AL55: 0 | AM55: 0 | AN55: 0 | AO55: 0 | AP55: 0 | AQ55: 0 | AR55: 0 | AS55: 0 | AT55: 0 | AU55: =AU1349 -> 0 | AV55: 0 | AW55: 0 | AX55: 0 | AY55: 0 | AZ55: 0 | BA55: 0 | BB55: 0 | BC55: 0 | BD55: 0 | BE55: 0 | BF55: 0 | BG55: 0 | BH55: 0 | BI55: 0 | BJ55: 0 | BK55: 0 | BL55: 0 | BM55: 0
D56: ="Total "&D46 -> Total Revenue Requirement - unfavorable/(favorable) | K56: 1168073.944 | L56: 1625264.327 | O56: =SUM(O47:O55) -> 220272.022 | P56: 204618.8748 | Q56: 189065.8955 | R56: 176077.2128 | S56: 164050.1414 | T56: 152744.2784 | U56: 142880.8322 | V56: 133738.5944 | W56: 124596.3566 | X56: 117220.1189 | Y56: 1.040520833e-10 | Z56: -1.159770737e-11 | AA56: -1.159770737e-11 | AB56: -1.159770737e-11 | AC56: -1.159770737e-11 | AD56: -1.159770737e-11 | AE56: -1.159770737e-11 | AF56: -1.159770737e-11 | AG56: -1.159770737e-11 | AH56: -1.159770737e-11 | AI56: -1.159770737e-11 | AJ56: -1.159770737e-11 | AK56: -1.159770737e-11 | AL56: -1.159770737e-11 | AM56: -1.159770737e-11 | AN56: -1.159770737e-11 | AO56: -1.159770737e-11 | AP56: -1.159770737e-11 | AQ56: -1.159770737e-11 | AR56: -1.159770737e-11 | AS56: -1.159770737e-11 | AT56: -1.159770737e-11 | AU56: =SUM(AU47:AU55) -> -1.159770737e-11 | AV56: -1.159770737e-11 | AW56: -1.159770737e-11 | AX56: -1.159770737e-11 | AY56: -1.159770737e-11 | AZ56: -1.159770737e-11 | BA56: -1.159770737e-11 | BB56: -1.159770737e-11 | BC56: -1.159770737e-11 | BD56: -1.159770737e-11 | BE56: -1.159770737e-11 | BF56: -1.159770737e-11 | BG56: -1.159770737e-11 | BH56: -1.159770737e-11 | BI56: -1.159770737e-11 | BJ56: -1.159770737e-11 | BK56: -1.159770737e-11 | BL56: -1.159770737e-11 | BM56: -1.159770737e-11
D57: check | K57: =K56-K42 -> 0 | L57: =L56-L42 -> 0 | O57: =O56-O42 -> 0 | P57: 0 | Q57: 0 | R57: 0 | S57: 0 | T57: 0 | U57: 0 | V57: 0 | W57: 0 | X57: 0 | Y57: 0 | Z57: 0 | AA57: 0 | AB57: 0 | AC57: 0 | AD57: 0 | AE57: 0 | AF57: 0 | AG57: 0 | AH57: 0 | AI57: 0 | AJ57: 0 | AK57: 0 | AL57: 0 | AM57: 0 | AN57: 0 | AO57: 0 | AP57: 0 | AQ57: 0 | AR57: 0 | AS57: 0 | AT57: 0 | AU57: =AU56-AU42 -> 0 | AV57: 0 | AW57: 0 | AX57: 0 | AY57: 0 | AZ57: 0 | BA57: 0 | BB57: 0 | BC57: 0 | BD57: 0 | BE57: 0 | BF57: 0 | BG57: 0 | BH57: 0 | BI57: 0 | BJ57: 0 | BK57: 0 | BL57: 0 | BM57: 0
D59: Cumulative CPVRR | K59: =BM59 -> 1168073.944 | O59: =SUMPRODUCT($O42:O42,$O$12:O$12) -> 205140.3798 | P59: =SUMPRODUCT($O42:P42,$O$12:P$12) -> 382612.1683 | Q59: =SUMPRODUCT($O42:Q42,$O$12:Q$12) -> 535329.6123 | R59: =SUMPRODUCT($O42:R42,$O$12:R$12) -> 667785.2423 | S59: =SUMPRODUCT($O42:S42,$O$12:S$12) -> 782715.8474 | T59: =SUMPRODUCT($O42:T42,$O$12:T$12) -> 882374.693 | U59: =SUMPRODUCT($O42:U42,$O$12:U$12) -> 969194.0748 | V59: =SUMPRODUCT($O42:V42,$O$12:V$12) -> 1044875.846 | W59: =SUMPRODUCT($O42:W42,$O$12:W$12) -> 1110540.506 | X59: =SUMPRODUCT($O42:X42,$O$12:X$12) -> 1168073.944 | Y59: =SUMPRODUCT($O42:Y42,$O$12:Y$12) -> 1168073.944 | Z59: =SUMPRODUCT($O42:Z42,$O$12:Z$12) -> 1168073.944 | AA59: =SUMPRODUCT($O42:AA42,$O$12:AA$12) -> 1168073.944 | AB59: =SUMPRODUCT($O42:AB42,$O$12:AB$12) -> 1168073.944 | AC59: =SUMPRODUCT($O42:AC42,$O$12:AC$12) -> 1168073.944 | AD59: =SUMPRODUCT($O42:AD42,$O$12:AD$12) -> 1168073.944 | AE59: =SUMPRODUCT($O42:AE42,$O$12:AE$12) -> 1168073.944 | AF59: =SUMPRODUCT($O42:AF42,$O$12:AF$12) -> 1168073.944 | AG59: =SUMPRODUCT($O42:AG42,$O$12:AG$12) -> 1168073.944 | AH59: =SUMPRODUCT($O42:AH42,$O$12:AH$12) -> 1168073.944 | AI59: =SUMPRODUCT($O42:AI42,$O$12:AI$12) -> 1168073.944 | AJ59: =SUMPRODUCT($O42:AJ42,$O$12:AJ$12) -> 1168073.944 | AK59: =SUMPRODUCT($O42:AK42,$O$12:AK$12) -> 1168073.944 | AL59: =SUMPRODUCT($O42:AL42,$O$12:AL$12) -> 1168073.944 | AM59: =SUMPRODUCT($O42:AM42,$O$12:AM$12) -> 1168073.944 | AN59: =SUMPRODUCT($O42:AN42,$O$12:AN$12) -> 1168073.944 | AO59: =SUMPRODUCT($O42:AO42,$O$12:AO$12) -> 1168073.944 | AP59: =SUMPRODUCT($O42:AP42,$O$12:AP$12) -> 1168073.944 | AQ59: =SUMPRODUCT($O42:AQ42,$O$12:AQ$12) -> 1168073.944 | AR59: =SUMPRODUCT($O42:AR42,$O$12:AR$12) -> 1168073.944 | AS59: =SUMPRODUCT($O42:AS42,$O$12:AS$12) -> 1168073.944 | AT59: =SUMPRODUCT($O42:AT42,$O$12:AT$12) -> 1168073.944 | AU59: =SUMPRODUCT($O42:AU42,$O$12:AU$12) -> 1168073.944 | AV59: =SUMPRODUCT($O42:AV42,$O$12:AV$12) -> 1168073.944 | AW59: =SUMPRODUCT($O42:AW42,$O$12:AW$12) -> 1168073.944 | AX59: =SUMPRODUCT($O42:AX42,$O$12:AX$12) -> 1168073.944 | AY59: =SUMPRODUCT($O42:AY42,$O$12:AY$12) -> 1168073.944 | AZ59: =SUMPRODUCT($O42:AZ42,$O$12:AZ$12) -> 1168073.944 | BA59: =SUMPRODUCT($O42:BA42,$O$12:BA$12) -> 1168073.944 | BB59: =SUMPRODUCT($O42:BB42,$O$12:BB$12) -> 1168073.944 | BC59: =SUMPRODUCT($O42:BC42,$O$12:BC$12) -> 1168073.944 | BD59: =SUMPRODUCT($O42:BD42,$O$12:BD$12) -> 1168073.944 | BE59: =SUMPRODUCT($O42:BE42,$O$12:BE$12) -> 1168073.944 | BF59: =SUMPRODUCT($O42:BF42,$O$12:BF$12) -> 1168073.944 | BG59: =SUMPRODUCT($O42:BG42,$O$12:BG$12) -> 1168073.944 | BH59: =SUMPRODUCT($O42:BH42,$O$12:BH$12) -> 1168073.944 | BI59: =SUMPRODUCT($O42:BI42,$O$12:BI$12) -> 1168073.944 | BJ59: =SUMPRODUCT($O42:BJ42,$O$12:BJ$12) -> 1168073.944 | BK59: =SUMPRODUCT($O42:BK42,$O$12:BK$12) -> 1168073.944 | BL59: =SUMPRODUCT($O42:BL42,$O$12:BL$12) -> 1168073.944 | BM59: =SUMPRODUCT($O42:BM42,$O$12:BM$12) -> 1168073.944
D61: CASH FLOWS
D63: Cash Flow, Unescalated | I63: Sign Flip
C64: =C63+1 -> 1 | D64: =Input!D12 -> Capital Costs | E64: =Input!E12 -> Capital | F64: =MATCH(E64,lookups!$C$97:$C$102,0) -> 4 | H64: =IF(Input!$E12=lookups!$C$97,"Sign Flip"," ... ") -> ... | I64: =IF(Input!$E12=lookups!$C$97,-1,1) -> 1 | K64: =SUMPRODUCT(O64:BM64,$O$12:$BM$12) -> 931304.7475 | L64: =SUM(O64:BM64) -> 1000000 | O64: =Input!S12*$I64 -> 1000000 | P64: =Input!T12*$I64 -> 0 | Q64: =Input!U12*$I64 -> 0 | R64: =Input!V12*$I64 -> 0 | S64: =Input!W12*$I64 -> 0 | T64: =Input!X12*$I64 -> 0 | U64: =Input!Y12*$I64 -> 0 | V64: =Input!Z12*$I64 -> 0 | W64: =Input!AA12*$I64 -> 0 | X64: =Input!AB12*$I64 -> 0 | Y64: =Input!AC12*$I64 -> 0 | Z64: =Input!AD12*$I64 -> 0 | AA64: =Input!AE12*$I64 -> 0 | AB64: =Input!AF12*$I64 -> 0 | AC64: =Input!AG12*$I64 -> 0 | AD64: =Input!AH12*$I64 -> 0 | AE64: =Input!AI12*$I64 -> 0 | AF64: =Input!AJ12*$I64 -> 0 | AG64: =Input!AK12*$I64 -> 0 | AH64: =Input!AL12*$I64 -> 0 | AI64: =Input!AM12*$I64 -> 0 | AJ64: =Input!AN12*$I64 -> 0 | AK64: =Input!AO12*$I64 -> 0 | AL64: =Input!AP12*$I64 -> 0 | AM64: =Input!AQ12*$I64 -> 0 | AN64: =Input!AR12*$I64 -> 0 | AO64: =Input!AS12*$I64 -> 0 | AP64: =Input!AT12*$I64 -> 0 | AQ64: =Input!AU12*$I64 -> 0 | AR64: =Input!AV12*$I64 -> 0 | AS64: =Input!AW12*$I64 -> 0 | AT64: =Input!AX12*$I64 -> 0 | AU64: =Input!AY12*$I64 -> 0 | AV64: =Input!AZ12*$I64 -> 0 | AW64: =Input!BA12*$I64 -> 0 | AX64: =Input!BB12*$I64 -> 0 | AY64: =Input!BC12*$I64 -> 0 | AZ64: =Input!BD12*$I64 -> 0 | BA64: =Input!BE12*$I64 -> 0 | BB64: =Input!BF12*$I64 -> 0 | BC64: =Input!BG12*$I64 -> 0 | BD64: =Input!BH12*$I64 -> 0 | BE64: =Input!BI12*$I64 -> 0 | BF64: =Input!BJ12*$I64 -> 0 | BG64: =Input!BK12*$I64 -> 0 | BH64: =Input!BL12*$I64 -> 0 | BI64: =Input!BM12*$I64 -> 0 | BJ64: =Input!BN12*$I64 -> 0 | BK64: =Input!BO12*$I64 -> 0 | BL64: =Input!BP12*$I64 -> 0 | BM64: =Input!BQ12*$I64 -> 0
C65: =C64+1 -> 2 | D65: =Input!D13 -> O&M | E65: =Input!E13 -> Operating Expense | F65: =MATCH(E65,lookups!$C$97:$C$102,0) -> 2 | H65: =IF(Input!$E13=lookups!$C$97,"Sign Flip"," ... ") -> ... | I65: =IF(Input!$E13=lookups!$C$97,-1,1) -> 1 | K65: =SUMPRODUCT(O65:BM65,$O$12:$BM$12) -> 69030.396 | L65: =SUM(O65:BM65) -> 100000 | O65: =Input!S13*$I65 -> 10000 | P65: =Input!T13*$I65 -> 10000 | Q65: =Input!U13*$I65 -> 10000 | R65: =Input!V13*$I65 -> 10000 | S65: =Input!W13*$I65 -> 10000 | T65: =Input!X13*$I65 -> 10000 | U65: =Input!Y13*$I65 -> 10000 | V65: =Input!Z13*$I65 -> 10000 | W65: =Input!AA13*$I65 -> 10000 | X65: =Input!AB13*$I65 -> 10000 | Y65: =Input!AC13*$I65 -> 0 | Z65: =Input!AD13*$I65 -> 0 | AA65: =Input!AE13*$I65 -> 0 | AB65: =Input!AF13*$I65 -> 0 | AC65: =Input!AG13*$I65 -> 0 | AD65: =Input!AH13*$I65 -> 0 | AE65: =Input!AI13*$I65 -> 0 | AF65: =Input!AJ13*$I65 -> 0 | AG65: =Input!AK13*$I65 -> 0 | AH65: =Input!AL13*$I65 -> 0 | AI65: =Input!AM13*$I65 -> 0 | AJ65: =Input!AN13*$I65 -> 0 | AK65: =Input!AO13*$I65 -> 0 | AL65: =Input!AP13*$I65 -> 0 | AM65: =Input!AQ13*$I65 -> 0 | AN65: =Input!AR13*$I65 -> 0 | AO65: =Input!AS13*$I65 -> 0 | AP65: =Input!AT13*$I65 -> 0 | AQ65: =Input!AU13*$I65 -> 0 | AR65: =Input!AV13*$I65 -> 0 | AS65: =Input!AW13*$I65 -> 0 | AT65: =Input!AX13*$I65 -> 0 | AU65: =Input!AY13*$I65 -> 0 | AV65: =Input!AZ13*$I65 -> 0 | AW65: =Input!BA13*$I65 -> 0 | AX65: =Input!BB13*$I65 -> 0 | AY65: =Input!BC13*$I65 -> 0 | AZ65: =Input!BD13*$I65 -> 0 | BA65: =Input!BE13*$I65 -> 0 | BB65: =Input!BF13*$I65 -> 0 | BC65: =Input!BG13*$I65 -> 0 | BD65: =Input!BH13*$I65 -> 0 | BE65: =Input!BI13*$I65 -> 0 | BF65: =Input!BJ13*$I65 -> 0 | BG65: =Input!BK13*$I65 -> 0 | BH65: =Input!BL13*$I65 -> 0 | BI65: =Input!BM13*$I65 -> 0 | BJ65: =Input!BN13*$I65 -> 0 | BK65: =Input!BO13*$I65 -> 0 | BL65: =Input!BP13*$I65 -> 0 | BM65: =Input!BQ13*$I65 -> 0
C66: 3 | D66: =Input!D14 -> … | E66: =Input!E14 -> Operating Expense | F66: =MATCH(E66,lookups!$C$97:$C$102,0) -> 2 | H66: =IF(Input!$E14=lookups!$C$97,"Sign Flip"," ... ") -> ... | I66: =IF(Input!$E14=lookups!$C$97,-1,1) -> 1 | K66: 0 | L66: 0 | O66: =Input!S14*$I66 -> 0 | P66: =Input!T14*$I66 -> 0 | Q66: =Input!U14*$I66 -> 0 | R66: =Input!V14*$I66 -> 0 | S66: =Input!W14*$I66 -> 0 | T66: =Input!X14*$I66 -> 0 | U66: =Input!Y14*$I66 -> 0 | V66: =Input!Z14*$I66 -> 0 | W66: =Input!AA14*$I66 -> 0 | X66: =Input!AB14*$I66 -> 0 | Y66: =Input!AC14*$I66 -> 0 | Z66: =Input!AD14*$I66 -> 0 | AA66: =Input!AE14*$I66 -> 0 | AB66: =Input!AF14*$I66 -> 0 | AC66: =Input!AG14*$I66 -> 0 | AD66: =Input!AH14*$I66 -> 0 | AE66: =Input!AI14*$I66 -> 0 | AF66: =Input!AJ14*$I66 -> 0 | AG66: =Input!AK14*$I66 -> 0 | AH66: =Input!AL14*$I66 -> 0 | AI66: =Input!AM14*$I66 -> 0 | AJ66: =Input!AN14*$I66 -> 0 | AK66: =Input!AO14*$I66 -> 0 | AL66: =Input!AP14*$I66 -> 0 | AM66: =Input!AQ14*$I66 -> 0 | AN66: =Input!AR14*$I66 -> 0 | AO66: =Input!AS14*$I66 -> 0 | AP66: =Input!AT14*$I66 -> 0 | AQ66: =Input!AU14*$I66 -> 0 | AR66: =Input!AV14*$I66 -> 0 | AS66: =Input!AW14*$I66 -> 0 | AT66: =Input!AX14*$I66 -> 0 | AU66: =Input!AY14*$I66 -> 0 | AV66: =Input!AZ14*$I66 -> 0 | AW66: =Input!BA14*$I66 -> 0 | AX66: =Input!BB14*$I66 -> 0 | AY66: =Input!BC14*$I66 -> 0 | AZ66: =Input!BD14*$I66 -> 0 | BA66: =Input!BE14*$I66 -> 0 | BB66: =Input!BF14*$I66 -> 0 | BC66: =Input!BG14*$I66 -> 0 | BD66: =Input!BH14*$I66 -> 0 | BE66: =Input!BI14*$I66 -> 0 | BF66: =Input!BJ14*$I66 -> 0 | BG66: =Input!BK14*$I66 -> 0 | BH66: =Input!BL14*$I66 -> 0 | BI66: =Input!BM14*$I66 -> 0 | BJ66: =Input!BN14*$I66 -> 0 | BK66: =Input!BO14*$I66 -> 0 | BL66: =Input!BP14*$I66 -> 0 | BM66: =Input!BQ14*$I66 -> 0
C67: 4 | D67: =Input!D15 -> … | E67: =Input!E15 -> Operating Savings | F67: =MATCH(E67,lookups!$C$97:$C$102,0) -> 1 | H67: =IF(Input!$E15=lookups!$C$97,"Sign Flip"," ... ") -> Sign Flip | I67: =IF(Input!$E15=lookups!$C$97,-1,1) -> -1 | K67: 0 | L67: 0 | O67: =Input!S15*$I67 -> 0 | P67: =Input!T15*$I67 -> 0 | Q67: =Input!U15*$I67 -> 0 | R67: =Input!V15*$I67 -> 0 | S67: =Input!W15*$I67 -> 0 | T67: =Input!X15*$I67 -> 0 | U67: =Input!Y15*$I67 -> 0 | V67: =Input!Z15*$I67 -> 0 | W67: =Input!AA15*$I67 -> 0 | X67: =Input!AB15*$I67 -> 0 | Y67: =Input!AC15*$I67 -> 0 | Z67: =Input!AD15*$I67 -> 0 | AA67: =Input!AE15*$I67 -> 0 | AB67: =Input!AF15*$I67 -> 0 | AC67: =Input!AG15*$I67 -> 0 | AD67: =Input!AH15*$I67 -> 0 | AE67: =Input!AI15*$I67 -> 0 | AF67: =Input!AJ15*$I67 -> 0 | AG67: =Input!AK15*$I67 -> 0 | AH67: =Input!AL15*$I67 -> 0 | AI67: =Input!AM15*$I67 -> 0 | AJ67: =Input!AN15*$I67 -> 0 | AK67: =Input!AO15*$I67 -> 0 | AL67: =Input!AP15*$I67 -> 0 | AM67: =Input!AQ15*$I67 -> 0 | AN67: =Input!AR15*$I67 -> 0 | AO67: =Input!AS15*$I67 -> 0 | AP67: =Input!AT15*$I67 -> 0 | AQ67: =Input!AU15*$I67 -> 0 | AR67: =Input!AV15*$I67 -> 0 | AS67: =Input!AW15*$I67 -> 0 | AT67: =Input!AX15*$I67 -> 0 | AU67: =Input!AY15*$I67 -> 0 | AV67: =Input!AZ15*$I67 -> 0 | AW67: =Input!BA15*$I67 -> 0 | AX67: =Input!BB15*$I67 -> 0 | AY67: =Input!BC15*$I67 -> 0 | AZ67: =Input!BD15*$I67 -> 0 | BA67: =Input!BE15*$I67 -> 0 | BB67: =Input!BF15*$I67 -> 0 | BC67: =Input!BG15*$I67 -> 0 | BD67: =Input!BH15*$I67 -> 0 | BE67: =Input!BI15*$I67 -> 0 | BF67: =Input!BJ15*$I67 -> 0 | BG67: =Input!BK15*$I67 -> 0 | BH67: =Input!BL15*$I67 -> 0 | BI67: =Input!BM15*$I67 -> 0 | BJ67: =Input!BN15*$I67 -> 0 | BK67: =Input!BO15*$I67 -> 0 | BL67: =Input!BP15*$I67 -> 0 | BM67: =Input!BQ15*$I67 -> 0
C68: 5 | D68: =Input!D16 -> … | E68: =Input!E16 -> Operating Expense | F68: =MATCH(E68,lookups!$C$97:$C$102,0) -> 2 | H68: =IF(Input!$E16=lookups!$C$97,"Sign Flip"," ... ") -> ... | I68: =IF(Input!$E16=lookups!$C$97,-1,1) -> 1 | K68: 0 | L68: 0 | O68: =Input!S16*$I68 -> 0 | P68: =Input!T16*$I68 -> 0 | Q68: =Input!U16*$I68 -> 0 | R68: =Input!V16*$I68 -> 0 | S68: =Input!W16*$I68 -> 0 | T68: =Input!X16*$I68 -> 0 | U68: =Input!Y16*$I68 -> 0 | V68: =Input!Z16*$I68 -> 0 | W68: =Input!AA16*$I68 -> 0 | X68: =Input!AB16*$I68 -> 0 | Y68: =Input!AC16*$I68 -> 0 | Z68: =Input!AD16*$I68 -> 0 | AA68: =Input!AE16*$I68 -> 0 | AB68: =Input!AF16*$I68 -> 0 | AC68: =Input!AG16*$I68 -> 0 | AD68: =Input!AH16*$I68 -> 0 | AE68: =Input!AI16*$I68 -> 0 | AF68: =Input!AJ16*$I68 -> 0 | AG68: =Input!AK16*$I68 -> 0 | AH68: =Input!AL16*$I68 -> 0 | AI68: =Input!AM16*$I68 -> 0 | AJ68: =Input!AN16*$I68 -> 0 | AK68: =Input!AO16*$I68 -> 0 | AL68: =Input!AP16*$I68 -> 0 | AM68: =Input!AQ16*$I68 -> 0 | AN68: =Input!AR16*$I68 -> 0 | AO68: =Input!AS16*$I68 -> 0 | AP68: =Input!AT16*$I68 -> 0 | AQ68: =Input!AU16*$I68 -> 0 | AR68: =Input!AV16*$I68 -> 0 | AS68: =Input!AW16*$I68 -> 0 | AT68: =Input!AX16*$I68 -> 0 | AU68: =Input!AY16*$I68 -> 0 | AV68: =Input!AZ16*$I68 -> 0 | AW68: =Input!BA16*$I68 -> 0 | AX68: =Input!BB16*$I68 -> 0 | AY68: =Input!BC16*$I68 -> 0 | AZ68: =Input!BD16*$I68 -> 0 | BA68: =Input!BE16*$I68 -> 0 | BB68: =Input!BF16*$I68 -> 0 | BC68: =Input!BG16*$I68 -> 0 | BD68: =Input!BH16*$I68 -> 0 | BE68: =Input!BI16*$I68 -> 0 | BF68: =Input!BJ16*$I68 -> 0 | BG68: =Input!BK16*$I68 -> 0 | BH68: =Input!BL16*$I68 -> 0 | BI68: =Input!BM16*$I68 -> 0 | BJ68: =Input!BN16*$I68 -> 0 | BK68: =Input!BO16*$I68 -> 0 | BL68: =Input!BP16*$I68 -> 0 | BM68: =Input!BQ16*$I68 -> 0
C69: 6 | D69: =Input!D17 -> … | E69: =Input!E17 -> Operating Expense | F69: =MATCH(E69,lookups!$C$97:$C$102,0) -> 2 | H69: =IF(Input!$E17=lookups!$C$97,"Sign Flip"," ... ") -> ... | I69: =IF(Input!$E17=lookups!$C$97,-1,1) -> 1 | K69: 0 | L69: 0 | O69: =Input!S17*$I69 -> 0 | P69: =Input!T17*$I69 -> 0 | Q69: =Input!U17*$I69 -> 0 | R69: =Input!V17*$I69 -> 0 | S69: =Input!W17*$I69 -> 0 | T69: =Input!X17*$I69 -> 0 | U69: =Input!Y17*$I69 -> 0 | V69: =Input!Z17*$I69 -> 0 | W69: =Input!AA17*$I69 -> 0 | X69: =Input!AB17*$I69 -> 0 | Y69: =Input!AC17*$I69 -> 0 | Z69: =Input!AD17*$I69 -> 0 | AA69: =Input!AE17*$I69 -> 0 | AB69: =Input!AF17*$I69 -> 0 | AC69: =Input!AG17*$I69 -> 0 | AD69: =Input!AH17*$I69 -> 0 | AE69: =Input!AI17*$I69 -> 0 | AF69: =Input!AJ17*$I69 -> 0 | AG69: =Input!AK17*$I69 -> 0 | AH69: =Input!AL17*$I69 -> 0 | AI69: =Input!AM17*$I69 -> 0 | AJ69: =Input!AN17*$I69 -> 0 | AK69: =Input!AO17*$I69 -> 0 | AL69: =Input!AP17*$I69 -> 0 | AM69: =Input!AQ17*$I69 -> 0 | AN69: =Input!AR17*$I69 -> 0 | AO69: =Input!AS17*$I69 -> 0 | AP69: =Input!AT17*$I69 -> 0 | AQ69: =Input!AU17*$I69 -> 0 | AR69: =Input!AV17*$I69 -> 0 | AS69: =Input!AW17*$I69 -> 0 | AT69: =Input!AX17*$I69 -> 0 | AU69: =Input!AY17*$I69 -> 0 | AV69: =Input!AZ17*$I69 -> 0 | AW69: =Input!BA17*$I69 -> 0 | AX69: =Input!BB17*$I69 -> 0 | AY69: =Input!BC17*$I69 -> 0 | AZ69: =Input!BD17*$I69 -> 0 | BA69: =Input!BE17*$I69 -> 0 | BB69: =Input!BF17*$I69 -> 0 | BC69: =Input!BG17*$I69 -> 0 | BD69: =Input!BH17*$I69 -> 0 | BE69: =Input!BI17*$I69 -> 0 | BF69: =Input!BJ17*$I69 -> 0 | BG69: =Input!BK17*$I69 -> 0 | BH69: =Input!BL17*$I69 -> 0 | BI69: =Input!BM17*$I69 -> 0 | BJ69: =Input!BN17*$I69 -> 0 | BK69: =Input!BO17*$I69 -> 0 | BL69: =Input!BP17*$I69 -> 0 | BM69: =Input!BQ17*$I69 -> 0
C70: 7 | D70: =Input!D18 -> … | E70: =Input!E18 -> Operating Expense | F70: =MATCH(E70,lookups!$C$97:$C$102,0) -> 2 | H70: =IF(Input!$E18=lookups!$C$97,"Sign Flip"," ... ") -> ... | I70: =IF(Input!$E18=lookups!$C$97,-1,1) -> 1 | K70: 0 | L70: 0 | O70: =Input!S18*$I70 -> 0 | P70: =Input!T18*$I70 -> 0 | Q70: =Input!U18*$I70 -> 0 | R70: =Input!V18*$I70 -> 0 | S70: =Input!W18*$I70 -> 0 | T70: =Input!X18*$I70 -> 0 | U70: =Input!Y18*$I70 -> 0 | V70: =Input!Z18*$I70 -> 0 | W70: =Input!AA18*$I70 -> 0 | X70: =Input!AB18*$I70 -> 0 | Y70: =Input!AC18*$I70 -> 0 | Z70: =Input!AD18*$I70 -> 0 | AA70: =Input!AE18*$I70 -> 0 | AB70: =Input!AF18*$I70 -> 0 | AC70: =Input!AG18*$I70 -> 0 | AD70: =Input!AH18*$I70 -> 0 | AE70: =Input!AI18*$I70 -> 0 | AF70: =Input!AJ18*$I70 -> 0 | AG70: =Input!AK18*$I70 -> 0 | AH70: =Input!AL18*$I70 -> 0 | AI70: =Input!AM18*$I70 -> 0 | AJ70: =Input!AN18*$I70 -> 0 | AK70: =Input!AO18*$I70 -> 0 | AL70: =Input!AP18*$I70 -> 0 | AM70: =Input!AQ18*$I70 -> 0 | AN70: =Input!AR18*$I70 -> 0 | AO70: =Input!AS18*$I70 -> 0 | AP70: =Input!AT18*$I70 -> 0 | AQ70: =Input!AU18*$I70 -> 0 | AR70: =Input!AV18*$I70 -> 0 | AS70: =Input!AW18*$I70 -> 0 | AT70: =Input!AX18*$I70 -> 0 | AU70: =Input!AY18*$I70 -> 0 | AV70: =Input!AZ18*$I70 -> 0 | AW70: =Input!BA18*$I70 -> 0 | AX70: =Input!BB18*$I70 -> 0 | AY70: =Input!BC18*$I70 -> 0 | AZ70: =Input!BD18*$I70 -> 0 | BA70: =Input!BE18*$I70 -> 0 | BB70: =Input!BF18*$I70 -> 0 | BC70: =Input!BG18*$I70 -> 0 | BD70: =Input!BH18*$I70 -> 0 | BE70: =Input!BI18*$I70 -> 0 | BF70: =Input!BJ18*$I70 -> 0 | BG70: =Input!BK18*$I70 -> 0 | BH70: =Input!BL18*$I70 -> 0 | BI70: =Input!BM18*$I70 -> 0 | BJ70: =Input!BN18*$I70 -> 0 | BK70: =Input!BO18*$I70 -> 0 | BL70: =Input!BP18*$I70 -> 0 | BM70: =Input!BQ18*$I70 -> 0
C71: 8 | D71: =Input!D19 -> … | E71: =Input!E19 -> Operating Expense | F71: =MATCH(E71,lookups!$C$97:$C$102,0) -> 2 | H71: =IF(Input!$E19=lookups!$C$97,"Sign Flip"," ... ") -> ... | I71: =IF(Input!$E19=lookups!$C$97,-1,1) -> 1 | K71: 0 | L71: 0 | O71: =Input!S19*$I71 -> 0 | P71: =Input!T19*$I71 -> 0 | Q71: =Input!U19*$I71 -> 0 | R71: =Input!V19*$I71 -> 0 | S71: =Input!W19*$I71 -> 0 | T71: =Input!X19*$I71 -> 0 | U71: =Input!Y19*$I71 -> 0 | V71: =Input!Z19*$I71 -> 0 | W71: =Input!AA19*$I71 -> 0 | X71: =Input!AB19*$I71 -> 0 | Y71: =Input!AC19*$I71 -> 0 | Z71: =Input!AD19*$I71 -> 0 | AA71: =Input!AE19*$I71 -> 0 | AB71: =Input!AF19*$I71 -> 0 | AC71: =Input!AG19*$I71 -> 0 | AD71: =Input!AH19*$I71 -> 0 | AE71: =Input!AI19*$I71 -> 0 | AF71: =Input!AJ19*$I71 -> 0 | AG71: =Input!AK19*$I71 -> 0 | AH71: =Input!AL19*$I71 -> 0 | AI71: =Input!AM19*$I71 -> 0 | AJ71: =Input!AN19*$I71 -> 0 | AK71: =Input!AO19*$I71 -> 0 | AL71: =Input!AP19*$I71 -> 0 | AM71: =Input!AQ19*$I71 -> 0 | AN71: =Input!AR19*$I71 -> 0 | AO71: =Input!AS19*$I71 -> 0 | AP71: =Input!AT19*$I71 -> 0 | AQ71: =Input!AU19*$I71 -> 0 | AR71: =Input!AV19*$I71 -> 0 | AS71: =Input!AW19*$I71 -> 0 | AT71: =Input!AX19*$I71 -> 0 | AU71: =Input!AY19*$I71 -> 0 | AV71: =Input!AZ19*$I71 -> 0 | AW71: =Input!BA19*$I71 -> 0 | AX71: =Input!BB19*$I71 -> 0 | AY71: =Input!BC19*$I71 -> 0 | AZ71: =Input!BD19*$I71 -> 0 | BA71: =Input!BE19*$I71 -> 0 | BB71: =Input!BF19*$I71 -> 0 | BC71: =Input!BG19*$I71 -> 0 | BD71: =Input!BH19*$I71 -> 0 | BE71: =Input!BI19*$I71 -> 0 | BF71: =Input!BJ19*$I71 -> 0 | BG71: =Input!BK19*$I71 -> 0 | BH71: =Input!BL19*$I71 -> 0 | BI71: =Input!BM19*$I71 -> 0 | BJ71: =Input!BN19*$I71 -> 0 | BK71: =Input!BO19*$I71 -> 0 | BL71: =Input!BP19*$I71 -> 0 | BM71: =Input!BQ19*$I71 -> 0
C72: 9 | D72: =Input!D20 -> … | E72: =Input!E20 -> Operating Expense | F72: =MATCH(E72,lookups!$C$97:$C$102,0) -> 2 | H72: =IF(Input!$E20=lookups!$C$97,"Sign Flip"," ... ") -> ... | I72: =IF(Input!$E20=lookups!$C$97,-1,1) -> 1 | K72: 0 | L72: 0 | O72: =Input!S20*$I72 -> 0 | P72: =Input!T20*$I72 -> 0 | Q72: =Input!U20*$I72 -> 0 | R72: =Input!V20*$I72 -> 0 | S72: =Input!W20*$I72 -> 0 | T72: =Input!X20*$I72 -> 0 | U72: =Input!Y20*$I72 -> 0 | V72: =Input!Z20*$I72 -> 0 | W72: =Input!AA20*$I72 -> 0 | X72: =Input!AB20*$I72 -> 0 | Y72: =Input!AC20*$I72 -> 0 | Z72: =Input!AD20*$I72 -> 0 | AA72: =Input!AE20*$I72 -> 0 | AB72: =Input!AF20*$I72 -> 0 | AC72: =Input!AG20*$I72 -> 0 | AD72: =Input!AH20*$I72 -> 0 | AE72: =Input!AI20*$I72 -> 0 | AF72: =Input!AJ20*$I72 -> 0 | AG72: =Input!AK20*$I72 -> 0 | AH72: =Input!AL20*$I72 -> 0 | AI72: =Input!AM20*$I72 -> 0 | AJ72: =Input!AN20*$I72 -> 0 | AK72: =Input!AO20*$I72 -> 0 | AL72: =Input!AP20*$I72 -> 0 | AM72: =Input!AQ20*$I72 -> 0 | AN72: =Input!AR20*$I72 -> 0 | AO72: =Input!AS20*$I72 -> 0 | AP72: =Input!AT20*$I72 -> 0 | AQ72: =Input!AU20*$I72 -> 0 | AR72: =Input!AV20*$I72 -> 0 | AS72: =Input!AW20*$I72 -> 0 | AT72: =Input!AX20*$I72 -> 0 | AU72: =Input!AY20*$I72 -> 0 | AV72: =Input!AZ20*$I72 -> 0 | AW72: =Input!BA20*$I72 -> 0 | AX72: =Input!BB20*$I72 -> 0 | AY72: =Input!BC20*$I72 -> 0 | AZ72: =Input!BD20*$I72 -> 0 | BA72: =Input!BE20*$I72 -> 0 | BB72: =Input!BF20*$I72 -> 0 | BC72: =Input!BG20*$I72 -> 0 | BD72: =Input!BH20*$I72 -> 0 | BE72: =Input!BI20*$I72 -> 0 | BF72: =Input!BJ20*$I72 -> 0 | BG72: =Input!BK20*$I72 -> 0 | BH72: =Input!BL20*$I72 -> 0 | BI72: =Input!BM20*$I72 -> 0 | BJ72: =Input!BN20*$I72 -> 0 | BK72: =Input!BO20*$I72 -> 0 | BL72: =Input!BP20*$I72 -> 0 | BM72: =Input!BQ20*$I72 -> 0
C73: 10 | D73: =Input!D21 -> … | E73: =Input!E21 -> Operating Expense | F73: =MATCH(E73,lookups!$C$97:$C$102,0) -> 2 | H73: =IF(Input!$E21=lookups!$C$97,"Sign Flip"," ... ") -> ... | I73: =IF(Input!$E21=lookups!$C$97,-1,1) -> 1 | K73: 0 | L73: 0 | O73: =Input!S21*$I73 -> 0 | P73: =Input!T21*$I73 -> 0 | Q73: =Input!U21*$I73 -> 0 | R73: =Input!V21*$I73 -> 0 | S73: =Input!W21*$I73 -> 0 | T73: =Input!X21*$I73 -> 0 | U73: =Input!Y21*$I73 -> 0 | V73: =Input!Z21*$I73 -> 0 | W73: =Input!AA21*$I73 -> 0 | X73: =Input!AB21*$I73 -> 0 | Y73: =Input!AC21*$I73 -> 0 | Z73: =Input!AD21*$I73 -> 0 | AA73: =Input!AE21*$I73 -> 0 | AB73: =Input!AF21*$I73 -> 0 | AC73: =Input!AG21*$I73 -> 0 | AD73: =Input!AH21*$I73 -> 0 | AE73: =Input!AI21*$I73 -> 0 | AF73: =Input!AJ21*$I73 -> 0 | AG73: =Input!AK21*$I73 -> 0 | AH73: =Input!AL21*$I73 -> 0 | AI73: =Input!AM21*$I73 -> 0 | AJ73: =Input!AN21*$I73 -> 0 | AK73: =Input!AO21*$I73 -> 0 | AL73: =Input!AP21*$I73 -> 0 | AM73: =Input!AQ21*$I73 -> 0 | AN73: =Input!AR21*$I73 -> 0 | AO73: =Input!AS21*$I73 -> 0 | AP73: =Input!AT21*$I73 -> 0 | AQ73: =Input!AU21*$I73 -> 0 | AR73: =Input!AV21*$I73 -> 0 | AS73: =Input!AW21*$I73 -> 0 | AT73: =Input!AX21*$I73 -> 0 | AU73: =Input!AY21*$I73 -> 0 | AV73: =Input!AZ21*$I73 -> 0 | AW73: =Input!BA21*$I73 -> 0 | AX73: =Input!BB21*$I73 -> 0 | AY73: =Input!BC21*$I73 -> 0 | AZ73: =Input!BD21*$I73 -> 0 | BA73: =Input!BE21*$I73 -> 0 | BB73: =Input!BF21*$I73 -> 0 | BC73: =Input!BG21*$I73 -> 0 | BD73: =Input!BH21*$I73 -> 0 | BE73: =Input!BI21*$I73 -> 0 | BF73: =Input!BJ21*$I73 -> 0 | BG73: =Input!BK21*$I73 -> 0 | BH73: =Input!BL21*$I73 -> 0 | BI73: =Input!BM21*$I73 -> 0 | BJ73: =Input!BN21*$I73 -> 0 | BK73: =Input!BO21*$I73 -> 0 | BL73: =Input!BP21*$I73 -> 0 | BM73: =Input!BQ21*$I73 -> 0
C74: 11 | D74: =Input!D22 -> … | E74: =Input!E22 -> Operating Expense | F74: =MATCH(E74,lookups!$C$97:$C$102,0) -> 2 | H74: =IF(Input!$E22=lookups!$C$97,"Sign Flip"," ... ") -> ... | I74: =IF(Input!$E22=lookups!$C$97,-1,1) -> 1 | K74: 0 | L74: 0 | O74: =Input!S22*$I74 -> 0 | P74: =Input!T22*$I74 -> 0 | Q74: =Input!U22*$I74 -> 0 | R74: =Input!V22*$I74 -> 0 | S74: =Input!W22*$I74 -> 0 | T74: =Input!X22*$I74 -> 0 | U74: =Input!Y22*$I74 -> 0 | V74: =Input!Z22*$I74 -> 0 | W74: =Input!AA22*$I74 -> 0 | X74: =Input!AB22*$I74 -> 0 | Y74: =Input!AC22*$I74 -> 0 | Z74: =Input!AD22*$I74 -> 0 | AA74: =Input!AE22*$I74 -> 0 | AB74: =Input!AF22*$I74 -> 0 | AC74: =Input!AG22*$I74 -> 0 | AD74: =Input!AH22*$I74 -> 0 | AE74: =Input!AI22*$I74 -> 0 | AF74: =Input!AJ22*$I74 -> 0 | AG74: =Input!AK22*$I74 -> 0 | AH74: =Input!AL22*$I74 -> 0 | AI74: =Input!AM22*$I74 -> 0 | AJ74: =Input!AN22*$I74 -> 0 | AK74: =Input!AO22*$I74 -> 0 | AL74: =Input!AP22*$I74 -> 0 | AM74: =Input!AQ22*$I74 -> 0 | AN74: =Input!AR22*$I74 -> 0 | AO74: =Input!AS22*$I74 -> 0 | AP74: =Input!AT22*$I74 -> 0 | AQ74: =Input!AU22*$I74 -> 0 | AR74: =Input!AV22*$I74 -> 0 | AS74: =Input!AW22*$I74 -> 0 | AT74: =Input!AX22*$I74 -> 0 | AU74: =Input!AY22*$I74 -> 0 | AV74: =Input!AZ22*$I74 -> 0 | AW74: =Input!BA22*$I74 -> 0 | AX74: =Input!BB22*$I74 -> 0 | AY74: =Input!BC22*$I74 -> 0 | AZ74: =Input!BD22*$I74 -> 0 | BA74: =Input!BE22*$I74 -> 0 | BB74: =Input!BF22*$I74 -> 0 | BC74: =Input!BG22*$I74 -> 0 | BD74: =Input!BH22*$I74 -> 0 | BE74: =Input!BI22*$I74 -> 0 | BF74: =Input!BJ22*$I74 -> 0 | BG74: =Input!BK22*$I74 -> 0 | BH74: =Input!BL22*$I74 -> 0 | BI74: =Input!BM22*$I74 -> 0 | BJ74: =Input!BN22*$I74 -> 0 | BK74: =Input!BO22*$I74 -> 0 | BL74: =Input!BP22*$I74 -> 0 | BM74: =Input!BQ22*$I74 -> 0
C75: 12 | D75: =Input!D23 -> … | E75: =Input!E23 -> Operating Expense | F75: =MATCH(E75,lookups!$C$97:$C$102,0) -> 2 | H75: =IF(Input!$E23=lookups!$C$97,"Sign Flip"," ... ") -> ... | I75: =IF(Input!$E23=lookups!$C$97,-1,1) -> 1 | K75: 0 | L75: 0 | O75: =Input!S23*$I75 -> 0 | P75: =Input!T23*$I75 -> 0 | Q75: =Input!U23*$I75 -> 0 | R75: =Input!V23*$I75 -> 0 | S75: =Input!W23*$I75 -> 0 | T75: =Input!X23*$I75 -> 0 | U75: =Input!Y23*$I75 -> 0 | V75: =Input!Z23*$I75 -> 0 | W75: =Input!AA23*$I75 -> 0 | X75: =Input!AB23*$I75 -> 0 | Y75: =Input!AC23*$I75 -> 0 | Z75: =Input!AD23*$I75 -> 0 | AA75: =Input!AE23*$I75 -> 0 | AB75: =Input!AF23*$I75 -> 0 | AC75: =Input!AG23*$I75 -> 0 | AD75: =Input!AH23*$I75 -> 0 | AE75: =Input!AI23*$I75 -> 0 | AF75: =Input!AJ23*$I75 -> 0 | AG75: =Input!AK23*$I75 -> 0 | AH75: =Input!AL23*$I75 -> 0 | AI75: =Input!AM23*$I75 -> 0 | AJ75: =Input!AN23*$I75 -> 0 | AK75: =Input!AO23*$I75 -> 0 | AL75: =Input!AP23*$I75 -> 0 | AM75: =Input!AQ23*$I75 -> 0 | AN75: =Input!AR23*$I75 -> 0 | AO75: =Input!AS23*$I75 -> 0 | AP75: =Input!AT23*$I75 -> 0 | AQ75: =Input!AU23*$I75 -> 0 | AR75: =Input!AV23*$I75 -> 0 | AS75: =Input!AW23*$I75 -> 0 | AT75: =Input!AX23*$I75 -> 0 | AU75: =Input!AY23*$I75 -> 0 | AV75: =Input!AZ23*$I75 -> 0 | AW75: =Input!BA23*$I75 -> 0 | AX75: =Input!BB23*$I75 -> 0 | AY75: =Input!BC23*$I75 -> 0 | AZ75: =Input!BD23*$I75 -> 0 | BA75: =Input!BE23*$I75 -> 0 | BB75: =Input!BF23*$I75 -> 0 | BC75: =Input!BG23*$I75 -> 0 | BD75: =Input!BH23*$I75 -> 0 | BE75: =Input!BI23*$I75 -> 0 | BF75: =Input!BJ23*$I75 -> 0 | BG75: =Input!BK23*$I75 -> 0 | BH75: =Input!BL23*$I75 -> 0 | BI75: =Input!BM23*$I75 -> 0 | BJ75: =Input!BN23*$I75 -> 0 | BK75: =Input!BO23*$I75 -> 0 | BL75: =Input!BP23*$I75 -> 0 | BM75: =Input!BQ23*$I75 -> 0
C76: 13 | D76: =Input!D24 -> … | E76: =Input!E24 -> Operating Expense | F76: =MATCH(E76,lookups!$C$97:$C$102,0) -> 2 | H76: =IF(Input!$E24=lookups!$C$97,"Sign Flip"," ... ") -> ... | I76: =IF(Input!$E24=lookups!$C$97,-1,1) -> 1 | K76: 0 | L76: 0 | O76: =Input!S24*$I76 -> 0 | P76: =Input!T24*$I76 -> 0 | Q76: =Input!U24*$I76 -> 0 | R76: =Input!V24*$I76 -> 0 | S76: =Input!W24*$I76 -> 0 | T76: =Input!X24*$I76 -> 0 | U76: =Input!Y24*$I76 -> 0 | V76: =Input!Z24*$I76 -> 0 | W76: =Input!AA24*$I76 -> 0 | X76: =Input!AB24*$I76 -> 0 | Y76: =Input!AC24*$I76 -> 0 | Z76: =Input!AD24*$I76 -> 0 | AA76: =Input!AE24*$I76 -> 0 | AB76: =Input!AF24*$I76 -> 0 | AC76: =Input!AG24*$I76 -> 0 | AD76: =Input!AH24*$I76 -> 0 | AE76: =Input!AI24*$I76 -> 0 | AF76: =Input!AJ24*$I76 -> 0 | AG76: =Input!AK24*$I76 -> 0 | AH76: =Input!AL24*$I76 -> 0 | AI76: =Input!AM24*$I76 -> 0 | AJ76: =Input!AN24*$I76 -> 0 | AK76: =Input!AO24*$I76 -> 0 | AL76: =Input!AP24*$I76 -> 0 | AM76: =Input!AQ24*$I76 -> 0 | AN76: =Input!AR24*$I76 -> 0 | AO76: =Input!AS24*$I76 -> 0 | AP76: =Input!AT24*$I76 -> 0 | AQ76: =Input!AU24*$I76 -> 0 | AR76: =Input!AV24*$I76 -> 0 | AS76: =Input!AW24*$I76 -> 0 | AT76: =Input!AX24*$I76 -> 0 | AU76: =Input!AY24*$I76 -> 0 | AV76: =Input!AZ24*$I76 -> 0 | AW76: =Input!BA24*$I76 -> 0 | AX76: =Input!BB24*$I76 -> 0 | AY76: =Input!BC24*$I76 -> 0 | AZ76: =Input!BD24*$I76 -> 0 | BA76: =Input!BE24*$I76 -> 0 | BB76: =Input!BF24*$I76 -> 0 | BC76: =Input!BG24*$I76 -> 0 | BD76: =Input!BH24*$I76 -> 0 | BE76: =Input!BI24*$I76 -> 0 | BF76: =Input!BJ24*$I76 -> 0 | BG76: =Input!BK24*$I76 -> 0 | BH76: =Input!BL24*$I76 -> 0 | BI76: =Input!BM24*$I76 -> 0 | BJ76: =Input!BN24*$I76 -> 0 | BK76: =Input!BO24*$I76 -> 0 | BL76: =Input!BP24*$I76 -> 0 | BM76: =Input!BQ24*$I76 -> 0
C77: 14 | D77: =Input!D25 -> … | E77: =Input!E25 -> Operating Expense | F77: =MATCH(E77,lookups!$C$97:$C$102,0) -> 2 | H77: =IF(Input!$E25=lookups!$C$97,"Sign Flip"," ... ") -> ... | I77: =IF(Input!$E25=lookups!$C$97,-1,1) -> 1 | K77: 0 | L77: 0 | O77: =Input!S25*$I77 -> 0 | P77: =Input!T25*$I77 -> 0 | Q77: =Input!U25*$I77 -> 0 | R77: =Input!V25*$I77 -> 0 | S77: =Input!W25*$I77 -> 0 | T77: =Input!X25*$I77 -> 0 | U77: =Input!Y25*$I77 -> 0 | V77: =Input!Z25*$I77 -> 0 | W77: =Input!AA25*$I77 -> 0 | X77: =Input!AB25*$I77 -> 0 | Y77: =Input!AC25*$I77 -> 0 | Z77: =Input!AD25*$I77 -> 0 | AA77: =Input!AE25*$I77 -> 0 | AB77: =Input!AF25*$I77 -> 0 | AC77: =Input!AG25*$I77 -> 0 | AD77: =Input!AH25*$I77 -> 0 | AE77: =Input!AI25*$I77 -> 0 | AF77: =Input!AJ25*$I77 -> 0 | AG77: =Input!AK25*$I77 -> 0 | AH77: =Input!AL25*$I77 -> 0 | AI77: =Input!AM25*$I77 -> 0 | AJ77: =Input!AN25*$I77 -> 0 | AK77: =Input!AO25*$I77 -> 0 | AL77: =Input!AP25*$I77 -> 0 | AM77: =Input!AQ25*$I77 -> 0 | AN77: =Input!AR25*$I77 -> 0 | AO77: =Input!AS25*$I77 -> 0 | AP77: =Input!AT25*$I77 -> 0 | AQ77: =Input!AU25*$I77 -> 0 | AR77: =Input!AV25*$I77 -> 0 | AS77: =Input!AW25*$I77 -> 0 | AT77: =Input!AX25*$I77 -> 0 | AU77: =Input!AY25*$I77 -> 0 | AV77: =Input!AZ25*$I77 -> 0 | AW77: =Input!BA25*$I77 -> 0 | AX77: =Input!BB25*$I77 -> 0 | AY77: =Input!BC25*$I77 -> 0 | AZ77: =Input!BD25*$I77 -> 0 | BA77: =Input!BE25*$I77 -> 0 | BB77: =Input!BF25*$I77 -> 0 | BC77: =Input!BG25*$I77 -> 0 | BD77: =Input!BH25*$I77 -> 0 | BE77: =Input!BI25*$I77 -> 0 | BF77: =Input!BJ25*$I77 -> 0 | BG77: =Input!BK25*$I77 -> 0 | BH77: =Input!BL25*$I77 -> 0 | BI77: =Input!BM25*$I77 -> 0 | BJ77: =Input!BN25*$I77 -> 0 | BK77: =Input!BO25*$I77 -> 0 | BL77: =Input!BP25*$I77 -> 0 | BM77: =Input!BQ25*$I77 -> 0
C78: 15 | D78: =Input!D26 -> … | E78: =Input!E26 -> Operating Expense | F78: =MATCH(E78,lookups!$C$97:$C$102,0) -> 2 | H78: =IF(Input!$E26=lookups!$C$97,"Sign Flip"," ... ") -> ... | I78: =IF(Input!$E26=lookups!$C$97,-1,1) -> 1 | K78: 0 | L78: 0 | O78: =Input!S26*$I78 -> 0 | P78: =Input!T26*$I78 -> 0 | Q78: =Input!U26*$I78 -> 0 | R78: =Input!V26*$I78 -> 0 | S78: =Input!W26*$I78 -> 0 | T78: =Input!X26*$I78 -> 0 | U78: =Input!Y26*$I78 -> 0 | V78: =Input!Z26*$I78 -> 0 | W78: =Input!AA26*$I78 -> 0 | X78: =Input!AB26*$I78 -> 0 | Y78: =Input!AC26*$I78 -> 0 | Z78: =Input!AD26*$I78 -> 0 | AA78: =Input!AE26*$I78 -> 0 | AB78: =Input!AF26*$I78 -> 0 | AC78: =Input!AG26*$I78 -> 0 | AD78: =Input!AH26*$I78 -> 0 | AE78: =Input!AI26*$I78 -> 0 | AF78: =Input!AJ26*$I78 -> 0 | AG78: =Input!AK26*$I78 -> 0 | AH78: =Input!AL26*$I78 -> 0 | AI78: =Input!AM26*$I78 -> 0 | AJ78: =Input!AN26*$I78 -> 0 | AK78: =Input!AO26*$I78 -> 0 | AL78: =Input!AP26*$I78 -> 0 | AM78: =Input!AQ26*$I78 -> 0 | AN78: =Input!AR26*$I78 -> 0 | AO78: =Input!AS26*$I78 -> 0 | AP78: =Input!AT26*$I78 -> 0 | AQ78: =Input!AU26*$I78 -> 0 | AR78: =Input!AV26*$I78 -> 0 | AS78: =Input!AW26*$I78 -> 0 | AT78: =Input!AX26*$I78 -> 0 | AU78: =Input!AY26*$I78 -> 0 | AV78: =Input!AZ26*$I78 -> 0 | AW78: =Input!BA26*$I78 -> 0 | AX78: =Input!BB26*$I78 -> 0 | AY78: =Input!BC26*$I78 -> 0 | AZ78: =Input!BD26*$I78 -> 0 | BA78: =Input!BE26*$I78 -> 0 | BB78: =Input!BF26*$I78 -> 0 | BC78: =Input!BG26*$I78 -> 0 | BD78: =Input!BH26*$I78 -> 0 | BE78: =Input!BI26*$I78 -> 0 | BF78: =Input!BJ26*$I78 -> 0 | BG78: =Input!BK26*$I78 -> 0 | BH78: =Input!BL26*$I78 -> 0 | BI78: =Input!BM26*$I78 -> 0 | BJ78: =Input!BN26*$I78 -> 0 | BK78: =Input!BO26*$I78 -> 0 | BL78: =Input!BP26*$I78 -> 0 | BM78: =Input!BQ26*$I78 -> 0
C79: 16 | D79: =Input!D27 -> … | E79: =Input!E27 -> Operating Expense | F79: =MATCH(E79,lookups!$C$97:$C$102,0) -> 2 | H79: =IF(Input!$E27=lookups!$C$97,"Sign Flip"," ... ") -> ... | I79: =IF(Input!$E27=lookups!$C$97,-1,1) -> 1 | K79: 0 | L79: 0 | O79: =Input!S27*$I79 -> 0 | P79: =Input!T27*$I79 -> 0 | Q79: =Input!U27*$I79 -> 0 | R79: =Input!V27*$I79 -> 0 | S79: =Input!W27*$I79 -> 0 | T79: =Input!X27*$I79 -> 0 | U79: =Input!Y27*$I79 -> 0 | V79: =Input!Z27*$I79 -> 0 | W79: =Input!AA27*$I79 -> 0 | X79: =Input!AB27*$I79 -> 0 | Y79: =Input!AC27*$I79 -> 0 | Z79: =Input!AD27*$I79 -> 0 | AA79: =Input!AE27*$I79 -> 0 | AB79: =Input!AF27*$I79 -> 0 | AC79: =Input!AG27*$I79 -> 0 | AD79: =Input!AH27*$I79 -> 0 | AE79: =Input!AI27*$I79 -> 0 | AF79: =Input!AJ27*$I79 -> 0 | AG79: =Input!AK27*$I79 -> 0 | AH79: =Input!AL27*$I79 -> 0 | AI79: =Input!AM27*$I79 -> 0 | AJ79: =Input!AN27*$I79 -> 0 | AK79: =Input!AO27*$I79 -> 0 | AL79: =Input!AP27*$I79 -> 0 | AM79: =Input!AQ27*$I79 -> 0 | AN79: =Input!AR27*$I79 -> 0 | AO79: =Input!AS27*$I79 -> 0 | AP79: =Input!AT27*$I79 -> 0 | AQ79: =Input!AU27*$I79 -> 0 | AR79: =Input!AV27*$I79 -> 0 | AS79: =Input!AW27*$I79 -> 0 | AT79: =Input!AX27*$I79 -> 0 | AU79: =Input!AY27*$I79 -> 0 | AV79: =Input!AZ27*$I79 -> 0 | AW79: =Input!BA27*$I79 -> 0 | AX79: =Input!BB27*$I79 -> 0 | AY79: =Input!BC27*$I79 -> 0 | AZ79: =Input!BD27*$I79 -> 0 | BA79: =Input!BE27*$I79 -> 0 | BB79: =Input!BF27*$I79 -> 0 | BC79: =Input!BG27*$I79 -> 0 | BD79: =Input!BH27*$I79 -> 0 | BE79: =Input!BI27*$I79 -> 0 | BF79: =Input!BJ27*$I79 -> 0 | BG79: =Input!BK27*$I79 -> 0 | BH79: =Input!BL27*$I79 -> 0 | BI79: =Input!BM27*$I79 -> 0 | BJ79: =Input!BN27*$I79 -> 0 | BK79: =Input!BO27*$I79 -> 0 | BL79: =Input!BP27*$I79 -> 0 | BM79: =Input!BQ27*$I79 -> 0
C80: 17 | D80: =Input!D28 -> … | E80: =Input!E28 -> Operating Expense | F80: =MATCH(E80,lookups!$C$97:$C$102,0) -> 2 | H80: =IF(Input!$E28=lookups!$C$97,"Sign Flip"," ... ") -> ... | I80: =IF(Input!$E28=lookups!$C$97,-1,1) -> 1 | K80: 0 | L80: 0 | O80: =Input!S28*$I80 -> 0 | P80: =Input!T28*$I80 -> 0 | Q80: =Input!U28*$I80 -> 0 | R80: =Input!V28*$I80 -> 0 | S80: =Input!W28*$I80 -> 0 | T80: =Input!X28*$I80 -> 0 | U80: =Input!Y28*$I80 -> 0 | V80: =Input!Z28*$I80 -> 0 | W80: =Input!AA28*$I80 -> 0 | X80: =Input!AB28*$I80 -> 0 | Y80: =Input!AC28*$I80 -> 0 | Z80: =Input!AD28*$I80 -> 0 | AA80: =Input!AE28*$I80 -> 0 | AB80: =Input!AF28*$I80 -> 0 | AC80: =Input!AG28*$I80 -> 0 | AD80: =Input!AH28*$I80 -> 0 | AE80: =Input!AI28*$I80 -> 0 | AF80: =Input!AJ28*$I80 -> 0 | AG80: =Input!AK28*$I80 -> 0 | AH80: =Input!AL28*$I80 -> 0 | AI80: =Input!AM28*$I80 -> 0 | AJ80: =Input!AN28*$I80 -> 0 | AK80: =Input!AO28*$I80 -> 0 | AL80: =Input!AP28*$I80 -> 0 | AM80: =Input!AQ28*$I80 -> 0 | AN80: =Input!AR28*$I80 -> 0 | AO80: =Input!AS28*$I80 -> 0 | AP80: =Input!AT28*$I80 -> 0 | AQ80: =Input!AU28*$I80 -> 0 | AR80: =Input!AV28*$I80 -> 0 | AS80: =Input!AW28*$I80 -> 0 | AT80: =Input!AX28*$I80 -> 0 | AU80: =Input!AY28*$I80 -> 0 | AV80: =Input!AZ28*$I80 -> 0 | AW80: =Input!BA28*$I80 -> 0 | AX80: =Input!BB28*$I80 -> 0 | AY80: =Input!BC28*$I80 -> 0 | AZ80: =Input!BD28*$I80 -> 0 | BA80: =Input!BE28*$I80 -> 0 | BB80: =Input!BF28*$I80 -> 0 | BC80: =Input!BG28*$I80 -> 0 | BD80: =Input!BH28*$I80 -> 0 | BE80: =Input!BI28*$I80 -> 0 | BF80: =Input!BJ28*$I80 -> 0 | BG80: =Input!BK28*$I80 -> 0 | BH80: =Input!BL28*$I80 -> 0 | BI80: =Input!BM28*$I80 -> 0 | BJ80: =Input!BN28*$I80 -> 0 | BK80: =Input!BO28*$I80 -> 0 | BL80: =Input!BP28*$I80 -> 0 | BM80: =Input!BQ28*$I80 -> 0
C81: 18 | D81: =Input!D29 -> … | E81: =Input!E29 -> Operating Expense | F81: =MATCH(E81,lookups!$C$97:$C$102,0) -> 2 | H81: =IF(Input!$E29=lookups!$C$97,"Sign Flip"," ... ") -> ... | I81: =IF(Input!$E29=lookups!$C$97,-1,1) -> 1 | K81: 0 | L81: 0 | O81: =Input!S29*$I81 -> 0 | P81: =Input!T29*$I81 -> 0 | Q81: =Input!U29*$I81 -> 0 | R81: =Input!V29*$I81 -> 0 | S81: =Input!W29*$I81 -> 0 | T81: =Input!X29*$I81 -> 0 | U81: =Input!Y29*$I81 -> 0 | V81: =Input!Z29*$I81 -> 0 | W81: =Input!AA29*$I81 -> 0 | X81: =Input!AB29*$I81 -> 0 | Y81: =Input!AC29*$I81 -> 0 | Z81: =Input!AD29*$I81 -> 0 | AA81: =Input!AE29*$I81 -> 0 | AB81: =Input!AF29*$I81 -> 0 | AC81: =Input!AG29*$I81 -> 0 | AD81: =Input!AH29*$I81 -> 0 | AE81: =Input!AI29*$I81 -> 0 | AF81: =Input!AJ29*$I81 -> 0 | AG81: =Input!AK29*$I81 -> 0 | AH81: =Input!AL29*$I81 -> 0 | AI81: =Input!AM29*$I81 -> 0 | AJ81: =Input!AN29*$I81 -> 0 | AK81: =Input!AO29*$I81 -> 0 | AL81: =Input!AP29*$I81 -> 0 | AM81: =Input!AQ29*$I81 -> 0 | AN81: =Input!AR29*$I81 -> 0 | AO81: =Input!AS29*$I81 -> 0 | AP81: =Input!AT29*$I81 -> 0 | AQ81: =Input!AU29*$I81 -> 0 | AR81: =Input!AV29*$I81 -> 0 | AS81: =Input!AW29*$I81 -> 0 | AT81: =Input!AX29*$I81 -> 0 | AU81: =Input!AY29*$I81 -> 0 | AV81: =Input!AZ29*$I81 -> 0 | AW81: =Input!BA29*$I81 -> 0 | AX81: =Input!BB29*$I81 -> 0 | AY81: =Input!BC29*$I81 -> 0 | AZ81: =Input!BD29*$I81 -> 0 | BA81: =Input!BE29*$I81 -> 0 | BB81: =Input!BF29*$I81 -> 0 | BC81: =Input!BG29*$I81 -> 0 | BD81: =Input!BH29*$I81 -> 0 | BE81: =Input!BI29*$I81 -> 0 | BF81: =Input!BJ29*$I81 -> 0 | BG81: =Input!BK29*$I81 -> 0 | BH81: =Input!BL29*$I81 -> 0 | BI81: =Input!BM29*$I81 -> 0 | BJ81: =Input!BN29*$I81 -> 0 | BK81: =Input!BO29*$I81 -> 0 | BL81: =Input!BP29*$I81 -> 0 | BM81: =Input!BQ29*$I81 -> 0
C82: 19 | D82: =Input!D30 -> … | E82: =Input!E30 -> Operating Expense | F82: =MATCH(E82,lookups!$C$97:$C$102,0) -> 2 | H82: =IF(Input!$E30=lookups!$C$97,"Sign Flip"," ... ") -> ... | I82: =IF(Input!$E30=lookups!$C$97,-1,1) -> 1 | K82: 0 | L82: 0 | O82: =Input!S30*$I82 -> 0 | P82: =Input!T30*$I82 -> 0 | Q82: =Input!U30*$I82 -> 0 | R82: =Input!V30*$I82 -> 0 | S82: =Input!W30*$I82 -> 0 | T82: =Input!X30*$I82 -> 0 | U82: =Input!Y30*$I82 -> 0 | V82: =Input!Z30*$I82 -> 0 | W82: =Input!AA30*$I82 -> 0 | X82: =Input!AB30*$I82 -> 0 | Y82: =Input!AC30*$I82 -> 0 | Z82: =Input!AD30*$I82 -> 0 | AA82: =Input!AE30*$I82 -> 0 | AB82: =Input!AF30*$I82 -> 0 | AC82: =Input!AG30*$I82 -> 0 | AD82: =Input!AH30*$I82 -> 0 | AE82: =Input!AI30*$I82 -> 0 | AF82: =Input!AJ30*$I82 -> 0 | AG82: =Input!AK30*$I82 -> 0 | AH82: =Input!AL30*$I82 -> 0 | AI82: =Input!AM30*$I82 -> 0 | AJ82: =Input!AN30*$I82 -> 0 | AK82: =Input!AO30*$I82 -> 0 | AL82: =Input!AP30*$I82 -> 0 | AM82: =Input!AQ30*$I82 -> 0 | AN82: =Input!AR30*$I82 -> 0 | AO82: =Input!AS30*$I82 -> 0 | AP82: =Input!AT30*$I82 -> 0 | AQ82: =Input!AU30*$I82 -> 0 | AR82: =Input!AV30*$I82 -> 0 | AS82: =Input!AW30*$I82 -> 0 | AT82: =Input!AX30*$I82 -> 0 | AU82: =Input!AY30*$I82 -> 0 | AV82: =Input!AZ30*$I82 -> 0 | AW82: =Input!BA30*$I82 -> 0 | AX82: =Input!BB30*$I82 -> 0 | AY82: =Input!BC30*$I82 -> 0 | AZ82: =Input!BD30*$I82 -> 0 | BA82: =Input!BE30*$I82 -> 0 | BB82: =Input!BF30*$I82 -> 0 | BC82: =Input!BG30*$I82 -> 0 | BD82: =Input!BH30*$I82 -> 0 | BE82: =Input!BI30*$I82 -> 0 | BF82: =Input!BJ30*$I82 -> 0 | BG82: =Input!BK30*$I82 -> 0 | BH82: =Input!BL30*$I82 -> 0 | BI82: =Input!BM30*$I82 -> 0 | BJ82: =Input!BN30*$I82 -> 0 | BK82: =Input!BO30*$I82 -> 0 | BL82: =Input!BP30*$I82 -> 0 | BM82: =Input!BQ30*$I82 -> 0
C83: 20 | D83: =Input!D31 -> … | E83: =Input!E31 -> Operating Expense | F83: =MATCH(E83,lookups!$C$97:$C$102,0) -> 2 | H83: =IF(Input!$E31=lookups!$C$97,"Sign Flip"," ... ") -> ... | I83: =IF(Input!$E31=lookups!$C$97,-1,1) -> 1 | K83: 0 | L83: 0 | O83: =Input!S31*$I83 -> 0 | P83: =Input!T31*$I83 -> 0 | Q83: =Input!U31*$I83 -> 0 | R83: =Input!V31*$I83 -> 0 | S83: =Input!W31*$I83 -> 0 | T83: =Input!X31*$I83 -> 0 | U83: =Input!Y31*$I83 -> 0 | V83: =Input!Z31*$I83 -> 0 | W83: =Input!AA31*$I83 -> 0 | X83: =Input!AB31*$I83 -> 0 | Y83: =Input!AC31*$I83 -> 0 | Z83: =Input!AD31*$I83 -> 0 | AA83: =Input!AE31*$I83 -> 0 | AB83: =Input!AF31*$I83 -> 0 | AC83: =Input!AG31*$I83 -> 0 | AD83: =Input!AH31*$I83 -> 0 | AE83: =Input!AI31*$I83 -> 0 | AF83: =Input!AJ31*$I83 -> 0 | AG83: =Input!AK31*$I83 -> 0 | AH83: =Input!AL31*$I83 -> 0 | AI83: =Input!AM31*$I83 -> 0 | AJ83: =Input!AN31*$I83 -> 0 | AK83: =Input!AO31*$I83 -> 0 | AL83: =Input!AP31*$I83 -> 0 | AM83: =Input!AQ31*$I83 -> 0 | AN83: =Input!AR31*$I83 -> 0 | AO83: =Input!AS31*$I83 -> 0 | AP83: =Input!AT31*$I83 -> 0 | AQ83: =Input!AU31*$I83 -> 0 | AR83: =Input!AV31*$I83 -> 0 | AS83: =Input!AW31*$I83 -> 0 | AT83: =Input!AX31*$I83 -> 0 | AU83: =Input!AY31*$I83 -> 0 | AV83: =Input!AZ31*$I83 -> 0 | AW83: =Input!BA31*$I83 -> 0 | AX83: =Input!BB31*$I83 -> 0 | AY83: =Input!BC31*$I83 -> 0 | AZ83: =Input!BD31*$I83 -> 0 | BA83: =Input!BE31*$I83 -> 0 | BB83: =Input!BF31*$I83 -> 0 | BC83: =Input!BG31*$I83 -> 0 | BD83: =Input!BH31*$I83 -> 0 | BE83: =Input!BI31*$I83 -> 0 | BF83: =Input!BJ31*$I83 -> 0 | BG83: =Input!BK31*$I83 -> 0 | BH83: =Input!BL31*$I83 -> 0 | BI83: =Input!BM31*$I83 -> 0 | BJ83: =Input!BN31*$I83 -> 0 | BK83: =Input!BO31*$I83 -> 0 | BL83: =Input!BP31*$I83 -> 0 | BM83: =Input!BQ31*$I83 -> 0
C84: 21 | D84: =Input!D32 -> … | E84: =Input!E32 -> Operating Expense | F84: =MATCH(E84,lookups!$C$97:$C$102,0) -> 2 | H84: =IF(Input!$E32=lookups!$C$97,"Sign Flip"," ... ") -> ... | I84: =IF(Input!$E32=lookups!$C$97,-1,1) -> 1 | K84: 0 | L84: 0 | O84: =Input!S32*$I84 -> 0 | P84: =Input!T32*$I84 -> 0 | Q84: =Input!U32*$I84 -> 0 | R84: =Input!V32*$I84 -> 0 | S84: =Input!W32*$I84 -> 0 | T84: =Input!X32*$I84 -> 0 | U84: =Input!Y32*$I84 -> 0 | V84: =Input!Z32*$I84 -> 0 | W84: =Input!AA32*$I84 -> 0 | X84: =Input!AB32*$I84 -> 0 | Y84: =Input!AC32*$I84 -> 0 | Z84: =Input!AD32*$I84 -> 0 | AA84: =Input!AE32*$I84 -> 0 | AB84: =Input!AF32*$I84 -> 0 | AC84: =Input!AG32*$I84 -> 0 | AD84: =Input!AH32*$I84 -> 0 | AE84: =Input!AI32*$I84 -> 0 | AF84: =Input!AJ32*$I84 -> 0 | AG84: =Input!AK32*$I84 -> 0 | AH84: =Input!AL32*$I84 -> 0 | AI84: =Input!AM32*$I84 -> 0 | AJ84: =Input!AN32*$I84 -> 0 | AK84: =Input!AO32*$I84 -> 0 | AL84: =Input!AP32*$I84 -> 0 | AM84: =Input!AQ32*$I84 -> 0 | AN84: =Input!AR32*$I84 -> 0 | AO84: =Input!AS32*$I84 -> 0 | AP84: =Input!AT32*$I84 -> 0 | AQ84: =Input!AU32*$I84 -> 0 | AR84: =Input!AV32*$I84 -> 0 | AS84: =Input!AW32*$I84 -> 0 | AT84: =Input!AX32*$I84 -> 0 | AU84: =Input!AY32*$I84 -> 0 | AV84: =Input!AZ32*$I84 -> 0 | AW84: =Input!BA32*$I84 -> 0 | AX84: =Input!BB32*$I84 -> 0 | AY84: =Input!BC32*$I84 -> 0 | AZ84: =Input!BD32*$I84 -> 0 | BA84: =Input!BE32*$I84 -> 0 | BB84: =Input!BF32*$I84 -> 0 | BC84: =Input!BG32*$I84 -> 0 | BD84: =Input!BH32*$I84 -> 0 | BE84: =Input!BI32*$I84 -> 0 | BF84: =Input!BJ32*$I84 -> 0 | BG84: =Input!BK32*$I84 -> 0 | BH84: =Input!BL32*$I84 -> 0 | BI84: =Input!BM32*$I84 -> 0 | BJ84: =Input!BN32*$I84 -> 0 | BK84: =Input!BO32*$I84 -> 0 | BL84: =Input!BP32*$I84 -> 0 | BM84: =Input!BQ32*$I84 -> 0
C85: 22 | D85: =Input!D33 -> … | E85: =Input!E33 -> Operating Expense | F85: =MATCH(E85,lookups!$C$97:$C$102,0) -> 2 | H85: =IF(Input!$E33=lookups!$C$97,"Sign Flip"," ... ") -> ... | I85: =IF(Input!$E33=lookups!$C$97,-1,1) -> 1 | K85: 0 | L85: 0 | O85: =Input!S33*$I85 -> 0 | P85: =Input!T33*$I85 -> 0 | Q85: =Input!U33*$I85 -> 0 | R85: =Input!V33*$I85 -> 0 | S85: =Input!W33*$I85 -> 0 | T85: =Input!X33*$I85 -> 0 | U85: =Input!Y33*$I85 -> 0 | V85: =Input!Z33*$I85 -> 0 | W85: =Input!AA33*$I85 -> 0 | X85: =Input!AB33*$I85 -> 0 | Y85: =Input!AC33*$I85 -> 0 | Z85: =Input!AD33*$I85 -> 0 | AA85: =Input!AE33*$I85 -> 0 | AB85: =Input!AF33*$I85 -> 0 | AC85: =Input!AG33*$I85 -> 0 | AD85: =Input!AH33*$I85 -> 0 | AE85: =Input!AI33*$I85 -> 0 | AF85: =Input!AJ33*$I85 -> 0 | AG85: =Input!AK33*$I85 -> 0 | AH85: =Input!AL33*$I85 -> 0 | AI85: =Input!AM33*$I85 -> 0 | AJ85: =Input!AN33*$I85 -> 0 | AK85: =Input!AO33*$I85 -> 0 | AL85: =Input!AP33*$I85 -> 0 | AM85: =Input!AQ33*$I85 -> 0 | AN85: =Input!AR33*$I85 -> 0 | AO85: =Input!AS33*$I85 -> 0 | AP85: =Input!AT33*$I85 -> 0 | AQ85: =Input!AU33*$I85 -> 0 | AR85: =Input!AV33*$I85 -> 0 | AS85: =Input!AW33*$I85 -> 0 | AT85: =Input!AX33*$I85 -> 0 | AU85: =Input!AY33*$I85 -> 0 | AV85: =Input!AZ33*$I85 -> 0 | AW85: =Input!BA33*$I85 -> 0 | AX85: =Input!BB33*$I85 -> 0 | AY85: =Input!BC33*$I85 -> 0 | AZ85: =Input!BD33*$I85 -> 0 | BA85: =Input!BE33*$I85 -> 0 | BB85: =Input!BF33*$I85 -> 0 | BC85: =Input!BG33*$I85 -> 0 | BD85: =Input!BH33*$I85 -> 0 | BE85: =Input!BI33*$I85 -> 0 | BF85: =Input!BJ33*$I85 -> 0 | BG85: =Input!BK33*$I85 -> 0 | BH85: =Input!BL33*$I85 -> 0 | BI85: =Input!BM33*$I85 -> 0 | BJ85: =Input!BN33*$I85 -> 0 | BK85: =Input!BO33*$I85 -> 0 | BL85: =Input!BP33*$I85 -> 0 | BM85: =Input!BQ33*$I85 -> 0
C86: 23 | D86: =Input!D34 -> … | E86: =Input!E34 -> Operating Expense | F86: =MATCH(E86,lookups!$C$97:$C$102,0) -> 2 | H86: =IF(Input!$E34=lookups!$C$97,"Sign Flip"," ... ") -> ... | I86: =IF(Input!$E34=lookups!$C$97,-1,1) -> 1 | K86: 0 | L86: 0 | O86: =Input!S34*$I86 -> 0 | P86: =Input!T34*$I86 -> 0 | Q86: =Input!U34*$I86 -> 0 | R86: =Input!V34*$I86 -> 0 | S86: =Input!W34*$I86 -> 0 | T86: =Input!X34*$I86 -> 0 | U86: =Input!Y34*$I86 -> 0 | V86: =Input!Z34*$I86 -> 0 | W86: =Input!AA34*$I86 -> 0 | X86: =Input!AB34*$I86 -> 0 | Y86: =Input!AC34*$I86 -> 0 | Z86: =Input!AD34*$I86 -> 0 | AA86: =Input!AE34*$I86 -> 0 | AB86: =Input!AF34*$I86 -> 0 | AC86: =Input!AG34*$I86 -> 0 | AD86: =Input!AH34*$I86 -> 0 | AE86: =Input!AI34*$I86 -> 0 | AF86: =Input!AJ34*$I86 -> 0 | AG86: =Input!AK34*$I86 -> 0 | AH86: =Input!AL34*$I86 -> 0 | AI86: =Input!AM34*$I86 -> 0 | AJ86: =Input!AN34*$I86 -> 0 | AK86: =Input!AO34*$I86 -> 0 | AL86: =Input!AP34*$I86 -> 0 | AM86: =Input!AQ34*$I86 -> 0 | AN86: =Input!AR34*$I86 -> 0 | AO86: =Input!AS34*$I86 -> 0 | AP86: =Input!AT34*$I86 -> 0 | AQ86: =Input!AU34*$I86 -> 0 | AR86: =Input!AV34*$I86 -> 0 | AS86: =Input!AW34*$I86 -> 0 | AT86: =Input!AX34*$I86 -> 0 | AU86: =Input!AY34*$I86 -> 0 | AV86: =Input!AZ34*$I86 -> 0 | AW86: =Input!BA34*$I86 -> 0 | AX86: =Input!BB34*$I86 -> 0 | AY86: =Input!BC34*$I86 -> 0 | AZ86: =Input!BD34*$I86 -> 0 | BA86: =Input!BE34*$I86 -> 0 | BB86: =Input!BF34*$I86 -> 0 | BC86: =Input!BG34*$I86 -> 0 | BD86: =Input!BH34*$I86 -> 0 | BE86: =Input!BI34*$I86 -> 0 | BF86: =Input!BJ34*$I86 -> 0 | BG86: =Input!BK34*$I86 -> 0 | BH86: =Input!BL34*$I86 -> 0 | BI86: =Input!BM34*$I86 -> 0 | BJ86: =Input!BN34*$I86 -> 0 | BK86: =Input!BO34*$I86 -> 0 | BL86: =Input!BP34*$I86 -> 0 | BM86: =Input!BQ34*$I86 -> 0
C87: 24 | D87: =Input!D35 -> … | E87: =Input!E35 -> Operating Expense | F87: =MATCH(E87,lookups!$C$97:$C$102,0) -> 2 | H87: =IF(Input!$E35=lookups!$C$97,"Sign Flip"," ... ") -> ... | I87: =IF(Input!$E35=lookups!$C$97,-1,1) -> 1 | K87: 0 | L87: 0 | O87: =Input!S35*$I87 -> 0 | P87: =Input!T35*$I87 -> 0 | Q87: =Input!U35*$I87 -> 0 | R87: =Input!V35*$I87 -> 0 | S87: =Input!W35*$I87 -> 0 | T87: =Input!X35*$I87 -> 0 | U87: =Input!Y35*$I87 -> 0 | V87: =Input!Z35*$I87 -> 0 | W87: =Input!AA35*$I87 -> 0 | X87: =Input!AB35*$I87 -> 0 | Y87: =Input!AC35*$I87 -> 0 | Z87: =Input!AD35*$I87 -> 0 | AA87: =Input!AE35*$I87 -> 0 | AB87: =Input!AF35*$I87 -> 0 | AC87: =Input!AG35*$I87 -> 0 | AD87: =Input!AH35*$I87 -> 0 | AE87: =Input!AI35*$I87 -> 0 | AF87: =Input!AJ35*$I87 -> 0 | AG87: =Input!AK35*$I87 -> 0 | AH87: =Input!AL35*$I87 -> 0 | AI87: =Input!AM35*$I87 -> 0 | AJ87: =Input!AN35*$I87 -> 0 | AK87: =Input!AO35*$I87 -> 0 | AL87: =Input!AP35*$I87 -> 0 | AM87: =Input!AQ35*$I87 -> 0 | AN87: =Input!AR35*$I87 -> 0 | AO87: =Input!AS35*$I87 -> 0 | AP87: =Input!AT35*$I87 -> 0 | AQ87: =Input!AU35*$I87 -> 0 | AR87: =Input!AV35*$I87 -> 0 | AS87: =Input!AW35*$I87 -> 0 | AT87: =Input!AX35*$I87 -> 0 | AU87: =Input!AY35*$I87 -> 0 | AV87: =Input!AZ35*$I87 -> 0 | AW87: =Input!BA35*$I87 -> 0 | AX87: =Input!BB35*$I87 -> 0 | AY87: =Input!BC35*$I87 -> 0 | AZ87: =Input!BD35*$I87 -> 0 | BA87: =Input!BE35*$I87 -> 0 | BB87: =Input!BF35*$I87 -> 0 | BC87: =Input!BG35*$I87 -> 0 | BD87: =Input!BH35*$I87 -> 0 | BE87: =Input!BI35*$I87 -> 0 | BF87: =Input!BJ35*$I87 -> 0 | BG87: =Input!BK35*$I87 -> 0 | BH87: =Input!BL35*$I87 -> 0 | BI87: =Input!BM35*$I87 -> 0 | BJ87: =Input!BN35*$I87 -> 0 | BK87: =Input!BO35*$I87 -> 0 | BL87: =Input!BP35*$I87 -> 0 | BM87: =Input!BQ35*$I87 -> 0
C88: 25 | D88: =Input!D36 -> … | E88: =Input!E36 -> Operating Expense | F88: =MATCH(E88,lookups!$C$97:$C$102,0) -> 2 | H88: =IF(Input!$E36=lookups!$C$97,"Sign Flip"," ... ") -> ... | I88: =IF(Input!$E36=lookups!$C$97,-1,1) -> 1 | K88: 0 | L88: 0 | O88: =Input!S36*$I88 -> 0 | P88: =Input!T36*$I88 -> 0 | Q88: =Input!U36*$I88 -> 0 | R88: =Input!V36*$I88 -> 0 | S88: =Input!W36*$I88 -> 0 | T88: =Input!X36*$I88 -> 0 | U88: =Input!Y36*$I88 -> 0 | V88: =Input!Z36*$I88 -> 0 | W88: =Input!AA36*$I88 -> 0 | X88: =Input!AB36*$I88 -> 0 | Y88: =Input!AC36*$I88 -> 0 | Z88: =Input!AD36*$I88 -> 0 | AA88: =Input!AE36*$I88 -> 0 | AB88: =Input!AF36*$I88 -> 0 | AC88: =Input!AG36*$I88 -> 0 | AD88: =Input!AH36*$I88 -> 0 | AE88: =Input!AI36*$I88 -> 0 | AF88: =Input!AJ36*$I88 -> 0 | AG88: =Input!AK36*$I88 -> 0 | AH88: =Input!AL36*$I88 -> 0 | AI88: =Input!AM36*$I88 -> 0 | AJ88: =Input!AN36*$I88 -> 0 | AK88: =Input!AO36*$I88 -> 0 | AL88: =Input!AP36*$I88 -> 0 | AM88: =Input!AQ36*$I88 -> 0 | AN88: =Input!AR36*$I88 -> 0 | AO88: =Input!AS36*$I88 -> 0 | AP88: =Input!AT36*$I88 -> 0 | AQ88: =Input!AU36*$I88 -> 0 | AR88: =Input!AV36*$I88 -> 0 | AS88: =Input!AW36*$I88 -> 0 | AT88: =Input!AX36*$I88 -> 0 | AU88: =Input!AY36*$I88 -> 0 | AV88: =Input!AZ36*$I88 -> 0 | AW88: =Input!BA36*$I88 -> 0 | AX88: =Input!BB36*$I88 -> 0 | AY88: =Input!BC36*$I88 -> 0 | AZ88: =Input!BD36*$I88 -> 0 | BA88: =Input!BE36*$I88 -> 0 | BB88: =Input!BF36*$I88 -> 0 | BC88: =Input!BG36*$I88 -> 0 | BD88: =Input!BH36*$I88 -> 0 | BE88: =Input!BI36*$I88 -> 0 | BF88: =Input!BJ36*$I88 -> 0 | BG88: =Input!BK36*$I88 -> 0 | BH88: =Input!BL36*$I88 -> 0 | BI88: =Input!BM36*$I88 -> 0 | BJ88: =Input!BN36*$I88 -> 0 | BK88: =Input!BO36*$I88 -> 0 | BL88: =Input!BP36*$I88 -> 0 | BM88: =Input!BQ36*$I88 -> 0
D89: ="Total "&D63 -> Total Cash Flow, Unescalated | K89: 1000335.144 | L89: 1100000 | O89: =SUM(O64:O88) -> 1010000 | P89: =SUM(P64:P88) -> 10000 | Q89: =SUM(Q64:Q88) -> 10000 | R89: 10000 | S89: 10000 | T89: 10000 | U89: 10000 | V89: 10000 | W89: 10000 | X89: 10000 | Y89: 0 | Z89: 0 | AA89: 0 | AB89: 0 | AC89: 0 | AD89: 0 | AE89: 0 | AF89: 0 | AG89: 0 | AH89: 0 | AI89: 0 | AJ89: 0 | AK89: 0 | AL89: 0 | AM89: 0 | AN89: 0 | AO89: 0 | AP89: 0 | AQ89: 0 | AR89: 0 | AS89: 0 | AT89: 0 | AU89: 0 | AV89: 0 | AW89: 0 | AX89: 0 | AY89: 0 | AZ89: 0 | BA89: 0 | BB89: 0 | BC89: 0 | BD89: 0 | BE89: 0 | BF89: 0 | BG89: 0 | BH89: 0 | BI89: 0 | BJ89: 0 | BK89: 0 | BL89: 0 | BM89: 0
D92: Escalation Factors | H92: Inflation | I92: Base Year
C93: =C92+1 -> 1 | D93: =INDEX(D$64:D$88,$C93,1) -> Capital Costs | E93: =INDEX(E$64:E$88,$C93,1) -> Capital | F93: 4 | H93: =Input!L12 -> 0 | I93: =Assumptions!$D$16 -> 2022 | O93: =IF(ISNUMBER($H93),(1+$H93)^(O$10-$I93),INDEX(lookups!$F$77:$BU$87,MATCH($H93,lookups!$C$77:$C$87,0),MATCH(O$10,lookups!$F$76:$BU$76,0))/INDEX(lookups!$F$77:$BU$87,MATCH($H93,lookups!$C$77:$C$87,0),MATCH($I93,lookups!$F$76:$BU$76,0))) -> 1 | P93: =IF(ISNUMBER($H93),(1+$H93)^(P$10-$I93),INDEX(lookups!$F$77:$BU$87,MATCH($H93,lookups!$C$77:$C$87,0),MATCH(P$10,lookups!$F$76:$BU$76,0))/INDEX(lookups!$F$77:$BU$87,MATCH($H93,lookups!$C$77:$C$87,0),MATCH($I93,lookups!$F$76:$BU$76,0))) -> 1 | Q93: =IF(ISNUMBER($H93),(1+$H93)^(Q$10-$I93),INDEX(lookups!$F$77:$BU$87,MATCH($H93,lookups!$C$77:$C$87,0),MATCH(Q$10,lookups!$F$76:$BU$76,0))/INDEX(lookups!$F$77:$BU$87,MATCH($H93,lookups!$C$77:$C$87,0),MATCH($I93,lookups!$F$76:$BU$76,0))) -> 1 | R93: =IF(ISNUMBER($H93),(1+$H93)^(R$10-$I93),INDEX(lookups!$F$77:$BU$87,MATCH($H93,lookups!$C$77:$C$87,0),MATCH(R$10,lookups!$F$76:$BU$76,0))/INDEX(lookups!$F$77:$BU$87,MATCH($H93,lookups!$C$77:$C$87,0),MATCH($I93,lookups!$F$76:$BU$76,0))) -> 1 | S93: =IF(ISNUMBER($H93),(1+$H93)^(S$10-$I93),INDEX(lookups!$F$77:$BU$87,MATCH($H93,lookups!$C$77:$C$87,0),MATCH(S$10,lookups!$F$76:$BU$76,0))/INDEX(lookups!$F$77:$BU$87,MATCH($H93,lookups!$C$77:$C$87,0),MATCH($I93,lookups!$F$76:$BU$76,0))) -> 1 | T93: =IF(ISNUMBER($H93),(1+$H93)^(T$10-$I93),INDEX(lookups!$F$77:$BU$87,MATCH($H93,lookups!$C$77:$C$87,0),MATCH(T$10,lookups!$F$76:$BU$76,0))/INDEX(lookups!$F$77:$BU$87,MATCH($H93,lookups!$C$77:$C$87,0),MATCH($I93,lookups!$F$76:$BU$76,0))) -> 1 | U93: =IF(ISNUMBER($H93),(1+$H93)^(U$10-$I93),INDEX(lookups!$F$77:$BU$87,MATCH($H93,lookups!$C$77:$C$87,0),MATCH(U$10,lookups!$F$76:$BU$76,0))/INDEX(lookups!$F$77:$BU$87,MATCH($H93,lookups!$C$77:$C$87,0),MATCH($I93,lookups!$F$76:$BU$76,0))) -> 1 | V93: =IF(ISNUMBER($H93),(1+$H93)^(V$10-$I93),INDEX(lookups!$F$77:$BU$87,MATCH($H93,lookups!$C$77:$C$87,0),MATCH(V$10,lookups!$F$76:$BU$76,0))/INDEX(lookups!$F$77:$BU$87,MATCH($H93,lookups!$C$77:$C$87,0),MATCH($I93,lookups!$F$76:$BU$76,0))) -> 1 | W93: =IF(ISNUMBER($H93),(1+$H93)^(W$10-$I93),INDEX(lookups!$F$77:$BU$87,MATCH($H93,lookups!$C$77:$C$87,0),MATCH(W$10,lookups!$F$76:$BU$76,0))/INDEX(lookups!$F$77:$BU$87,MATCH($H93,lookups!$C$77:$C$87,0),MATCH($I93,lookups!$F$76:$BU$76,0))) -> 1 | X93: =IF(ISNUMBER($H93),(1+$H93)^(X$10-$I93),INDEX(lookups!$F$77:$BU$87,MATCH($H93,lookups!$C$77:$C$87,0),MATCH(X$10,lookups!$F$76:$BU$76,0))/INDEX(lookups!$F$77:$BU$87,MATCH($H93,lookups!$C$77:$C$87,0),MATCH($I93,lookups!$F$76:$BU$76,0))) -> 1 | Y93: =IF(ISNUMBER($H93),(1+$H93)^(Y$10-$I93),INDEX(lookups!$F$77:$BU$87,MATCH($H93,lookups!$C$77:$C$87,0),MATCH(Y$10,lookups!$F$76:$BU$76,0))/INDEX(lookups!$F$77:$BU$87,MATCH($H93,lookups!$C$77:$C$87,0),MATCH($I93,lookups!$F$76:$BU$76,0))) -> 1 | Z93: =IF(ISNUMBER($H93),(1+$H93)^(Z$10-$I93),INDEX(lookups!$F$77:$BU$87,MATCH($H93,lookups!$C$77:$C$87,0),MATCH(Z$10,lookups!$F$76:$BU$76,0))/INDEX(lookups!$F$77:$BU$87,MATCH($H93,lookups!$C$77:$C$87,0),MATCH($I93,lookups!$F$76:$BU$76,0))) -> 1 | AA93: =IF(ISNUMBER($H93),(1+$H93)^(AA$10-$I93),INDEX(lookups!$F$77:$BU$87,MATCH($H93,lookups!$C$77:$C$87,0),MATCH(AA$10,lookups!$F$76:$BU$76,0))/INDEX(lookups!$F$77:$BU$87,MATCH($H93,lookups!$C$77:$C$87,0),MATCH($I93,lookups!$F$76:$BU$76,0))) -> 1 | AB93: =IF(ISNUMBER($H93),(1+$H93)^(AB$10-$I93),INDEX(lookups!$F$77:$BU$87,MATCH($H93,lookups!$C$77:$C$87,0),MATCH(AB$10,lookups!$F$76:$BU$76,0))/INDEX(lookups!$F$77:$BU$87,MATCH($H93,lookups!$C$77:$C$87,0),MATCH($I93,lookups!$F$76:$BU$76,0))) -> 1 | AC93: =IF(ISNUMBER($H93),(1+$H93)^(AC$10-$I93),INDEX(lookups!$F$77:$BU$87,MATCH($H93,lookups!$C$77:$C$87,0),MATCH(AC$10,lookups!$F$76:$BU$76,0))/INDEX(lookups!$F$77:$BU$87,MATCH($H93,lookups!$C$77:$C$87,0),MATCH($I93,lookups!$F$76:$BU$76,0))) -> 1 | AD93: =IF(ISNUMBER($H93),(1+$H93)^(AD$10-$I93),INDEX(lookups!$F$77:$BU$87,MATCH($H93,lookups!$C$77:$C$87,0),MATCH(AD$10,lookups!$F$76:$BU$76,0))/INDEX(lookups!$F$77:$BU$87,MATCH($H93,lookups!$C$77:$C$87,0),MATCH($I93,lookups!$F$76:$BU$76,0))) -> 1 | AE93: =IF(ISNUMBER($H93),(1+$H93)^(AE$10-$I93),INDEX(lookups!$F$77:$BU$87,MATCH($H93,lookups!$C$77:$C$87,0),MATCH(AE$10,lookups!$F$76:$BU$76,0))/INDEX(lookups!$F$77:$BU$87,MATCH($H93,lookups!$C$77:$C$87,0),MATCH($I93,lookups!$F$76:$BU$76,0))) -> 1 | AF93: =IF(ISNUMBER($H93),(1+$H93)^(AF$10-$I93),INDEX(lookups!$F$77:$BU$87,MATCH($H93,lookups!$C$77:$C$87,0),MATCH(AF$10,lookups!$F$76:$BU$76,0))/INDEX(lookups!$F$77:$BU$87,MATCH($H93,lookups!$C$77:$C$87,0),MATCH($I93,lookups!$F$76:$BU$76,0))) -> 1 | AG93: =IF(ISNUMBER($H93),(1+$H93)^(AG$10-$I93),INDEX(lookups!$F$77:$BU$87,MATCH($H93,lookups!$C$77:$C$87,0),MATCH(AG$10,lookups!$F$76:$BU$76,0))/INDEX(lookups!$F$77:$BU$87,MATCH($H93,lookups!$C$77:$C$87,0),MATCH($I93,lookups!$F$76:$BU$76,0))) -> 1 | AH93: =IF(ISNUMBER($H93),(1+$H93)^(AH$10-$I93),INDEX(lookups!$F$77:$BU$87,MATCH($H93,lookups!$C$77:$C$87,0),MATCH(AH$10,lookups!$F$76:$BU$76,0))/INDEX(lookups!$F$77:$BU$87,MATCH($H93,lookups!$C$77:$C$87,0),MATCH($I93,lookups!$F$76:$BU$76,0))) -> 1 | AI93: =IF(ISNUMBER($H93),(1+$H93)^(AI$10-$I93),INDEX(lookups!$F$77:$BU$87,MATCH($H93,lookups!$C$77:$C$87,0),MATCH(AI$10,lookups!$F$76:$BU$76,0))/INDEX(lookups!$F$77:$BU$87,MATCH($H93,lookups!$C$77:$C$87,0),MATCH($I93,lookups!$F$76:$BU$76,0))) -> 1 | AJ93: =IF(ISNUMBER($H93),(1+$H93)^(AJ$10-$I93),INDEX(lookups!$F$77:$BU$87,MATCH($H93,lookups!$C$77:$C$87,0),MATCH(AJ$10,lookups!$F$76:$BU$76,0))/INDEX(lookups!$F$77:$BU$87,MATCH($H93,lookups!$C$77:$C$87,0),MATCH($I93,lookups!$F$76:$BU$76,0))) -> 1 | AK93: =IF(ISNUMBER($H93),(1+$H93)^(AK$10-$I93),INDEX(lookups!$F$77:$BU$87,MATCH($H93,lookups!$C$77:$C$87,0),MATCH(AK$10,lookups!$F$76:$BU$76,0))/INDEX(lookups!$F$77:$BU$87,MATCH($H93,lookups!$C$77:$C$87,0),MATCH($I93,lookups!$F$76:$BU$76,0))) -> 1 | AL93: =IF(ISNUMBER($H93),(1+$H93)^(AL$10-$I93),INDEX(lookups!$F$77:$BU$87,MATCH($H93,lookups!$C$77:$C$87,0),MATCH(AL$10,lookups!$F$76:$BU$76,0))/INDEX(lookups!$F$77:$BU$87,MATCH($H93,lookups!$C$77:$C$87,0),MATCH($I93,lookups!$F$76:$BU$76,0))) -> 1 | AM93: =IF(ISNUMBER($H93),(1+$H93)^(AM$10-$I93),INDEX(lookups!$F$77:$BU$87,MATCH($H93,lookups!$C$77:$C$87,0),MATCH(AM$10,lookups!$F$76:$BU$76,0))/INDEX(lookups!$F$77:$BU$87,MATCH($H93,lookups!$C$77:$C$87,0),MATCH($I93,lookups!$F$76:$BU$76,0))) -> 1 | AN93: =IF(ISNUMBER($H93),(1+$H93)^(AN$10-$I93),INDEX(lookups!$F$77:$BU$87,MATCH($H93,lookups!$C$77:$C$87,0),MATCH(AN$10,lookups!$F$76:$BU$76,0))/INDEX(lookups!$F$77:$BU$87,MATCH($H93,lookups!$C$77:$C$87,0),MATCH($I93,lookups!$F$76:$BU$76,0))) -> 1 | AO93: =IF(ISNUMBER($H93),(1+$H93)^(AO$10-$I93),INDEX(lookups!$F$77:$BU$87,MATCH($H93,lookups!$C$77:$C$87,0),MATCH(AO$10,lookups!$F$76:$BU$76,0))/INDEX(lookups!$F$77:$BU$87,MATCH($H93,lookups!$C$77:$C$87,0),MATCH($I93,lookups!$F$76:$BU$76,0))) -> 1 | AP93: =IF(ISNUMBER($H93),(1+$H93)^(AP$10-$I93),INDEX(lookups!$F$77:$BU$87,MATCH($H93,lookups!$C$77:$C$87,0),MATCH(AP$10,lookups!$F$76:$BU$76,0))/INDEX(lookups!$F$77:$BU$87,MATCH($H93,lookups!$C$77:$C$87,0),MATCH($I93,lookups!$F$76:$BU$76,0))) -> 1 | AQ93: =IF(ISNUMBER($H93),(1+$H93)^(AQ$10-$I93),INDEX(lookups!$F$77:$BU$87,MATCH($H93,lookups!$C$77:$C$87,0),MATCH(AQ$10,lookups!$F$76:$BU$76,0))/INDEX(lookups!$F$77:$BU$87,MATCH($H93,lookups!$C$77:$C$87,0),MATCH($I93,lookups!$F$76:$BU$76,0))) -> 1 | AR93: =IF(ISNUMBER($H93),(1+$H93)^(AR$10-$I93),INDEX(lookups!$F$77:$BU$87,MATCH($H93,lookups!$C$77:$C$87,0),MATCH(AR$10,lookups!$F$76:$BU$76,0))/INDEX(lookups!$F$77:$BU$87,MATCH($H93,lookups!$C$77:$C$87,0),MATCH($I93,lookups!$F$76:$BU$76,0))) -> 1 | AS93: =IF(ISNUMBER($H93),(1+$H93)^(AS$10-$I93),INDEX(lookups!$F$77:$BU$87,MATCH($H93,lookups!$C$77:$C$87,0),MATCH(AS$10,lookups!$F$76:$BU$76,0))/INDEX(lookups!$F$77:$BU$87,MATCH($H93,lookups!$C$77:$C$87,0),MATCH($I93,lookups!$F$76:$BU$76,0))) -> 1 | AT93: =IF(ISNUMBER($H93),(1+$H93)^(AT$10-$I93),INDEX(lookups!$F$77:$BU$87,MATCH($H93,lookups!$C$77:$C$87,0),MATCH(AT$10,lookups!$F$76:$BU$76,0))/INDEX(lookups!$F$77:$BU$87,MATCH($H93,lookups!$C$77:$C$87,0),MATCH($I93,lookups!$F$76:$BU$76,0))) -> 1 | AU93: =IF(ISNUMBER($H93),(1+$H93)^(AU$10-$I93),INDEX(lookups!$F$77:$BU$87,MATCH($H93,lookups!$C$77:$C$87,0),MATCH(AU$10,lookups!$F$76:$BU$76,0))/INDEX(lookups!$F$77:$BU$87,MATCH($H93,lookups!$C$77:$C$87,0),MATCH($I93,lookups!$F$76:$BU$76,0))) -> 1 | AV93: =IF(ISNUMBER($H93),(1+$H93)^(AV$10-$I93),INDEX(lookups!$F$77:$BU$87,MATCH($H93,lookups!$C$77:$C$87,0),MATCH(AV$10,lookups!$F$76:$BU$76,0))/INDEX(lookups!$F$77:$BU$87,MATCH($H93,lookups!$C$77:$C$87,0),MATCH($I93,lookups!$F$76:$BU$76,0))) -> 1 | AW93: =IF(ISNUMBER($H93),(1+$H93)^(AW$10-$I93),INDEX(lookups!$F$77:$BU$87,MATCH($H93,lookups!$C$77:$C$87,0),MATCH(AW$10,lookups!$F$76:$BU$76,0))/INDEX(lookups!$F$77:$BU$87,MATCH($H93,lookups!$C$77:$C$87,0),MATCH($I93,lookups!$F$76:$BU$76,0))) -> 1 | AX93: =IF(ISNUMBER($H93),(1+$H93)^(AX$10-$I93),INDEX(lookups!$F$77:$BU$87,MATCH($H93,lookups!$C$77:$C$87,0),MATCH(AX$10,lookups!$F$76:$BU$76,0))/INDEX(lookups!$F$77:$BU$87,MATCH($H93,lookups!$C$77:$C$87,0),MATCH($I93,lookups!$F$76:$BU$76,0))) -> 1 | AY93: =IF(ISNUMBER($H93),(1+$H93)^(AY$10-$I93),INDEX(lookups!$F$77:$BU$87,MATCH($H93,lookups!$C$77:$C$87,0),MATCH(AY$10,lookups!$F$76:$BU$76,0))/INDEX(lookups!$F$77:$BU$87,MATCH($H93,lookups!$C$77:$C$87,0),MATCH($I93,lookups!$F$76:$BU$76,0))) -> 1 | AZ93: =IF(ISNUMBER($H93),(1+$H93)^(AZ$10-$I93),INDEX(lookups!$F$77:$BU$87,MATCH($H93,lookups!$C$77:$C$87,0),MATCH(AZ$10,lookups!$F$76:$BU$76,0))/INDEX(lookups!$F$77:$BU$87,MATCH($H93,lookups!$C$77:$C$87,0),MATCH($I93,lookups!$F$76:$BU$76,0))) -> 1 | BA93: =IF(ISNUMBER($H93),(1+$H93)^(BA$10-$I93),INDEX(lookups!$F$77:$BU$87,MATCH($H93,lookups!$C$77:$C$87,0),MATCH(BA$10,lookups!$F$76:$BU$76,0))/INDEX(lookups!$F$77:$BU$87,MATCH($H93,lookups!$C$77:$C$87,0),MATCH($I93,lookups!$F$76:$BU$76,0))) -> 1 | BB93: =IF(ISNUMBER($H93),(1+$H93)^(BB$10-$I93),INDEX(lookups!$F$77:$BU$87,MATCH($H93,lookups!$C$77:$C$87,0),MATCH(BB$10,lookups!$F$76:$BU$76,0))/INDEX(lookups!$F$77:$BU$87,MATCH($H93,lookups!$C$77:$C$87,0),MATCH($I93,lookups!$F$76:$BU$76,0))) -> 1 | BC93: =IF(ISNUMBER($H93),(1+$H93)^(BC$10-$I93),INDEX(lookups!$F$77:$BU$87,MATCH($H93,lookups!$C$77:$C$87,0),MATCH(BC$10,lookups!$F$76:$BU$76,0))/INDEX(lookups!$F$77:$BU$87,MATCH($H93,lookups!$C$77:$C$87,0),MATCH($I93,lookups!$F$76:$BU$76,0))) -> 1 | BD93: =IF(ISNUMBER($H93),(1+$H93)^(BD$10-$I93),INDEX(lookups!$F$77:$BU$87,MATCH($H93,lookups!$C$77:$C$87,0),MATCH(BD$10,lookups!$F$76:$BU$76,0))/INDEX(lookups!$F$77:$BU$87,MATCH($H93,lookups!$C$77:$C$87,0),MATCH($I93,lookups!$F$76:$BU$76,0))) -> 1 | BE93: =IF(ISNUMBER($H93),(1+$H93)^(BE$10-$I93),INDEX(lookups!$F$77:$BU$87,MATCH($H93,lookups!$C$77:$C$87,0),MATCH(BE$10,lookups!$F$76:$BU$76,0))/INDEX(lookups!$F$77:$BU$87,MATCH($H93,lookups!$C$77:$C$87,0),MATCH($I93,lookups!$F$76:$BU$76,0))) -> 1 | BF93: =IF(ISNUMBER($H93),(1+$H93)^(BF$10-$I93),INDEX(lookups!$F$77:$BU$87,MATCH($H93,lookups!$C$77:$C$87,0),MATCH(BF$10,lookups!$F$76:$BU$76,0))/INDEX(lookups!$F$77:$BU$87,MATCH($H93,lookups!$C$77:$C$87,0),MATCH($I93,lookups!$F$76:$BU$76,0))) -> 1 | BG93: =IF(ISNUMBER($H93),(1+$H93)^(BG$10-$I93),INDEX(lookups!$F$77:$BU$87,MATCH($H93,lookups!$C$77:$C$87,0),MATCH(BG$10,lookups!$F$76:$BU$76,0))/INDEX(lookups!$F$77:$BU$87,MATCH($H93,lookups!$C$77:$C$87,0),MATCH($I93,lookups!$F$76:$BU$76,0))) -> 1 | BH93: =IF(ISNUMBER($H93),(1+$H93)^(BH$10-$I93),INDEX(lookups!$F$77:$BU$87,MATCH($H93,lookups!$C$77:$C$87,0),MATCH(BH$10,lookups!$F$76:$BU$76,0))/INDEX(lookups!$F$77:$BU$87,MATCH($H93,lookups!$C$77:$C$87,0),MATCH($I93,lookups!$F$76:$BU$76,0))) -> 1 | BI93: =IF(ISNUMBER($H93),(1+$H93)^(BI$10-$I93),INDEX(lookups!$F$77:$BU$87,MATCH($H93,lookups!$C$77:$C$87,0),MATCH(BI$10,lookups!$F$76:$BU$76,0))/INDEX(lookups!$F$77:$BU$87,MATCH($H93,lookups!$C$77:$C$87,0),MATCH($I93,lookups!$F$76:$BU$76,0))) -> 1 | BJ93: =IF(ISNUMBER($H93),(1+$H93)^(BJ$10-$I93),INDEX(lookups!$F$77:$BU$87,MATCH($H93,lookups!$C$77:$C$87,0),MATCH(BJ$10,lookups!$F$76:$BU$76,0))/INDEX(lookups!$F$77:$BU$87,MATCH($H93,lookups!$C$77:$C$87,0),MATCH($I93,lookups!$F$76:$BU$76,0))) -> 1 | BK93: =IF(ISNUMBER($H93),(1+$H93)^(BK$10-$I93),INDEX(lookups!$F$77:$BU$87,MATCH($H93,lookups!$C$77:$C$87,0),MATCH(BK$10,lookups!$F$76:$BU$76,0))/INDEX(lookups!$F$77:$BU$87,MATCH($H93,lookups!$C$77:$C$87,0),MATCH($I93,lookups!$F$76:$BU$76,0))) -> 1 | BL93: =IF(ISNUMBER($H93),(1+$H93)^(BL$10-$I93),INDEX(lookups!$F$77:$BU$87,MATCH($H93,lookups!$C$77:$C$87,0),MATCH(BL$10,lookups!$F$76:$BU$76,0))/INDEX(lookups!$F$77:$BU$87,MATCH($H93,lookups!$C$77:$C$87,0),MATCH($I93,lookups!$F$76:$BU$76,0))) -> 1 | BM93: =IF(ISNUMBER($H93),(1+$H93)^(BM$10-$I93),INDEX(lookups!$F$77:$BU$87,MATCH($H93,lookups!$C$77:$C$87,0),MATCH(BM$10,lookups!$F$76:$BU$76,0))/INDEX(lookups!$F$77:$BU$87,MATCH($H93,lookups!$C$77:$C$87,0),MATCH($I93,lookups!$F$76:$BU$76,0))) -> 1
C94: =C93+1 -> 2 | D94: =INDEX(D$64:D$88,$C94,1) -> O&M | E94: Operating Expense | F94: 2 | H94: =Input!L13 -> 0 | I94: =Assumptions!$D$16 -> 2022 | O94: =IF(ISNUMBER($H94),(1+$H94)^(O$10-$I94),INDEX(lookups!$F$77:$BU$87,MATCH($H94,lookups!$C$77:$C$87,0),MATCH(O$10,lookups!$F$76:$BU$76,0))/INDEX(lookups!$F$77:$BU$87,MATCH($H94,lookups!$C$77:$C$87,0),MATCH($I94,lookups!$F$76:$BU$76,0))) -> 1 | P94: =IF(ISNUMBER($H94),(1+$H94)^(P$10-$I94),INDEX(lookups!$F$77:$BU$87,MATCH($H94,lookups!$C$77:$C$87,0),MATCH(P$10,lookups!$F$76:$BU$76,0))/INDEX(lookups!$F$77:$BU$87,MATCH($H94,lookups!$C$77:$C$87,0),MATCH($I94,lookups!$F$76:$BU$76,0))) -> 1 | Q94: =IF(ISNUMBER($H94),(1+$H94)^(Q$10-$I94),INDEX(lookups!$F$77:$BU$87,MATCH($H94,lookups!$C$77:$C$87,0),MATCH(Q$10,lookups!$F$76:$BU$76,0))/INDEX(lookups!$F$77:$BU$87,MATCH($H94,lookups!$C$77:$C$87,0),MATCH($I94,lookups!$F$76:$BU$76,0))) -> 1 | R94: =IF(ISNUMBER($H94),(1+$H94)^(R$10-$I94),INDEX(lookups!$F$77:$BU$87,MATCH($H94,lookups!$C$77:$C$87,0),MATCH(R$10,lookups!$F$76:$BU$76,0))/INDEX(lookups!$F$77:$BU$87,MATCH($H94,lookups!$C$77:$C$87,0),MATCH($I94,lookups!$F$76:$BU$76,0))) -> 1 | S94: =IF(ISNUMBER($H94),(1+$H94)^(S$10-$I94),INDEX(lookups!$F$77:$BU$87,MATCH($H94,lookups!$C$77:$C$87,0),MATCH(S$10,lookups!$F$76:$BU$76,0))/INDEX(lookups!$F$77:$BU$87,MATCH($H94,lookups!$C$77:$C$87,0),MATCH($I94,lookups!$F$76:$BU$76,0))) -> 1 | T94: =IF(ISNUMBER($H94),(1+$H94)^(T$10-$I94),INDEX(lookups!$F$77:$BU$87,MATCH($H94,lookups!$C$77:$C$87,0),MATCH(T$10,lookups!$F$76:$BU$76,0))/INDEX(lookups!$F$77:$BU$87,MATCH($H94,lookups!$C$77:$C$87,0),MATCH($I94,lookups!$F$76:$BU$76,0))) -> 1 | U94: =IF(ISNUMBER($H94),(1+$H94)^(U$10-$I94),INDEX(lookups!$F$77:$BU$87,MATCH($H94,lookups!$C$77:$C$87,0),MATCH(U$10,lookups!$F$76:$BU$76,0))/INDEX(lookups!$F$77:$BU$87,MATCH($H94,lookups!$C$77:$C$87,0),MATCH($I94,lookups!$F$76:$BU$76,0))) -> 1 | V94: =IF(ISNUMBER($H94),(1+$H94)^(V$10-$I94),INDEX(lookups!$F$77:$BU$87,MATCH($H94,lookups!$C$77:$C$87,0),MATCH(V$10,lookups!$F$76:$BU$76,0))/INDEX(lookups!$F$77:$BU$87,MATCH($H94,lookups!$C$77:$C$87,0),MATCH($I94,lookups!$F$76:$BU$76,0))) -> 1 | W94: =IF(ISNUMBER($H94),(1+$H94)^(W$10-$I94),INDEX(lookups!$F$77:$BU$87,MATCH($H94,lookups!$C$77:$C$87,0),MATCH(W$10,lookups!$F$76:$BU$76,0))/INDEX(lookups!$F$77:$BU$87,MATCH($H94,lookups!$C$77:$C$87,0),MATCH($I94,lookups!$F$76:$BU$76,0))) -> 1 | X94: =IF(ISNUMBER($H94),(1+$H94)^(X$10-$I94),INDEX(lookups!$F$77:$BU$87,MATCH($H94,lookups!$C$77:$C$87,0),MATCH(X$10,lookups!$F$76:$BU$76,0))/INDEX(lookups!$F$77:$BU$87,MATCH($H94,lookups!$C$77:$C$87,0),MATCH($I94,lookups!$F$76:$BU$76,0))) -> 1 | Y94: =IF(ISNUMBER($H94),(1+$H94)^(Y$10-$I94),INDEX(lookups!$F$77:$BU$87,MATCH($H94,lookups!$C$77:$C$87,0),MATCH(Y$10,lookups!$F$76:$BU$76,0))/INDEX(lookups!$F$77:$BU$87,MATCH($H94,lookups!$C$77:$C$87,0),MATCH($I94,lookups!$F$76:$BU$76,0))) -> 1 | Z94: =IF(ISNUMBER($H94),(1+$H94)^(Z$10-$I94),INDEX(lookups!$F$77:$BU$87,MATCH($H94,lookups!$C$77:$C$87,0),MATCH(Z$10,lookups!$F$76:$BU$76,0))/INDEX(lookups!$F$77:$BU$87,MATCH($H94,lookups!$C$77:$C$87,0),MATCH($I94,lookups!$F$76:$BU$76,0))) -> 1 | AA94: =IF(ISNUMBER($H94),(1+$H94)^(AA$10-$I94),INDEX(lookups!$F$77:$BU$87,MATCH($H94,lookups!$C$77:$C$87,0),MATCH(AA$10,lookups!$F$76:$BU$76,0))/INDEX(lookups!$F$77:$BU$87,MATCH($H94,lookups!$C$77:$C$87,0),MATCH($I94,lookups!$F$76:$BU$76,0))) -> 1 | AB94: =IF(ISNUMBER($H94),(1+$H94)^(AB$10-$I94),INDEX(lookups!$F$77:$BU$87,MATCH($H94,lookups!$C$77:$C$87,0),MATCH(AB$10,lookups!$F$76:$BU$76,0))/INDEX(lookups!$F$77:$BU$87,MATCH($H94,lookups!$C$77:$C$87,0),MATCH($I94,lookups!$F$76:$BU$76,0))) -> 1 | AC94: =IF(ISNUMBER($H94),(1+$H94)^(AC$10-$I94),INDEX(lookups!$F$77:$BU$87,MATCH($H94,lookups!$C$77:$C$87,0),MATCH(AC$10,lookups!$F$76:$BU$76,0))/INDEX(lookups!$F$77:$BU$87,MATCH($H94,lookups!$C$77:$C$87,0),MATCH($I94,lookups!$F$76:$BU$76,0))) -> 1 | AD94: =IF(ISNUMBER($H94),(1+$H94)^(AD$10-$I94),INDEX(lookups!$F$77:$BU$87,MATCH($H94,lookups!$C$77:$C$87,0),MATCH(AD$10,lookups!$F$76:$BU$76,0))/INDEX(lookups!$F$77:$BU$87,MATCH($H94,lookups!$C$77:$C$87,0),MATCH($I94,lookups!$F$76:$BU$76,0))) -> 1 | AE94: =IF(ISNUMBER($H94),(1+$H94)^(AE$10-$I94),INDEX(lookups!$F$77:$BU$87,MATCH($H94,lookups!$C$77:$C$87,0),MATCH(AE$10,lookups!$F$76:$BU$76,0))/INDEX(lookups!$F$77:$BU$87,MATCH($H94,lookups!$C$77:$C$87,0),MATCH($I94,lookups!$F$76:$BU$76,0))) -> 1 | AF94: =IF(ISNUMBER($H94),(1+$H94)^(AF$10-$I94),INDEX(lookups!$F$77:$BU$87,MATCH($H94,lookups!$C$77:$C$87,0),MATCH(AF$10,lookups!$F$76:$BU$76,0))/INDEX(lookups!$F$77:$BU$87,MATCH($H94,lookups!$C$77:$C$87,0),MATCH($I94,lookups!$F$76:$BU$76,0))) -> 1 | AG94: =IF(ISNUMBER($H94),(1+$H94)^(AG$10-$I94),INDEX(lookups!$F$77:$BU$87,MATCH($H94,lookups!$C$77:$C$87,0),MATCH(AG$10,lookups!$F$76:$BU$76,0))/INDEX(lookups!$F$77:$BU$87,MATCH($H94,lookups!$C$77:$C$87,0),MATCH($I94,lookups!$F$76:$BU$76,0))) -> 1 | AH94: =IF(ISNUMBER($H94),(1+$H94)^(AH$10-$I94),INDEX(lookups!$F$77:$BU$87,MATCH($H94,lookups!$C$77:$C$87,0),MATCH(AH$10,lookups!$F$76:$BU$76,0))/INDEX(lookups!$F$77:$BU$87,MATCH($H94,lookups!$C$77:$C$87,0),MATCH($I94,lookups!$F$76:$BU$76,0))) -> 1 | AI94: =IF(ISNUMBER($H94),(1+$H94)^(AI$10-$I94),INDEX(lookups!$F$77:$BU$87,MATCH($H94,lookups!$C$77:$C$87,0),MATCH(AI$10,lookups!$F$76:$BU$76,0))/INDEX(lookups!$F$77:$BU$87,MATCH($H94,lookups!$C$77:$C$87,0),MATCH($I94,lookups!$F$76:$BU$76,0))) -> 1 | AJ94: =IF(ISNUMBER($H94),(1+$H94)^(AJ$10-$I94),INDEX(lookups!$F$77:$BU$87,MATCH($H94,lookups!$C$77:$C$87,0),MATCH(AJ$10,lookups!$F$76:$BU$76,0))/INDEX(lookups!$F$77:$BU$87,MATCH($H94,lookups!$C$77:$C$87,0),MATCH($I94,lookups!$F$76:$BU$76,0))) -> 1 | AK94: =IF(ISNUMBER($H94),(1+$H94)^(AK$10-$I94),INDEX(lookups!$F$77:$BU$87,MATCH($H94,lookups!$C$77:$C$87,0),MATCH(AK$10,lookups!$F$76:$BU$76,0))/INDEX(lookups!$F$77:$BU$87,MATCH($H94,lookups!$C$77:$C$87,0),MATCH($I94,lookups!$F$76:$BU$76,0))) -> 1 | AL94: =IF(ISNUMBER($H94),(1+$H94)^(AL$10-$I94),INDEX(lookups!$F$77:$BU$87,MATCH($H94,lookups!$C$77:$C$87,0),MATCH(AL$10,lookups!$F$76:$BU$76,0))/INDEX(lookups!$F$77:$BU$87,MATCH($H94,lookups!$C$77:$C$87,0),MATCH($I94,lookups!$F$76:$BU$76,0))) -> 1 | AM94: =IF(ISNUMBER($H94),(1+$H94)^(AM$10-$I94),INDEX(lookups!$F$77:$BU$87,MATCH($H94,lookups!$C$77:$C$87,0),MATCH(AM$10,lookups!$F$76:$BU$76,0))/INDEX(lookups!$F$77:$BU$87,MATCH($H94,lookups!$C$77:$C$87,0),MATCH($I94,lookups!$F$76:$BU$76,0))) -> 1 | AN94: =IF(ISNUMBER($H94),(1+$H94)^(AN$10-$I94),INDEX(lookups!$F$77:$BU$87,MATCH($H94,lookups!$C$77:$C$87,0),MATCH(AN$10,lookups!$F$76:$BU$76,0))/INDEX(lookups!$F$77:$BU$87,MATCH($H94,lookups!$C$77:$C$87,0),MATCH($I94,lookups!$F$76:$BU$76,0))) -> 1 | AO94: =IF(ISNUMBER($H94),(1+$H94)^(AO$10-$I94),INDEX(lookups!$F$77:$BU$87,MATCH($H94,lookups!$C$77:$C$87,0),MATCH(AO$10,lookups!$F$76:$BU$76,0))/INDEX(lookups!$F$77:$BU$87,MATCH($H94,lookups!$C$77:$C$87,0),MATCH($I94,lookups!$F$76:$BU$76,0))) -> 1 | AP94: =IF(ISNUMBER($H94),(1+$H94)^(AP$10-$I94),INDEX(lookups!$F$77:$BU$87,MATCH($H94,lookups!$C$77:$C$87,0),MATCH(AP$10,lookups!$F$76:$BU$76,0))/INDEX(lookups!$F$77:$BU$87,MATCH($H94,lookups!$C$77:$C$87,0),MATCH($I94,lookups!$F$76:$BU$76,0))) -> 1 | AQ94: =IF(ISNUMBER($H94),(1+$H94)^(AQ$10-$I94),INDEX(lookups!$F$77:$BU$87,MATCH($H94,lookups!$C$77:$C$87,0),MATCH(AQ$10,lookups!$F$76:$BU$76,0))/INDEX(lookups!$F$77:$BU$87,MATCH($H94,lookups!$C$77:$C$87,0),MATCH($I94,lookups!$F$76:$BU$76,0))) -> 1 | AR94: =IF(ISNUMBER($H94),(1+$H94)^(AR$10-$I94),INDEX(lookups!$F$77:$BU$87,MATCH($H94,lookups!$C$77:$C$87,0),MATCH(AR$10,lookups!$F$76:$BU$76,0))/INDEX(lookups!$F$77:$BU$87,MATCH($H94,lookups!$C$77:$C$87,0),MATCH($I94,lookups!$F$76:$BU$76,0))) -> 1 | AS94: =IF(ISNUMBER($H94),(1+$H94)^(AS$10-$I94),INDEX(lookups!$F$77:$BU$87,MATCH($H94,lookups!$C$77:$C$87,0),MATCH(AS$10,lookups!$F$76:$BU$76,0))/INDEX(lookups!$F$77:$BU$87,MATCH($H94,lookups!$C$77:$C$87,0),MATCH($I94,lookups!$F$76:$BU$76,0))) -> 1 | AT94: =IF(ISNUMBER($H94),(1+$H94)^(AT$10-$I94),INDEX(lookups!$F$77:$BU$87,MATCH($H94,lookups!$C$77:$C$87,0),MATCH(AT$10,lookups!$F$76:$BU$76,0))/INDEX(lookups!$F$77:$BU$87,MATCH($H94,lookups!$C$77:$C$87,0),MATCH($I94,lookups!$F$76:$BU$76,0))) -> 1 | AU94: =IF(ISNUMBER($H94),(1+$H94)^(AU$10-$I94),INDEX(lookups!$F$77:$BU$87,MATCH($H94,lookups!$C$77:$C$87,0),MATCH(AU$10,lookups!$F$76:$BU$76,0))/INDEX(lookups!$F$77:$BU$87,MATCH($H94,lookups!$C$77:$C$87,0),MATCH($I94,lookups!$F$76:$BU$76,0))) -> 1 | AV94: =IF(ISNUMBER($H94),(1+$H94)^(AV$10-$I94),INDEX(lookups!$F$77:$BU$87,MATCH($H94,lookups!$C$77:$C$87,0),MATCH(AV$10,lookups!$F$76:$BU$76,0))/INDEX(lookups!$F$77:$BU$87,MATCH($H94,lookups!$C$77:$C$87,0),MATCH($I94,lookups!$F$76:$BU$76,0))) -> 1 | AW94: =IF(ISNUMBER($H94),(1+$H94)^(AW$10-$I94),INDEX(lookups!$F$77:$BU$87,MATCH($H94,lookups!$C$77:$C$87,0),MATCH(AW$10,lookups!$F$76:$BU$76,0))/INDEX(lookups!$F$77:$BU$87,MATCH($H94,lookups!$C$77:$C$87,0),MATCH($I94,lookups!$F$76:$BU$76,0))) -> 1 | AX94: =IF(ISNUMBER($H94),(1+$H94)^(AX$10-$I94),INDEX(lookups!$F$77:$BU$87,MATCH($H94,lookups!$C$77:$C$87,0),MATCH(AX$10,lookups!$F$76:$BU$76,0))/INDEX(lookups!$F$77:$BU$87,MATCH($H94,lookups!$C$77:$C$87,0),MATCH($I94,lookups!$F$76:$BU$76,0))) -> 1 | AY94: =IF(ISNUMBER($H94),(1+$H94)^(AY$10-$I94),INDEX(lookups!$F$77:$BU$87,MATCH($H94,lookups!$C$77:$C$87,0),MATCH(AY$10,lookups!$F$76:$BU$76,0))/INDEX(lookups!$F$77:$BU$87,MATCH($H94,lookups!$C$77:$C$87,0),MATCH($I94,lookups!$F$76:$BU$76,0))) -> 1 | AZ94: =IF(ISNUMBER($H94),(1+$H94)^(AZ$10-$I94),INDEX(lookups!$F$77:$BU$87,MATCH($H94,lookups!$C$77:$C$87,0),MATCH(AZ$10,lookups!$F$76:$BU$76,0))/INDEX(lookups!$F$77:$BU$87,MATCH($H94,lookups!$C$77:$C$87,0),MATCH($I94,lookups!$F$76:$BU$76,0))) -> 1 | BA94: =IF(ISNUMBER($H94),(1+$H94)^(BA$10-$I94),INDEX(lookups!$F$77:$BU$87,MATCH($H94,lookups!$C$77:$C$87,0),MATCH(BA$10,lookups!$F$76:$BU$76,0))/INDEX(lookups!$F$77:$BU$87,MATCH($H94,lookups!$C$77:$C$87,0),MATCH($I94,lookups!$F$76:$BU$76,0))) -> 1 | BB94: =IF(ISNUMBER($H94),(1+$H94)^(BB$10-$I94),INDEX(lookups!$F$77:$BU$87,MATCH($H94,lookups!$C$77:$C$87,0),MATCH(BB$10,lookups!$F$76:$BU$76,0))/INDEX(lookups!$F$77:$BU$87,MATCH($H94,lookups!$C$77:$C$87,0),MATCH($I94,lookups!$F$76:$BU$76,0))) -> 1 | BC94: =IF(ISNUMBER($H94),(1+$H94)^(BC$10-$I94),INDEX(lookups!$F$77:$BU$87,MATCH($H94,lookups!$C$77:$C$87,0),MATCH(BC$10,lookups!$F$76:$BU$76,0))/INDEX(lookups!$F$77:$BU$87,MATCH($H94,lookups!$C$77:$C$87,0),MATCH($I94,lookups!$F$76:$BU$76,0))) -> 1 | BD94: =IF(ISNUMBER($H94),(1+$H94)^(BD$10-$I94),INDEX(lookups!$F$77:$BU$87,MATCH($H94,lookups!$C$77:$C$87,0),MATCH(BD$10,lookups!$F$76:$BU$76,0))/INDEX(lookups!$F$77:$BU$87,MATCH($H94,lookups!$C$77:$C$87,0),MATCH($I94,lookups!$F$76:$BU$76,0))) -> 1 | BE94: =IF(ISNUMBER($H94),(1+$H94)^(BE$10-$I94),INDEX(lookups!$F$77:$BU$87,MATCH($H94,lookups!$C$77:$C$87,0),MATCH(BE$10,lookups!$F$76:$BU$76,0))/INDEX(lookups!$F$77:$BU$87,MATCH($H94,lookups!$C$77:$C$87,0),MATCH($I94,lookups!$F$76:$BU$76,0))) -> 1 | BF94: =IF(ISNUMBER($H94),(1+$H94)^(BF$10-$I94),INDEX(lookups!$F$77:$BU$87,MATCH($H94,lookups!$C$77:$C$87,0),MATCH(BF$10,lookups!$F$76:$BU$76,0))/INDEX(lookups!$F$77:$BU$87,MATCH($H94,lookups!$C$77:$C$87,0),MATCH($I94,lookups!$F$76:$BU$76,0))) -> 1 | BG94: =IF(ISNUMBER($H94),(1+$H94)^(BG$10-$I94),INDEX(lookups!$F$77:$BU$87,MATCH($H94,lookups!$C$77:$C$87,0),MATCH(BG$10,lookups!$F$76:$BU$76,0))/INDEX(lookups!$F$77:$BU$87,MATCH($H94,lookups!$C$77:$C$87,0),MATCH($I94,lookups!$F$76:$BU$76,0))) -> 1 | BH94: =IF(ISNUMBER($H94),(1+$H94)^(BH$10-$I94),INDEX(lookups!$F$77:$BU$87,MATCH($H94,lookups!$C$77:$C$87,0),MATCH(BH$10,lookups!$F$76:$BU$76,0))/INDEX(lookups!$F$77:$BU$87,MATCH($H94,lookups!$C$77:$C$87,0),MATCH($I94,lookups!$F$76:$BU$76,0))) -> 1 | BI94: =IF(ISNUMBER($H94),(1+$H94)^(BI$10-$I94),INDEX(lookups!$F$77:$BU$87,MATCH($H94,lookups!$C$77:$C$87,0),MATCH(BI$10,lookups!$F$76:$BU$76,0))/INDEX(lookups!$F$77:$BU$87,MATCH($H94,lookups!$C$77:$C$87,0),MATCH($I94,lookups!$F$76:$BU$76,0))) -> 1 | BJ94: =IF(ISNUMBER($H94),(1+$H94)^(BJ$10-$I94),INDEX(lookups!$F$77:$BU$87,MATCH($H94,lookups!$C$77:$C$87,0),MATCH(BJ$10,lookups!$F$76:$BU$76,0))/INDEX(lookups!$F$77:$BU$87,MATCH($H94,lookups!$C$77:$C$87,0),MATCH($I94,lookups!$F$76:$BU$76,0))) -> 1 | BK94: =IF(ISNUMBER($H94),(1+$H94)^(BK$10-$I94),INDEX(lookups!$F$77:$BU$87,MATCH($H94,lookups!$C$77:$C$87,0),MATCH(BK$10,lookups!$F$76:$BU$76,0))/INDEX(lookups!$F$77:$BU$87,MATCH($H94,lookups!$C$77:$C$87,0),MATCH($I94,lookups!$F$76:$BU$76,0))) -> 1 | BL94: =IF(ISNUMBER($H94),(1+$H94)^(BL$10-$I94),INDEX(lookups!$F$77:$BU$87,MATCH($H94,lookups!$C$77:$C$87,0),MATCH(BL$10,lookups!$F$76:$BU$76,0))/INDEX(lookups!$F$77:$BU$87,MATCH($H94,lookups!$C$77:$C$87,0),MATCH($I94,lookups!$F$76:$BU$76,0))) -> 1 | BM94: =IF(ISNUMBER($H94),(1+$H94)^(BM$10-$I94),INDEX(lookups!$F$77:$BU$87,MATCH($H94,lookups!$C$77:$C$87,0),MATCH(BM$10,lookups!$F$76:$BU$76,0))/INDEX(lookups!$F$77:$BU$87,MATCH($H94,lookups!$C$77:$C$87,0),MATCH($I94,lookups!$F$76:$BU$76,0))) -> 1
C95: 3 | D95: … | E95: Operating Expense | F95: 2 | H95: =Input!L14 -> 0 | I95: =Assumptions!$D$16 -> 2022 | O95: =IF(ISNUMBER($H95),(1+$H95)^(O$10-$I95),INDEX(lookups!$F$77:$BU$87,MATCH($H95,lookups!$C$77:$C$87,0),MATCH(O$10,lookups!$F$76:$BU$76,0))/INDEX(lookups!$F$77:$BU$87,MATCH($H95,lookups!$C$77:$C$87,0),MATCH($I95,lookups!$F$76:$BU$76,0))) -> 1 | P95: =IF(ISNUMBER($H95),(1+$H95)^(P$10-$I95),INDEX(lookups!$F$77:$BU$87,MATCH($H95,lookups!$C$77:$C$87,0),MATCH(P$10,lookups!$F$76:$BU$76,0))/INDEX(lookups!$F$77:$BU$87,MATCH($H95,lookups!$C$77:$C$87,0),MATCH($I95,lookups!$F$76:$BU$76,0))) -> 1 | Q95: =IF(ISNUMBER($H95),(1+$H95)^(Q$10-$I95),INDEX(lookups!$F$77:$BU$87,MATCH($H95,lookups!$C$77:$C$87,0),MATCH(Q$10,lookups!$F$76:$BU$76,0))/INDEX(lookups!$F$77:$BU$87,MATCH($H95,lookups!$C$77:$C$87,0),MATCH($I95,lookups!$F$76:$BU$76,0))) -> 1 | R95: =IF(ISNUMBER($H95),(1+$H95)^(R$10-$I95),INDEX(lookups!$F$77:$BU$87,MATCH($H95,lookups!$C$77:$C$87,0),MATCH(R$10,lookups!$F$76:$BU$76,0))/INDEX(lookups!$F$77:$BU$87,MATCH($H95,lookups!$C$77:$C$87,0),MATCH($I95,lookups!$F$76:$BU$76,0))) -> 1 | S95: =IF(ISNUMBER($H95),(1+$H95)^(S$10-$I95),INDEX(lookups!$F$77:$BU$87,MATCH($H95,lookups!$C$77:$C$87,0),MATCH(S$10,lookups!$F$76:$BU$76,0))/INDEX(lookups!$F$77:$BU$87,MATCH($H95,lookups!$C$77:$C$87,0),MATCH($I95,lookups!$F$76:$BU$76,0))) -> 1 | T95: =IF(ISNUMBER($H95),(1+$H95)^(T$10-$I95),INDEX(lookups!$F$77:$BU$87,MATCH($H95,lookups!$C$77:$C$87,0),MATCH(T$10,lookups!$F$76:$BU$76,0))/INDEX(lookups!$F$77:$BU$87,MATCH($H95,lookups!$C$77:$C$87,0),MATCH($I95,lookups!$F$76:$BU$76,0))) -> 1 | U95: =IF(ISNUMBER($H95),(1+$H95)^(U$10-$I95),INDEX(lookups!$F$77:$BU$87,MATCH($H95,lookups!$C$77:$C$87,0),MATCH(U$10,lookups!$F$76:$BU$76,0))/INDEX(lookups!$F$77:$BU$87,MATCH($H95,lookups!$C$77:$C$87,0),MATCH($I95,lookups!$F$76:$BU$76,0))) -> 1 | V95: =IF(ISNUMBER($H95),(1+$H95)^(V$10-$I95),INDEX(lookups!$F$77:$BU$87,MATCH($H95,lookups!$C$77:$C$87,0),MATCH(V$10,lookups!$F$76:$BU$76,0))/INDEX(lookups!$F$77:$BU$87,MATCH($H95,lookups!$C$77:$C$87,0),MATCH($I95,lookups!$F$76:$BU$76,0))) -> 1 | W95: =IF(ISNUMBER($H95),(1+$H95)^(W$10-$I95),INDEX(lookups!$F$77:$BU$87,MATCH($H95,lookups!$C$77:$C$87,0),MATCH(W$10,lookups!$F$76:$BU$76,0))/INDEX(lookups!$F$77:$BU$87,MATCH($H95,lookups!$C$77:$C$87,0),MATCH($I95,lookups!$F$76:$BU$76,0))) -> 1 | X95: =IF(ISNUMBER($H95),(1+$H95)^(X$10-$I95),INDEX(lookups!$F$77:$BU$87,MATCH($H95,lookups!$C$77:$C$87,0),MATCH(X$10,lookups!$F$76:$BU$76,0))/INDEX(lookups!$F$77:$BU$87,MATCH($H95,lookups!$C$77:$C$87,0),MATCH($I95,lookups!$F$76:$BU$76,0))) -> 1 | Y95: =IF(ISNUMBER($H95),(1+$H95)^(Y$10-$I95),INDEX(lookups!$F$77:$BU$87,MATCH($H95,lookups!$C$77:$C$87,0),MATCH(Y$10,lookups!$F$76:$BU$76,0))/INDEX(lookups!$F$77:$BU$87,MATCH($H95,lookups!$C$77:$C$87,0),MATCH($I95,lookups!$F$76:$BU$76,0))) -> 1 | Z95: =IF(ISNUMBER($H95),(1+$H95)^(Z$10-$I95),INDEX(lookups!$F$77:$BU$87,MATCH($H95,lookups!$C$77:$C$87,0),MATCH(Z$10,lookups!$F$76:$BU$76,0))/INDEX(lookups!$F$77:$BU$87,MATCH($H95,lookups!$C$77:$C$87,0),MATCH($I95,lookups!$F$76:$BU$76,0))) -> 1 | AA95: =IF(ISNUMBER($H95),(1+$H95)^(AA$10-$I95),INDEX(lookups!$F$77:$BU$87,MATCH($H95,lookups!$C$77:$C$87,0),MATCH(AA$10,lookups!$F$76:$BU$76,0))/INDEX(lookups!$F$77:$BU$87,MATCH($H95,lookups!$C$77:$C$87,0),MATCH($I95,lookups!$F$76:$BU$76,0))) -> 1 | AB95: =IF(ISNUMBER($H95),(1+$H95)^(AB$10-$I95),INDEX(lookups!$F$77:$BU$87,MATCH($H95,lookups!$C$77:$C$87,0),MATCH(AB$10,lookups!$F$76:$BU$76,0))/INDEX(lookups!$F$77:$BU$87,MATCH($H95,lookups!$C$77:$C$87,0),MATCH($I95,lookups!$F$76:$BU$76,0))) -> 1 | AC95: =IF(ISNUMBER($H95),(1+$H95)^(AC$10-$I95),INDEX(lookups!$F$77:$BU$87,MATCH($H95,lookups!$C$77:$C$87,0),MATCH(AC$10,lookups!$F$76:$BU$76,0))/INDEX(lookups!$F$77:$BU$87,MATCH($H95,lookups!$C$77:$C$87,0),MATCH($I95,lookups!$F$76:$BU$76,0))) -> 1 | AD95: =IF(ISNUMBER($H95),(1+$H95)^(AD$10-$I95),INDEX(lookups!$F$77:$BU$87,MATCH($H95,lookups!$C$77:$C$87,0),MATCH(AD$10,lookups!$F$76:$BU$76,0))/INDEX(lookups!$F$77:$BU$87,MATCH($H95,lookups!$C$77:$C$87,0),MATCH($I95,lookups!$F$76:$BU$76,0))) -> 1 | AE95: =IF(ISNUMBER($H95),(1+$H95)^(AE$10-$I95),INDEX(lookups!$F$77:$BU$87,MATCH($H95,lookups!$C$77:$C$87,0),MATCH(AE$10,lookups!$F$76:$BU$76,0))/INDEX(lookups!$F$77:$BU$87,MATCH($H95,lookups!$C$77:$C$87,0),MATCH($I95,lookups!$F$76:$BU$76,0))) -> 1 | AF95: =IF(ISNUMBER($H95),(1+$H95)^(AF$10-$I95),INDEX(lookups!$F$77:$BU$87,MATCH($H95,lookups!$C$77:$C$87,0),MATCH(AF$10,lookups!$F$76:$BU$76,0))/INDEX(lookups!$F$77:$BU$87,MATCH($H95,lookups!$C$77:$C$87,0),MATCH($I95,lookups!$F$76:$BU$76,0))) -> 1 | AG95: =IF(ISNUMBER($H95),(1+$H95)^(AG$10-$I95),INDEX(lookups!$F$77:$BU$87,MATCH($H95,lookups!$C$77:$C$87,0),MATCH(AG$10,lookups!$F$76:$BU$76,0))/INDEX(lookups!$F$77:$BU$87,MATCH($H95,lookups!$C$77:$C$87,0),MATCH($I95,lookups!$F$76:$BU$76,0))) -> 1 | AH95: =IF(ISNUMBER($H95),(1+$H95)^(AH$10-$I95),INDEX(lookups!$F$77:$BU$87,MATCH($H95,lookups!$C$77:$C$87,0),MATCH(AH$10,lookups!$F$76:$BU$76,0))/INDEX(lookups!$F$77:$BU$87,MATCH($H95,lookups!$C$77:$C$87,0),MATCH($I95,lookups!$F$76:$BU$76,0))) -> 1 | AI95: =IF(ISNUMBER($H95),(1+$H95)^(AI$10-$I95),INDEX(lookups!$F$77:$BU$87,MATCH($H95,lookups!$C$77:$C$87,0),MATCH(AI$10,lookups!$F$76:$BU$76,0))/INDEX(lookups!$F$77:$BU$87,MATCH($H95,lookups!$C$77:$C$87,0),MATCH($I95,lookups!$F$76:$BU$76,0))) -> 1 | AJ95: =IF(ISNUMBER($H95),(1+$H95)^(AJ$10-$I95),INDEX(lookups!$F$77:$BU$87,MATCH($H95,lookups!$C$77:$C$87,0),MATCH(AJ$10,lookups!$F$76:$BU$76,0))/INDEX(lookups!$F$77:$BU$87,MATCH($H95,lookups!$C$77:$C$87,0),MATCH($I95,lookups!$F$76:$BU$76,0))) -> 1 | AK95: =IF(ISNUMBER($H95),(1+$H95)^(AK$10-$I95),INDEX(lookups!$F$77:$BU$87,MATCH($H95,lookups!$C$77:$C$87,0),MATCH(AK$10,lookups!$F$76:$BU$76,0))/INDEX(lookups!$F$77:$BU$87,MATCH($H95,lookups!$C$77:$C$87,0),MATCH($I95,lookups!$F$76:$BU$76,0))) -> 1 | AL95: =IF(ISNUMBER($H95),(1+$H95)^(AL$10-$I95),INDEX(lookups!$F$77:$BU$87,MATCH($H95,lookups!$C$77:$C$87,0),MATCH(AL$10,lookups!$F$76:$BU$76,0))/INDEX(lookups!$F$77:$BU$87,MATCH($H95,lookups!$C$77:$C$87,0),MATCH($I95,lookups!$F$76:$BU$76,0))) -> 1 | AM95: =IF(ISNUMBER($H95),(1+$H95)^(AM$10-$I95),INDEX(lookups!$F$77:$BU$87,MATCH($H95,lookups!$C$77:$C$87,0),MATCH(AM$10,lookups!$F$76:$BU$76,0))/INDEX(lookups!$F$77:$BU$87,MATCH($H95,lookups!$C$77:$C$87,0),MATCH($I95,lookups!$F$76:$BU$76,0))) -> 1 | AN95: =IF(ISNUMBER($H95),(1+$H95)^(AN$10-$I95),INDEX(lookups!$F$77:$BU$87,MATCH($H95,lookups!$C$77:$C$87,0),MATCH(AN$10,lookups!$F$76:$BU$76,0))/INDEX(lookups!$F$77:$BU$87,MATCH($H95,lookups!$C$77:$C$87,0),MATCH($I95,lookups!$F$76:$BU$76,0))) -> 1 | AO95: =IF(ISNUMBER($H95),(1+$H95)^(AO$10-$I95),INDEX(lookups!$F$77:$BU$87,MATCH($H95,lookups!$C$77:$C$87,0),MATCH(AO$10,lookups!$F$76:$BU$76,0))/INDEX(lookups!$F$77:$BU$87,MATCH($H95,lookups!$C$77:$C$87,0),MATCH($I95,lookups!$F$76:$BU$76,0))) -> 1 | AP95: =IF(ISNUMBER($H95),(1+$H95)^(AP$10-$I95),INDEX(lookups!$F$77:$BU$87,MATCH($H95,lookups!$C$77:$C$87,0),MATCH(AP$10,lookups!$F$76:$BU$76,0))/INDEX(lookups!$F$77:$BU$87,MATCH($H95,lookups!$C$77:$C$87,0),MATCH($I95,lookups!$F$76:$BU$76,0))) -> 1 | AQ95: =IF(ISNUMBER($H95),(1+$H95)^(AQ$10-$I95),INDEX(lookups!$F$77:$BU$87,MATCH($H95,lookups!$C$77:$C$87,0),MATCH(AQ$10,lookups!$F$76:$BU$76,0))/INDEX(lookups!$F$77:$BU$87,MATCH($H95,lookups!$C$77:$C$87,0),MATCH($I95,lookups!$F$76:$BU$76,0))) -> 1 | AR95: =IF(ISNUMBER($H95),(1+$H95)^(AR$10-$I95),INDEX(lookups!$F$77:$BU$87,MATCH($H95,lookups!$C$77:$C$87,0),MATCH(AR$10,lookups!$F$76:$BU$76,0))/INDEX(lookups!$F$77:$BU$87,MATCH($H95,lookups!$C$77:$C$87,0),MATCH($I95,lookups!$F$76:$BU$76,0))) -> 1 | AS95: =IF(ISNUMBER($H95),(1+$H95)^(AS$10-$I95),INDEX(lookups!$F$77:$BU$87,MATCH($H95,lookups!$C$77:$C$87,0),MATCH(AS$10,lookups!$F$76:$BU$76,0))/INDEX(lookups!$F$77:$BU$87,MATCH($H95,lookups!$C$77:$C$87,0),MATCH($I95,lookups!$F$76:$BU$76,0))) -> 1 | AT95: =IF(ISNUMBER($H95),(1+$H95)^(AT$10-$I95),INDEX(lookups!$F$77:$BU$87,MATCH($H95,lookups!$C$77:$C$87,0),MATCH(AT$10,lookups!$F$76:$BU$76,0))/INDEX(lookups!$F$77:$BU$87,MATCH($H95,lookups!$C$77:$C$87,0),MATCH($I95,lookups!$F$76:$BU$76,0))) -> 1 | AU95: =IF(ISNUMBER($H95),(1+$H95)^(AU$10-$I95),INDEX(lookups!$F$77:$BU$87,MATCH($H95,lookups!$C$77:$C$87,0),MATCH(AU$10,lookups!$F$76:$BU$76,0))/INDEX(lookups!$F$77:$BU$87,MATCH($H95,lookups!$C$77:$C$87,0),MATCH($I95,lookups!$F$76:$BU$76,0))) -> 1 | AV95: =IF(ISNUMBER($H95),(1+$H95)^(AV$10-$I95),INDEX(lookups!$F$77:$BU$87,MATCH($H95,lookups!$C$77:$C$87,0),MATCH(AV$10,lookups!$F$76:$BU$76,0))/INDEX(lookups!$F$77:$BU$87,MATCH($H95,lookups!$C$77:$C$87,0),MATCH($I95,lookups!$F$76:$BU$76,0))) -> 1 | AW95: =IF(ISNUMBER($H95),(1+$H95)^(AW$10-$I95),INDEX(lookups!$F$77:$BU$87,MATCH($H95,lookups!$C$77:$C$87,0),MATCH(AW$10,lookups!$F$76:$BU$76,0))/INDEX(lookups!$F$77:$BU$87,MATCH($H95,lookups!$C$77:$C$87,0),MATCH($I95,lookups!$F$76:$BU$76,0))) -> 1 | AX95: =IF(ISNUMBER($H95),(1+$H95)^(AX$10-$I95),INDEX(lookups!$F$77:$BU$87,MATCH($H95,lookups!$C$77:$C$87,0),MATCH(AX$10,lookups!$F$76:$BU$76,0))/INDEX(lookups!$F$77:$BU$87,MATCH($H95,lookups!$C$77:$C$87,0),MATCH($I95,lookups!$F$76:$BU$76,0))) -> 1 | AY95: =IF(ISNUMBER($H95),(1+$H95)^(AY$10-$I95),INDEX(lookups!$F$77:$BU$87,MATCH($H95,lookups!$C$77:$C$87,0),MATCH(AY$10,lookups!$F$76:$BU$76,0))/INDEX(lookups!$F$77:$BU$87,MATCH($H95,lookups!$C$77:$C$87,0),MATCH($I95,lookups!$F$76:$BU$76,0))) -> 1 | AZ95: =IF(ISNUMBER($H95),(1+$H95)^(AZ$10-$I95),INDEX(lookups!$F$77:$BU$87,MATCH($H95,lookups!$C$77:$C$87,0),MATCH(AZ$10,lookups!$F$76:$BU$76,0))/INDEX(lookups!$F$77:$BU$87,MATCH($H95,lookups!$C$77:$C$87,0),MATCH($I95,lookups!$F$76:$BU$76,0))) -> 1 | BA95: =IF(ISNUMBER($H95),(1+$H95)^(BA$10-$I95),INDEX(lookups!$F$77:$BU$87,MATCH($H95,lookups!$C$77:$C$87,0),MATCH(BA$10,lookups!$F$76:$BU$76,0))/INDEX(lookups!$F$77:$BU$87,MATCH($H95,lookups!$C$77:$C$87,0),MATCH($I95,lookups!$F$76:$BU$76,0))) -> 1 | BB95: =IF(ISNUMBER($H95),(1+$H95)^(BB$10-$I95),INDEX(lookups!$F$77:$BU$87,MATCH($H95,lookups!$C$77:$C$87,0),MATCH(BB$10,lookups!$F$76:$BU$76,0))/INDEX(lookups!$F$77:$BU$87,MATCH($H95,lookups!$C$77:$C$87,0),MATCH($I95,lookups!$F$76:$BU$76,0))) -> 1 | BC95: =IF(ISNUMBER($H95),(1+$H95)^(BC$10-$I95),INDEX(lookups!$F$77:$BU$87,MATCH($H95,lookups!$C$77:$C$87,0),MATCH(BC$10,lookups!$F$76:$BU$76,0))/INDEX(lookups!$F$77:$BU$87,MATCH($H95,lookups!$C$77:$C$87,0),MATCH($I95,lookups!$F$76:$BU$76,0))) -> 1 | BD95: =IF(ISNUMBER($H95),(1+$H95)^(BD$10-$I95),INDEX(lookups!$F$77:$BU$87,MATCH($H95,lookups!$C$77:$C$87,0),MATCH(BD$10,lookups!$F$76:$BU$76,0))/INDEX(lookups!$F$77:$BU$87,MATCH($H95,lookups!$C$77:$C$87,0),MATCH($I95,lookups!$F$76:$BU$76,0))) -> 1 | BE95: =IF(ISNUMBER($H95),(1+$H95)^(BE$10-$I95),INDEX(lookups!$F$77:$BU$87,MATCH($H95,lookups!$C$77:$C$87,0),MATCH(BE$10,lookups!$F$76:$BU$76,0))/INDEX(lookups!$F$77:$BU$87,MATCH($H95,lookups!$C$77:$C$87,0),MATCH($I95,lookups!$F$76:$BU$76,0))) -> 1 | BF95: =IF(ISNUMBER($H95),(1+$H95)^(BF$10-$I95),INDEX(lookups!$F$77:$BU$87,MATCH($H95,lookups!$C$77:$C$87,0),MATCH(BF$10,lookups!$F$76:$BU$76,0))/INDEX(lookups!$F$77:$BU$87,MATCH($H95,lookups!$C$77:$C$87,0),MATCH($I95,lookups!$F$76:$BU$76,0))) -> 1 | BG95: =IF(ISNUMBER($H95),(1+$H95)^(BG$10-$I95),INDEX(lookups!$F$77:$BU$87,MATCH($H95,lookups!$C$77:$C$87,0),MATCH(BG$10,lookups!$F$76:$BU$76,0))/INDEX(lookups!$F$77:$BU$87,MATCH($H95,lookups!$C$77:$C$87,0),MATCH($I95,lookups!$F$76:$BU$76,0))) -> 1 | BH95: =IF(ISNUMBER($H95),(1+$H95)^(BH$10-$I95),INDEX(lookups!$F$77:$BU$87,MATCH($H95,lookups!$C$77:$C$87,0),MATCH(BH$10,lookups!$F$76:$BU$76,0))/INDEX(lookups!$F$77:$BU$87,MATCH($H95,lookups!$C$77:$C$87,0),MATCH($I95,lookups!$F$76:$BU$76,0))) -> 1 | BI95: =IF(ISNUMBER($H95),(1+$H95)^(BI$10-$I95),INDEX(lookups!$F$77:$BU$87,MATCH($H95,lookups!$C$77:$C$87,0),MATCH(BI$10,lookups!$F$76:$BU$76,0))/INDEX(lookups!$F$77:$BU$87,MATCH($H95,lookups!$C$77:$C$87,0),MATCH($I95,lookups!$F$76:$BU$76,0))) -> 1 | BJ95: =IF(ISNUMBER($H95),(1+$H95)^(BJ$10-$I95),INDEX(lookups!$F$77:$BU$87,MATCH($H95,lookups!$C$77:$C$87,0),MATCH(BJ$10,lookups!$F$76:$BU$76,0))/INDEX(lookups!$F$77:$BU$87,MATCH($H95,lookups!$C$77:$C$87,0),MATCH($I95,lookups!$F$76:$BU$76,0))) -> 1 | BK95: =IF(ISNUMBER($H95),(1+$H95)^(BK$10-$I95),INDEX(lookups!$F$77:$BU$87,MATCH($H95,lookups!$C$77:$C$87,0),MATCH(BK$10,lookups!$F$76:$BU$76,0))/INDEX(lookups!$F$77:$BU$87,MATCH($H95,lookups!$C$77:$C$87,0),MATCH($I95,lookups!$F$76:$BU$76,0))) -> 1 | BL95: =IF(ISNUMBER($H95),(1+$H95)^(BL$10-$I95),INDEX(lookups!$F$77:$BU$87,MATCH($H95,lookups!$C$77:$C$87,0),MATCH(BL$10,lookups!$F$76:$BU$76,0))/INDEX(lookups!$F$77:$BU$87,MATCH($H95,lookups!$C$77:$C$87,0),MATCH($I95,lookups!$F$76:$BU$76,0))) -> 1 | BM95: =IF(ISNUMBER($H95),(1+$H95)^(BM$10-$I95),INDEX(lookups!$F$77:$BU$87,MATCH($H95,lookups!$C$77:$C$87,0),MATCH(BM$10,lookups!$F$76:$BU$76,0))/INDEX(lookups!$F$77:$BU$87,MATCH($H95,lookups!$C$77:$C$87,0),MATCH($I95,lookups!$F$76:$BU$76,0))) -> 1
C96: 4 | D96: … | E96: Operating Savings | F96: 1 | H96: =Input!L15 -> 0 | I96: =Assumptions!$D$16 -> 2022 | O96: =IF(ISNUMBER($H96),(1+$H96)^(O$10-$I96),INDEX(lookups!$F$77:$BU$87,MATCH($H96,lookups!$C$77:$C$87,0),MATCH(O$10,lookups!$F$76:$BU$76,0))/INDEX(lookups!$F$77:$BU$87,MATCH($H96,lookups!$C$77:$C$87,0),MATCH($I96,lookups!$F$76:$BU$76,0))) -> 1 | P96: =IF(ISNUMBER($H96),(1+$H96)^(P$10-$I96),INDEX(lookups!$F$77:$BU$87,MATCH($H96,lookups!$C$77:$C$87,0),MATCH(P$10,lookups!$F$76:$BU$76,0))/INDEX(lookups!$F$77:$BU$87,MATCH($H96,lookups!$C$77:$C$87,0),MATCH($I96,lookups!$F$76:$BU$76,0))) -> 1 | Q96: =IF(ISNUMBER($H96),(1+$H96)^(Q$10-$I96),INDEX(lookups!$F$77:$BU$87,MATCH($H96,lookups!$C$77:$C$87,0),MATCH(Q$10,lookups!$F$76:$BU$76,0))/INDEX(lookups!$F$77:$BU$87,MATCH($H96,lookups!$C$77:$C$87,0),MATCH($I96,lookups!$F$76:$BU$76,0))) -> 1 | R96: =IF(ISNUMBER($H96),(1+$H96)^(R$10-$I96),INDEX(lookups!$F$77:$BU$87,MATCH($H96,lookups!$C$77:$C$87,0),MATCH(R$10,lookups!$F$76:$BU$76,0))/INDEX(lookups!$F$77:$BU$87,MATCH($H96,lookups!$C$77:$C$87,0),MATCH($I96,lookups!$F$76:$BU$76,0))) -> 1 | S96: =IF(ISNUMBER($H96),(1+$H96)^(S$10-$I96),INDEX(lookups!$F$77:$BU$87,MATCH($H96,lookups!$C$77:$C$87,0),MATCH(S$10,lookups!$F$76:$BU$76,0))/INDEX(lookups!$F$77:$BU$87,MATCH($H96,lookups!$C$77:$C$87,0),MATCH($I96,lookups!$F$76:$BU$76,0))) -> 1 | T96: =IF(ISNUMBER($H96),(1+$H96)^(T$10-$I96),INDEX(lookups!$F$77:$BU$87,MATCH($H96,lookups!$C$77:$C$87,0),MATCH(T$10,lookups!$F$76:$BU$76,0))/INDEX(lookups!$F$77:$BU$87,MATCH($H96,lookups!$C$77:$C$87,0),MATCH($I96,lookups!$F$76:$BU$76,0))) -> 1 | U96: =IF(ISNUMBER($H96),(1+$H96)^(U$10-$I96),INDEX(lookups!$F$77:$BU$87,MATCH($H96,lookups!$C$77:$C$87,0),MATCH(U$10,lookups!$F$76:$BU$76,0))/INDEX(lookups!$F$77:$BU$87,MATCH($H96,lookups!$C$77:$C$87,0),MATCH($I96,lookups!$F$76:$BU$76,0))) -> 1 | V96: =IF(ISNUMBER($H96),(1+$H96)^(V$10-$I96),INDEX(lookups!$F$77:$BU$87,MATCH($H96,lookups!$C$77:$C$87,0),MATCH(V$10,lookups!$F$76:$BU$76,0))/INDEX(lookups!$F$77:$BU$87,MATCH($H96,lookups!$C$77:$C$87,0),MATCH($I96,lookups!$F$76:$BU$76,0))) -> 1 | W96: =IF(ISNUMBER($H96),(1+$H96)^(W$10-$I96),INDEX(lookups!$F$77:$BU$87,MATCH($H96,lookups!$C$77:$C$87,0),MATCH(W$10,lookups!$F$76:$BU$76,0))/INDEX(lookups!$F$77:$BU$87,MATCH($H96,lookups!$C$77:$C$87,0),MATCH($I96,lookups!$F$76:$BU$76,0))) -> 1 | X96: =IF(ISNUMBER($H96),(1+$H96)^(X$10-$I96),INDEX(lookups!$F$77:$BU$87,MATCH($H96,lookups!$C$77:$C$87,0),MATCH(X$10,lookups!$F$76:$BU$76,0))/INDEX(lookups!$F$77:$BU$87,MATCH($H96,lookups!$C$77:$C$87,0),MATCH($I96,lookups!$F$76:$BU$76,0))) -> 1 | Y96: =IF(ISNUMBER($H96),(1+$H96)^(Y$10-$I96),INDEX(lookups!$F$77:$BU$87,MATCH($H96,lookups!$C$77:$C$87,0),MATCH(Y$10,lookups!$F$76:$BU$76,0))/INDEX(lookups!$F$77:$BU$87,MATCH($H96,lookups!$C$77:$C$87,0),MATCH($I96,lookups!$F$76:$BU$76,0))) -> 1 | Z96: =IF(ISNUMBER($H96),(1+$H96)^(Z$10-$I96),INDEX(lookups!$F$77:$BU$87,MATCH($H96,lookups!$C$77:$C$87,0),MATCH(Z$10,lookups!$F$76:$BU$76,0))/INDEX(lookups!$F$77:$BU$87,MATCH($H96,lookups!$C$77:$C$87,0),MATCH($I96,lookups!$F$76:$BU$76,0))) -> 1 | AA96: =IF(ISNUMBER($H96),(1+$H96)^(AA$10-$I96),INDEX(lookups!$F$77:$BU$87,MATCH($H96,lookups!$C$77:$C$87,0),MATCH(AA$10,lookups!$F$76:$BU$76,0))/INDEX(lookups!$F$77:$BU$87,MATCH($H96,lookups!$C$77:$C$87,0),MATCH($I96,lookups!$F$76:$BU$76,0))) -> 1 | AB96: =IF(ISNUMBER($H96),(1+$H96)^(AB$10-$I96),INDEX(lookups!$F$77:$BU$87,MATCH($H96,lookups!$C$77:$C$87,0),MATCH(AB$10,lookups!$F$76:$BU$76,0))/INDEX(lookups!$F$77:$BU$87,MATCH($H96,lookups!$C$77:$C$87,0),MATCH($I96,lookups!$F$76:$BU$76,0))) -> 1 | AC96: =IF(ISNUMBER($H96),(1+$H96)^(AC$10-$I96),INDEX(lookups!$F$77:$BU$87,MATCH($H96,lookups!$C$77:$C$87,0),MATCH(AC$10,lookups!$F$76:$BU$76,0))/INDEX(lookups!$F$77:$BU$87,MATCH($H96,lookups!$C$77:$C$87,0),MATCH($I96,lookups!$F$76:$BU$76,0))) -> 1 | AD96: =IF(ISNUMBER($H96),(1+$H96)^(AD$10-$I96),INDEX(lookups!$F$77:$BU$87,MATCH($H96,lookups!$C$77:$C$87,0),MATCH(AD$10,lookups!$F$76:$BU$76,0))/INDEX(lookups!$F$77:$BU$87,MATCH($H96,lookups!$C$77:$C$87,0),MATCH($I96,lookups!$F$76:$BU$76,0))) -> 1 | AE96: =IF(ISNUMBER($H96),(1+$H96)^(AE$10-$I96),INDEX(lookups!$F$77:$BU$87,MATCH($H96,lookups!$C$77:$C$87,0),MATCH(AE$10,lookups!$F$76:$BU$76,0))/INDEX(lookups!$F$77:$BU$87,MATCH($H96,lookups!$C$77:$C$87,0),MATCH($I96,lookups!$F$76:$BU$76,0))) -> 1 | AF96: =IF(ISNUMBER($H96),(1+$H96)^(AF$10-$I96),INDEX(lookups!$F$77:$BU$87,MATCH($H96,lookups!$C$77:$C$87,0),MATCH(AF$10,lookups!$F$76:$BU$76,0))/INDEX(lookups!$F$77:$BU$87,MATCH($H96,lookups!$C$77:$C$87,0),MATCH($I96,lookups!$F$76:$BU$76,0))) -> 1 | AG96: =IF(ISNUMBER($H96),(1+$H96)^(AG$10-$I96),INDEX(lookups!$F$77:$BU$87,MATCH($H96,lookups!$C$77:$C$87,0),MATCH(AG$10,lookups!$F$76:$BU$76,0))/INDEX(lookups!$F$77:$BU$87,MATCH($H96,lookups!$C$77:$C$87,0),MATCH($I96,lookups!$F$76:$BU$76,0))) -> 1 | AH96: =IF(ISNUMBER($H96),(1+$H96)^(AH$10-$I96),INDEX(lookups!$F$77:$BU$87,MATCH($H96,lookups!$C$77:$C$87,0),MATCH(AH$10,lookups!$F$76:$BU$76,0))/INDEX(lookups!$F$77:$BU$87,MATCH($H96,lookups!$C$77:$C$87,0),MATCH($I96,lookups!$F$76:$BU$76,0))) -> 1 | AI96: =IF(ISNUMBER($H96),(1+$H96)^(AI$10-$I96),INDEX(lookups!$F$77:$BU$87,MATCH($H96,lookups!$C$77:$C$87,0),MATCH(AI$10,lookups!$F$76:$BU$76,0))/INDEX(lookups!$F$77:$BU$87,MATCH($H96,lookups!$C$77:$C$87,0),MATCH($I96,lookups!$F$76:$BU$76,0))) -> 1 | AJ96: =IF(ISNUMBER($H96),(1+$H96)^(AJ$10-$I96),INDEX(lookups!$F$77:$BU$87,MATCH($H96,lookups!$C$77:$C$87,0),MATCH(AJ$10,lookups!$F$76:$BU$76,0))/INDEX(lookups!$F$77:$BU$87,MATCH($H96,lookups!$C$77:$C$87,0),MATCH($I96,lookups!$F$76:$BU$76,0))) -> 1 | AK96: =IF(ISNUMBER($H96),(1+$H96)^(AK$10-$I96),INDEX(lookups!$F$77:$BU$87,MATCH($H96,lookups!$C$77:$C$87,0),MATCH(AK$10,lookups!$F$76:$BU$76,0))/INDEX(lookups!$F$77:$BU$87,MATCH($H96,lookups!$C$77:$C$87,0),MATCH($I96,lookups!$F$76:$BU$76,0))) -> 1 | AL96: =IF(ISNUMBER($H96),(1+$H96)^(AL$10-$I96),INDEX(lookups!$F$77:$BU$87,MATCH($H96,lookups!$C$77:$C$87,0),MATCH(AL$10,lookups!$F$76:$BU$76,0))/INDEX(lookups!$F$77:$BU$87,MATCH($H96,lookups!$C$77:$C$87,0),MATCH($I96,lookups!$F$76:$BU$76,0))) -> 1 | AM96: =IF(ISNUMBER($H96),(1+$H96)^(AM$10-$I96),INDEX(lookups!$F$77:$BU$87,MATCH($H96,lookups!$C$77:$C$87,0),MATCH(AM$10,lookups!$F$76:$BU$76,0))/INDEX(lookups!$F$77:$BU$87,MATCH($H96,lookups!$C$77:$C$87,0),MATCH($I96,lookups!$F$76:$BU$76,0))) -> 1 | AN96: =IF(ISNUMBER($H96),(1+$H96)^(AN$10-$I96),INDEX(lookups!$F$77:$BU$87,MATCH($H96,lookups!$C$77:$C$87,0),MATCH(AN$10,lookups!$F$76:$BU$76,0))/INDEX(lookups!$F$77:$BU$87,MATCH($H96,lookups!$C$77:$C$87,0),MATCH($I96,lookups!$F$76:$BU$76,0))) -> 1 | AO96: =IF(ISNUMBER($H96),(1+$H96)^(AO$10-$I96),INDEX(lookups!$F$77:$BU$87,MATCH($H96,lookups!$C$77:$C$87,0),MATCH(AO$10,lookups!$F$76:$BU$76,0))/INDEX(lookups!$F$77:$BU$87,MATCH($H96,lookups!$C$77:$C$87,0),MATCH($I96,lookups!$F$76:$BU$76,0))) -> 1 | AP96: =IF(ISNUMBER($H96),(1+$H96)^(AP$10-$I96),INDEX(lookups!$F$77:$BU$87,MATCH($H96,lookups!$C$77:$C$87,0),MATCH(AP$10,lookups!$F$76:$BU$76,0))/INDEX(lookups!$F$77:$BU$87,MATCH($H96,lookups!$C$77:$C$87,0),MATCH($I96,lookups!$F$76:$BU$76,0))) -> 1 | AQ96: =IF(ISNUMBER($H96),(1+$H96)^(AQ$10-$I96),INDEX(lookups!$F$77:$BU$87,MATCH($H96,lookups!$C$77:$C$87,0),MATCH(AQ$10,lookups!$F$76:$BU$76,0))/INDEX(lookups!$F$77:$BU$87,MATCH($H96,lookups!$C$77:$C$87,0),MATCH($I96,lookups!$F$76:$BU$76,0))) -> 1 | AR96: =IF(ISNUMBER($H96),(1+$H96)^(AR$10-$I96),INDEX(lookups!$F$77:$BU$87,MATCH($H96,lookups!$C$77:$C$87,0),MATCH(AR$10,lookups!$F$76:$BU$76,0))/INDEX(lookups!$F$77:$BU$87,MATCH($H96,lookups!$C$77:$C$87,0),MATCH($I96,lookups!$F$76:$BU$76,0))) -> 1 | AS96: =IF(ISNUMBER($H96),(1+$H96)^(AS$10-$I96),INDEX(lookups!$F$77:$BU$87,MATCH($H96,lookups!$C$77:$C$87,0),MATCH(AS$10,lookups!$F$76:$BU$76,0))/INDEX(lookups!$F$77:$BU$87,MATCH($H96,lookups!$C$77:$C$87,0),MATCH($I96,lookups!$F$76:$BU$76,0))) -> 1 | AT96: =IF(ISNUMBER($H96),(1+$H96)^(AT$10-$I96),INDEX(lookups!$F$77:$BU$87,MATCH($H96,lookups!$C$77:$C$87,0),MATCH(AT$10,lookups!$F$76:$BU$76,0))/INDEX(lookups!$F$77:$BU$87,MATCH($H96,lookups!$C$77:$C$87,0),MATCH($I96,lookups!$F$76:$BU$76,0))) -> 1 | AU96: =IF(ISNUMBER($H96),(1+$H96)^(AU$10-$I96),INDEX(lookups!$F$77:$BU$87,MATCH($H96,lookups!$C$77:$C$87,0),MATCH(AU$10,lookups!$F$76:$BU$76,0))/INDEX(lookups!$F$77:$BU$87,MATCH($H96,lookups!$C$77:$C$87,0),MATCH($I96,lookups!$F$76:$BU$76,0))) -> 1 | AV96: =IF(ISNUMBER($H96),(1+$H96)^(AV$10-$I96),INDEX(lookups!$F$77:$BU$87,MATCH($H96,lookups!$C$77:$C$87,0),MATCH(AV$10,lookups!$F$76:$BU$76,0))/INDEX(lookups!$F$77:$BU$87,MATCH($H96,lookups!$C$77:$C$87,0),MATCH($I96,lookups!$F$76:$BU$76,0))) -> 1 | AW96: =IF(ISNUMBER($H96),(1+$H96)^(AW$10-$I96),INDEX(lookups!$F$77:$BU$87,MATCH($H96,lookups!$C$77:$C$87,0),MATCH(AW$10,lookups!$F$76:$BU$76,0))/INDEX(lookups!$F$77:$BU$87,MATCH($H96,lookups!$C$77:$C$87,0),MATCH($I96,lookups!$F$76:$BU$76,0))) -> 1 | AX96: =IF(ISNUMBER($H96),(1+$H96)^(AX$10-$I96),INDEX(lookups!$F$77:$BU$87,MATCH($H96,lookups!$C$77:$C$87,0),MATCH(AX$10,lookups!$F$76:$BU$76,0))/INDEX(lookups!$F$77:$BU$87,MATCH($H96,lookups!$C$77:$C$87,0),MATCH($I96,lookups!$F$76:$BU$76,0))) -> 1 | AY96: =IF(ISNUMBER($H96),(1+$H96)^(AY$10-$I96),INDEX(lookups!$F$77:$BU$87,MATCH($H96,lookups!$C$77:$C$87,0),MATCH(AY$10,lookups!$F$76:$BU$76,0))/INDEX(lookups!$F$77:$BU$87,MATCH($H96,lookups!$C$77:$C$87,0),MATCH($I96,lookups!$F$76:$BU$76,0))) -> 1 | AZ96: =IF(ISNUMBER($H96),(1+$H96)^(AZ$10-$I96),INDEX(lookups!$F$77:$BU$87,MATCH($H96,lookups!$C$77:$C$87,0),MATCH(AZ$10,lookups!$F$76:$BU$76,0))/INDEX(lookups!$F$77:$BU$87,MATCH($H96,lookups!$C$77:$C$87,0),MATCH($I96,lookups!$F$76:$BU$76,0))) -> 1 | BA96: =IF(ISNUMBER($H96),(1+$H96)^(BA$10-$I96),INDEX(lookups!$F$77:$BU$87,MATCH($H96,lookups!$C$77:$C$87,0),MATCH(BA$10,lookups!$F$76:$BU$76,0))/INDEX(lookups!$F$77:$BU$87,MATCH($H96,lookups!$C$77:$C$87,0),MATCH($I96,lookups!$F$76:$BU$76,0))) -> 1 | BB96: =IF(ISNUMBER($H96),(1+$H96)^(BB$10-$I96),INDEX(lookups!$F$77:$BU$87,MATCH($H96,lookups!$C$77:$C$87,0),MATCH(BB$10,lookups!$F$76:$BU$76,0))/INDEX(lookups!$F$77:$BU$87,MATCH($H96,lookups!$C$77:$C$87,0),MATCH($I96,lookups!$F$76:$BU$76,0))) -> 1 | BC96: =IF(ISNUMBER($H96),(1+$H96)^(BC$10-$I96),INDEX(lookups!$F$77:$BU$87,MATCH($H96,lookups!$C$77:$C$87,0),MATCH(BC$10,lookups!$F$76:$BU$76,0))/INDEX(lookups!$F$77:$BU$87,MATCH($H96,lookups!$C$77:$C$87,0),MATCH($I96,lookups!$F$76:$BU$76,0))) -> 1 | BD96: =IF(ISNUMBER($H96),(1+$H96)^(BD$10-$I96),INDEX(lookups!$F$77:$BU$87,MATCH($H96,lookups!$C$77:$C$87,0),MATCH(BD$10,lookups!$F$76:$BU$76,0))/INDEX(lookups!$F$77:$BU$87,MATCH($H96,lookups!$C$77:$C$87,0),MATCH($I96,lookups!$F$76:$BU$76,0))) -> 1 | BE96: =IF(ISNUMBER($H96),(1+$H96)^(BE$10-$I96),INDEX(lookups!$F$77:$BU$87,MATCH($H96,lookups!$C$77:$C$87,0),MATCH(BE$10,lookups!$F$76:$BU$76,0))/INDEX(lookups!$F$77:$BU$87,MATCH($H96,lookups!$C$77:$C$87,0),MATCH($I96,lookups!$F$76:$BU$76,0))) -> 1 | BF96: =IF(ISNUMBER($H96),(1+$H96)^(BF$10-$I96),INDEX(lookups!$F$77:$BU$87,MATCH($H96,lookups!$C$77:$C$87,0),MATCH(BF$10,lookups!$F$76:$BU$76,0))/INDEX(lookups!$F$77:$BU$87,MATCH($H96,lookups!$C$77:$C$87,0),MATCH($I96,lookups!$F$76:$BU$76,0))) -> 1 | BG96: =IF(ISNUMBER($H96),(1+$H96)^(BG$10-$I96),INDEX(lookups!$F$77:$BU$87,MATCH($H96,lookups!$C$77:$C$87,0),MATCH(BG$10,lookups!$F$76:$BU$76,0))/INDEX(lookups!$F$77:$BU$87,MATCH($H96,lookups!$C$77:$C$87,0),MATCH($I96,lookups!$F$76:$BU$76,0))) -> 1 | BH96: =IF(ISNUMBER($H96),(1+$H96)^(BH$10-$I96),INDEX(lookups!$F$77:$BU$87,MATCH($H96,lookups!$C$77:$C$87,0),MATCH(BH$10,lookups!$F$76:$BU$76,0))/INDEX(lookups!$F$77:$BU$87,MATCH($H96,lookups!$C$77:$C$87,0),MATCH($I96,lookups!$F$76:$BU$76,0))) -> 1 | BI96: =IF(ISNUMBER($H96),(1+$H96)^(BI$10-$I96),INDEX(lookups!$F$77:$BU$87,MATCH($H96,lookups!$C$77:$C$87,0),MATCH(BI$10,lookups!$F$76:$BU$76,0))/INDEX(lookups!$F$77:$BU$87,MATCH($H96,lookups!$C$77:$C$87,0),MATCH($I96,lookups!$F$76:$BU$76,0))) -> 1 | BJ96: =IF(ISNUMBER($H96),(1+$H96)^(BJ$10-$I96),INDEX(lookups!$F$77:$BU$87,MATCH($H96,lookups!$C$77:$C$87,0),MATCH(BJ$10,lookups!$F$76:$BU$76,0))/INDEX(lookups!$F$77:$BU$87,MATCH($H96,lookups!$C$77:$C$87,0),MATCH($I96,lookups!$F$76:$BU$76,0))) -> 1 | BK96: =IF(ISNUMBER($H96),(1+$H96)^(BK$10-$I96),INDEX(lookups!$F$77:$BU$87,MATCH($H96,lookups!$C$77:$C$87,0),MATCH(BK$10,lookups!$F$76:$BU$76,0))/INDEX(lookups!$F$77:$BU$87,MATCH($H96,lookups!$C$77:$C$87,0),MATCH($I96,lookups!$F$76:$BU$76,0))) -> 1 | BL96: =IF(ISNUMBER($H96),(1+$H96)^(BL$10-$I96),INDEX(lookups!$F$77:$BU$87,MATCH($H96,lookups!$C$77:$C$87,0),MATCH(BL$10,lookups!$F$76:$BU$76,0))/INDEX(lookups!$F$77:$BU$87,MATCH($H96,lookups!$C$77:$C$87,0),MATCH($I96,lookups!$F$76:$BU$76,0))) -> 1 | BM96: =IF(ISNUMBER($H96),(1+$H96)^(BM$10-$I96),INDEX(lookups!$F$77:$BU$87,MATCH($H96,lookups!$C$77:$C$87,0),MATCH(BM$10,lookups!$F$76:$BU$76,0))/INDEX(lookups!$F$77:$BU$87,MATCH($H96,lookups!$C$77:$C$87,0),MATCH($I96,lookups!$F$76:$BU$76,0))) -> 1
C97: 5 | D97: … | E97: Operating Expense | F97: 2 | H97: =Input!L16 -> 0 | I97: =Assumptions!$D$16 -> 2022 | O97: =IF(ISNUMBER($H97),(1+$H97)^(O$10-$I97),INDEX(lookups!$F$77:$BU$87,MATCH($H97,lookups!$C$77:$C$87,0),MATCH(O$10,lookups!$F$76:$BU$76,0))/INDEX(lookups!$F$77:$BU$87,MATCH($H97,lookups!$C$77:$C$87,0),MATCH($I97,lookups!$F$76:$BU$76,0))) -> 1 | P97: =IF(ISNUMBER($H97),(1+$H97)^(P$10-$I97),INDEX(lookups!$F$77:$BU$87,MATCH($H97,lookups!$C$77:$C$87,0),MATCH(P$10,lookups!$F$76:$BU$76,0))/INDEX(lookups!$F$77:$BU$87,MATCH($H97,lookups!$C$77:$C$87,0),MATCH($I97,lookups!$F$76:$BU$76,0))) -> 1 | Q97: =IF(ISNUMBER($H97),(1+$H97)^(Q$10-$I97),INDEX(lookups!$F$77:$BU$87,MATCH($H97,lookups!$C$77:$C$87,0),MATCH(Q$10,lookups!$F$76:$BU$76,0))/INDEX(lookups!$F$77:$BU$87,MATCH($H97,lookups!$C$77:$C$87,0),MATCH($I97,lookups!$F$76:$BU$76,0))) -> 1 | R97: =IF(ISNUMBER($H97),(1+$H97)^(R$10-$I97),INDEX(lookups!$F$77:$BU$87,MATCH($H97,lookups!$C$77:$C$87,0),MATCH(R$10,lookups!$F$76:$BU$76,0))/INDEX(lookups!$F$77:$BU$87,MATCH($H97,lookups!$C$77:$C$87,0),MATCH($I97,lookups!$F$76:$BU$76,0))) -> 1 | S97: =IF(ISNUMBER($H97),(1+$H97)^(S$10-$I97),INDEX(lookups!$F$77:$BU$87,MATCH($H97,lookups!$C$77:$C$87,0),MATCH(S$10,lookups!$F$76:$BU$76,0))/INDEX(lookups!$F$77:$BU$87,MATCH($H97,lookups!$C$77:$C$87,0),MATCH($I97,lookups!$F$76:$BU$76,0))) -> 1 | T97: =IF(ISNUMBER($H97),(1+$H97)^(T$10-$I97),INDEX(lookups!$F$77:$BU$87,MATCH($H97,lookups!$C$77:$C$87,0),MATCH(T$10,lookups!$F$76:$BU$76,0))/INDEX(lookups!$F$77:$BU$87,MATCH($H97,lookups!$C$77:$C$87,0),MATCH($I97,lookups!$F$76:$BU$76,0))) -> 1 | U97: =IF(ISNUMBER($H97),(1+$H97)^(U$10-$I97),INDEX(lookups!$F$77:$BU$87,MATCH($H97,lookups!$C$77:$C$87,0),MATCH(U$10,lookups!$F$76:$BU$76,0))/INDEX(lookups!$F$77:$BU$87,MATCH($H97,lookups!$C$77:$C$87,0),MATCH($I97,lookups!$F$76:$BU$76,0))) -> 1 | V97: =IF(ISNUMBER($H97),(1+$H97)^(V$10-$I97),INDEX(lookups!$F$77:$BU$87,MATCH($H97,lookups!$C$77:$C$87,0),MATCH(V$10,lookups!$F$76:$BU$76,0))/INDEX(lookups!$F$77:$BU$87,MATCH($H97,lookups!$C$77:$C$87,0),MATCH($I97,lookups!$F$76:$BU$76,0))) -> 1 | W97: =IF(ISNUMBER($H97),(1+$H97)^(W$10-$I97),INDEX(lookups!$F$77:$BU$87,MATCH($H97,lookups!$C$77:$C$87,0),MATCH(W$10,lookups!$F$76:$BU$76,0))/INDEX(lookups!$F$77:$BU$87,MATCH($H97,lookups!$C$77:$C$87,0),MATCH($I97,lookups!$F$76:$BU$76,0))) -> 1 | X97: =IF(ISNUMBER($H97),(1+$H97)^(X$10-$I97),INDEX(lookups!$F$77:$BU$87,MATCH($H97,lookups!$C$77:$C$87,0),MATCH(X$10,lookups!$F$76:$BU$76,0))/INDEX(lookups!$F$77:$BU$87,MATCH($H97,lookups!$C$77:$C$87,0),MATCH($I97,lookups!$F$76:$BU$76,0))) -> 1 | Y97: =IF(ISNUMBER($H97),(1+$H97)^(Y$10-$I97),INDEX(lookups!$F$77:$BU$87,MATCH($H97,lookups!$C$77:$C$87,0),MATCH(Y$10,lookups!$F$76:$BU$76,0))/INDEX(lookups!$F$77:$BU$87,MATCH($H97,lookups!$C$77:$C$87,0),MATCH($I97,lookups!$F$76:$BU$76,0))) -> 1 | Z97: =IF(ISNUMBER($H97),(1+$H97)^(Z$10-$I97),INDEX(lookups!$F$77:$BU$87,MATCH($H97,lookups!$C$77:$C$87,0),MATCH(Z$10,lookups!$F$76:$BU$76,0))/INDEX(lookups!$F$77:$BU$87,MATCH($H97,lookups!$C$77:$C$87,0),MATCH($I97,lookups!$F$76:$BU$76,0))) -> 1 | AA97: =IF(ISNUMBER($H97),(1+$H97)^(AA$10-$I97),INDEX(lookups!$F$77:$BU$87,MATCH($H97,lookups!$C$77:$C$87,0),MATCH(AA$10,lookups!$F$76:$BU$76,0))/INDEX(lookups!$F$77:$BU$87,MATCH($H97,lookups!$C$77:$C$87,0),MATCH($I97,lookups!$F$76:$BU$76,0))) -> 1 | AB97: =IF(ISNUMBER($H97),(1+$H97)^(AB$10-$I97),INDEX(lookups!$F$77:$BU$87,MATCH($H97,lookups!$C$77:$C$87,0),MATCH(AB$10,lookups!$F$76:$BU$76,0))/INDEX(lookups!$F$77:$BU$87,MATCH($H97,lookups!$C$77:$C$87,0),MATCH($I97,lookups!$F$76:$BU$76,0))) -> 1 | AC97: =IF(ISNUMBER($H97),(1+$H97)^(AC$10-$I97),INDEX(lookups!$F$77:$BU$87,MATCH($H97,lookups!$C$77:$C$87,0),MATCH(AC$10,lookups!$F$76:$BU$76,0))/INDEX(lookups!$F$77:$BU$87,MATCH($H97,lookups!$C$77:$C$87,0),MATCH($I97,lookups!$F$76:$BU$76,0))) -> 1 | AD97: =IF(ISNUMBER($H97),(1+$H97)^(AD$10-$I97),INDEX(lookups!$F$77:$BU$87,MATCH($H97,lookups!$C$77:$C$87,0),MATCH(AD$10,lookups!$F$76:$BU$76,0))/INDEX(lookups!$F$77:$BU$87,MATCH($H97,lookups!$C$77:$C$87,0),MATCH($I97,lookups!$F$76:$BU$76,0))) -> 1 | AE97: =IF(ISNUMBER($H97),(1+$H97)^(AE$10-$I97),INDEX(lookups!$F$77:$BU$87,MATCH($H97,lookups!$C$77:$C$87,0),MATCH(AE$10,lookups!$F$76:$BU$76,0))/INDEX(lookups!$F$77:$BU$87,MATCH($H97,lookups!$C$77:$C$87,0),MATCH($I97,lookups!$F$76:$BU$76,0))) -> 1 | AF97: =IF(ISNUMBER($H97),(1+$H97)^(AF$10-$I97),INDEX(lookups!$F$77:$BU$87,MATCH($H97,lookups!$C$77:$C$87,0),MATCH(AF$10,lookups!$F$76:$BU$76,0))/INDEX(lookups!$F$77:$BU$87,MATCH($H97,lookups!$C$77:$C$87,0),MATCH($I97,lookups!$F$76:$BU$76,0))) -> 1 | AG97: =IF(ISNUMBER($H97),(1+$H97)^(AG$10-$I97),INDEX(lookups!$F$77:$BU$87,MATCH($H97,lookups!$C$77:$C$87,0),MATCH(AG$10,lookups!$F$76:$BU$76,0))/INDEX(lookups!$F$77:$BU$87,MATCH($H97,lookups!$C$77:$C$87,0),MATCH($I97,lookups!$F$76:$BU$76,0))) -> 1 | AH97: =IF(ISNUMBER($H97),(1+$H97)^(AH$10-$I97),INDEX(lookups!$F$77:$BU$87,MATCH($H97,lookups!$C$77:$C$87,0),MATCH(AH$10,lookups!$F$76:$BU$76,0))/INDEX(lookups!$F$77:$BU$87,MATCH($H97,lookups!$C$77:$C$87,0),MATCH($I97,lookups!$F$76:$BU$76,0))) -> 1 | AI97: =IF(ISNUMBER($H97),(1+$H97)^(AI$10-$I97),INDEX(lookups!$F$77:$BU$87,MATCH($H97,lookups!$C$77:$C$87,0),MATCH(AI$10,lookups!$F$76:$BU$76,0))/INDEX(lookups!$F$77:$BU$87,MATCH($H97,lookups!$C$77:$C$87,0),MATCH($I97,lookups!$F$76:$BU$76,0))) -> 1 | AJ97: =IF(ISNUMBER($H97),(1+$H97)^(AJ$10-$I97),INDEX(lookups!$F$77:$BU$87,MATCH($H97,lookups!$C$77:$C$87,0),MATCH(AJ$10,lookups!$F$76:$BU$76,0))/INDEX(lookups!$F$77:$BU$87,MATCH($H97,lookups!$C$77:$C$87,0),MATCH($I97,lookups!$F$76:$BU$76,0))) -> 1 | AK97: =IF(ISNUMBER($H97),(1+$H97)^(AK$10-$I97),INDEX(lookups!$F$77:$BU$87,MATCH($H97,lookups!$C$77:$C$87,0),MATCH(AK$10,lookups!$F$76:$BU$76,0))/INDEX(lookups!$F$77:$BU$87,MATCH($H97,lookups!$C$77:$C$87,0),MATCH($I97,lookups!$F$76:$BU$76,0))) -> 1 | AL97: =IF(ISNUMBER($H97),(1+$H97)^(AL$10-$I97),INDEX(lookups!$F$77:$BU$87,MATCH($H97,lookups!$C$77:$C$87,0),MATCH(AL$10,lookups!$F$76:$BU$76,0))/INDEX(lookups!$F$77:$BU$87,MATCH($H97,lookups!$C$77:$C$87,0),MATCH($I97,lookups!$F$76:$BU$76,0))) -> 1 | AM97: =IF(ISNUMBER($H97),(1+$H97)^(AM$10-$I97),INDEX(lookups!$F$77:$BU$87,MATCH($H97,lookups!$C$77:$C$87,0),MATCH(AM$10,lookups!$F$76:$BU$76,0))/INDEX(lookups!$F$77:$BU$87,MATCH($H97,lookups!$C$77:$C$87,0),MATCH($I97,lookups!$F$76:$BU$76,0))) -> 1 | AN97: =IF(ISNUMBER($H97),(1+$H97)^(AN$10-$I97),INDEX(lookups!$F$77:$BU$87,MATCH($H97,lookups!$C$77:$C$87,0),MATCH(AN$10,lookups!$F$76:$BU$76,0))/INDEX(lookups!$F$77:$BU$87,MATCH($H97,lookups!$C$77:$C$87,0),MATCH($I97,lookups!$F$76:$BU$76,0))) -> 1 | AO97: =IF(ISNUMBER($H97),(1+$H97)^(AO$10-$I97),INDEX(lookups!$F$77:$BU$87,MATCH($H97,lookups!$C$77:$C$87,0),MATCH(AO$10,lookups!$F$76:$BU$76,0))/INDEX(lookups!$F$77:$BU$87,MATCH($H97,lookups!$C$77:$C$87,0),MATCH($I97,lookups!$F$76:$BU$76,0))) -> 1 | AP97: =IF(ISNUMBER($H97),(1+$H97)^(AP$10-$I97),INDEX(lookups!$F$77:$BU$87,MATCH($H97,lookups!$C$77:$C$87,0),MATCH(AP$10,lookups!$F$76:$BU$76,0))/INDEX(lookups!$F$77:$BU$87,MATCH($H97,lookups!$C$77:$C$87,0),MATCH($I97,lookups!$F$76:$BU$76,0))) -> 1 | AQ97: =IF(ISNUMBER($H97),(1+$H97)^(AQ$10-$I97),INDEX(lookups!$F$77:$BU$87,MATCH($H97,lookups!$C$77:$C$87,0),MATCH(AQ$10,lookups!$F$76:$BU$76,0))/INDEX(lookups!$F$77:$BU$87,MATCH($H97,lookups!$C$77:$C$87,0),MATCH($I97,lookups!$F$76:$BU$76,0))) -> 1 | AR97: =IF(ISNUMBER($H97),(1+$H97)^(AR$10-$I97),INDEX(lookups!$F$77:$BU$87,MATCH($H97,lookups!$C$77:$C$87,0),MATCH(AR$10,lookups!$F$76:$BU$76,0))/INDEX(lookups!$F$77:$BU$87,MATCH($H97,lookups!$C$77:$C$87,0),MATCH($I97,lookups!$F$76:$BU$76,0))) -> 1 | AS97: =IF(ISNUMBER($H97),(1+$H97)^(AS$10-$I97),INDEX(lookups!$F$77:$BU$87,MATCH($H97,lookups!$C$77:$C$87,0),MATCH(AS$10,lookups!$F$76:$BU$76,0))/INDEX(lookups!$F$77:$BU$87,MATCH($H97,lookups!$C$77:$C$87,0),MATCH($I97,lookups!$F$76:$BU$76,0))) -> 1 | AT97: =IF(ISNUMBER($H97),(1+$H97)^(AT$10-$I97),INDEX(lookups!$F$77:$BU$87,MATCH($H97,lookups!$C$77:$C$87,0),MATCH(AT$10,lookups!$F$76:$BU$76,0))/INDEX(lookups!$F$77:$BU$87,MATCH($H97,lookups!$C$77:$C$87,0),MATCH($I97,lookups!$F$76:$BU$76,0))) -> 1 | AU97: =IF(ISNUMBER($H97),(1+$H97)^(AU$10-$I97),INDEX(lookups!$F$77:$BU$87,MATCH($H97,lookups!$C$77:$C$87,0),MATCH(AU$10,lookups!$F$76:$BU$76,0))/INDEX(lookups!$F$77:$BU$87,MATCH($H97,lookups!$C$77:$C$87,0),MATCH($I97,lookups!$F$76:$BU$76,0))) -> 1 | AV97: =IF(ISNUMBER($H97),(1+$H97)^(AV$10-$I97),INDEX(lookups!$F$77:$BU$87,MATCH($H97,lookups!$C$77:$C$87,0),MATCH(AV$10,lookups!$F$76:$BU$76,0))/INDEX(lookups!$F$77:$BU$87,MATCH($H97,lookups!$C$77:$C$87,0),MATCH($I97,lookups!$F$76:$BU$76,0))) -> 1 | AW97: =IF(ISNUMBER($H97),(1+$H97)^(AW$10-$I97),INDEX(lookups!$F$77:$BU$87,MATCH($H97,lookups!$C$77:$C$87,0),MATCH(AW$10,lookups!$F$76:$BU$76,0))/INDEX(lookups!$F$77:$BU$87,MATCH($H97,lookups!$C$77:$C$87,0),MATCH($I97,lookups!$F$76:$BU$76,0))) -> 1 | AX97: =IF(ISNUMBER($H97),(1+$H97)^(AX$10-$I97),INDEX(lookups!$F$77:$BU$87,MATCH($H97,lookups!$C$77:$C$87,0),MATCH(AX$10,lookups!$F$76:$BU$76,0))/INDEX(lookups!$F$77:$BU$87,MATCH($H97,lookups!$C$77:$C$87,0),MATCH($I97,lookups!$F$76:$BU$76,0))) -> 1 | AY97: =IF(ISNUMBER($H97),(1+$H97)^(AY$10-$I97),INDEX(lookups!$F$77:$BU$87,MATCH($H97,lookups!$C$77:$C$87,0),MATCH(AY$10,lookups!$F$76:$BU$76,0))/INDEX(lookups!$F$77:$BU$87,MATCH($H97,lookups!$C$77:$C$87,0),MATCH($I97,lookups!$F$76:$BU$76,0))) -> 1 | AZ97: =IF(ISNUMBER($H97),(1+$H97)^(AZ$10-$I97),INDEX(lookups!$F$77:$BU$87,MATCH($H97,lookups!$C$77:$C$87,0),MATCH(AZ$10,lookups!$F$76:$BU$76,0))/INDEX(lookups!$F$77:$BU$87,MATCH($H97,lookups!$C$77:$C$87,0),MATCH($I97,lookups!$F$76:$BU$76,0))) -> 1 | BA97: =IF(ISNUMBER($H97),(1+$H97)^(BA$10-$I97),INDEX(lookups!$F$77:$BU$87,MATCH($H97,lookups!$C$77:$C$87,0),MATCH(BA$10,lookups!$F$76:$BU$76,0))/INDEX(lookups!$F$77:$BU$87,MATCH($H97,lookups!$C$77:$C$87,0),MATCH($I97,lookups!$F$76:$BU$76,0))) -> 1 | BB97: =IF(ISNUMBER($H97),(1+$H97)^(BB$10-$I97),INDEX(lookups!$F$77:$BU$87,MATCH($H97,lookups!$C$77:$C$87,0),MATCH(BB$10,lookups!$F$76:$BU$76,0))/INDEX(lookups!$F$77:$BU$87,MATCH($H97,lookups!$C$77:$C$87,0),MATCH($I97,lookups!$F$76:$BU$76,0))) -> 1 | BC97: =IF(ISNUMBER($H97),(1+$H97)^(BC$10-$I97),INDEX(lookups!$F$77:$BU$87,MATCH($H97,lookups!$C$77:$C$87,0),MATCH(BC$10,lookups!$F$76:$BU$76,0))/INDEX(lookups!$F$77:$BU$87,MATCH($H97,lookups!$C$77:$C$87,0),MATCH($I97,lookups!$F$76:$BU$76,0))) -> 1 | BD97: =IF(ISNUMBER($H97),(1+$H97)^(BD$10-$I97),INDEX(lookups!$F$77:$BU$87,MATCH($H97,lookups!$C$77:$C$87,0),MATCH(BD$10,lookups!$F$76:$BU$76,0))/INDEX(lookups!$F$77:$BU$87,MATCH($H97,lookups!$C$77:$C$87,0),MATCH($I97,lookups!$F$76:$BU$76,0))) -> 1 | BE97: =IF(ISNUMBER($H97),(1+$H97)^(BE$10-$I97),INDEX(lookups!$F$77:$BU$87,MATCH($H97,lookups!$C$77:$C$87,0),MATCH(BE$10,lookups!$F$76:$BU$76,0))/INDEX(lookups!$F$77:$BU$87,MATCH($H97,lookups!$C$77:$C$87,0),MATCH($I97,lookups!$F$76:$BU$76,0))) -> 1 | BF97: =IF(ISNUMBER($H97),(1+$H97)^(BF$10-$I97),INDEX(lookups!$F$77:$BU$87,MATCH($H97,lookups!$C$77:$C$87,0),MATCH(BF$10,lookups!$F$76:$BU$76,0))/INDEX(lookups!$F$77:$BU$87,MATCH($H97,lookups!$C$77:$C$87,0),MATCH($I97,lookups!$F$76:$BU$76,0))) -> 1 | BG97: =IF(ISNUMBER($H97),(1+$H97)^(BG$10-$I97),INDEX(lookups!$F$77:$BU$87,MATCH($H97,lookups!$C$77:$C$87,0),MATCH(BG$10,lookups!$F$76:$BU$76,0))/INDEX(lookups!$F$77:$BU$87,MATCH($H97,lookups!$C$77:$C$87,0),MATCH($I97,lookups!$F$76:$BU$76,0))) -> 1 | BH97: =IF(ISNUMBER($H97),(1+$H97)^(BH$10-$I97),INDEX(lookups!$F$77:$BU$87,MATCH($H97,lookups!$C$77:$C$87,0),MATCH(BH$10,lookups!$F$76:$BU$76,0))/INDEX(lookups!$F$77:$BU$87,MATCH($H97,lookups!$C$77:$C$87,0),MATCH($I97,lookups!$F$76:$BU$76,0))) -> 1 | BI97: =IF(ISNUMBER($H97),(1+$H97)^(BI$10-$I97),INDEX(lookups!$F$77:$BU$87,MATCH($H97,lookups!$C$77:$C$87,0),MATCH(BI$10,lookups!$F$76:$BU$76,0))/INDEX(lookups!$F$77:$BU$87,MATCH($H97,lookups!$C$77:$C$87,0),MATCH($I97,lookups!$F$76:$BU$76,0))) -> 1 | BJ97: =IF(ISNUMBER($H97),(1+$H97)^(BJ$10-$I97),INDEX(lookups!$F$77:$BU$87,MATCH($H97,lookups!$C$77:$C$87,0),MATCH(BJ$10,lookups!$F$76:$BU$76,0))/INDEX(lookups!$F$77:$BU$87,MATCH($H97,lookups!$C$77:$C$87,0),MATCH($I97,lookups!$F$76:$BU$76,0))) -> 1 | BK97: =IF(ISNUMBER($H97),(1+$H97)^(BK$10-$I97),INDEX(lookups!$F$77:$BU$87,MATCH($H97,lookups!$C$77:$C$87,0),MATCH(BK$10,lookups!$F$76:$BU$76,0))/INDEX(lookups!$F$77:$BU$87,MATCH($H97,lookups!$C$77:$C$87,0),MATCH($I97,lookups!$F$76:$BU$76,0))) -> 1 | BL97: =IF(ISNUMBER($H97),(1+$H97)^(BL$10-$I97),INDEX(lookups!$F$77:$BU$87,MATCH($H97,lookups!$C$77:$C$87,0),MATCH(BL$10,lookups!$F$76:$BU$76,0))/INDEX(lookups!$F$77:$BU$87,MATCH($H97,lookups!$C$77:$C$87,0),MATCH($I97,lookups!$F$76:$BU$76,0))) -> 1 | BM97: =IF(ISNUMBER($H97),(1+$H97)^(BM$10-$I97),INDEX(lookups!$F$77:$BU$87,MATCH($H97,lookups!$C$77:$C$87,0),MATCH(BM$10,lookups!$F$76:$BU$76,0))/INDEX(lookups!$F$77:$BU$87,MATCH($H97,lookups!$C$77:$C$87,0),MATCH($I97,lookups!$F$76:$BU$76,0))) -> 1
C98: 6 | D98: … | E98: Operating Expense | F98: 2 | H98: =Input!L17 -> 0 | I98: =Assumptions!$D$16 -> 2022 | O98: =IF(ISNUMBER($H98),(1+$H98)^(O$10-$I98),INDEX(lookups!$F$77:$BU$87,MATCH($H98,lookups!$C$77:$C$87,0),MATCH(O$10,lookups!$F$76:$BU$76,0))/INDEX(lookups!$F$77:$BU$87,MATCH($H98,lookups!$C$77:$C$87,0),MATCH($I98,lookups!$F$76:$BU$76,0))) -> 1 | P98: =IF(ISNUMBER($H98),(1+$H98)^(P$10-$I98),INDEX(lookups!$F$77:$BU$87,MATCH($H98,lookups!$C$77:$C$87,0),MATCH(P$10,lookups!$F$76:$BU$76,0))/INDEX(lookups!$F$77:$BU$87,MATCH($H98,lookups!$C$77:$C$87,0),MATCH($I98,lookups!$F$76:$BU$76,0))) -> 1 | Q98: =IF(ISNUMBER($H98),(1+$H98)^(Q$10-$I98),INDEX(lookups!$F$77:$BU$87,MATCH($H98,lookups!$C$77:$C$87,0),MATCH(Q$10,lookups!$F$76:$BU$76,0))/INDEX(lookups!$F$77:$BU$87,MATCH($H98,lookups!$C$77:$C$87,0),MATCH($I98,lookups!$F$76:$BU$76,0))) -> 1 | R98: =IF(ISNUMBER($H98),(1+$H98)^(R$10-$I98),INDEX(lookups!$F$77:$BU$87,MATCH($H98,lookups!$C$77:$C$87,0),MATCH(R$10,lookups!$F$76:$BU$76,0))/INDEX(lookups!$F$77:$BU$87,MATCH($H98,lookups!$C$77:$C$87,0),MATCH($I98,lookups!$F$76:$BU$76,0))) -> 1 | S98: =IF(ISNUMBER($H98),(1+$H98)^(S$10-$I98),INDEX(lookups!$F$77:$BU$87,MATCH($H98,lookups!$C$77:$C$87,0),MATCH(S$10,lookups!$F$76:$BU$76,0))/INDEX(lookups!$F$77:$BU$87,MATCH($H98,lookups!$C$77:$C$87,0),MATCH($I98,lookups!$F$76:$BU$76,0))) -> 1 | T98: =IF(ISNUMBER($H98),(1+$H98)^(T$10-$I98),INDEX(lookups!$F$77:$BU$87,MATCH($H98,lookups!$C$77:$C$87,0),MATCH(T$10,lookups!$F$76:$BU$76,0))/INDEX(lookups!$F$77:$BU$87,MATCH($H98,lookups!$C$77:$C$87,0),MATCH($I98,lookups!$F$76:$BU$76,0))) -> 1 | U98: =IF(ISNUMBER($H98),(1+$H98)^(U$10-$I98),INDEX(lookups!$F$77:$BU$87,MATCH($H98,lookups!$C$77:$C$87,0),MATCH(U$10,lookups!$F$76:$BU$76,0))/INDEX(lookups!$F$77:$BU$87,MATCH($H98,lookups!$C$77:$C$87,0),MATCH($I98,lookups!$F$76:$BU$76,0))) -> 1 | V98: =IF(ISNUMBER($H98),(1+$H98)^(V$10-$I98),INDEX(lookups!$F$77:$BU$87,MATCH($H98,lookups!$C$77:$C$87,0),MATCH(V$10,lookups!$F$76:$BU$76,0))/INDEX(lookups!$F$77:$BU$87,MATCH($H98,lookups!$C$77:$C$87,0),MATCH($I98,lookups!$F$76:$BU$76,0))) -> 1 | W98: =IF(ISNUMBER($H98),(1+$H98)^(W$10-$I98),INDEX(lookups!$F$77:$BU$87,MATCH($H98,lookups!$C$77:$C$87,0),MATCH(W$10,lookups!$F$76:$BU$76,0))/INDEX(lookups!$F$77:$BU$87,MATCH($H98,lookups!$C$77:$C$87,0),MATCH($I98,lookups!$F$76:$BU$76,0))) -> 1 | X98: =IF(ISNUMBER($H98),(1+$H98)^(X$10-$I98),INDEX(lookups!$F$77:$BU$87,MATCH($H98,lookups!$C$77:$C$87,0),MATCH(X$10,lookups!$F$76:$BU$76,0))/INDEX(lookups!$F$77:$BU$87,MATCH($H98,lookups!$C$77:$C$87,0),MATCH($I98,lookups!$F$76:$BU$76,0))) -> 1 | Y98: =IF(ISNUMBER($H98),(1+$H98)^(Y$10-$I98),INDEX(lookups!$F$77:$BU$87,MATCH($H98,lookups!$C$77:$C$87,0),MATCH(Y$10,lookups!$F$76:$BU$76,0))/INDEX(lookups!$F$77:$BU$87,MATCH($H98,lookups!$C$77:$C$87,0),MATCH($I98,lookups!$F$76:$BU$76,0))) -> 1 | Z98: =IF(ISNUMBER($H98),(1+$H98)^(Z$10-$I98),INDEX(lookups!$F$77:$BU$87,MATCH($H98,lookups!$C$77:$C$87,0),MATCH(Z$10,lookups!$F$76:$BU$76,0))/INDEX(lookups!$F$77:$BU$87,MATCH($H98,lookups!$C$77:$C$87,0),MATCH($I98,lookups!$F$76:$BU$76,0))) -> 1 | AA98: =IF(ISNUMBER($H98),(1+$H98)^(AA$10-$I98),INDEX(lookups!$F$77:$BU$87,MATCH($H98,lookups!$C$77:$C$87,0),MATCH(AA$10,lookups!$F$76:$BU$76,0))/INDEX(lookups!$F$77:$BU$87,MATCH($H98,lookups!$C$77:$C$87,0),MATCH($I98,lookups!$F$76:$BU$76,0))) -> 1 | AB98: =IF(ISNUMBER($H98),(1+$H98)^(AB$10-$I98),INDEX(lookups!$F$77:$BU$87,MATCH($H98,lookups!$C$77:$C$87,0),MATCH(AB$10,lookups!$F$76:$BU$76,0))/INDEX(lookups!$F$77:$BU$87,MATCH($H98,lookups!$C$77:$C$87,0),MATCH($I98,lookups!$F$76:$BU$76,0))) -> 1 | AC98: =IF(ISNUMBER($H98),(1+$H98)^(AC$10-$I98),INDEX(lookups!$F$77:$BU$87,MATCH($H98,lookups!$C$77:$C$87,0),MATCH(AC$10,lookups!$F$76:$BU$76,0))/INDEX(lookups!$F$77:$BU$87,MATCH($H98,lookups!$C$77:$C$87,0),MATCH($I98,lookups!$F$76:$BU$76,0))) -> 1 | AD98: =IF(ISNUMBER($H98),(1+$H98)^(AD$10-$I98),INDEX(lookups!$F$77:$BU$87,MATCH($H98,lookups!$C$77:$C$87,0),MATCH(AD$10,lookups!$F$76:$BU$76,0))/INDEX(lookups!$F$77:$BU$87,MATCH($H98,lookups!$C$77:$C$87,0),MATCH($I98,lookups!$F$76:$BU$76,0))) -> 1 | AE98: =IF(ISNUMBER($H98),(1+$H98)^(AE$10-$I98),INDEX(lookups!$F$77:$BU$87,MATCH($H98,lookups!$C$77:$C$87,0),MATCH(AE$10,lookups!$F$76:$BU$76,0))/INDEX(lookups!$F$77:$BU$87,MATCH($H98,lookups!$C$77:$C$87,0),MATCH($I98,lookups!$F$76:$BU$76,0))) -> 1 | AF98: =IF(ISNUMBER($H98),(1+$H98)^(AF$10-$I98),INDEX(lookups!$F$77:$BU$87,MATCH($H98,lookups!$C$77:$C$87,0),MATCH(AF$10,lookups!$F$76:$BU$76,0))/INDEX(lookups!$F$77:$BU$87,MATCH($H98,lookups!$C$77:$C$87,0),MATCH($I98,lookups!$F$76:$BU$76,0))) -> 1 | AG98: =IF(ISNUMBER($H98),(1+$H98)^(AG$10-$I98),INDEX(lookups!$F$77:$BU$87,MATCH($H98,lookups!$C$77:$C$87,0),MATCH(AG$10,lookups!$F$76:$BU$76,0))/INDEX(lookups!$F$77:$BU$87,MATCH($H98,lookups!$C$77:$C$87,0),MATCH($I98,lookups!$F$76:$BU$76,0))) -> 1 | AH98: =IF(ISNUMBER($H98),(1+$H98)^(AH$10-$I98),INDEX(lookups!$F$77:$BU$87,MATCH($H98,lookups!$C$77:$C$87,0),MATCH(AH$10,lookups!$F$76:$BU$76,0))/INDEX(lookups!$F$77:$BU$87,MATCH($H98,lookups!$C$77:$C$87,0),MATCH($I98,lookups!$F$76:$BU$76,0))) -> 1 | AI98: =IF(ISNUMBER($H98),(1+$H98)^(AI$10-$I98),INDEX(lookups!$F$77:$BU$87,MATCH($H98,lookups!$C$77:$C$87,0),MATCH(AI$10,lookups!$F$76:$BU$76,0))/INDEX(lookups!$F$77:$BU$87,MATCH($H98,lookups!$C$77:$C$87,0),MATCH($I98,lookups!$F$76:$BU$76,0))) -> 1 | AJ98: =IF(ISNUMBER($H98),(1+$H98)^(AJ$10-$I98),INDEX(lookups!$F$77:$BU$87,MATCH($H98,lookups!$C$77:$C$87,0),MATCH(AJ$10,lookups!$F$76:$BU$76,0))/INDEX(lookups!$F$77:$BU$87,MATCH($H98,lookups!$C$77:$C$87,0),MATCH($I98,lookups!$F$76:$BU$76,0))) -> 1 | AK98: =IF(ISNUMBER($H98),(1+$H98)^(AK$10-$I98),INDEX(lookups!$F$77:$BU$87,MATCH($H98,lookups!$C$77:$C$87,0),MATCH(AK$10,lookups!$F$76:$BU$76,0))/INDEX(lookups!$F$77:$BU$87,MATCH($H98,lookups!$C$77:$C$87,0),MATCH($I98,lookups!$F$76:$BU$76,0))) -> 1 | AL98: =IF(ISNUMBER($H98),(1+$H98)^(AL$10-$I98),INDEX(lookups!$F$77:$BU$87,MATCH($H98,lookups!$C$77:$C$87,0),MATCH(AL$10,lookups!$F$76:$BU$76,0))/INDEX(lookups!$F$77:$BU$87,MATCH($H98,lookups!$C$77:$C$87,0),MATCH($I98,lookups!$F$76:$BU$76,0))) -> 1 | AM98: =IF(ISNUMBER($H98),(1+$H98)^(AM$10-$I98),INDEX(lookups!$F$77:$BU$87,MATCH($H98,lookups!$C$77:$C$87,0),MATCH(AM$10,lookups!$F$76:$BU$76,0))/INDEX(lookups!$F$77:$BU$87,MATCH($H98,lookups!$C$77:$C$87,0),MATCH($I98,lookups!$F$76:$BU$76,0))) -> 1 | AN98: =IF(ISNUMBER($H98),(1+$H98)^(AN$10-$I98),INDEX(lookups!$F$77:$BU$87,MATCH($H98,lookups!$C$77:$C$87,0),MATCH(AN$10,lookups!$F$76:$BU$76,0))/INDEX(lookups!$F$77:$BU$87,MATCH($H98,lookups!$C$77:$C$87,0),MATCH($I98,lookups!$F$76:$BU$76,0))) -> 1 | AO98: =IF(ISNUMBER($H98),(1+$H98)^(AO$10-$I98),INDEX(lookups!$F$77:$BU$87,MATCH($H98,lookups!$C$77:$C$87,0),MATCH(AO$10,lookups!$F$76:$BU$76,0))/INDEX(lookups!$F$77:$BU$87,MATCH($H98,lookups!$C$77:$C$87,0),MATCH($I98,lookups!$F$76:$BU$76,0))) -> 1 | AP98: =IF(ISNUMBER($H98),(1+$H98)^(AP$10-$I98),INDEX(lookups!$F$77:$BU$87,MATCH($H98,lookups!$C$77:$C$87,0),MATCH(AP$10,lookups!$F$76:$BU$76,0))/INDEX(lookups!$F$77:$BU$87,MATCH($H98,lookups!$C$77:$C$87,0),MATCH($I98,lookups!$F$76:$BU$76,0))) -> 1 | AQ98: =IF(ISNUMBER($H98),(1+$H98)^(AQ$10-$I98),INDEX(lookups!$F$77:$BU$87,MATCH($H98,lookups!$C$77:$C$87,0),MATCH(AQ$10,lookups!$F$76:$BU$76,0))/INDEX(lookups!$F$77:$BU$87,MATCH($H98,lookups!$C$77:$C$87,0),MATCH($I98,lookups!$F$76:$BU$76,0))) -> 1 | AR98: =IF(ISNUMBER($H98),(1+$H98)^(AR$10-$I98),INDEX(lookups!$F$77:$BU$87,MATCH($H98,lookups!$C$77:$C$87,0),MATCH(AR$10,lookups!$F$76:$BU$76,0))/INDEX(lookups!$F$77:$BU$87,MATCH($H98,lookups!$C$77:$C$87,0),MATCH($I98,lookups!$F$76:$BU$76,0))) -> 1 | AS98: =IF(ISNUMBER($H98),(1+$H98)^(AS$10-$I98),INDEX(lookups!$F$77:$BU$87,MATCH($H98,lookups!$C$77:$C$87,0),MATCH(AS$10,lookups!$F$76:$BU$76,0))/INDEX(lookups!$F$77:$BU$87,MATCH($H98,lookups!$C$77:$C$87,0),MATCH($I98,lookups!$F$76:$BU$76,0))) -> 1 | AT98: =IF(ISNUMBER($H98),(1+$H98)^(AT$10-$I98),INDEX(lookups!$F$77:$BU$87,MATCH($H98,lookups!$C$77:$C$87,0),MATCH(AT$10,lookups!$F$76:$BU$76,0))/INDEX(lookups!$F$77:$BU$87,MATCH($H98,lookups!$C$77:$C$87,0),MATCH($I98,lookups!$F$76:$BU$76,0))) -> 1 | AU98: =IF(ISNUMBER($H98),(1+$H98)^(AU$10-$I98),INDEX(lookups!$F$77:$BU$87,MATCH($H98,lookups!$C$77:$C$87,0),MATCH(AU$10,lookups!$F$76:$BU$76,0))/INDEX(lookups!$F$77:$BU$87,MATCH($H98,lookups!$C$77:$C$87,0),MATCH($I98,lookups!$F$76:$BU$76,0))) -> 1 | AV98: =IF(ISNUMBER($H98),(1+$H98)^(AV$10-$I98),INDEX(lookups!$F$77:$BU$87,MATCH($H98,lookups!$C$77:$C$87,0),MATCH(AV$10,lookups!$F$76:$BU$76,0))/INDEX(lookups!$F$77:$BU$87,MATCH($H98,lookups!$C$77:$C$87,0),MATCH($I98,lookups!$F$76:$BU$76,0))) -> 1 | AW98: =IF(ISNUMBER($H98),(1+$H98)^(AW$10-$I98),INDEX(lookups!$F$77:$BU$87,MATCH($H98,lookups!$C$77:$C$87,0),MATCH(AW$10,lookups!$F$76:$BU$76,0))/INDEX(lookups!$F$77:$BU$87,MATCH($H98,lookups!$C$77:$C$87,0),MATCH($I98,lookups!$F$76:$BU$76,0))) -> 1 | AX98: =IF(ISNUMBER($H98),(1+$H98)^(AX$10-$I98),INDEX(lookups!$F$77:$BU$87,MATCH($H98,lookups!$C$77:$C$87,0),MATCH(AX$10,lookups!$F$76:$BU$76,0))/INDEX(lookups!$F$77:$BU$87,MATCH($H98,lookups!$C$77:$C$87,0),MATCH($I98,lookups!$F$76:$BU$76,0))) -> 1 | AY98: =IF(ISNUMBER($H98),(1+$H98)^(AY$10-$I98),INDEX(lookups!$F$77:$BU$87,MATCH($H98,lookups!$C$77:$C$87,0),MATCH(AY$10,lookups!$F$76:$BU$76,0))/INDEX(lookups!$F$77:$BU$87,MATCH($H98,lookups!$C$77:$C$87,0),MATCH($I98,lookups!$F$76:$BU$76,0))) -> 1 | AZ98: =IF(ISNUMBER($H98),(1+$H98)^(AZ$10-$I98),INDEX(lookups!$F$77:$BU$87,MATCH($H98,lookups!$C$77:$C$87,0),MATCH(AZ$10,lookups!$F$76:$BU$76,0))/INDEX(lookups!$F$77:$BU$87,MATCH($H98,lookups!$C$77:$C$87,0),MATCH($I98,lookups!$F$76:$BU$76,0))) -> 1 | BA98: =IF(ISNUMBER($H98),(1+$H98)^(BA$10-$I98),INDEX(lookups!$F$77:$BU$87,MATCH($H98,lookups!$C$77:$C$87,0),MATCH(BA$10,lookups!$F$76:$BU$76,0))/INDEX(lookups!$F$77:$BU$87,MATCH($H98,lookups!$C$77:$C$87,0),MATCH($I98,lookups!$F$76:$BU$76,0))) -> 1 | BB98: =IF(ISNUMBER($H98),(1+$H98)^(BB$10-$I98),INDEX(lookups!$F$77:$BU$87,MATCH($H98,lookups!$C$77:$C$87,0),MATCH(BB$10,lookups!$F$76:$BU$76,0))/INDEX(lookups!$F$77:$BU$87,MATCH($H98,lookups!$C$77:$C$87,0),MATCH($I98,lookups!$F$76:$BU$76,0))) -> 1 | BC98: =IF(ISNUMBER($H98),(1+$H98)^(BC$10-$I98),INDEX(lookups!$F$77:$BU$87,MATCH($H98,lookups!$C$77:$C$87,0),MATCH(BC$10,lookups!$F$76:$BU$76,0))/INDEX(lookups!$F$77:$BU$87,MATCH($H98,lookups!$C$77:$C$87,0),MATCH($I98,lookups!$F$76:$BU$76,0))) -> 1 | BD98: =IF(ISNUMBER($H98),(1+$H98)^(BD$10-$I98),INDEX(lookups!$F$77:$BU$87,MATCH($H98,lookups!$C$77:$C$87,0),MATCH(BD$10,lookups!$F$76:$BU$76,0))/INDEX(lookups!$F$77:$BU$87,MATCH($H98,lookups!$C$77:$C$87,0),MATCH($I98,lookups!$F$76:$BU$76,0))) -> 1 | BE98: =IF(ISNUMBER($H98),(1+$H98)^(BE$10-$I98),INDEX(lookups!$F$77:$BU$87,MATCH($H98,lookups!$C$77:$C$87,0),MATCH(BE$10,lookups!$F$76:$BU$76,0))/INDEX(lookups!$F$77:$BU$87,MATCH($H98,lookups!$C$77:$C$87,0),MATCH($I98,lookups!$F$76:$BU$76,0))) -> 1 | BF98: =IF(ISNUMBER($H98),(1+$H98)^(BF$10-$I98),INDEX(lookups!$F$77:$BU$87,MATCH($H98,lookups!$C$77:$C$87,0),MATCH(BF$10,lookups!$F$76:$BU$76,0))/INDEX(lookups!$F$77:$BU$87,MATCH($H98,lookups!$C$77:$C$87,0),MATCH($I98,lookups!$F$76:$BU$76,0))) -> 1 | BG98: =IF(ISNUMBER($H98),(1+$H98)^(BG$10-$I98),INDEX(lookups!$F$77:$BU$87,MATCH($H98,lookups!$C$77:$C$87,0),MATCH(BG$10,lookups!$F$76:$BU$76,0))/INDEX(lookups!$F$77:$BU$87,MATCH($H98,lookups!$C$77:$C$87,0),MATCH($I98,lookups!$F$76:$BU$76,0))) -> 1 | BH98: =IF(ISNUMBER($H98),(1+$H98)^(BH$10-$I98),INDEX(lookups!$F$77:$BU$87,MATCH($H98,lookups!$C$77:$C$87,0),MATCH(BH$10,lookups!$F$76:$BU$76,0))/INDEX(lookups!$F$77:$BU$87,MATCH($H98,lookups!$C$77:$C$87,0),MATCH($I98,lookups!$F$76:$BU$76,0))) -> 1 | BI98: =IF(ISNUMBER($H98),(1+$H98)^(BI$10-$I98),INDEX(lookups!$F$77:$BU$87,MATCH($H98,lookups!$C$77:$C$87,0),MATCH(BI$10,lookups!$F$76:$BU$76,0))/INDEX(lookups!$F$77:$BU$87,MATCH($H98,lookups!$C$77:$C$87,0),MATCH($I98,lookups!$F$76:$BU$76,0))) -> 1 | BJ98: =IF(ISNUMBER($H98),(1+$H98)^(BJ$10-$I98),INDEX(lookups!$F$77:$BU$87,MATCH($H98,lookups!$C$77:$C$87,0),MATCH(BJ$10,lookups!$F$76:$BU$76,0))/INDEX(lookups!$F$77:$BU$87,MATCH($H98,lookups!$C$77:$C$87,0),MATCH($I98,lookups!$F$76:$BU$76,0))) -> 1 | BK98: =IF(ISNUMBER($H98),(1+$H98)^(BK$10-$I98),INDEX(lookups!$F$77:$BU$87,MATCH($H98,lookups!$C$77:$C$87,0),MATCH(BK$10,lookups!$F$76:$BU$76,0))/INDEX(lookups!$F$77:$BU$87,MATCH($H98,lookups!$C$77:$C$87,0),MATCH($I98,lookups!$F$76:$BU$76,0))) -> 1 | BL98: =IF(ISNUMBER($H98),(1+$H98)^(BL$10-$I98),INDEX(lookups!$F$77:$BU$87,MATCH($H98,lookups!$C$77:$C$87,0),MATCH(BL$10,lookups!$F$76:$BU$76,0))/INDEX(lookups!$F$77:$BU$87,MATCH($H98,lookups!$C$77:$C$87,0),MATCH($I98,lookups!$F$76:$BU$76,0))) -> 1 | BM98: =IF(ISNUMBER($H98),(1+$H98)^(BM$10-$I98),INDEX(lookups!$F$77:$BU$87,MATCH($H98,lookups!$C$77:$C$87,0),MATCH(BM$10,lookups!$F$76:$BU$76,0))/INDEX(lookups!$F$77:$BU$87,MATCH($H98,lookups!$C$77:$C$87,0),MATCH($I98,lookups!$F$76:$BU$76,0))) -> 1
C99: 7 | D99: … | E99: Operating Expense | F99: 2 | H99: =Input!L18 -> 0 | I99: =Assumptions!$D$16 -> 2022 | O99: =IF(ISNUMBER($H99),(1+$H99)^(O$10-$I99),INDEX(lookups!$F$77:$BU$87,MATCH($H99,lookups!$C$77:$C$87,0),MATCH(O$10,lookups!$F$76:$BU$76,0))/INDEX(lookups!$F$77:$BU$87,MATCH($H99,lookups!$C$77:$C$87,0),MATCH($I99,lookups!$F$76:$BU$76,0))) -> 1 | P99: =IF(ISNUMBER($H99),(1+$H99)^(P$10-$I99),INDEX(lookups!$F$77:$BU$87,MATCH($H99,lookups!$C$77:$C$87,0),MATCH(P$10,lookups!$F$76:$BU$76,0))/INDEX(lookups!$F$77:$BU$87,MATCH($H99,lookups!$C$77:$C$87,0),MATCH($I99,lookups!$F$76:$BU$76,0))) -> 1 | Q99: =IF(ISNUMBER($H99),(1+$H99)^(Q$10-$I99),INDEX(lookups!$F$77:$BU$87,MATCH($H99,lookups!$C$77:$C$87,0),MATCH(Q$10,lookups!$F$76:$BU$76,0))/INDEX(lookups!$F$77:$BU$87,MATCH($H99,lookups!$C$77:$C$87,0),MATCH($I99,lookups!$F$76:$BU$76,0))) -> 1 | R99: =IF(ISNUMBER($H99),(1+$H99)^(R$10-$I99),INDEX(lookups!$F$77:$BU$87,MATCH($H99,lookups!$C$77:$C$87,0),MATCH(R$10,lookups!$F$76:$BU$76,0))/INDEX(lookups!$F$77:$BU$87,MATCH($H99,lookups!$C$77:$C$87,0),MATCH($I99,lookups!$F$76:$BU$76,0))) -> 1 | S99: =IF(ISNUMBER($H99),(1+$H99)^(S$10-$I99),INDEX(lookups!$F$77:$BU$87,MATCH($H99,lookups!$C$77:$C$87,0),MATCH(S$10,lookups!$F$76:$BU$76,0))/INDEX(lookups!$F$77:$BU$87,MATCH($H99,lookups!$C$77:$C$87,0),MATCH($I99,lookups!$F$76:$BU$76,0))) -> 1 | T99: =IF(ISNUMBER($H99),(1+$H99)^(T$10-$I99),INDEX(lookups!$F$77:$BU$87,MATCH($H99,lookups!$C$77:$C$87,0),MATCH(T$10,lookups!$F$76:$BU$76,0))/INDEX(lookups!$F$77:$BU$87,MATCH($H99,lookups!$C$77:$C$87,0),MATCH($I99,lookups!$F$76:$BU$76,0))) -> 1 | U99: =IF(ISNUMBER($H99),(1+$H99)^(U$10-$I99),INDEX(lookups!$F$77:$BU$87,MATCH($H99,lookups!$C$77:$C$87,0),MATCH(U$10,lookups!$F$76:$BU$76,0))/INDEX(lookups!$F$77:$BU$87,MATCH($H99,lookups!$C$77:$C$87,0),MATCH($I99,lookups!$F$76:$BU$76,0))) -> 1 | V99: =IF(ISNUMBER($H99),(1+$H99)^(V$10-$I99),INDEX(lookups!$F$77:$BU$87,MATCH($H99,lookups!$C$77:$C$87,0),MATCH(V$10,lookups!$F$76:$BU$76,0))/INDEX(lookups!$F$77:$BU$87,MATCH($H99,lookups!$C$77:$C$87,0),MATCH($I99,lookups!$F$76:$BU$76,0))) -> 1 | W99: =IF(ISNUMBER($H99),(1+$H99)^(W$10-$I99),INDEX(lookups!$F$77:$BU$87,MATCH($H99,lookups!$C$77:$C$87,0),MATCH(W$10,lookups!$F$76:$BU$76,0))/INDEX(lookups!$F$77:$BU$87,MATCH($H99,lookups!$C$77:$C$87,0),MATCH($I99,lookups!$F$76:$BU$76,0))) -> 1 | X99: =IF(ISNUMBER($H99),(1+$H99)^(X$10-$I99),INDEX(lookups!$F$77:$BU$87,MATCH($H99,lookups!$C$77:$C$87,0),MATCH(X$10,lookups!$F$76:$BU$76,0))/INDEX(lookups!$F$77:$BU$87,MATCH($H99,lookups!$C$77:$C$87,0),MATCH($I99,lookups!$F$76:$BU$76,0))) -> 1 | Y99: =IF(ISNUMBER($H99),(1+$H99)^(Y$10-$I99),INDEX(lookups!$F$77:$BU$87,MATCH($H99,lookups!$C$77:$C$87,0),MATCH(Y$10,lookups!$F$76:$BU$76,0))/INDEX(lookups!$F$77:$BU$87,MATCH($H99,lookups!$C$77:$C$87,0),MATCH($I99,lookups!$F$76:$BU$76,0))) -> 1 | Z99: =IF(ISNUMBER($H99),(1+$H99)^(Z$10-$I99),INDEX(lookups!$F$77:$BU$87,MATCH($H99,lookups!$C$77:$C$87,0),MATCH(Z$10,lookups!$F$76:$BU$76,0))/INDEX(lookups!$F$77:$BU$87,MATCH($H99,lookups!$C$77:$C$87,0),MATCH($I99,lookups!$F$76:$BU$76,0))) -> 1 | AA99: =IF(ISNUMBER($H99),(1+$H99)^(AA$10-$I99),INDEX(lookups!$F$77:$BU$87,MATCH($H99,lookups!$C$77:$C$87,0),MATCH(AA$10,lookups!$F$76:$BU$76,0))/INDEX(lookups!$F$77:$BU$87,MATCH($H99,lookups!$C$77:$C$87,0),MATCH($I99,lookups!$F$76:$BU$76,0))) -> 1 | AB99: =IF(ISNUMBER($H99),(1+$H99)^(AB$10-$I99),INDEX(lookups!$F$77:$BU$87,MATCH($H99,lookups!$C$77:$C$87,0),MATCH(AB$10,lookups!$F$76:$BU$76,0))/INDEX(lookups!$F$77:$BU$87,MATCH($H99,lookups!$C$77:$C$87,0),MATCH($I99,lookups!$F$76:$BU$76,0))) -> 1 | AC99: =IF(ISNUMBER($H99),(1+$H99)^(AC$10-$I99),INDEX(lookups!$F$77:$BU$87,MATCH($H99,lookups!$C$77:$C$87,0),MATCH(AC$10,lookups!$F$76:$BU$76,0))/INDEX(lookups!$F$77:$BU$87,MATCH($H99,lookups!$C$77:$C$87,0),MATCH($I99,lookups!$F$76:$BU$76,0))) -> 1 | AD99: =IF(ISNUMBER($H99),(1+$H99)^(AD$10-$I99),INDEX(lookups!$F$77:$BU$87,MATCH($H99,lookups!$C$77:$C$87,0),MATCH(AD$10,lookups!$F$76:$BU$76,0))/INDEX(lookups!$F$77:$BU$87,MATCH($H99,lookups!$C$77:$C$87,0),MATCH($I99,lookups!$F$76:$BU$76,0))) -> 1 | AE99: =IF(ISNUMBER($H99),(1+$H99)^(AE$10-$I99),INDEX(lookups!$F$77:$BU$87,MATCH($H99,lookups!$C$77:$C$87,0),MATCH(AE$10,lookups!$F$76:$BU$76,0))/INDEX(lookups!$F$77:$BU$87,MATCH($H99,lookups!$C$77:$C$87,0),MATCH($I99,lookups!$F$76:$BU$76,0))) -> 1 | AF99: =IF(ISNUMBER($H99),(1+$H99)^(AF$10-$I99),INDEX(lookups!$F$77:$BU$87,MATCH($H99,lookups!$C$77:$C$87,0),MATCH(AF$10,lookups!$F$76:$BU$76,0))/INDEX(lookups!$F$77:$BU$87,MATCH($H99,lookups!$C$77:$C$87,0),MATCH($I99,lookups!$F$76:$BU$76,0))) -> 1 | AG99: =IF(ISNUMBER($H99),(1+$H99)^(AG$10-$I99),INDEX(lookups!$F$77:$BU$87,MATCH($H99,lookups!$C$77:$C$87,0),MATCH(AG$10,lookups!$F$76:$BU$76,0))/INDEX(lookups!$F$77:$BU$87,MATCH($H99,lookups!$C$77:$C$87,0),MATCH($I99,lookups!$F$76:$BU$76,0))) -> 1 | AH99: =IF(ISNUMBER($H99),(1+$H99)^(AH$10-$I99),INDEX(lookups!$F$77:$BU$87,MATCH($H99,lookups!$C$77:$C$87,0),MATCH(AH$10,lookups!$F$76:$BU$76,0))/INDEX(lookups!$F$77:$BU$87,MATCH($H99,lookups!$C$77:$C$87,0),MATCH($I99,lookups!$F$76:$BU$76,0))) -> 1 | AI99: =IF(ISNUMBER($H99),(1+$H99)^(AI$10-$I99),INDEX(lookups!$F$77:$BU$87,MATCH($H99,lookups!$C$77:$C$87,0),MATCH(AI$10,lookups!$F$76:$BU$76,0))/INDEX(lookups!$F$77:$BU$87,MATCH($H99,lookups!$C$77:$C$87,0),MATCH($I99,lookups!$F$76:$BU$76,0))) -> 1 | AJ99: =IF(ISNUMBER($H99),(1+$H99)^(AJ$10-$I99),INDEX(lookups!$F$77:$BU$87,MATCH($H99,lookups!$C$77:$C$87,0),MATCH(AJ$10,lookups!$F$76:$BU$76,0))/INDEX(lookups!$F$77:$BU$87,MATCH($H99,lookups!$C$77:$C$87,0),MATCH($I99,lookups!$F$76:$BU$76,0))) -> 1 | AK99: =IF(ISNUMBER($H99),(1+$H99)^(AK$10-$I99),INDEX(lookups!$F$77:$BU$87,MATCH($H99,lookups!$C$77:$C$87,0),MATCH(AK$10,lookups!$F$76:$BU$76,0))/INDEX(lookups!$F$77:$BU$87,MATCH($H99,lookups!$C$77:$C$87,0),MATCH($I99,lookups!$F$76:$BU$76,0))) -> 1 | AL99: =IF(ISNUMBER($H99),(1+$H99)^(AL$10-$I99),INDEX(lookups!$F$77:$BU$87,MATCH($H99,lookups!$C$77:$C$87,0),MATCH(AL$10,lookups!$F$76:$BU$76,0))/INDEX(lookups!$F$77:$BU$87,MATCH($H99,lookups!$C$77:$C$87,0),MATCH($I99,lookups!$F$76:$BU$76,0))) -> 1 | AM99: =IF(ISNUMBER($H99),(1+$H99)^(AM$10-$I99),INDEX(lookups!$F$77:$BU$87,MATCH($H99,lookups!$C$77:$C$87,0),MATCH(AM$10,lookups!$F$76:$BU$76,0))/INDEX(lookups!$F$77:$BU$87,MATCH($H99,lookups!$C$77:$C$87,0),MATCH($I99,lookups!$F$76:$BU$76,0))) -> 1 | AN99: =IF(ISNUMBER($H99),(1+$H99)^(AN$10-$I99),INDEX(lookups!$F$77:$BU$87,MATCH($H99,lookups!$C$77:$C$87,0),MATCH(AN$10,lookups!$F$76:$BU$76,0))/INDEX(lookups!$F$77:$BU$87,MATCH($H99,lookups!$C$77:$C$87,0),MATCH($I99,lookups!$F$76:$BU$76,0))) -> 1 | AO99: =IF(ISNUMBER($H99),(1+$H99)^(AO$10-$I99),INDEX(lookups!$F$77:$BU$87,MATCH($H99,lookups!$C$77:$C$87,0),MATCH(AO$10,lookups!$F$76:$BU$76,0))/INDEX(lookups!$F$77:$BU$87,MATCH($H99,lookups!$C$77:$C$87,0),MATCH($I99,lookups!$F$76:$BU$76,0))) -> 1 | AP99: =IF(ISNUMBER($H99),(1+$H99)^(AP$10-$I99),INDEX(lookups!$F$77:$BU$87,MATCH($H99,lookups!$C$77:$C$87,0),MATCH(AP$10,lookups!$F$76:$BU$76,0))/INDEX(lookups!$F$77:$BU$87,MATCH($H99,lookups!$C$77:$C$87,0),MATCH($I99,lookups!$F$76:$BU$76,0))) -> 1 | AQ99: =IF(ISNUMBER($H99),(1+$H99)^(AQ$10-$I99),INDEX(lookups!$F$77:$BU$87,MATCH($H99,lookups!$C$77:$C$87,0),MATCH(AQ$10,lookups!$F$76:$BU$76,0))/INDEX(lookups!$F$77:$BU$87,MATCH($H99,lookups!$C$77:$C$87,0),MATCH($I99,lookups!$F$76:$BU$76,0))) -> 1 | AR99: =IF(ISNUMBER($H99),(1+$H99)^(AR$10-$I99),INDEX(lookups!$F$77:$BU$87,MATCH($H99,lookups!$C$77:$C$87,0),MATCH(AR$10,lookups!$F$76:$BU$76,0))/INDEX(lookups!$F$77:$BU$87,MATCH($H99,lookups!$C$77:$C$87,0),MATCH($I99,lookups!$F$76:$BU$76,0))) -> 1 | AS99: =IF(ISNUMBER($H99),(1+$H99)^(AS$10-$I99),INDEX(lookups!$F$77:$BU$87,MATCH($H99,lookups!$C$77:$C$87,0),MATCH(AS$10,lookups!$F$76:$BU$76,0))/INDEX(lookups!$F$77:$BU$87,MATCH($H99,lookups!$C$77:$C$87,0),MATCH($I99,lookups!$F$76:$BU$76,0))) -> 1 | AT99: =IF(ISNUMBER($H99),(1+$H99)^(AT$10-$I99),INDEX(lookups!$F$77:$BU$87,MATCH($H99,lookups!$C$77:$C$87,0),MATCH(AT$10,lookups!$F$76:$BU$76,0))/INDEX(lookups!$F$77:$BU$87,MATCH($H99,lookups!$C$77:$C$87,0),MATCH($I99,lookups!$F$76:$BU$76,0))) -> 1 | AU99: =IF(ISNUMBER($H99),(1+$H99)^(AU$10-$I99),INDEX(lookups!$F$77:$BU$87,MATCH($H99,lookups!$C$77:$C$87,0),MATCH(AU$10,lookups!$F$76:$BU$76,0))/INDEX(lookups!$F$77:$BU$87,MATCH($H99,lookups!$C$77:$C$87,0),MATCH($I99,lookups!$F$76:$BU$76,0))) -> 1 | AV99: =IF(ISNUMBER($H99),(1+$H99)^(AV$10-$I99),INDEX(lookups!$F$77:$BU$87,MATCH($H99,lookups!$C$77:$C$87,0),MATCH(AV$10,lookups!$F$76:$BU$76,0))/INDEX(lookups!$F$77:$BU$87,MATCH($H99,lookups!$C$77:$C$87,0),MATCH($I99,lookups!$F$76:$BU$76,0))) -> 1 | AW99: =IF(ISNUMBER($H99),(1+$H99)^(AW$10-$I99),INDEX(lookups!$F$77:$BU$87,MATCH($H99,lookups!$C$77:$C$87,0),MATCH(AW$10,lookups!$F$76:$BU$76,0))/INDEX(lookups!$F$77:$BU$87,MATCH($H99,lookups!$C$77:$C$87,0),MATCH($I99,lookups!$F$76:$BU$76,0))) -> 1 | AX99: =IF(ISNUMBER($H99),(1+$H99)^(AX$10-$I99),INDEX(lookups!$F$77:$BU$87,MATCH($H99,lookups!$C$77:$C$87,0),MATCH(AX$10,lookups!$F$76:$BU$76,0))/INDEX(lookups!$F$77:$BU$87,MATCH($H99,lookups!$C$77:$C$87,0),MATCH($I99,lookups!$F$76:$BU$76,0))) -> 1 | AY99: =IF(ISNUMBER($H99),(1+$H99)^(AY$10-$I99),INDEX(lookups!$F$77:$BU$87,MATCH($H99,lookups!$C$77:$C$87,0),MATCH(AY$10,lookups!$F$76:$BU$76,0))/INDEX(lookups!$F$77:$BU$87,MATCH($H99,lookups!$C$77:$C$87,0),MATCH($I99,lookups!$F$76:$BU$76,0))) -> 1 | AZ99: =IF(ISNUMBER($H99),(1+$H99)^(AZ$10-$I99),INDEX(lookups!$F$77:$BU$87,MATCH($H99,lookups!$C$77:$C$87,0),MATCH(AZ$10,lookups!$F$76:$BU$76,0))/INDEX(lookups!$F$77:$BU$87,MATCH($H99,lookups!$C$77:$C$87,0),MATCH($I99,lookups!$F$76:$BU$76,0))) -> 1 | BA99: =IF(ISNUMBER($H99),(1+$H99)^(BA$10-$I99),INDEX(lookups!$F$77:$BU$87,MATCH($H99,lookups!$C$77:$C$87,0),MATCH(BA$10,lookups!$F$76:$BU$76,0))/INDEX(lookups!$F$77:$BU$87,MATCH($H99,lookups!$C$77:$C$87,0),MATCH($I99,lookups!$F$76:$BU$76,0))) -> 1 | BB99: =IF(ISNUMBER($H99),(1+$H99)^(BB$10-$I99),INDEX(lookups!$F$77:$BU$87,MATCH($H99,lookups!$C$77:$C$87,0),MATCH(BB$10,lookups!$F$76:$BU$76,0))/INDEX(lookups!$F$77:$BU$87,MATCH($H99,lookups!$C$77:$C$87,0),MATCH($I99,lookups!$F$76:$BU$76,0))) -> 1 | BC99: =IF(ISNUMBER($H99),(1+$H99)^(BC$10-$I99),INDEX(lookups!$F$77:$BU$87,MATCH($H99,lookups!$C$77:$C$87,0),MATCH(BC$10,lookups!$F$76:$BU$76,0))/INDEX(lookups!$F$77:$BU$87,MATCH($H99,lookups!$C$77:$C$87,0),MATCH($I99,lookups!$F$76:$BU$76,0))) -> 1 | BD99: =IF(ISNUMBER($H99),(1+$H99)^(BD$10-$I99),INDEX(lookups!$F$77:$BU$87,MATCH($H99,lookups!$C$77:$C$87,0),MATCH(BD$10,lookups!$F$76:$BU$76,0))/INDEX(lookups!$F$77:$BU$87,MATCH($H99,lookups!$C$77:$C$87,0),MATCH($I99,lookups!$F$76:$BU$76,0))) -> 1 | BE99: =IF(ISNUMBER($H99),(1+$H99)^(BE$10-$I99),INDEX(lookups!$F$77:$BU$87,MATCH($H99,lookups!$C$77:$C$87,0),MATCH(BE$10,lookups!$F$76:$BU$76,0))/INDEX(lookups!$F$77:$BU$87,MATCH($H99,lookups!$C$77:$C$87,0),MATCH($I99,lookups!$F$76:$BU$76,0))) -> 1 | BF99: =IF(ISNUMBER($H99),(1+$H99)^(BF$10-$I99),INDEX(lookups!$F$77:$BU$87,MATCH($H99,lookups!$C$77:$C$87,0),MATCH(BF$10,lookups!$F$76:$BU$76,0))/INDEX(lookups!$F$77:$BU$87,MATCH($H99,lookups!$C$77:$C$87,0),MATCH($I99,lookups!$F$76:$BU$76,0))) -> 1 | BG99: =IF(ISNUMBER($H99),(1+$H99)^(BG$10-$I99),INDEX(lookups!$F$77:$BU$87,MATCH($H99,lookups!$C$77:$C$87,0),MATCH(BG$10,lookups!$F$76:$BU$76,0))/INDEX(lookups!$F$77:$BU$87,MATCH($H99,lookups!$C$77:$C$87,0),MATCH($I99,lookups!$F$76:$BU$76,0))) -> 1 | BH99: =IF(ISNUMBER($H99),(1+$H99)^(BH$10-$I99),INDEX(lookups!$F$77:$BU$87,MATCH($H99,lookups!$C$77:$C$87,0),MATCH(BH$10,lookups!$F$76:$BU$76,0))/INDEX(lookups!$F$77:$BU$87,MATCH($H99,lookups!$C$77:$C$87,0),MATCH($I99,lookups!$F$76:$BU$76,0))) -> 1 | BI99: =IF(ISNUMBER($H99),(1+$H99)^(BI$10-$I99),INDEX(lookups!$F$77:$BU$87,MATCH($H99,lookups!$C$77:$C$87,0),MATCH(BI$10,lookups!$F$76:$BU$76,0))/INDEX(lookups!$F$77:$BU$87,MATCH($H99,lookups!$C$77:$C$87,0),MATCH($I99,lookups!$F$76:$BU$76,0))) -> 1 | BJ99: =IF(ISNUMBER($H99),(1+$H99)^(BJ$10-$I99),INDEX(lookups!$F$77:$BU$87,MATCH($H99,lookups!$C$77:$C$87,0),MATCH(BJ$10,lookups!$F$76:$BU$76,0))/INDEX(lookups!$F$77:$BU$87,MATCH($H99,lookups!$C$77:$C$87,0),MATCH($I99,lookups!$F$76:$BU$76,0))) -> 1 | BK99: =IF(ISNUMBER($H99),(1+$H99)^(BK$10-$I99),INDEX(lookups!$F$77:$BU$87,MATCH($H99,lookups!$C$77:$C$87,0),MATCH(BK$10,lookups!$F$76:$BU$76,0))/INDEX(lookups!$F$77:$BU$87,MATCH($H99,lookups!$C$77:$C$87,0),MATCH($I99,lookups!$F$76:$BU$76,0))) -> 1 | BL99: =IF(ISNUMBER($H99),(1+$H99)^(BL$10-$I99),INDEX(lookups!$F$77:$BU$87,MATCH($H99,lookups!$C$77:$C$87,0),MATCH(BL$10,lookups!$F$76:$BU$76,0))/INDEX(lookups!$F$77:$BU$87,MATCH($H99,lookups!$C$77:$C$87,0),MATCH($I99,lookups!$F$76:$BU$76,0))) -> 1 | BM99: =IF(ISNUMBER($H99),(1+$H99)^(BM$10-$I99),INDEX(lookups!$F$77:$BU$87,MATCH($H99,lookups!$C$77:$C$87,0),MATCH(BM$10,lookups!$F$76:$BU$76,0))/INDEX(lookups!$F$77:$BU$87,MATCH($H99,lookups!$C$77:$C$87,0),MATCH($I99,lookups!$F$76:$BU$76,0))) -> 1
C100: 8 | D100: … | E100: Operating Expense | F100: 2 | H100: =Input!L19 -> 0 | I100: =Assumptions!$D$16 -> 2022 | O100: =IF(ISNUMBER($H100),(1+$H100)^(O$10-$I100),INDEX(lookups!$F$77:$BU$87,MATCH($H100,lookups!$C$77:$C$87,0),MATCH(O$10,lookups!$F$76:$BU$76,0))/INDEX(lookups!$F$77:$BU$87,MATCH($H100,lookups!$C$77:$C$87,0),MATCH($I100,lookups!$F$76:$BU$76,0))) -> 1 | P100: =IF(ISNUMBER($H100),(1+$H100)^(P$10-$I100),INDEX(lookups!$F$77:$BU$87,MATCH($H100,lookups!$C$77:$C$87,0),MATCH(P$10,lookups!$F$76:$BU$76,0))/INDEX(lookups!$F$77:$BU$87,MATCH($H100,lookups!$C$77:$C$87,0),MATCH($I100,lookups!$F$76:$BU$76,0))) -> 1 | Q100: =IF(ISNUMBER($H100),(1+$H100)^(Q$10-$I100),INDEX(lookups!$F$77:$BU$87,MATCH($H100,lookups!$C$77:$C$87,0),MATCH(Q$10,lookups!$F$76:$BU$76,0))/INDEX(lookups!$F$77:$BU$87,MATCH($H100,lookups!$C$77:$C$87,0),MATCH($I100,lookups!$F$76:$BU$76,0))) -> 1 | R100: =IF(ISNUMBER($H100),(1+$H100)^(R$10-$I100),INDEX(lookups!$F$77:$BU$87,MATCH($H100,lookups!$C$77:$C$87,0),MATCH(R$10,lookups!$F$76:$BU$76,0))/INDEX(lookups!$F$77:$BU$87,MATCH($H100,lookups!$C$77:$C$87,0),MATCH($I100,lookups!$F$76:$BU$76,0))) -> 1 | S100: =IF(ISNUMBER($H100),(1+$H100)^(S$10-$I100),INDEX(lookups!$F$77:$BU$87,MATCH($H100,lookups!$C$77:$C$87,0),MATCH(S$10,lookups!$F$76:$BU$76,0))/INDEX(lookups!$F$77:$BU$87,MATCH($H100,lookups!$C$77:$C$87,0),MATCH($I100,lookups!$F$76:$BU$76,0))) -> 1 | T100: =IF(ISNUMBER($H100),(1+$H100)^(T$10-$I100),INDEX(lookups!$F$77:$BU$87,MATCH($H100,lookups!$C$77:$C$87,0),MATCH(T$10,lookups!$F$76:$BU$76,0))/INDEX(lookups!$F$77:$BU$87,MATCH($H100,lookups!$C$77:$C$87,0),MATCH($I100,lookups!$F$76:$BU$76,0))) -> 1 | U100: =IF(ISNUMBER($H100),(1+$H100)^(U$10-$I100),INDEX(lookups!$F$77:$BU$87,MATCH($H100,lookups!$C$77:$C$87,0),MATCH(U$10,lookups!$F$76:$BU$76,0))/INDEX(lookups!$F$77:$BU$87,MATCH($H100,lookups!$C$77:$C$87,0),MATCH($I100,lookups!$F$76:$BU$76,0))) -> 1 | V100: =IF(ISNUMBER($H100),(1+$H100)^(V$10-$I100),INDEX(lookups!$F$77:$BU$87,MATCH($H100,lookups!$C$77:$C$87,0),MATCH(V$10,lookups!$F$76:$BU$76,0))/INDEX(lookups!$F$77:$BU$87,MATCH($H100,lookups!$C$77:$C$87,0),MATCH($I100,lookups!$F$76:$BU$76,0))) -> 1 | W100: =IF(ISNUMBER($H100),(1+$H100)^(W$10-$I100),INDEX(lookups!$F$77:$BU$87,MATCH($H100,lookups!$C$77:$C$87,0),MATCH(W$10,lookups!$F$76:$BU$76,0))/INDEX(lookups!$F$77:$BU$87,MATCH($H100,lookups!$C$77:$C$87,0),MATCH($I100,lookups!$F$76:$BU$76,0))) -> 1 | X100: =IF(ISNUMBER($H100),(1+$H100)^(X$10-$I100),INDEX(lookups!$F$77:$BU$87,MATCH($H100,lookups!$C$77:$C$87,0),MATCH(X$10,lookups!$F$76:$BU$76,0))/INDEX(lookups!$F$77:$BU$87,MATCH($H100,lookups!$C$77:$C$87,0),MATCH($I100,lookups!$F$76:$BU$76,0))) -> 1 | Y100: =IF(ISNUMBER($H100),(1+$H100)^(Y$10-$I100),INDEX(lookups!$F$77:$BU$87,MATCH($H100,lookups!$C$77:$C$87,0),MATCH(Y$10,lookups!$F$76:$BU$76,0))/INDEX(lookups!$F$77:$BU$87,MATCH($H100,lookups!$C$77:$C$87,0),MATCH($I100,lookups!$F$76:$BU$76,0))) -> 1 | Z100: =IF(ISNUMBER($H100),(1+$H100)^(Z$10-$I100),INDEX(lookups!$F$77:$BU$87,MATCH($H100,lookups!$C$77:$C$87,0),MATCH(Z$10,lookups!$F$76:$BU$76,0))/INDEX(lookups!$F$77:$BU$87,MATCH($H100,lookups!$C$77:$C$87,0),MATCH($I100,lookups!$F$76:$BU$76,0))) -> 1 | AA100: =IF(ISNUMBER($H100),(1+$H100)^(AA$10-$I100),INDEX(lookups!$F$77:$BU$87,MATCH($H100,lookups!$C$77:$C$87,0),MATCH(AA$10,lookups!$F$76:$BU$76,0))/INDEX(lookups!$F$77:$BU$87,MATCH($H100,lookups!$C$77:$C$87,0),MATCH($I100,lookups!$F$76:$BU$76,0))) -> 1 | AB100: =IF(ISNUMBER($H100),(1+$H100)^(AB$10-$I100),INDEX(lookups!$F$77:$BU$87,MATCH($H100,lookups!$C$77:$C$87,0),MATCH(AB$10,lookups!$F$76:$BU$76,0))/INDEX(lookups!$F$77:$BU$87,MATCH($H100,lookups!$C$77:$C$87,0),MATCH($I100,lookups!$F$76:$BU$76,0))) -> 1 | AC100: =IF(ISNUMBER($H100),(1+$H100)^(AC$10-$I100),INDEX(lookups!$F$77:$BU$87,MATCH($H100,lookups!$C$77:$C$87,0),MATCH(AC$10,lookups!$F$76:$BU$76,0))/INDEX(lookups!$F$77:$BU$87,MATCH($H100,lookups!$C$77:$C$87,0),MATCH($I100,lookups!$F$76:$BU$76,0))) -> 1 | AD100: =IF(ISNUMBER($H100),(1+$H100)^(AD$10-$I100),INDEX(lookups!$F$77:$BU$87,MATCH($H100,lookups!$C$77:$C$87,0),MATCH(AD$10,lookups!$F$76:$BU$76,0))/INDEX(lookups!$F$77:$BU$87,MATCH($H100,lookups!$C$77:$C$87,0),MATCH($I100,lookups!$F$76:$BU$76,0))) -> 1 | AE100: =IF(ISNUMBER($H100),(1+$H100)^(AE$10-$I100),INDEX(lookups!$F$77:$BU$87,MATCH($H100,lookups!$C$77:$C$87,0),MATCH(AE$10,lookups!$F$76:$BU$76,0))/INDEX(lookups!$F$77:$BU$87,MATCH($H100,lookups!$C$77:$C$87,0),MATCH($I100,lookups!$F$76:$BU$76,0))) -> 1 | AF100: =IF(ISNUMBER($H100),(1+$H100)^(AF$10-$I100),INDEX(lookups!$F$77:$BU$87,MATCH($H100,lookups!$C$77:$C$87,0),MATCH(AF$10,lookups!$F$76:$BU$76,0))/INDEX(lookups!$F$77:$BU$87,MATCH($H100,lookups!$C$77:$C$87,0),MATCH($I100,lookups!$F$76:$BU$76,0))) -> 1 | AG100: =IF(ISNUMBER($H100),(1+$H100)^(AG$10-$I100),INDEX(lookups!$F$77:$BU$87,MATCH($H100,lookups!$C$77:$C$87,0),MATCH(AG$10,lookups!$F$76:$BU$76,0))/INDEX(lookups!$F$77:$BU$87,MATCH($H100,lookups!$C$77:$C$87,0),MATCH($I100,lookups!$F$76:$BU$76,0))) -> 1 | AH100: =IF(ISNUMBER($H100),(1+$H100)^(AH$10-$I100),INDEX(lookups!$F$77:$BU$87,MATCH($H100,lookups!$C$77:$C$87,0),MATCH(AH$10,lookups!$F$76:$BU$76,0))/INDEX(lookups!$F$77:$BU$87,MATCH($H100,lookups!$C$77:$C$87,0),MATCH($I100,lookups!$F$76:$BU$76,0))) -> 1 | AI100: =IF(ISNUMBER($H100),(1+$H100)^(AI$10-$I100),INDEX(lookups!$F$77:$BU$87,MATCH($H100,lookups!$C$77:$C$87,0),MATCH(AI$10,lookups!$F$76:$BU$76,0))/INDEX(lookups!$F$77:$BU$87,MATCH($H100,lookups!$C$77:$C$87,0),MATCH($I100,lookups!$F$76:$BU$76,0))) -> 1 | AJ100: =IF(ISNUMBER($H100),(1+$H100)^(AJ$10-$I100),INDEX(lookups!$F$77:$BU$87,MATCH($H100,lookups!$C$77:$C$87,0),MATCH(AJ$10,lookups!$F$76:$BU$76,0))/INDEX(lookups!$F$77:$BU$87,MATCH($H100,lookups!$C$77:$C$87,0),MATCH($I100,lookups!$F$76:$BU$76,0))) -> 1 | AK100: =IF(ISNUMBER($H100),(1+$H100)^(AK$10-$I100),INDEX(lookups!$F$77:$BU$87,MATCH($H100,lookups!$C$77:$C$87,0),MATCH(AK$10,lookups!$F$76:$BU$76,0))/INDEX(lookups!$F$77:$BU$87,MATCH($H100,lookups!$C$77:$C$87,0),MATCH($I100,lookups!$F$76:$BU$76,0))) -> 1 | AL100: =IF(ISNUMBER($H100),(1+$H100)^(AL$10-$I100),INDEX(lookups!$F$77:$BU$87,MATCH($H100,lookups!$C$77:$C$87,0),MATCH(AL$10,lookups!$F$76:$BU$76,0))/INDEX(lookups!$F$77:$BU$87,MATCH($H100,lookups!$C$77:$C$87,0),MATCH($I100,lookups!$F$76:$BU$76,0))) -> 1 | AM100: =IF(ISNUMBER($H100),(1+$H100)^(AM$10-$I100),INDEX(lookups!$F$77:$BU$87,MATCH($H100,lookups!$C$77:$C$87,0),MATCH(AM$10,lookups!$F$76:$BU$76,0))/INDEX(lookups!$F$77:$BU$87,MATCH($H100,lookups!$C$77:$C$87,0),MATCH($I100,lookups!$F$76:$BU$76,0))) -> 1 | AN100: =IF(ISNUMBER($H100),(1+$H100)^(AN$10-$I100),INDEX(lookups!$F$77:$BU$87,MATCH($H100,lookups!$C$77:$C$87,0),MATCH(AN$10,lookups!$F$76:$BU$76,0))/INDEX(lookups!$F$77:$BU$87,MATCH($H100,lookups!$C$77:$C$87,0),MATCH($I100,lookups!$F$76:$BU$76,0))) -> 1 | AO100: =IF(ISNUMBER($H100),(1+$H100)^(AO$10-$I100),INDEX(lookups!$F$77:$BU$87,MATCH($H100,lookups!$C$77:$C$87,0),MATCH(AO$10,lookups!$F$76:$BU$76,0))/INDEX(lookups!$F$77:$BU$87,MATCH($H100,lookups!$C$77:$C$87,0),MATCH($I100,lookups!$F$76:$BU$76,0))) -> 1 | AP100: =IF(ISNUMBER($H100),(1+$H100)^(AP$10-$I100),INDEX(lookups!$F$77:$BU$87,MATCH($H100,lookups!$C$77:$C$87,0),MATCH(AP$10,lookups!$F$76:$BU$76,0))/INDEX(lookups!$F$77:$BU$87,MATCH($H100,lookups!$C$77:$C$87,0),MATCH($I100,lookups!$F$76:$BU$76,0))) -> 1 | AQ100: =IF(ISNUMBER($H100),(1+$H100)^(AQ$10-$I100),INDEX(lookups!$F$77:$BU$87,MATCH($H100,lookups!$C$77:$C$87,0),MATCH(AQ$10,lookups!$F$76:$BU$76,0))/INDEX(lookups!$F$77:$BU$87,MATCH($H100,lookups!$C$77:$C$87,0),MATCH($I100,lookups!$F$76:$BU$76,0))) -> 1 | AR100: =IF(ISNUMBER($H100),(1+$H100)^(AR$10-$I100),INDEX(lookups!$F$77:$BU$87,MATCH($H100,lookups!$C$77:$C$87,0),MATCH(AR$10,lookups!$F$76:$BU$76,0))/INDEX(lookups!$F$77:$BU$87,MATCH($H100,lookups!$C$77:$C$87,0),MATCH($I100,lookups!$F$76:$BU$76,0))) -> 1 | AS100: =IF(ISNUMBER($H100),(1+$H100)^(AS$10-$I100),INDEX(lookups!$F$77:$BU$87,MATCH($H100,lookups!$C$77:$C$87,0),MATCH(AS$10,lookups!$F$76:$BU$76,0))/INDEX(lookups!$F$77:$BU$87,MATCH($H100,lookups!$C$77:$C$87,0),MATCH($I100,lookups!$F$76:$BU$76,0))) -> 1 | AT100: =IF(ISNUMBER($H100),(1+$H100)^(AT$10-$I100),INDEX(lookups!$F$77:$BU$87,MATCH($H100,lookups!$C$77:$C$87,0),MATCH(AT$10,lookups!$F$76:$BU$76,0))/INDEX(lookups!$F$77:$BU$87,MATCH($H100,lookups!$C$77:$C$87,0),MATCH($I100,lookups!$F$76:$BU$76,0))) -> 1 | AU100: =IF(ISNUMBER($H100),(1+$H100)^(AU$10-$I100),INDEX(lookups!$F$77:$BU$87,MATCH($H100,lookups!$C$77:$C$87,0),MATCH(AU$10,lookups!$F$76:$BU$76,0))/INDEX(lookups!$F$77:$BU$87,MATCH($H100,lookups!$C$77:$C$87,0),MATCH($I100,lookups!$F$76:$BU$76,0))) -> 1 | AV100: =IF(ISNUMBER($H100),(1+$H100)^(AV$10-$I100),INDEX(lookups!$F$77:$BU$87,MATCH($H100,lookups!$C$77:$C$87,0),MATCH(AV$10,lookups!$F$76:$BU$76,0))/INDEX(lookups!$F$77:$BU$87,MATCH($H100,lookups!$C$77:$C$87,0),MATCH($I100,lookups!$F$76:$BU$76,0))) -> 1 | AW100: =IF(ISNUMBER($H100),(1+$H100)^(AW$10-$I100),INDEX(lookups!$F$77:$BU$87,MATCH($H100,lookups!$C$77:$C$87,0),MATCH(AW$10,lookups!$F$76:$BU$76,0))/INDEX(lookups!$F$77:$BU$87,MATCH($H100,lookups!$C$77:$C$87,0),MATCH($I100,lookups!$F$76:$BU$76,0))) -> 1 | AX100: =IF(ISNUMBER($H100),(1+$H100)^(AX$10-$I100),INDEX(lookups!$F$77:$BU$87,MATCH($H100,lookups!$C$77:$C$87,0),MATCH(AX$10,lookups!$F$76:$BU$76,0))/INDEX(lookups!$F$77:$BU$87,MATCH($H100,lookups!$C$77:$C$87,0),MATCH($I100,lookups!$F$76:$BU$76,0))) -> 1 | AY100: =IF(ISNUMBER($H100),(1+$H100)^(AY$10-$I100),INDEX(lookups!$F$77:$BU$87,MATCH($H100,lookups!$C$77:$C$87,0),MATCH(AY$10,lookups!$F$76:$BU$76,0))/INDEX(lookups!$F$77:$BU$87,MATCH($H100,lookups!$C$77:$C$87,0),MATCH($I100,lookups!$F$76:$BU$76,0))) -> 1 | AZ100: =IF(ISNUMBER($H100),(1+$H100)^(AZ$10-$I100),INDEX(lookups!$F$77:$BU$87,MATCH($H100,lookups!$C$77:$C$87,0),MATCH(AZ$10,lookups!$F$76:$BU$76,0))/INDEX(lookups!$F$77:$BU$87,MATCH($H100,lookups!$C$77:$C$87,0),MATCH($I100,lookups!$F$76:$BU$76,0))) -> 1 | BA100: =IF(ISNUMBER($H100),(1+$H100)^(BA$10-$I100),INDEX(lookups!$F$77:$BU$87,MATCH($H100,lookups!$C$77:$C$87,0),MATCH(BA$10,lookups!$F$76:$BU$76,0))/INDEX(lookups!$F$77:$BU$87,MATCH($H100,lookups!$C$77:$C$87,0),MATCH($I100,lookups!$F$76:$BU$76,0))) -> 1 | BB100: =IF(ISNUMBER($H100),(1+$H100)^(BB$10-$I100),INDEX(lookups!$F$77:$BU$87,MATCH($H100,lookups!$C$77:$C$87,0),MATCH(BB$10,lookups!$F$76:$BU$76,0))/INDEX(lookups!$F$77:$BU$87,MATCH($H100,lookups!$C$77:$C$87,0),MATCH($I100,lookups!$F$76:$BU$76,0))) -> 1 | BC100: =IF(ISNUMBER($H100),(1+$H100)^(BC$10-$I100),INDEX(lookups!$F$77:$BU$87,MATCH($H100,lookups!$C$77:$C$87,0),MATCH(BC$10,lookups!$F$76:$BU$76,0))/INDEX(lookups!$F$77:$BU$87,MATCH($H100,lookups!$C$77:$C$87,0),MATCH($I100,lookups!$F$76:$BU$76,0))) -> 1 | BD100: =IF(ISNUMBER($H100),(1+$H100)^(BD$10-$I100),INDEX(lookups!$F$77:$BU$87,MATCH($H100,lookups!$C$77:$C$87,0),MATCH(BD$10,lookups!$F$76:$BU$76,0))/INDEX(lookups!$F$77:$BU$87,MATCH($H100,lookups!$C$77:$C$87,0),MATCH($I100,lookups!$F$76:$BU$76,0))) -> 1 | BE100: =IF(ISNUMBER($H100),(1+$H100)^(BE$10-$I100),INDEX(lookups!$F$77:$BU$87,MATCH($H100,lookups!$C$77:$C$87,0),MATCH(BE$10,lookups!$F$76:$BU$76,0))/INDEX(lookups!$F$77:$BU$87,MATCH($H100,lookups!$C$77:$C$87,0),MATCH($I100,lookups!$F$76:$BU$76,0))) -> 1 | BF100: =IF(ISNUMBER($H100),(1+$H100)^(BF$10-$I100),INDEX(lookups!$F$77:$BU$87,MATCH($H100,lookups!$C$77:$C$87,0),MATCH(BF$10,lookups!$F$76:$BU$76,0))/INDEX(lookups!$F$77:$BU$87,MATCH($H100,lookups!$C$77:$C$87,0),MATCH($I100,lookups!$F$76:$BU$76,0))) -> 1 | BG100: =IF(ISNUMBER($H100),(1+$H100)^(BG$10-$I100),INDEX(lookups!$F$77:$BU$87,MATCH($H100,lookups!$C$77:$C$87,0),MATCH(BG$10,lookups!$F$76:$BU$76,0))/INDEX(lookups!$F$77:$BU$87,MATCH($H100,lookups!$C$77:$C$87,0),MATCH($I100,lookups!$F$76:$BU$76,0))) -> 1 | BH100: =IF(ISNUMBER($H100),(1+$H100)^(BH$10-$I100),INDEX(lookups!$F$77:$BU$87,MATCH($H100,lookups!$C$77:$C$87,0),MATCH(BH$10,lookups!$F$76:$BU$76,0))/INDEX(lookups!$F$77:$BU$87,MATCH($H100,lookups!$C$77:$C$87,0),MATCH($I100,lookups!$F$76:$BU$76,0))) -> 1 | BI100: =IF(ISNUMBER($H100),(1+$H100)^(BI$10-$I100),INDEX(lookups!$F$77:$BU$87,MATCH($H100,lookups!$C$77:$C$87,0),MATCH(BI$10,lookups!$F$76:$BU$76,0))/INDEX(lookups!$F$77:$BU$87,MATCH($H100,lookups!$C$77:$C$87,0),MATCH($I100,lookups!$F$76:$BU$76,0))) -> 1 | BJ100: =IF(ISNUMBER($H100),(1+$H100)^(BJ$10-$I100),INDEX(lookups!$F$77:$BU$87,MATCH($H100,lookups!$C$77:$C$87,0),MATCH(BJ$10,lookups!$F$76:$BU$76,0))/INDEX(lookups!$F$77:$BU$87,MATCH($H100,lookups!$C$77:$C$87,0),MATCH($I100,lookups!$F$76:$BU$76,0))) -> 1 | BK100: =IF(ISNUMBER($H100),(1+$H100)^(BK$10-$I100),INDEX(lookups!$F$77:$BU$87,MATCH($H100,lookups!$C$77:$C$87,0),MATCH(BK$10,lookups!$F$76:$BU$76,0))/INDEX(lookups!$F$77:$BU$87,MATCH($H100,lookups!$C$77:$C$87,0),MATCH($I100,lookups!$F$76:$BU$76,0))) -> 1 | BL100: =IF(ISNUMBER($H100),(1+$H100)^(BL$10-$I100),INDEX(lookups!$F$77:$BU$87,MATCH($H100,lookups!$C$77:$C$87,0),MATCH(BL$10,lookups!$F$76:$BU$76,0))/INDEX(lookups!$F$77:$BU$87,MATCH($H100,lookups!$C$77:$C$87,0),MATCH($I100,lookups!$F$76:$BU$76,0))) -> 1 | BM100: =IF(ISNUMBER($H100),(1+$H100)^(BM$10-$I100),INDEX(lookups!$F$77:$BU$87,MATCH($H100,lookups!$C$77:$C$87,0),MATCH(BM$10,lookups!$F$76:$BU$76,0))/INDEX(lookups!$F$77:$BU$87,MATCH($H100,lookups!$C$77:$C$87,0),MATCH($I100,lookups!$F$76:$BU$76,0))) -> 1
C101: 9 | D101: … | E101: Operating Expense | F101: 2 | H101: =Input!L20 -> 0 | I101: =Assumptions!$D$16 -> 2022 | O101: =IF(ISNUMBER($H101),(1+$H101)^(O$10-$I101),INDEX(lookups!$F$77:$BU$87,MATCH($H101,lookups!$C$77:$C$87,0),MATCH(O$10,lookups!$F$76:$BU$76,0))/INDEX(lookups!$F$77:$BU$87,MATCH($H101,lookups!$C$77:$C$87,0),MATCH($I101,lookups!$F$76:$BU$76,0))) -> 1 | P101: =IF(ISNUMBER($H101),(1+$H101)^(P$10-$I101),INDEX(lookups!$F$77:$BU$87,MATCH($H101,lookups!$C$77:$C$87,0),MATCH(P$10,lookups!$F$76:$BU$76,0))/INDEX(lookups!$F$77:$BU$87,MATCH($H101,lookups!$C$77:$C$87,0),MATCH($I101,lookups!$F$76:$BU$76,0))) -> 1 | Q101: =IF(ISNUMBER($H101),(1+$H101)^(Q$10-$I101),INDEX(lookups!$F$77:$BU$87,MATCH($H101,lookups!$C$77:$C$87,0),MATCH(Q$10,lookups!$F$76:$BU$76,0))/INDEX(lookups!$F$77:$BU$87,MATCH($H101,lookups!$C$77:$C$87,0),MATCH($I101,lookups!$F$76:$BU$76,0))) -> 1 | R101: =IF(ISNUMBER($H101),(1+$H101)^(R$10-$I101),INDEX(lookups!$F$77:$BU$87,MATCH($H101,lookups!$C$77:$C$87,0),MATCH(R$10,lookups!$F$76:$BU$76,0))/INDEX(lookups!$F$77:$BU$87,MATCH($H101,lookups!$C$77:$C$87,0),MATCH($I101,lookups!$F$76:$BU$76,0))) -> 1 | S101: =IF(ISNUMBER($H101),(1+$H101)^(S$10-$I101),INDEX(lookups!$F$77:$BU$87,MATCH($H101,lookups!$C$77:$C$87,0),MATCH(S$10,lookups!$F$76:$BU$76,0))/INDEX(lookups!$F$77:$BU$87,MATCH($H101,lookups!$C$77:$C$87,0),MATCH($I101,lookups!$F$76:$BU$76,0))) -> 1 | T101: =IF(ISNUMBER($H101),(1+$H101)^(T$10-$I101),INDEX(lookups!$F$77:$BU$87,MATCH($H101,lookups!$C$77:$C$87,0),MATCH(T$10,lookups!$F$76:$BU$76,0))/INDEX(lookups!$F$77:$BU$87,MATCH($H101,lookups!$C$77:$C$87,0),MATCH($I101,lookups!$F$76:$BU$76,0))) -> 1 | U101: =IF(ISNUMBER($H101),(1+$H101)^(U$10-$I101),INDEX(lookups!$F$77:$BU$87,MATCH($H101,lookups!$C$77:$C$87,0),MATCH(U$10,lookups!$F$76:$BU$76,0))/INDEX(lookups!$F$77:$BU$87,MATCH($H101,lookups!$C$77:$C$87,0),MATCH($I101,lookups!$F$76:$BU$76,0))) -> 1 | V101: =IF(ISNUMBER($H101),(1+$H101)^(V$10-$I101),INDEX(lookups!$F$77:$BU$87,MATCH($H101,lookups!$C$77:$C$87,0),MATCH(V$10,lookups!$F$76:$BU$76,0))/INDEX(lookups!$F$77:$BU$87,MATCH($H101,lookups!$C$77:$C$87,0),MATCH($I101,lookups!$F$76:$BU$76,0))) -> 1 | W101: =IF(ISNUMBER($H101),(1+$H101)^(W$10-$I101),INDEX(lookups!$F$77:$BU$87,MATCH($H101,lookups!$C$77:$C$87,0),MATCH(W$10,lookups!$F$76:$BU$76,0))/INDEX(lookups!$F$77:$BU$87,MATCH($H101,lookups!$C$77:$C$87,0),MATCH($I101,lookups!$F$76:$BU$76,0))) -> 1 | X101: =IF(ISNUMBER($H101),(1+$H101)^(X$10-$I101),INDEX(lookups!$F$77:$BU$87,MATCH($H101,lookups!$C$77:$C$87,0),MATCH(X$10,lookups!$F$76:$BU$76,0))/INDEX(lookups!$F$77:$BU$87,MATCH($H101,lookups!$C$77:$C$87,0),MATCH($I101,lookups!$F$76:$BU$76,0))) -> 1 | Y101: =IF(ISNUMBER($H101),(1+$H101)^(Y$10-$I101),INDEX(lookups!$F$77:$BU$87,MATCH($H101,lookups!$C$77:$C$87,0),MATCH(Y$10,lookups!$F$76:$BU$76,0))/INDEX(lookups!$F$77:$BU$87,MATCH($H101,lookups!$C$77:$C$87,0),MATCH($I101,lookups!$F$76:$BU$76,0))) -> 1 | Z101: =IF(ISNUMBER($H101),(1+$H101)^(Z$10-$I101),INDEX(lookups!$F$77:$BU$87,MATCH($H101,lookups!$C$77:$C$87,0),MATCH(Z$10,lookups!$F$76:$BU$76,0))/INDEX(lookups!$F$77:$BU$87,MATCH($H101,lookups!$C$77:$C$87,0),MATCH($I101,lookups!$F$76:$BU$76,0))) -> 1 | AA101: =IF(ISNUMBER($H101),(1+$H101)^(AA$10-$I101),INDEX(lookups!$F$77:$BU$87,MATCH($H101,lookups!$C$77:$C$87,0),MATCH(AA$10,lookups!$F$76:$BU$76,0))/INDEX(lookups!$F$77:$BU$87,MATCH($H101,lookups!$C$77:$C$87,0),MATCH($I101,lookups!$F$76:$BU$76,0))) -> 1 | AB101: =IF(ISNUMBER($H101),(1+$H101)^(AB$10-$I101),INDEX(lookups!$F$77:$BU$87,MATCH($H101,lookups!$C$77:$C$87,0),MATCH(AB$10,lookups!$F$76:$BU$76,0))/INDEX(lookups!$F$77:$BU$87,MATCH($H101,lookups!$C$77:$C$87,0),MATCH($I101,lookups!$F$76:$BU$76,0))) -> 1 | AC101: =IF(ISNUMBER($H101),(1+$H101)^(AC$10-$I101),INDEX(lookups!$F$77:$BU$87,MATCH($H101,lookups!$C$77:$C$87,0),MATCH(AC$10,lookups!$F$76:$BU$76,0))/INDEX(lookups!$F$77:$BU$87,MATCH($H101,lookups!$C$77:$C$87,0),MATCH($I101,lookups!$F$76:$BU$76,0))) -> 1 | AD101: =IF(ISNUMBER($H101),(1+$H101)^(AD$10-$I101),INDEX(lookups!$F$77:$BU$87,MATCH($H101,lookups!$C$77:$C$87,0),MATCH(AD$10,lookups!$F$76:$BU$76,0))/INDEX(lookups!$F$77:$BU$87,MATCH($H101,lookups!$C$77:$C$87,0),MATCH($I101,lookups!$F$76:$BU$76,0))) -> 1 | AE101: =IF(ISNUMBER($H101),(1+$H101)^(AE$10-$I101),INDEX(lookups!$F$77:$BU$87,MATCH($H101,lookups!$C$77:$C$87,0),MATCH(AE$10,lookups!$F$76:$BU$76,0))/INDEX(lookups!$F$77:$BU$87,MATCH($H101,lookups!$C$77:$C$87,0),MATCH($I101,lookups!$F$76:$BU$76,0))) -> 1 | AF101: =IF(ISNUMBER($H101),(1+$H101)^(AF$10-$I101),INDEX(lookups!$F$77:$BU$87,MATCH($H101,lookups!$C$77:$C$87,0),MATCH(AF$10,lookups!$F$76:$BU$76,0))/INDEX(lookups!$F$77:$BU$87,MATCH($H101,lookups!$C$77:$C$87,0),MATCH($I101,lookups!$F$76:$BU$76,0))) -> 1 | AG101: =IF(ISNUMBER($H101),(1+$H101)^(AG$10-$I101),INDEX(lookups!$F$77:$BU$87,MATCH($H101,lookups!$C$77:$C$87,0),MATCH(AG$10,lookups!$F$76:$BU$76,0))/INDEX(lookups!$F$77:$BU$87,MATCH($H101,lookups!$C$77:$C$87,0),MATCH($I101,lookups!$F$76:$BU$76,0))) -> 1 | AH101: =IF(ISNUMBER($H101),(1+$H101)^(AH$10-$I101),INDEX(lookups!$F$77:$BU$87,MATCH($H101,lookups!$C$77:$C$87,0),MATCH(AH$10,lookups!$F$76:$BU$76,0))/INDEX(lookups!$F$77:$BU$87,MATCH($H101,lookups!$C$77:$C$87,0),MATCH($I101,lookups!$F$76:$BU$76,0))) -> 1 | AI101: =IF(ISNUMBER($H101),(1+$H101)^(AI$10-$I101),INDEX(lookups!$F$77:$BU$87,MATCH($H101,lookups!$C$77:$C$87,0),MATCH(AI$10,lookups!$F$76:$BU$76,0))/INDEX(lookups!$F$77:$BU$87,MATCH($H101,lookups!$C$77:$C$87,0),MATCH($I101,lookups!$F$76:$BU$76,0))) -> 1 | AJ101: =IF(ISNUMBER($H101),(1+$H101)^(AJ$10-$I101),INDEX(lookups!$F$77:$BU$87,MATCH($H101,lookups!$C$77:$C$87,0),MATCH(AJ$10,lookups!$F$76:$BU$76,0))/INDEX(lookups!$F$77:$BU$87,MATCH($H101,lookups!$C$77:$C$87,0),MATCH($I101,lookups!$F$76:$BU$76,0))) -> 1 | AK101: =IF(ISNUMBER($H101),(1+$H101)^(AK$10-$I101),INDEX(lookups!$F$77:$BU$87,MATCH($H101,lookups!$C$77:$C$87,0),MATCH(AK$10,lookups!$F$76:$BU$76,0))/INDEX(lookups!$F$77:$BU$87,MATCH($H101,lookups!$C$77:$C$87,0),MATCH($I101,lookups!$F$76:$BU$76,0))) -> 1 | AL101: =IF(ISNUMBER($H101),(1+$H101)^(AL$10-$I101),INDEX(lookups!$F$77:$BU$87,MATCH($H101,lookups!$C$77:$C$87,0),MATCH(AL$10,lookups!$F$76:$BU$76,0))/INDEX(lookups!$F$77:$BU$87,MATCH($H101,lookups!$C$77:$C$87,0),MATCH($I101,lookups!$F$76:$BU$76,0))) -> 1 | AM101: =IF(ISNUMBER($H101),(1+$H101)^(AM$10-$I101),INDEX(lookups!$F$77:$BU$87,MATCH($H101,lookups!$C$77:$C$87,0),MATCH(AM$10,lookups!$F$76:$BU$76,0))/INDEX(lookups!$F$77:$BU$87,MATCH($H101,lookups!$C$77:$C$87,0),MATCH($I101,lookups!$F$76:$BU$76,0))) -> 1 | AN101: =IF(ISNUMBER($H101),(1+$H101)^(AN$10-$I101),INDEX(lookups!$F$77:$BU$87,MATCH($H101,lookups!$C$77:$C$87,0),MATCH(AN$10,lookups!$F$76:$BU$76,0))/INDEX(lookups!$F$77:$BU$87,MATCH($H101,lookups!$C$77:$C$87,0),MATCH($I101,lookups!$F$76:$BU$76,0))) -> 1 | AO101: =IF(ISNUMBER($H101),(1+$H101)^(AO$10-$I101),INDEX(lookups!$F$77:$BU$87,MATCH($H101,lookups!$C$77:$C$87,0),MATCH(AO$10,lookups!$F$76:$BU$76,0))/INDEX(lookups!$F$77:$BU$87,MATCH($H101,lookups!$C$77:$C$87,0),MATCH($I101,lookups!$F$76:$BU$76,0))) -> 1 | AP101: =IF(ISNUMBER($H101),(1+$H101)^(AP$10-$I101),INDEX(lookups!$F$77:$BU$87,MATCH($H101,lookups!$C$77:$C$87,0),MATCH(AP$10,lookups!$F$76:$BU$76,0))/INDEX(lookups!$F$77:$BU$87,MATCH($H101,lookups!$C$77:$C$87,0),MATCH($I101,lookups!$F$76:$BU$76,0))) -> 1 | AQ101: =IF(ISNUMBER($H101),(1+$H101)^(AQ$10-$I101),INDEX(lookups!$F$77:$BU$87,MATCH($H101,lookups!$C$77:$C$87,0),MATCH(AQ$10,lookups!$F$76:$BU$76,0))/INDEX(lookups!$F$77:$BU$87,MATCH($H101,lookups!$C$77:$C$87,0),MATCH($I101,lookups!$F$76:$BU$76,0))) -> 1 | AR101: =IF(ISNUMBER($H101),(1+$H101)^(AR$10-$I101),INDEX(lookups!$F$77:$BU$87,MATCH($H101,lookups!$C$77:$C$87,0),MATCH(AR$10,lookups!$F$76:$BU$76,0))/INDEX(lookups!$F$77:$BU$87,MATCH($H101,lookups!$C$77:$C$87,0),MATCH($I101,lookups!$F$76:$BU$76,0))) -> 1 | AS101: =IF(ISNUMBER($H101),(1+$H101)^(AS$10-$I101),INDEX(lookups!$F$77:$BU$87,MATCH($H101,lookups!$C$77:$C$87,0),MATCH(AS$10,lookups!$F$76:$BU$76,0))/INDEX(lookups!$F$77:$BU$87,MATCH($H101,lookups!$C$77:$C$87,0),MATCH($I101,lookups!$F$76:$BU$76,0))) -> 1 | AT101: =IF(ISNUMBER($H101),(1+$H101)^(AT$10-$I101),INDEX(lookups!$F$77:$BU$87,MATCH($H101,lookups!$C$77:$C$87,0),MATCH(AT$10,lookups!$F$76:$BU$76,0))/INDEX(lookups!$F$77:$BU$87,MATCH($H101,lookups!$C$77:$C$87,0),MATCH($I101,lookups!$F$76:$BU$76,0))) -> 1 | AU101: =IF(ISNUMBER($H101),(1+$H101)^(AU$10-$I101),INDEX(lookups!$F$77:$BU$87,MATCH($H101,lookups!$C$77:$C$87,0),MATCH(AU$10,lookups!$F$76:$BU$76,0))/INDEX(lookups!$F$77:$BU$87,MATCH($H101,lookups!$C$77:$C$87,0),MATCH($I101,lookups!$F$76:$BU$76,0))) -> 1 | AV101: =IF(ISNUMBER($H101),(1+$H101)^(AV$10-$I101),INDEX(lookups!$F$77:$BU$87,MATCH($H101,lookups!$C$77:$C$87,0),MATCH(AV$10,lookups!$F$76:$BU$76,0))/INDEX(lookups!$F$77:$BU$87,MATCH($H101,lookups!$C$77:$C$87,0),MATCH($I101,lookups!$F$76:$BU$76,0))) -> 1 | AW101: =IF(ISNUMBER($H101),(1+$H101)^(AW$10-$I101),INDEX(lookups!$F$77:$BU$87,MATCH($H101,lookups!$C$77:$C$87,0),MATCH(AW$10,lookups!$F$76:$BU$76,0))/INDEX(lookups!$F$77:$BU$87,MATCH($H101,lookups!$C$77:$C$87,0),MATCH($I101,lookups!$F$76:$BU$76,0))) -> 1 | AX101: =IF(ISNUMBER($H101),(1+$H101)^(AX$10-$I101),INDEX(lookups!$F$77:$BU$87,MATCH($H101,lookups!$C$77:$C$87,0),MATCH(AX$10,lookups!$F$76:$BU$76,0))/INDEX(lookups!$F$77:$BU$87,MATCH($H101,lookups!$C$77:$C$87,0),MATCH($I101,lookups!$F$76:$BU$76,0))) -> 1 | AY101: =IF(ISNUMBER($H101),(1+$H101)^(AY$10-$I101),INDEX(lookups!$F$77:$BU$87,MATCH($H101,lookups!$C$77:$C$87,0),MATCH(AY$10,lookups!$F$76:$BU$76,0))/INDEX(lookups!$F$77:$BU$87,MATCH($H101,lookups!$C$77:$C$87,0),MATCH($I101,lookups!$F$76:$BU$76,0))) -> 1 | AZ101: =IF(ISNUMBER($H101),(1+$H101)^(AZ$10-$I101),INDEX(lookups!$F$77:$BU$87,MATCH($H101,lookups!$C$77:$C$87,0),MATCH(AZ$10,lookups!$F$76:$BU$76,0))/INDEX(lookups!$F$77:$BU$87,MATCH($H101,lookups!$C$77:$C$87,0),MATCH($I101,lookups!$F$76:$BU$76,0))) -> 1 | BA101: =IF(ISNUMBER($H101),(1+$H101)^(BA$10-$I101),INDEX(lookups!$F$77:$BU$87,MATCH($H101,lookups!$C$77:$C$87,0),MATCH(BA$10,lookups!$F$76:$BU$76,0))/INDEX(lookups!$F$77:$BU$87,MATCH($H101,lookups!$C$77:$C$87,0),MATCH($I101,lookups!$F$76:$BU$76,0))) -> 1 | BB101: =IF(ISNUMBER($H101),(1+$H101)^(BB$10-$I101),INDEX(lookups!$F$77:$BU$87,MATCH($H101,lookups!$C$77:$C$87,0),MATCH(BB$10,lookups!$F$76:$BU$76,0))/INDEX(lookups!$F$77:$BU$87,MATCH($H101,lookups!$C$77:$C$87,0),MATCH($I101,lookups!$F$76:$BU$76,0))) -> 1 | BC101: =IF(ISNUMBER($H101),(1+$H101)^(BC$10-$I101),INDEX(lookups!$F$77:$BU$87,MATCH($H101,lookups!$C$77:$C$87,0),MATCH(BC$10,lookups!$F$76:$BU$76,0))/INDEX(lookups!$F$77:$BU$87,MATCH($H101,lookups!$C$77:$C$87,0),MATCH($I101,lookups!$F$76:$BU$76,0))) -> 1 | BD101: =IF(ISNUMBER($H101),(1+$H101)^(BD$10-$I101),INDEX(lookups!$F$77:$BU$87,MATCH($H101,lookups!$C$77:$C$87,0),MATCH(BD$10,lookups!$F$76:$BU$76,0))/INDEX(lookups!$F$77:$BU$87,MATCH($H101,lookups!$C$77:$C$87,0),MATCH($I101,lookups!$F$76:$BU$76,0))) -> 1 | BE101: =IF(ISNUMBER($H101),(1+$H101)^(BE$10-$I101),INDEX(lookups!$F$77:$BU$87,MATCH($H101,lookups!$C$77:$C$87,0),MATCH(BE$10,lookups!$F$76:$BU$76,0))/INDEX(lookups!$F$77:$BU$87,MATCH($H101,lookups!$C$77:$C$87,0),MATCH($I101,lookups!$F$76:$BU$76,0))) -> 1 | BF101: =IF(ISNUMBER($H101),(1+$H101)^(BF$10-$I101),INDEX(lookups!$F$77:$BU$87,MATCH($H101,lookups!$C$77:$C$87,0),MATCH(BF$10,lookups!$F$76:$BU$76,0))/INDEX(lookups!$F$77:$BU$87,MATCH($H101,lookups!$C$77:$C$87,0),MATCH($I101,lookups!$F$76:$BU$76,0))) -> 1 | BG101: =IF(ISNUMBER($H101),(1+$H101)^(BG$10-$I101),INDEX(lookups!$F$77:$BU$87,MATCH($H101,lookups!$C$77:$C$87,0),MATCH(BG$10,lookups!$F$76:$BU$76,0))/INDEX(lookups!$F$77:$BU$87,MATCH($H101,lookups!$C$77:$C$87,0),MATCH($I101,lookups!$F$76:$BU$76,0))) -> 1 | BH101: =IF(ISNUMBER($H101),(1+$H101)^(BH$10-$I101),INDEX(lookups!$F$77:$BU$87,MATCH($H101,lookups!$C$77:$C$87,0),MATCH(BH$10,lookups!$F$76:$BU$76,0))/INDEX(lookups!$F$77:$BU$87,MATCH($H101,lookups!$C$77:$C$87,0),MATCH($I101,lookups!$F$76:$BU$76,0))) -> 1 | BI101: =IF(ISNUMBER($H101),(1+$H101)^(BI$10-$I101),INDEX(lookups!$F$77:$BU$87,MATCH($H101,lookups!$C$77:$C$87,0),MATCH(BI$10,lookups!$F$76:$BU$76,0))/INDEX(lookups!$F$77:$BU$87,MATCH($H101,lookups!$C$77:$C$87,0),MATCH($I101,lookups!$F$76:$BU$76,0))) -> 1 | BJ101: =IF(ISNUMBER($H101),(1+$H101)^(BJ$10-$I101),INDEX(lookups!$F$77:$BU$87,MATCH($H101,lookups!$C$77:$C$87,0),MATCH(BJ$10,lookups!$F$76:$BU$76,0))/INDEX(lookups!$F$77:$BU$87,MATCH($H101,lookups!$C$77:$C$87,0),MATCH($I101,lookups!$F$76:$BU$76,0))) -> 1 | BK101: =IF(ISNUMBER($H101),(1+$H101)^(BK$10-$I101),INDEX(lookups!$F$77:$BU$87,MATCH($H101,lookups!$C$77:$C$87,0),MATCH(BK$10,lookups!$F$76:$BU$76,0))/INDEX(lookups!$F$77:$BU$87,MATCH($H101,lookups!$C$77:$C$87,0),MATCH($I101,lookups!$F$76:$BU$76,0))) -> 1 | BL101: =IF(ISNUMBER($H101),(1+$H101)^(BL$10-$I101),INDEX(lookups!$F$77:$BU$87,MATCH($H101,lookups!$C$77:$C$87,0),MATCH(BL$10,lookups!$F$76:$BU$76,0))/INDEX(lookups!$F$77:$BU$87,MATCH($H101,lookups!$C$77:$C$87,0),MATCH($I101,lookups!$F$76:$BU$76,0))) -> 1 | BM101: =IF(ISNUMBER($H101),(1+$H101)^(BM$10-$I101),INDEX(lookups!$F$77:$BU$87,MATCH($H101,lookups!$C$77:$C$87,0),MATCH(BM$10,lookups!$F$76:$BU$76,0))/INDEX(lookups!$F$77:$BU$87,MATCH($H101,lookups!$C$77:$C$87,0),MATCH($I101,lookups!$F$76:$BU$76,0))) -> 1
C102: 10 | D102: … | E102: Operating Expense | F102: 2 | H102: =Input!L21 -> 0 | I102: =Assumptions!$D$16 -> 2022 | O102: =IF(ISNUMBER($H102),(1+$H102)^(O$10-$I102),INDEX(lookups!$F$77:$BU$87,MATCH($H102,lookups!$C$77:$C$87,0),MATCH(O$10,lookups!$F$76:$BU$76,0))/INDEX(lookups!$F$77:$BU$87,MATCH($H102,lookups!$C$77:$C$87,0),MATCH($I102,lookups!$F$76:$BU$76,0))) -> 1 | P102: =IF(ISNUMBER($H102),(1+$H102)^(P$10-$I102),INDEX(lookups!$F$77:$BU$87,MATCH($H102,lookups!$C$77:$C$87,0),MATCH(P$10,lookups!$F$76:$BU$76,0))/INDEX(lookups!$F$77:$BU$87,MATCH($H102,lookups!$C$77:$C$87,0),MATCH($I102,lookups!$F$76:$BU$76,0))) -> 1 | Q102: =IF(ISNUMBER($H102),(1+$H102)^(Q$10-$I102),INDEX(lookups!$F$77:$BU$87,MATCH($H102,lookups!$C$77:$C$87,0),MATCH(Q$10,lookups!$F$76:$BU$76,0))/INDEX(lookups!$F$77:$BU$87,MATCH($H102,lookups!$C$77:$C$87,0),MATCH($I102,lookups!$F$76:$BU$76,0))) -> 1 | R102: =IF(ISNUMBER($H102),(1+$H102)^(R$10-$I102),INDEX(lookups!$F$77:$BU$87,MATCH($H102,lookups!$C$77:$C$87,0),MATCH(R$10,lookups!$F$76:$BU$76,0))/INDEX(lookups!$F$77:$BU$87,MATCH($H102,lookups!$C$77:$C$87,0),MATCH($I102,lookups!$F$76:$BU$76,0))) -> 1 | S102: =IF(ISNUMBER($H102),(1+$H102)^(S$10-$I102),INDEX(lookups!$F$77:$BU$87,MATCH($H102,lookups!$C$77:$C$87,0),MATCH(S$10,lookups!$F$76:$BU$76,0))/INDEX(lookups!$F$77:$BU$87,MATCH($H102,lookups!$C$77:$C$87,0),MATCH($I102,lookups!$F$76:$BU$76,0))) -> 1 | T102: =IF(ISNUMBER($H102),(1+$H102)^(T$10-$I102),INDEX(lookups!$F$77:$BU$87,MATCH($H102,lookups!$C$77:$C$87,0),MATCH(T$10,lookups!$F$76:$BU$76,0))/INDEX(lookups!$F$77:$BU$87,MATCH($H102,lookups!$C$77:$C$87,0),MATCH($I102,lookups!$F$76:$BU$76,0))) -> 1 | U102: =IF(ISNUMBER($H102),(1+$H102)^(U$10-$I102),INDEX(lookups!$F$77:$BU$87,MATCH($H102,lookups!$C$77:$C$87,0),MATCH(U$10,lookups!$F$76:$BU$76,0))/INDEX(lookups!$F$77:$BU$87,MATCH($H102,lookups!$C$77:$C$87,0),MATCH($I102,lookups!$F$76:$BU$76,0))) -> 1 | V102: =IF(ISNUMBER($H102),(1+$H102)^(V$10-$I102),INDEX(lookups!$F$77:$BU$87,MATCH($H102,lookups!$C$77:$C$87,0),MATCH(V$10,lookups!$F$76:$BU$76,0))/INDEX(lookups!$F$77:$BU$87,MATCH($H102,lookups!$C$77:$C$87,0),MATCH($I102,lookups!$F$76:$BU$76,0))) -> 1 | W102: =IF(ISNUMBER($H102),(1+$H102)^(W$10-$I102),INDEX(lookups!$F$77:$BU$87,MATCH($H102,lookups!$C$77:$C$87,0),MATCH(W$10,lookups!$F$76:$BU$76,0))/INDEX(lookups!$F$77:$BU$87,MATCH($H102,lookups!$C$77:$C$87,0),MATCH($I102,lookups!$F$76:$BU$76,0))) -> 1 | X102: =IF(ISNUMBER($H102),(1+$H102)^(X$10-$I102),INDEX(lookups!$F$77:$BU$87,MATCH($H102,lookups!$C$77:$C$87,0),MATCH(X$10,lookups!$F$76:$BU$76,0))/INDEX(lookups!$F$77:$BU$87,MATCH($H102,lookups!$C$77:$C$87,0),MATCH($I102,lookups!$F$76:$BU$76,0))) -> 1 | Y102: =IF(ISNUMBER($H102),(1+$H102)^(Y$10-$I102),INDEX(lookups!$F$77:$BU$87,MATCH($H102,lookups!$C$77:$C$87,0),MATCH(Y$10,lookups!$F$76:$BU$76,0))/INDEX(lookups!$F$77:$BU$87,MATCH($H102,lookups!$C$77:$C$87,0),MATCH($I102,lookups!$F$76:$BU$76,0))) -> 1 | Z102: =IF(ISNUMBER($H102),(1+$H102)^(Z$10-$I102),INDEX(lookups!$F$77:$BU$87,MATCH($H102,lookups!$C$77:$C$87,0),MATCH(Z$10,lookups!$F$76:$BU$76,0))/INDEX(lookups!$F$77:$BU$87,MATCH($H102,lookups!$C$77:$C$87,0),MATCH($I102,lookups!$F$76:$BU$76,0))) -> 1 | AA102: =IF(ISNUMBER($H102),(1+$H102)^(AA$10-$I102),INDEX(lookups!$F$77:$BU$87,MATCH($H102,lookups!$C$77:$C$87,0),MATCH(AA$10,lookups!$F$76:$BU$76,0))/INDEX(lookups!$F$77:$BU$87,MATCH($H102,lookups!$C$77:$C$87,0),MATCH($I102,lookups!$F$76:$BU$76,0))) -> 1 | AB102: =IF(ISNUMBER($H102),(1+$H102)^(AB$10-$I102),INDEX(lookups!$F$77:$BU$87,MATCH($H102,lookups!$C$77:$C$87,0),MATCH(AB$10,lookups!$F$76:$BU$76,0))/INDEX(lookups!$F$77:$BU$87,MATCH($H102,lookups!$C$77:$C$87,0),MATCH($I102,lookups!$F$76:$BU$76,0))) -> 1 | AC102: =IF(ISNUMBER($H102),(1+$H102)^(AC$10-$I102),INDEX(lookups!$F$77:$BU$87,MATCH($H102,lookups!$C$77:$C$87,0),MATCH(AC$10,lookups!$F$76:$BU$76,0))/INDEX(lookups!$F$77:$BU$87,MATCH($H102,lookups!$C$77:$C$87,0),MATCH($I102,lookups!$F$76:$BU$76,0))) -> 1 | AD102: =IF(ISNUMBER($H102),(1+$H102)^(AD$10-$I102),INDEX(lookups!$F$77:$BU$87,MATCH($H102,lookups!$C$77:$C$87,0),MATCH(AD$10,lookups!$F$76:$BU$76,0))/INDEX(lookups!$F$77:$BU$87,MATCH($H102,lookups!$C$77:$C$87,0),MATCH($I102,lookups!$F$76:$BU$76,0))) -> 1 | AE102: =IF(ISNUMBER($H102),(1+$H102)^(AE$10-$I102),INDEX(lookups!$F$77:$BU$87,MATCH($H102,lookups!$C$77:$C$87,0),MATCH(AE$10,lookups!$F$76:$BU$76,0))/INDEX(lookups!$F$77:$BU$87,MATCH($H102,lookups!$C$77:$C$87,0),MATCH($I102,lookups!$F$76:$BU$76,0))) -> 1 | AF102: =IF(ISNUMBER($H102),(1+$H102)^(AF$10-$I102),INDEX(lookups!$F$77:$BU$87,MATCH($H102,lookups!$C$77:$C$87,0),MATCH(AF$10,lookups!$F$76:$BU$76,0))/INDEX(lookups!$F$77:$BU$87,MATCH($H102,lookups!$C$77:$C$87,0),MATCH($I102,lookups!$F$76:$BU$76,0))) -> 1 | AG102: =IF(ISNUMBER($H102),(1+$H102)^(AG$10-$I102),INDEX(lookups!$F$77:$BU$87,MATCH($H102,lookups!$C$77:$C$87,0),MATCH(AG$10,lookups!$F$76:$BU$76,0))/INDEX(lookups!$F$77:$BU$87,MATCH($H102,lookups!$C$77:$C$87,0),MATCH($I102,lookups!$F$76:$BU$76,0))) -> 1 | AH102: =IF(ISNUMBER($H102),(1+$H102)^(AH$10-$I102),INDEX(lookups!$F$77:$BU$87,MATCH($H102,lookups!$C$77:$C$87,0),MATCH(AH$10,lookups!$F$76:$BU$76,0))/INDEX(lookups!$F$77:$BU$87,MATCH($H102,lookups!$C$77:$C$87,0),MATCH($I102,lookups!$F$76:$BU$76,0))) -> 1 | AI102: =IF(ISNUMBER($H102),(1+$H102)^(AI$10-$I102),INDEX(lookups!$F$77:$BU$87,MATCH($H102,lookups!$C$77:$C$87,0),MATCH(AI$10,lookups!$F$76:$BU$76,0))/INDEX(lookups!$F$77:$BU$87,MATCH($H102,lookups!$C$77:$C$87,0),MATCH($I102,lookups!$F$76:$BU$76,0))) -> 1 | AJ102: =IF(ISNUMBER($H102),(1+$H102)^(AJ$10-$I102),INDEX(lookups!$F$77:$BU$87,MATCH($H102,lookups!$C$77:$C$87,0),MATCH(AJ$10,lookups!$F$76:$BU$76,0))/INDEX(lookups!$F$77:$BU$87,MATCH($H102,lookups!$C$77:$C$87,0),MATCH($I102,lookups!$F$76:$BU$76,0))) -> 1 | AK102: =IF(ISNUMBER($H102),(1+$H102)^(AK$10-$I102),INDEX(lookups!$F$77:$BU$87,MATCH($H102,lookups!$C$77:$C$87,0),MATCH(AK$10,lookups!$F$76:$BU$76,0))/INDEX(lookups!$F$77:$BU$87,MATCH($H102,lookups!$C$77:$C$87,0),MATCH($I102,lookups!$F$76:$BU$76,0))) -> 1 | AL102: =IF(ISNUMBER($H102),(1+$H102)^(AL$10-$I102),INDEX(lookups!$F$77:$BU$87,MATCH($H102,lookups!$C$77:$C$87,0),MATCH(AL$10,lookups!$F$76:$BU$76,0))/INDEX(lookups!$F$77:$BU$87,MATCH($H102,lookups!$C$77:$C$87,0),MATCH($I102,lookups!$F$76:$BU$76,0))) -> 1 | AM102: =IF(ISNUMBER($H102),(1+$H102)^(AM$10-$I102),INDEX(lookups!$F$77:$BU$87,MATCH($H102,lookups!$C$77:$C$87,0),MATCH(AM$10,lookups!$F$76:$BU$76,0))/INDEX(lookups!$F$77:$BU$87,MATCH($H102,lookups!$C$77:$C$87,0),MATCH($I102,lookups!$F$76:$BU$76,0))) -> 1 | AN102: =IF(ISNUMBER($H102),(1+$H102)^(AN$10-$I102),INDEX(lookups!$F$77:$BU$87,MATCH($H102,lookups!$C$77:$C$87,0),MATCH(AN$10,lookups!$F$76:$BU$76,0))/INDEX(lookups!$F$77:$BU$87,MATCH($H102,lookups!$C$77:$C$87,0),MATCH($I102,lookups!$F$76:$BU$76,0))) -> 1 | AO102: =IF(ISNUMBER($H102),(1+$H102)^(AO$10-$I102),INDEX(lookups!$F$77:$BU$87,MATCH($H102,lookups!$C$77:$C$87,0),MATCH(AO$10,lookups!$F$76:$BU$76,0))/INDEX(lookups!$F$77:$BU$87,MATCH($H102,lookups!$C$77:$C$87,0),MATCH($I102,lookups!$F$76:$BU$76,0))) -> 1 | AP102: =IF(ISNUMBER($H102),(1+$H102)^(AP$10-$I102),INDEX(lookups!$F$77:$BU$87,MATCH($H102,lookups!$C$77:$C$87,0),MATCH(AP$10,lookups!$F$76:$BU$76,0))/INDEX(lookups!$F$77:$BU$87,MATCH($H102,lookups!$C$77:$C$87,0),MATCH($I102,lookups!$F$76:$BU$76,0))) -> 1 | AQ102: =IF(ISNUMBER($H102),(1+$H102)^(AQ$10-$I102),INDEX(lookups!$F$77:$BU$87,MATCH($H102,lookups!$C$77:$C$87,0),MATCH(AQ$10,lookups!$F$76:$BU$76,0))/INDEX(lookups!$F$77:$BU$87,MATCH($H102,lookups!$C$77:$C$87,0),MATCH($I102,lookups!$F$76:$BU$76,0))) -> 1 | AR102: =IF(ISNUMBER($H102),(1+$H102)^(AR$10-$I102),INDEX(lookups!$F$77:$BU$87,MATCH($H102,lookups!$C$77:$C$87,0),MATCH(AR$10,lookups!$F$76:$BU$76,0))/INDEX(lookups!$F$77:$BU$87,MATCH($H102,lookups!$C$77:$C$87,0),MATCH($I102,lookups!$F$76:$BU$76,0))) -> 1 | AS102: =IF(ISNUMBER($H102),(1+$H102)^(AS$10-$I102),INDEX(lookups!$F$77:$BU$87,MATCH($H102,lookups!$C$77:$C$87,0),MATCH(AS$10,lookups!$F$76:$BU$76,0))/INDEX(lookups!$F$77:$BU$87,MATCH($H102,lookups!$C$77:$C$87,0),MATCH($I102,lookups!$F$76:$BU$76,0))) -> 1 | AT102: =IF(ISNUMBER($H102),(1+$H102)^(AT$10-$I102),INDEX(lookups!$F$77:$BU$87,MATCH($H102,lookups!$C$77:$C$87,0),MATCH(AT$10,lookups!$F$76:$BU$76,0))/INDEX(lookups!$F$77:$BU$87,MATCH($H102,lookups!$C$77:$C$87,0),MATCH($I102,lookups!$F$76:$BU$76,0))) -> 1 | AU102: =IF(ISNUMBER($H102),(1+$H102)^(AU$10-$I102),INDEX(lookups!$F$77:$BU$87,MATCH($H102,lookups!$C$77:$C$87,0),MATCH(AU$10,lookups!$F$76:$BU$76,0))/INDEX(lookups!$F$77:$BU$87,MATCH($H102,lookups!$C$77:$C$87,0),MATCH($I102,lookups!$F$76:$BU$76,0))) -> 1 | AV102: =IF(ISNUMBER($H102),(1+$H102)^(AV$10-$I102),INDEX(lookups!$F$77:$BU$87,MATCH($H102,lookups!$C$77:$C$87,0),MATCH(AV$10,lookups!$F$76:$BU$76,0))/INDEX(lookups!$F$77:$BU$87,MATCH($H102,lookups!$C$77:$C$87,0),MATCH($I102,lookups!$F$76:$BU$76,0))) -> 1 | AW102: =IF(ISNUMBER($H102),(1+$H102)^(AW$10-$I102),INDEX(lookups!$F$77:$BU$87,MATCH($H102,lookups!$C$77:$C$87,0),MATCH(AW$10,lookups!$F$76:$BU$76,0))/INDEX(lookups!$F$77:$BU$87,MATCH($H102,lookups!$C$77:$C$87,0),MATCH($I102,lookups!$F$76:$BU$76,0))) -> 1 | AX102: =IF(ISNUMBER($H102),(1+$H102)^(AX$10-$I102),INDEX(lookups!$F$77:$BU$87,MATCH($H102,lookups!$C$77:$C$87,0),MATCH(AX$10,lookups!$F$76:$BU$76,0))/INDEX(lookups!$F$77:$BU$87,MATCH($H102,lookups!$C$77:$C$87,0),MATCH($I102,lookups!$F$76:$BU$76,0))) -> 1 | AY102: =IF(ISNUMBER($H102),(1+$H102)^(AY$10-$I102),INDEX(lookups!$F$77:$BU$87,MATCH($H102,lookups!$C$77:$C$87,0),MATCH(AY$10,lookups!$F$76:$BU$76,0))/INDEX(lookups!$F$77:$BU$87,MATCH($H102,lookups!$C$77:$C$87,0),MATCH($I102,lookups!$F$76:$BU$76,0))) -> 1 | AZ102: =IF(ISNUMBER($H102),(1+$H102)^(AZ$10-$I102),INDEX(lookups!$F$77:$BU$87,MATCH($H102,lookups!$C$77:$C$87,0),MATCH(AZ$10,lookups!$F$76:$BU$76,0))/INDEX(lookups!$F$77:$BU$87,MATCH($H102,lookups!$C$77:$C$87,0),MATCH($I102,lookups!$F$76:$BU$76,0))) -> 1 | BA102: =IF(ISNUMBER($H102),(1+$H102)^(BA$10-$I102),INDEX(lookups!$F$77:$BU$87,MATCH($H102,lookups!$C$77:$C$87,0),MATCH(BA$10,lookups!$F$76:$BU$76,0))/INDEX(lookups!$F$77:$BU$87,MATCH($H102,lookups!$C$77:$C$87,0),MATCH($I102,lookups!$F$76:$BU$76,0))) -> 1 | BB102: =IF(ISNUMBER($H102),(1+$H102)^(BB$10-$I102),INDEX(lookups!$F$77:$BU$87,MATCH($H102,lookups!$C$77:$C$87,0),MATCH(BB$10,lookups!$F$76:$BU$76,0))/INDEX(lookups!$F$77:$BU$87,MATCH($H102,lookups!$C$77:$C$87,0),MATCH($I102,lookups!$F$76:$BU$76,0))) -> 1 | BC102: =IF(ISNUMBER($H102),(1+$H102)^(BC$10-$I102),INDEX(lookups!$F$77:$BU$87,MATCH($H102,lookups!$C$77:$C$87,0),MATCH(BC$10,lookups!$F$76:$BU$76,0))/INDEX(lookups!$F$77:$BU$87,MATCH($H102,lookups!$C$77:$C$87,0),MATCH($I102,lookups!$F$76:$BU$76,0))) -> 1 | BD102: =IF(ISNUMBER($H102),(1+$H102)^(BD$10-$I102),INDEX(lookups!$F$77:$BU$87,MATCH($H102,lookups!$C$77:$C$87,0),MATCH(BD$10,lookups!$F$76:$BU$76,0))/INDEX(lookups!$F$77:$BU$87,MATCH($H102,lookups!$C$77:$C$87,0),MATCH($I102,lookups!$F$76:$BU$76,0))) -> 1 | BE102: =IF(ISNUMBER($H102),(1+$H102)^(BE$10-$I102),INDEX(lookups!$F$77:$BU$87,MATCH($H102,lookups!$C$77:$C$87,0),MATCH(BE$10,lookups!$F$76:$BU$76,0))/INDEX(lookups!$F$77:$BU$87,MATCH($H102,lookups!$C$77:$C$87,0),MATCH($I102,lookups!$F$76:$BU$76,0))) -> 1 | BF102: =IF(ISNUMBER($H102),(1+$H102)^(BF$10-$I102),INDEX(lookups!$F$77:$BU$87,MATCH($H102,lookups!$C$77:$C$87,0),MATCH(BF$10,lookups!$F$76:$BU$76,0))/INDEX(lookups!$F$77:$BU$87,MATCH($H102,lookups!$C$77:$C$87,0),MATCH($I102,lookups!$F$76:$BU$76,0))) -> 1 | BG102: =IF(ISNUMBER($H102),(1+$H102)^(BG$10-$I102),INDEX(lookups!$F$77:$BU$87,MATCH($H102,lookups!$C$77:$C$87,0),MATCH(BG$10,lookups!$F$76:$BU$76,0))/INDEX(lookups!$F$77:$BU$87,MATCH($H102,lookups!$C$77:$C$87,0),MATCH($I102,lookups!$F$76:$BU$76,0))) -> 1 | BH102: =IF(ISNUMBER($H102),(1+$H102)^(BH$10-$I102),INDEX(lookups!$F$77:$BU$87,MATCH($H102,lookups!$C$77:$C$87,0),MATCH(BH$10,lookups!$F$76:$BU$76,0))/INDEX(lookups!$F$77:$BU$87,MATCH($H102,lookups!$C$77:$C$87,0),MATCH($I102,lookups!$F$76:$BU$76,0))) -> 1 | BI102: =IF(ISNUMBER($H102),(1+$H102)^(BI$10-$I102),INDEX(lookups!$F$77:$BU$87,MATCH($H102,lookups!$C$77:$C$87,0),MATCH(BI$10,lookups!$F$76:$BU$76,0))/INDEX(lookups!$F$77:$BU$87,MATCH($H102,lookups!$C$77:$C$87,0),MATCH($I102,lookups!$F$76:$BU$76,0))) -> 1 | BJ102: =IF(ISNUMBER($H102),(1+$H102)^(BJ$10-$I102),INDEX(lookups!$F$77:$BU$87,MATCH($H102,lookups!$C$77:$C$87,0),MATCH(BJ$10,lookups!$F$76:$BU$76,0))/INDEX(lookups!$F$77:$BU$87,MATCH($H102,lookups!$C$77:$C$87,0),MATCH($I102,lookups!$F$76:$BU$76,0))) -> 1 | BK102: =IF(ISNUMBER($H102),(1+$H102)^(BK$10-$I102),INDEX(lookups!$F$77:$BU$87,MATCH($H102,lookups!$C$77:$C$87,0),MATCH(BK$10,lookups!$F$76:$BU$76,0))/INDEX(lookups!$F$77:$BU$87,MATCH($H102,lookups!$C$77:$C$87,0),MATCH($I102,lookups!$F$76:$BU$76,0))) -> 1 | BL102: =IF(ISNUMBER($H102),(1+$H102)^(BL$10-$I102),INDEX(lookups!$F$77:$BU$87,MATCH($H102,lookups!$C$77:$C$87,0),MATCH(BL$10,lookups!$F$76:$BU$76,0))/INDEX(lookups!$F$77:$BU$87,MATCH($H102,lookups!$C$77:$C$87,0),MATCH($I102,lookups!$F$76:$BU$76,0))) -> 1 | BM102: =IF(ISNUMBER($H102),(1+$H102)^(BM$10-$I102),INDEX(lookups!$F$77:$BU$87,MATCH($H102,lookups!$C$77:$C$87,0),MATCH(BM$10,lookups!$F$76:$BU$76,0))/INDEX(lookups!$F$77:$BU$87,MATCH($H102,lookups!$C$77:$C$87,0),MATCH($I102,lookups!$F$76:$BU$76,0))) -> 1
C103: 11 | D103: … | E103: Operating Expense | F103: 2 | H103: =Input!L22 -> 0 | I103: =Assumptions!$D$16 -> 2022 | O103: =IF(ISNUMBER($H103),(1+$H103)^(O$10-$I103),INDEX(lookups!$F$77:$BU$87,MATCH($H103,lookups!$C$77:$C$87,0),MATCH(O$10,lookups!$F$76:$BU$76,0))/INDEX(lookups!$F$77:$BU$87,MATCH($H103,lookups!$C$77:$C$87,0),MATCH($I103,lookups!$F$76:$BU$76,0))) -> 1 | P103: =IF(ISNUMBER($H103),(1+$H103)^(P$10-$I103),INDEX(lookups!$F$77:$BU$87,MATCH($H103,lookups!$C$77:$C$87,0),MATCH(P$10,lookups!$F$76:$BU$76,0))/INDEX(lookups!$F$77:$BU$87,MATCH($H103,lookups!$C$77:$C$87,0),MATCH($I103,lookups!$F$76:$BU$76,0))) -> 1 | Q103: =IF(ISNUMBER($H103),(1+$H103)^(Q$10-$I103),INDEX(lookups!$F$77:$BU$87,MATCH($H103,lookups!$C$77:$C$87,0),MATCH(Q$10,lookups!$F$76:$BU$76,0))/INDEX(lookups!$F$77:$BU$87,MATCH($H103,lookups!$C$77:$C$87,0),MATCH($I103,lookups!$F$76:$BU$76,0))) -> 1 | R103: =IF(ISNUMBER($H103),(1+$H103)^(R$10-$I103),INDEX(lookups!$F$77:$BU$87,MATCH($H103,lookups!$C$77:$C$87,0),MATCH(R$10,lookups!$F$76:$BU$76,0))/INDEX(lookups!$F$77:$BU$87,MATCH($H103,lookups!$C$77:$C$87,0),MATCH($I103,lookups!$F$76:$BU$76,0))) -> 1 | S103: =IF(ISNUMBER($H103),(1+$H103)^(S$10-$I103),INDEX(lookups!$F$77:$BU$87,MATCH($H103,lookups!$C$77:$C$87,0),MATCH(S$10,lookups!$F$76:$BU$76,0))/INDEX(lookups!$F$77:$BU$87,MATCH($H103,lookups!$C$77:$C$87,0),MATCH($I103,lookups!$F$76:$BU$76,0))) -> 1 | T103: =IF(ISNUMBER($H103),(1+$H103)^(T$10-$I103),INDEX(lookups!$F$77:$BU$87,MATCH($H103,lookups!$C$77:$C$87,0),MATCH(T$10,lookups!$F$76:$BU$76,0))/INDEX(lookups!$F$77:$BU$87,MATCH($H103,lookups!$C$77:$C$87,0),MATCH($I103,lookups!$F$76:$BU$76,0))) -> 1 | U103: =IF(ISNUMBER($H103),(1+$H103)^(U$10-$I103),INDEX(lookups!$F$77:$BU$87,MATCH($H103,lookups!$C$77:$C$87,0),MATCH(U$10,lookups!$F$76:$BU$76,0))/INDEX(lookups!$F$77:$BU$87,MATCH($H103,lookups!$C$77:$C$87,0),MATCH($I103,lookups!$F$76:$BU$76,0))) -> 1 | V103: =IF(ISNUMBER($H103),(1+$H103)^(V$10-$I103),INDEX(lookups!$F$77:$BU$87,MATCH($H103,lookups!$C$77:$C$87,0),MATCH(V$10,lookups!$F$76:$BU$76,0))/INDEX(lookups!$F$77:$BU$87,MATCH($H103,lookups!$C$77:$C$87,0),MATCH($I103,lookups!$F$76:$BU$76,0))) -> 1 | W103: =IF(ISNUMBER($H103),(1+$H103)^(W$10-$I103),INDEX(lookups!$F$77:$BU$87,MATCH($H103,lookups!$C$77:$C$87,0),MATCH(W$10,lookups!$F$76:$BU$76,0))/INDEX(lookups!$F$77:$BU$87,MATCH($H103,lookups!$C$77:$C$87,0),MATCH($I103,lookups!$F$76:$BU$76,0))) -> 1 | X103: =IF(ISNUMBER($H103),(1+$H103)^(X$10-$I103),INDEX(lookups!$F$77:$BU$87,MATCH($H103,lookups!$C$77:$C$87,0),MATCH(X$10,lookups!$F$76:$BU$76,0))/INDEX(lookups!$F$77:$BU$87,MATCH($H103,lookups!$C$77:$C$87,0),MATCH($I103,lookups!$F$76:$BU$76,0))) -> 1 | Y103: =IF(ISNUMBER($H103),(1+$H103)^(Y$10-$I103),INDEX(lookups!$F$77:$BU$87,MATCH($H103,lookups!$C$77:$C$87,0),MATCH(Y$10,lookups!$F$76:$BU$76,0))/INDEX(lookups!$F$77:$BU$87,MATCH($H103,lookups!$C$77:$C$87,0),MATCH($I103,lookups!$F$76:$BU$76,0))) -> 1 | Z103: =IF(ISNUMBER($H103),(1+$H103)^(Z$10-$I103),INDEX(lookups!$F$77:$BU$87,MATCH($H103,lookups!$C$77:$C$87,0),MATCH(Z$10,lookups!$F$76:$BU$76,0))/INDEX(lookups!$F$77:$BU$87,MATCH($H103,lookups!$C$77:$C$87,0),MATCH($I103,lookups!$F$76:$BU$76,0))) -> 1 | AA103: =IF(ISNUMBER($H103),(1+$H103)^(AA$10-$I103),INDEX(lookups!$F$77:$BU$87,MATCH($H103,lookups!$C$77:$C$87,0),MATCH(AA$10,lookups!$F$76:$BU$76,0))/INDEX(lookups!$F$77:$BU$87,MATCH($H103,lookups!$C$77:$C$87,0),MATCH($I103,lookups!$F$76:$BU$76,0))) -> 1 | AB103: =IF(ISNUMBER($H103),(1+$H103)^(AB$10-$I103),INDEX(lookups!$F$77:$BU$87,MATCH($H103,lookups!$C$77:$C$87,0),MATCH(AB$10,lookups!$F$76:$BU$76,0))/INDEX(lookups!$F$77:$BU$87,MATCH($H103,lookups!$C$77:$C$87,0),MATCH($I103,lookups!$F$76:$BU$76,0))) -> 1 | AC103: =IF(ISNUMBER($H103),(1+$H103)^(AC$10-$I103),INDEX(lookups!$F$77:$BU$87,MATCH($H103,lookups!$C$77:$C$87,0),MATCH(AC$10,lookups!$F$76:$BU$76,0))/INDEX(lookups!$F$77:$BU$87,MATCH($H103,lookups!$C$77:$C$87,0),MATCH($I103,lookups!$F$76:$BU$76,0))) -> 1 | AD103: =IF(ISNUMBER($H103),(1+$H103)^(AD$10-$I103),INDEX(lookups!$F$77:$BU$87,MATCH($H103,lookups!$C$77:$C$87,0),MATCH(AD$10,lookups!$F$76:$BU$76,0))/INDEX(lookups!$F$77:$BU$87,MATCH($H103,lookups!$C$77:$C$87,0),MATCH($I103,lookups!$F$76:$BU$76,0))) -> 1 | AE103: =IF(ISNUMBER($H103),(1+$H103)^(AE$10-$I103),INDEX(lookups!$F$77:$BU$87,MATCH($H103,lookups!$C$77:$C$87,0),MATCH(AE$10,lookups!$F$76:$BU$76,0))/INDEX(lookups!$F$77:$BU$87,MATCH($H103,lookups!$C$77:$C$87,0),MATCH($I103,lookups!$F$76:$BU$76,0))) -> 1 | AF103: =IF(ISNUMBER($H103),(1+$H103)^(AF$10-$I103),INDEX(lookups!$F$77:$BU$87,MATCH($H103,lookups!$C$77:$C$87,0),MATCH(AF$10,lookups!$F$76:$BU$76,0))/INDEX(lookups!$F$77:$BU$87,MATCH($H103,lookups!$C$77:$C$87,0),MATCH($I103,lookups!$F$76:$BU$76,0))) -> 1 | AG103: =IF(ISNUMBER($H103),(1+$H103)^(AG$10-$I103),INDEX(lookups!$F$77:$BU$87,MATCH($H103,lookups!$C$77:$C$87,0),MATCH(AG$10,lookups!$F$76:$BU$76,0))/INDEX(lookups!$F$77:$BU$87,MATCH($H103,lookups!$C$77:$C$87,0),MATCH($I103,lookups!$F$76:$BU$76,0))) -> 1 | AH103: =IF(ISNUMBER($H103),(1+$H103)^(AH$10-$I103),INDEX(lookups!$F$77:$BU$87,MATCH($H103,lookups!$C$77:$C$87,0),MATCH(AH$10,lookups!$F$76:$BU$76,0))/INDEX(lookups!$F$77:$BU$87,MATCH($H103,lookups!$C$77:$C$87,0),MATCH($I103,lookups!$F$76:$BU$76,0))) -> 1 | AI103: =IF(ISNUMBER($H103),(1+$H103)^(AI$10-$I103),INDEX(lookups!$F$77:$BU$87,MATCH($H103,lookups!$C$77:$C$87,0),MATCH(AI$10,lookups!$F$76:$BU$76,0))/INDEX(lookups!$F$77:$BU$87,MATCH($H103,lookups!$C$77:$C$87,0),MATCH($I103,lookups!$F$76:$BU$76,0))) -> 1 | AJ103: =IF(ISNUMBER($H103),(1+$H103)^(AJ$10-$I103),INDEX(lookups!$F$77:$BU$87,MATCH($H103,lookups!$C$77:$C$87,0),MATCH(AJ$10,lookups!$F$76:$BU$76,0))/INDEX(lookups!$F$77:$BU$87,MATCH($H103,lookups!$C$77:$C$87,0),MATCH($I103,lookups!$F$76:$BU$76,0))) -> 1 | AK103: =IF(ISNUMBER($H103),(1+$H103)^(AK$10-$I103),INDEX(lookups!$F$77:$BU$87,MATCH($H103,lookups!$C$77:$C$87,0),MATCH(AK$10,lookups!$F$76:$BU$76,0))/INDEX(lookups!$F$77:$BU$87,MATCH($H103,lookups!$C$77:$C$87,0),MATCH($I103,lookups!$F$76:$BU$76,0))) -> 1 | AL103: =IF(ISNUMBER($H103),(1+$H103)^(AL$10-$I103),INDEX(lookups!$F$77:$BU$87,MATCH($H103,lookups!$C$77:$C$87,0),MATCH(AL$10,lookups!$F$76:$BU$76,0))/INDEX(lookups!$F$77:$BU$87,MATCH($H103,lookups!$C$77:$C$87,0),MATCH($I103,lookups!$F$76:$BU$76,0))) -> 1 | AM103: =IF(ISNUMBER($H103),(1+$H103)^(AM$10-$I103),INDEX(lookups!$F$77:$BU$87,MATCH($H103,lookups!$C$77:$C$87,0),MATCH(AM$10,lookups!$F$76:$BU$76,0))/INDEX(lookups!$F$77:$BU$87,MATCH($H103,lookups!$C$77:$C$87,0),MATCH($I103,lookups!$F$76:$BU$76,0))) -> 1 | AN103: =IF(ISNUMBER($H103),(1+$H103)^(AN$10-$I103),INDEX(lookups!$F$77:$BU$87,MATCH($H103,lookups!$C$77:$C$87,0),MATCH(AN$10,lookups!$F$76:$BU$76,0))/INDEX(lookups!$F$77:$BU$87,MATCH($H103,lookups!$C$77:$C$87,0),MATCH($I103,lookups!$F$76:$BU$76,0))) -> 1 | AO103: =IF(ISNUMBER($H103),(1+$H103)^(AO$10-$I103),INDEX(lookups!$F$77:$BU$87,MATCH($H103,lookups!$C$77:$C$87,0),MATCH(AO$10,lookups!$F$76:$BU$76,0))/INDEX(lookups!$F$77:$BU$87,MATCH($H103,lookups!$C$77:$C$87,0),MATCH($I103,lookups!$F$76:$BU$76,0))) -> 1 | AP103: =IF(ISNUMBER($H103),(1+$H103)^(AP$10-$I103),INDEX(lookups!$F$77:$BU$87,MATCH($H103,lookups!$C$77:$C$87,0),MATCH(AP$10,lookups!$F$76:$BU$76,0))/INDEX(lookups!$F$77:$BU$87,MATCH($H103,lookups!$C$77:$C$87,0),MATCH($I103,lookups!$F$76:$BU$76,0))) -> 1 | AQ103: =IF(ISNUMBER($H103),(1+$H103)^(AQ$10-$I103),INDEX(lookups!$F$77:$BU$87,MATCH($H103,lookups!$C$77:$C$87,0),MATCH(AQ$10,lookups!$F$76:$BU$76,0))/INDEX(lookups!$F$77:$BU$87,MATCH($H103,lookups!$C$77:$C$87,0),MATCH($I103,lookups!$F$76:$BU$76,0))) -> 1 | AR103: =IF(ISNUMBER($H103),(1+$H103)^(AR$10-$I103),INDEX(lookups!$F$77:$BU$87,MATCH($H103,lookups!$C$77:$C$87,0),MATCH(AR$10,lookups!$F$76:$BU$76,0))/INDEX(lookups!$F$77:$BU$87,MATCH($H103,lookups!$C$77:$C$87,0),MATCH($I103,lookups!$F$76:$BU$76,0))) -> 1 | AS103: =IF(ISNUMBER($H103),(1+$H103)^(AS$10-$I103),INDEX(lookups!$F$77:$BU$87,MATCH($H103,lookups!$C$77:$C$87,0),MATCH(AS$10,lookups!$F$76:$BU$76,0))/INDEX(lookups!$F$77:$BU$87,MATCH($H103,lookups!$C$77:$C$87,0),MATCH($I103,lookups!$F$76:$BU$76,0))) -> 1 | AT103: =IF(ISNUMBER($H103),(1+$H103)^(AT$10-$I103),INDEX(lookups!$F$77:$BU$87,MATCH($H103,lookups!$C$77:$C$87,0),MATCH(AT$10,lookups!$F$76:$BU$76,0))/INDEX(lookups!$F$77:$BU$87,MATCH($H103,lookups!$C$77:$C$87,0),MATCH($I103,lookups!$F$76:$BU$76,0))) -> 1 | AU103: =IF(ISNUMBER($H103),(1+$H103)^(AU$10-$I103),INDEX(lookups!$F$77:$BU$87,MATCH($H103,lookups!$C$77:$C$87,0),MATCH(AU$10,lookups!$F$76:$BU$76,0))/INDEX(lookups!$F$77:$BU$87,MATCH($H103,lookups!$C$77:$C$87,0),MATCH($I103,lookups!$F$76:$BU$76,0))) -> 1 | AV103: =IF(ISNUMBER($H103),(1+$H103)^(AV$10-$I103),INDEX(lookups!$F$77:$BU$87,MATCH($H103,lookups!$C$77:$C$87,0),MATCH(AV$10,lookups!$F$76:$BU$76,0))/INDEX(lookups!$F$77:$BU$87,MATCH($H103,lookups!$C$77:$C$87,0),MATCH($I103,lookups!$F$76:$BU$76,0))) -> 1 | AW103: =IF(ISNUMBER($H103),(1+$H103)^(AW$10-$I103),INDEX(lookups!$F$77:$BU$87,MATCH($H103,lookups!$C$77:$C$87,0),MATCH(AW$10,lookups!$F$76:$BU$76,0))/INDEX(lookups!$F$77:$BU$87,MATCH($H103,lookups!$C$77:$C$87,0),MATCH($I103,lookups!$F$76:$BU$76,0))) -> 1 | AX103: =IF(ISNUMBER($H103),(1+$H103)^(AX$10-$I103),INDEX(lookups!$F$77:$BU$87,MATCH($H103,lookups!$C$77:$C$87,0),MATCH(AX$10,lookups!$F$76:$BU$76,0))/INDEX(lookups!$F$77:$BU$87,MATCH($H103,lookups!$C$77:$C$87,0),MATCH($I103,lookups!$F$76:$BU$76,0))) -> 1 | AY103: =IF(ISNUMBER($H103),(1+$H103)^(AY$10-$I103),INDEX(lookups!$F$77:$BU$87,MATCH($H103,lookups!$C$77:$C$87,0),MATCH(AY$10,lookups!$F$76:$BU$76,0))/INDEX(lookups!$F$77:$BU$87,MATCH($H103,lookups!$C$77:$C$87,0),MATCH($I103,lookups!$F$76:$BU$76,0))) -> 1 | AZ103: =IF(ISNUMBER($H103),(1+$H103)^(AZ$10-$I103),INDEX(lookups!$F$77:$BU$87,MATCH($H103,lookups!$C$77:$C$87,0),MATCH(AZ$10,lookups!$F$76:$BU$76,0))/INDEX(lookups!$F$77:$BU$87,MATCH($H103,lookups!$C$77:$C$87,0),MATCH($I103,lookups!$F$76:$BU$76,0))) -> 1 | BA103: =IF(ISNUMBER($H103),(1+$H103)^(BA$10-$I103),INDEX(lookups!$F$77:$BU$87,MATCH($H103,lookups!$C$77:$C$87,0),MATCH(BA$10,lookups!$F$76:$BU$76,0))/INDEX(lookups!$F$77:$BU$87,MATCH($H103,lookups!$C$77:$C$87,0),MATCH($I103,lookups!$F$76:$BU$76,0))) -> 1 | BB103: =IF(ISNUMBER($H103),(1+$H103)^(BB$10-$I103),INDEX(lookups!$F$77:$BU$87,MATCH($H103,lookups!$C$77:$C$87,0),MATCH(BB$10,lookups!$F$76:$BU$76,0))/INDEX(lookups!$F$77:$BU$87,MATCH($H103,lookups!$C$77:$C$87,0),MATCH($I103,lookups!$F$76:$BU$76,0))) -> 1 | BC103: =IF(ISNUMBER($H103),(1+$H103)^(BC$10-$I103),INDEX(lookups!$F$77:$BU$87,MATCH($H103,lookups!$C$77:$C$87,0),MATCH(BC$10,lookups!$F$76:$BU$76,0))/INDEX(lookups!$F$77:$BU$87,MATCH($H103,lookups!$C$77:$C$87,0),MATCH($I103,lookups!$F$76:$BU$76,0))) -> 1 | BD103: =IF(ISNUMBER($H103),(1+$H103)^(BD$10-$I103),INDEX(lookups!$F$77:$BU$87,MATCH($H103,lookups!$C$77:$C$87,0),MATCH(BD$10,lookups!$F$76:$BU$76,0))/INDEX(lookups!$F$77:$BU$87,MATCH($H103,lookups!$C$77:$C$87,0),MATCH($I103,lookups!$F$76:$BU$76,0))) -> 1 | BE103: =IF(ISNUMBER($H103),(1+$H103)^(BE$10-$I103),INDEX(lookups!$F$77:$BU$87,MATCH($H103,lookups!$C$77:$C$87,0),MATCH(BE$10,lookups!$F$76:$BU$76,0))/INDEX(lookups!$F$77:$BU$87,MATCH($H103,lookups!$C$77:$C$87,0),MATCH($I103,lookups!$F$76:$BU$76,0))) -> 1 | BF103: =IF(ISNUMBER($H103),(1+$H103)^(BF$10-$I103),INDEX(lookups!$F$77:$BU$87,MATCH($H103,lookups!$C$77:$C$87,0),MATCH(BF$10,lookups!$F$76:$BU$76,0))/INDEX(lookups!$F$77:$BU$87,MATCH($H103,lookups!$C$77:$C$87,0),MATCH($I103,lookups!$F$76:$BU$76,0))) -> 1 | BG103: =IF(ISNUMBER($H103),(1+$H103)^(BG$10-$I103),INDEX(lookups!$F$77:$BU$87,MATCH($H103,lookups!$C$77:$C$87,0),MATCH(BG$10,lookups!$F$76:$BU$76,0))/INDEX(lookups!$F$77:$BU$87,MATCH($H103,lookups!$C$77:$C$87,0),MATCH($I103,lookups!$F$76:$BU$76,0))) -> 1 | BH103: =IF(ISNUMBER($H103),(1+$H103)^(BH$10-$I103),INDEX(lookups!$F$77:$BU$87,MATCH($H103,lookups!$C$77:$C$87,0),MATCH(BH$10,lookups!$F$76:$BU$76,0))/INDEX(lookups!$F$77:$BU$87,MATCH($H103,lookups!$C$77:$C$87,0),MATCH($I103,lookups!$F$76:$BU$76,0))) -> 1 | BI103: =IF(ISNUMBER($H103),(1+$H103)^(BI$10-$I103),INDEX(lookups!$F$77:$BU$87,MATCH($H103,lookups!$C$77:$C$87,0),MATCH(BI$10,lookups!$F$76:$BU$76,0))/INDEX(lookups!$F$77:$BU$87,MATCH($H103,lookups!$C$77:$C$87,0),MATCH($I103,lookups!$F$76:$BU$76,0))) -> 1 | BJ103: =IF(ISNUMBER($H103),(1+$H103)^(BJ$10-$I103),INDEX(lookups!$F$77:$BU$87,MATCH($H103,lookups!$C$77:$C$87,0),MATCH(BJ$10,lookups!$F$76:$BU$76,0))/INDEX(lookups!$F$77:$BU$87,MATCH($H103,lookups!$C$77:$C$87,0),MATCH($I103,lookups!$F$76:$BU$76,0))) -> 1 | BK103: =IF(ISNUMBER($H103),(1+$H103)^(BK$10-$I103),INDEX(lookups!$F$77:$BU$87,MATCH($H103,lookups!$C$77:$C$87,0),MATCH(BK$10,lookups!$F$76:$BU$76,0))/INDEX(lookups!$F$77:$BU$87,MATCH($H103,lookups!$C$77:$C$87,0),MATCH($I103,lookups!$F$76:$BU$76,0))) -> 1 | BL103: =IF(ISNUMBER($H103),(1+$H103)^(BL$10-$I103),INDEX(lookups!$F$77:$BU$87,MATCH($H103,lookups!$C$77:$C$87,0),MATCH(BL$10,lookups!$F$76:$BU$76,0))/INDEX(lookups!$F$77:$BU$87,MATCH($H103,lookups!$C$77:$C$87,0),MATCH($I103,lookups!$F$76:$BU$76,0))) -> 1 | BM103: =IF(ISNUMBER($H103),(1+$H103)^(BM$10-$I103),INDEX(lookups!$F$77:$BU$87,MATCH($H103,lookups!$C$77:$C$87,0),MATCH(BM$10,lookups!$F$76:$BU$76,0))/INDEX(lookups!$F$77:$BU$87,MATCH($H103,lookups!$C$77:$C$87,0),MATCH($I103,lookups!$F$76:$BU$76,0))) -> 1
